Workbook

Sheet Contacts
A1: 2017 ACCOUNTING SPREADSHEET ECCV, ACWWA, and United
B3: =CONCATENATE("Case No. 12CW073, 11CW280, 10CW312, 10CW313, 11CW285, 09CW283, 10CW306, 84CW090, 88CW264(B), 2002CW105-A, 02CW403, 02CW404 and 03CW442 - ",'Control Sheet'!D6," SWSP Accounting Spreadsheet") -> Case No. 12CW073, 11CW280, 10CW312, 10CW313, 11CW285, 09CW283, 10CW306, 84CW090, 88CW264(B), 2002CW105-A, 02CW403, 02CW404 and 03CW442 - 2018 SWSP Accounting Spreadsheet
B8: East Cherry Creek Valley Water and Sanitation District
B9: Dave Kaunisto
B10: phone: (303) 693-3800
B12: Arapahoe County Water and Wastewater Authority
B13: Steve Witter
B14: phone: (303) 790-4830
B16: United Water and Sanitation District
B17: Andrew Damiano
B18: phone: (303) 785-3581
B20: DiNatale Water Consultants
B21: Rebecca Evans
B22: phone: (303) 709-7044
B24: Farmer's Reservoir and Irrigation Company
B25: Scott Edgar
B26: phone: (303) 659-7373

Sheet Control Sheet
A1: Accounting Control Variables
A2: Input data in yellow highlighted cells only. If yellow cells contain a formula, at the end of the accounting year, copy and paste the data for the year that just ended as values and remove the yellow shading.
A3: Sheets that require input have purple tabs.
A4: Accounting is administrated from 12 am to 12 am and the most senior call of the day will be used for the entire day.
A5: Year NHF Accounting Started | D5: 1995
A6: Current Accounting Year | D6: 2018
A7: Year Case 02CW404 and 03CW442 Accounting Started | D7: 2011
A8: Capacities | G8: Month | H8: No. of Days
A9: Max Rate of Diversion at United No. 1 | D9: 100 | E9: cfs | G9: Apr | H9: 30
A10: Max Rate of Diversion at United No. 2 | D10: 24 | E10: cfs | G10: Aug | H10: 31
A11: Max Rate of Diversion at United No. 3 | D11: 100 | E11: cfs | G11: Dec | H11: 31
A12: Div Capacity at United No. 4 | D12: 11.58 | E12: cfs | G12: Feb | H12: =IF(MOD(D6+1,4)=0,29,28) -> 28
A13: Milliken Reservoir Intake (Jay Thomas Ditch) | D13: 100 | E13: cfs | G13: Jan | H13: 31
A14: Beebe Pipeline Capacity | D14: 50 | E14: cfs | G14: Jul | H14: 31
A15: Burlington/FRICO HID share of Beebe Pipeline Capacity | D15: =0.5*D14 -> 25 | E15: cfs | G15: Jun | H15: 30
G16: Mar | H16: 31
A17: United Reservoir #3 Capacity (non-jurisdictional) | D17: 3180 | E17: AF | G17: May | H17: 31
A18: United Reservoir #3 Capacity (jurisdictional) | D18: 4611 | E18: AF | G18: Nov | H18: 30
G19: Oct | H19: 31
G20: Sep | H20: 30
A21: Div Capacity at Platte Valley Canal | D21: 350 | E21: cfs
A22: Div Capacity at Burlington Headgate | D22: 900 | E22: cfs
A23: Metro Pumping Plant | D23: 105 | E23: cfs
A25: Barr Lake Canal Characteristics
A27: Canal | B27: Length (ft) | C27: Canal Width (ft) | D27: Surface Area (ac) | E27: Capacity (cfs)
A28: Speer I | B28: 96440 | C28: 20 | D28: =(C28*B28)/43560 -> 44.27915519 | E28: 150
A29: West Burlington | B29: 48050 | C29: 10 | D29: 11.03076217 | E29: 20
A30: East Burlington | B30: 47870 | C30: 10 | D30: 10.98943985 | E30: 45
A31: Neres | B31: 89000 | C31: 20 | D31: 40.86317723 | E31: 120
A32: Bowles Seep | B32: 39310 | C32: 10 | D32: 9.024334252 | E32: 30
A33: East Neres | B33: 104860 | C33: 10 | D33: 24.07254362 | E33: 40
A35: 70 Ranch Canal Characteristics
A37: Canal | B37: Length (ft) | C37: Canal Width (ft) | D37: Surface Area (ac)
A38: Canal 11b to 8c | B38: 4850 | C38: 10 | D38: =(C38*B38)/43560 -> 1.113406795
A39: Canal 8a to 4/5 | B39: 6700 | C39: 10 | D39: =(C39*B39)/43560 -> 1.538108356
A40: Canal 8a to 9a | B40: 10670 | C40: 15 | D40: =(C40*B40)/43560 -> 3.674242424
A42: Barr Lake Evaporation Rates (From Operational Study Developed in Connection with Case No. 02CW105A): These values are used for the Projection Tool.
B43: Gross Evaporation | C43: Precipitation | D43: Net Evap
B44: Inches Per | C44: Inches Per | D44: Inches Per | E44: Percent
A45: Month | B45: Month | C45: Month | D45: Month | E45: Per Month
A46: Jan | B46: 0 | C46: 0.44 | D46: =IF(B46-C46<0,0,B46-C46) -> 0 | E46: =D46/$D$58 -> 0
A47: Feb | B47: 0 | C47: 0.37 | D47: =IF(B47-C47<0,0,B47-C47) -> 0 | E47: =D47/$D$58 -> 0
A48: Mar | B48: 2.48 | C48: 1.15 | D48: 1.33 | E48: 0.04763610315
A49: Apr | B49: 4.05 | C49: 1.76 | D49: 2.29 | E49: 0.08202005731
A50: May | B50: 5.4 | C50: 2.29 | D50: 3.11 | E50: 0.1113896848
A51: Jun | B51: 6.53 | C51: 1.63 | D51: 4.9 | E51: 0.1755014327
A52: Jul | B52: 6.75 | C52: 1.58 | D52: 5.17 | E52: 0.1851719198
A53: Aug | B53: 6.08 | C53: 1.75 | D53: 4.33 | E53: 0.1550859599
A54: Sep | B54: 4.5 | C54: 0.99 | D54: 3.51 | E54: 0.1257163324
A55: Oct | B55: 3.15 | C55: 0.89 | D55: 2.26 | E55: 0.08094555874
A56: Nov | B56: 1.8 | C56: 0.78 | D56: 1.02 | E56: 0.03653295129
A57: Dec | B57: 0 | C57: 0.52 | D57: 0 | E57: 0
A58: Total | B58: =SUM(B46:B57) -> 40.74 | C58: =SUM(C46:C57) -> 14.15 | D58: =SUM(D46:D57) -> 27.92 | E58: =SUM(E46:E57) -> 1
A61: Facility | B61: WDID
A62: Residential Well No. 1 | B62: 0107656
A63: Residential Well No. 2 | B63: 0107657
A64: Peterson Well No. 1 | B64: 0107968
A65: Peterson Well No. 2 | B65: 0107969
A66: NFC-W1 | B66: 0109961
A67: NFC-W2 | B67: 0109962
A68: NFC-W3 | B68: 0109963
A69: NFC-W4 | B69: 0109964
A70: Lower Latham Aug Station | B70: 0102917
A71: Illinois Ditch Aug Station | B71: 0102907
A72: Illinois Ditch Irrigation Pump No. 1 | B72: 0107520
A73: Illinois Ditch Irrigation Pump No. 2 | B73: 0109719
A74: Barr Lake | B74: 0203837
A75: United No. 1 | B75: 0100587
A76: United No. 2, Well #1 | B76: 0110707
A77: United No. 2, Well #3 | B77: 0110708
A78: United No. 2, Well #4 | B78: 0110709
A79: United No. 3 | B79: 0201511
A80: United No. 6 | B80: Not Yet Constructed
A81: Milton Lake | B81: 0203876
A82: Speer Canal | B82: 0200916
A83: Bowles Seep Canal | B83: 0200918
A84: E. Burlington Canal | B84: 0200920
A85: W. Burlington Canal | B85: 0200917
A86: Neres Canal | B86: 0200921
A87: E. Neres Canal | B87: 0200919
A88: Moser | B88: 0202058
A89: Milliken Reservoir | B89: 0203388
A90: Tu Pit | B90: 0202070
A91: Mile High Lakes | B91: Not Yet Constructed
A92: Bromley Lane | B92: Not Yet Constructed
A93: Schupman | B93: Not Yet Constructed
A94: Pettinger East | B94: Not Yet Constructed
A95: Pettinger West | B95: Not Yet Constructed
A96: Artese | B96: Not Yet Constructed
A97: Dechant | B97: Not Yet Constructed
A98: Carlin | B98: Not Yet Constructed
A99: Klug | B99: Not Yet Constructed
A100: Sater | B100: Not Yet Constructed
A101: Riverside Pond No. 1 | B101: 0102048
A102: Riverside Pond No. 2 | B102: 0102069
A103: Recharge Pond 4/5 | B103: Not Yet Constructed
A104: Recharge Pond 8a | B104: Not Yet Constructed
A105: Recharge Pond 8b | B105: Not Yet Constructed
A106: Recharge Pond 8c | B106: Not Yet Constructed
A107: Recharge Pond 9a | B107: Not Yet Constructed
A108: Recharge Pond 11a | B108: Not Yet Constructed
A109: Recharge Pond 11b | B109: Not Yet Constructed
A110: Recharge Canal 8a to 9a | B110: Not Yet Constructed
A111: Recharge Canal 11b to 8c | B111: Not Yet Constructed
A112: Recharge Canal 8a to 4/5 | B112: Not Yet Constructed
A113: ECCV Well No. P-2
A114: ECCV Well No. P-3
A115: ECCV Well No. P-4
A116: ECCV Well No. P-5
A117: ECCV Well No. P-6 | B117: 0210020
A118: ECCV Well No. P-8 | B118: 0209886
A119: ECCV Well No. P-11 | B119: 0209885
A120: ECCV Well No. P-12 | B120: 0209882
A121: ECCV Well No. P-13 | B121: 0209884
A122: ECCV Well No. P-18
A123: ECCV Well No. E-7 | B123: 0210019
A124: ECCV Well No. P-15
A125: ECCV Well No. E-1 | B125: Not Yet Constructed | C125: 0210385
A126: ECCV Well No. P-14 | B126: Not Yet Constructed | C126: 0210386
A127: ECCV Well No. P-19 | B127: Not Yet Constructed | C127: 0210387
A128: ECCV Well No. P-20 | B128: Not Yet Constructed | C128: 0210388
A129: ECCV Well No. P-21 | B129: Not Yet Constructed | C129: 0210389

Sheet ECCV Daily Replacement Summary
A1: =CONCATENATE('Control Sheet'!D6, " Accounting - Case 02CW404, 03CW442, and 10CW306") -> 2018 Accounting - Case 02CW404, 03CW442, and 10CW306
A2: Year | B2: ='Control Sheet'!D6 -> 2018 | BI2: REPLACEMENT SUMMARY FOR SOUTH PLATTE RIVER REACH 5 (BELOW BIJOU CANAL) | CP2: REPLACEMENT SUMMARY FOR SOUTH PLATTE RIVER REACH 4 (EMPIRE CANAL TO BIJOU CANAL) | EB2: REPLACEMENT SUMMARY FOR CACHE LA POUDRE RIVER (CONNECTED TO REACH 3) | FN2: REPLACEMENT SUMMARY FOR SOUTH PLATTE RIVER REACH 3 (LOWER LATHAM CANAL TO EMPIRE CANAL) | HA2: REPLACEMENT SUMMARY FOR SOUTH PLATTE RIVER REACH 2 (WESTERN MUTUAL DITCH TO LOWER LATHAM CANAL) | JJ2: REPLACEMENT SUMMARY FOR SOUTH PLATTE RIVER REACH 1 (ABOVE WESTERN MUTUAL DITCH) | KO2: REPLACEMENT SUMMARY FOR BEEBE DRAW ABOVE MILTON | MD2: REPLACEMENT SUMMARY FOR BEEBE DRAW BELOW MILTON | MR2: REPLACEMENT SUMMARY FOR BOX ELDER CREEK
NT3: SOUTH PLATTE RIVER EXCHANGES | SM3: Used to Check Releases on Reservoir Sheets
C4: District 2 Call Information | K4: District 1 & 64 Call Information | S4: District 3 Call Information | AA4: 70 Ranch Diversions and Well Pumping | AO4: 2003 One Time Diversion Right | AQ4: Replacement Summary For Riverside | AV4: Replacement Summary for South Platte River Reach 5 | CP4: Replacement Summary for South Platte River Reach 4 | EB4: Replacement Summary for Cache La Poudre River | FN4: Replacement Summary for South Platte River Reach 3 | HA4: Replacement Summary for South Platte River Reach 2 | JJ4: Replacement Summary for South Platte River Reach 1 | KO4: Replacement Summary for Beebe Draw Above Milton | MD4: Replacement Summary for Beebe Draw below Milton | MR4: Replacement Summary for Box Elder Ck | MY4: OVERALL REPLACEMENT SUMMARY | NO4: Minimum Rates of Flow | NT4: MAXIMUM EXCHANGE RATE FROM BEAVER CREEK=12.2 CFS | NX4: MAXIMUM EXCHANGE RATE FROM FT. MORGAN CANAL=12.2 CFS | OK4: MAXIMUM EXCHANGE RATE FROM WELDON VALLEY CANAL= 14.2 CFS | OW4: MAXIMUM EXCHANGE RATE FROM 70 RANCH EXCHANGE QUANTIFICATION POINT= 11.0 CFS | PI4: MAXIMUM EXCHANGE RATE FROM SOUTH PLATTE AND CACHE LA POUDRE CONFLUENCE=5.2 CFS | PW4: MAXIMUM EXCHANGE RATE FROM WESTERN MUTUAL DITCH=5.5 CFS | QG4: MAXIMUM EXCHANGE RATE FROM MILLIKEN RESERVOIR OUTLET STRUCTURE=260.0 CFS | QP4: MAXIMUM EXCHANGE RATE FROM SOUTH PLATTE AND ST VRAIN CONFLUENCE=50 CFS | QT4: MAXIMUM EXCHANGE RATE FROM ST VRAIN PIPELINE OUTLET EXCHANGE QUANTIFICATION POINT= 50 CFS | QY4: MAXIMUM EXCHANGE RATE FROM FARMERS INDEPENDENT DITCH=1.5 CFS | RK4: AGGREGATE OF EXCHANGES | RO4: Retiming of ECCV's Surplus Beebe Draw Recharge Accretions | SB4: Retiming of FRICO's Surplus Beebe Draw Recharge Accretions | SM4: Reservoir Replacement Release Summary
A5: Month | B5: Day | C5: Primary River Call Name (Structure Calling) | D5: Primary River Call Appropriation Date | E5: Primary River Call Location | F5: Primary River Call Admin Number | G5: Secondary River Call Name (Structure Calling) | H5: Secondary River Call Appropriation Date | I5: Secondary River Call Location | J5: Secondary River Call Admin Number | K5: Primary River Call Name (Structure Calling) | L5: Primary River Call Appropriation Date | M5: Primary River Call Location | N5: Primary River Call Admin Number | O5: Secondary River Call Name (Structure Calling) | P5: Secondary River Call Appropriation Date | Q5: Secondary River Call Location | R5: Secondary River Call Admin Number | S5: Primary River Call Name (Structure Calling) | T5: Primary River Call Appropriation Date | U5: Primary River Call Location | V5: Primary River Call Admin Number | W5: Secondary River Call Name (Structure Calling) | X5: Secondary River Call Appropriation Date | Y5: Secondary River Call Location | Z5: Secondary River Call Admin Number | AA5: Surplus CU Water Available for Diversion by Exchange at United No. 1 | AB5: United No. 1 Diversion of C.U. Water by Exchange | AC5: United No. 1 Diversion of the 2003 Right | AD5: Other Water Diverted at United No. 1 | AE5: Source of Other Water | AF5: United No. 1 Total Diversion | AG5: NFC-W1, W3 and W4 Pumping | AH5: 88CW264(B) Pumping, Peterson Well Nos. 1 and 2, Residential Well Nos.1 and 2, Illinois Irrigation Pump No.1 and 2 | AI5: Surplus C.U. Water in SPR-Reaches 4 and 5 Available for Diversion at United No. 2 | AJ5: United Diversion Facility No. 2 Well Pumping of ECCV C.U. Water | AK5: United Diversion Facility No. 2 Well Pumping of the 2003 Right | AL5: Other Water Pumped at United No. 2 | AM5: Source of Other Water | AN5: Total Pumping | AO5: Total Diversion of the 2003 One Time Diversion Right | AP5: Maximum Total Rate of Diversion | AQ5: NFC Well Depletions to Riverside | AR5: Other Approved Water to Replace NFC Well Depletions to Riverside | AS5: Source of Other Water | AT5: ECCV 70 Ranch Recharge Accretions to Riverside | AU5: Remaining Requirement to Riverside | AV5: OOP NFC Well Depletions | AW5: Leased Credits from Riverside Irrigation District | AX5: Other Approved Water used to Replace NFC Well Depletions in SPR Reach 5 | AY5: Source of Other Water | AZ5: Weldon Valley Surface RF Obligation above Fort Morgan Canal Headgate | BA5: Weldon Valley Unlagged Subsurface RF Obligation above Fort Morgan Canal Headgate | BB5: Weldon Valley Lagged Subsurface RF Obligation above Fort Morgan Canal Headgate | BC5: Weldon Valley RF Obligation above Fort Morgan Canal Headgate | BD5: Weldon Valley Surface RF Obligation below Fort Morgan Canal Headgate | BE5: Weldon Valley Unlagged Subsurface RF Obligation below Fort Morgan Canal Headgate | BF5: Weldon Valley Lagged Subsurface RF Obligation below Fort Morgan Canal Headgate | BG5: Weldon Valley RF Obligation below Fort Morgan Canal Headgate | BH5: Weldon Valley 50% RF Difference Obligation | BI5: ECCV's Riverside Recharge Accretions in SPR Reach 5 | BJ5: Weldon Valley Recharge Accretions in SPR Reach 5 | BK5: ECCV 70 Ranch Recharge Accretions to SPR Reach 5 | BL5: ECCV's Weldon Valley Ditch Augmentation Station Delivery Measured at Weldon Valley Aug Station | BM5: ECCV's Weldon Valley Ditch Augmentation Station Delivery Measured at ACWWA/Central Aug Station | BN5: ECCV's Weldon Valley Augmentation Station Delivery Used to Meet RF and RFD Obls Above Ft. Morgan | BO5: ECCV's Weldon Valley Augmentation Station Delivery Used to Meet RF and RFD Obls Below Ft. Morgan | BP5: Transit Loss from ACWWA/Central Aug Station to RF Obls Below Ft. Morgan | BQ5: Weldon Valley Ditch CU Credit | BR5: ECCV's Riverside Recharge Accrtns used to Replace Obligation in SPR Reach 5 | BS5: Weldon Valley Recharge Accrtns used to Replace Obligation in SPR Reach 5 | BT5: 70 Ranch Recharge Accrtns used to Replace Obligation in SPR Reach 5 | BU5: Transit Loss on Riverside and 70 Ranch Recharge Accretions Used for Replacement | BV5: United Res #3 Release to Satisfy Requirement in SPR Reach 5 | BW5: Transit Loss on United Res Release | BX5: Milliken Release to Satisfy Requirement in SPR Reach 5 | BY5: Transit Loss on Milliken Release | BZ5: Other Approved Water used to Replace Requirement in SPR Reach 5 | CA5: Source of Other Water | CB5: Is Ft. Morgan Canal the Calling Right and Drying up the River (Yes or No) | CC5: Is Jackson Canal the Calling Right and Drying up the River (Yes or No) | CD5: Is Bijou Canal the Calling Right and Drying up the River (Yes or No) | CE5: Available Bypassed at Bijou, Jackson or Ft. Morgan | CF5: Requested Bypassed at Bijou, Jackson or Ft. Morgan | CG5: Actual Amount Bypassed at Bijou, Jackson or Ft. Morgan | CH5: Source of Water Bypassed at Bijou, Jackson or Ft. Morgan | CI5: Riverside and 70 Ranch Accrtns used to Replace Obligation in SPR Reach 4 | CJ5: 70 Ranch Recharge Accrtns in SPR Reach 5 used to Replace Obligation in SPR Reach 4 | CK5: Weldon Valley CU in SPR Reach 5 used to Replace Obligation in SPR Reach 4 | CL5: Riverside Accrtns Used to Augment OOP Storage under 2003 Right in Milton | CM5: Recharge Accrtns in SPR 5 Used to Augment OOP Storage under 2003 Right in Milton | CN5: Obligation in SPR Reach 5 | CO5: Surplus CU in SPR Reach 5 Available for Upstream Replacement and/or Exchange | CP5: OOP NFC Well Depletions | CQ5: OOP 88CW264(B) Pumping, Peterson Well Nos. 1 and 2, Residential Well Nos.1 and 2, Illinois Irrigation Pump No.1 and 2 | CR5: United's Total OOP Stream Depletion due to Pumping | CS5: Leased Credits from Riverside Irrigation District | CT5: Other Approved Water used to Replace NFC & Peterson Well Obligation in SPR Reach 4 | CU5: Source of Other Approved Water | CV5: OOP United Diversion Facility No. 2 Depletions | CW5: ECCV's Total OOP Stream Depletion due to Pumping | CX5: Return Flow Obligation Associated with 70 Ranch Water Rights (Lower Latham and Illinois) | CY5: ECCV's Total OOP Replacement Requirement to SPR Reach 4 | CZ5: ECCV's 70 Ranch Recharge Accretions to SPR Reach 4 | DA5: Lower Latham Delivery Measured at ECCV Aug Station | DB5: Lower Latham CU Credit | DC5: ECCV's Lower Latham Aug Station Delivery Used to Meet RF Obligations | DD5: Illinois Ditch Delivery Measured at ECCV Aug Station | DE5: Illinois Ditch CU Credit | DF5: Hardin Ditch CU Credit | DG5: Other Approved Water used to Replace Obligation in SPR Reach 4 | DH5: Source of Other Approved Water | DI5: Total Consumptive Use Credit in SPR Reach 4 | DJ5: Consumptive Use Credit Used to Satisfy ECCV's Obligation in SPR Reach 4 | DK5: Consumptive Use Credit Used to Replace Longmont obligation | DL5: Transit loss from SPR Reach 4 to Longmont Obligation | DM5: Recharge Accrtns used to Replace ECCV's Obligation in SPR Reach 4 | DN5: Consumptive Use Credit Used to Augment OOP Storage under 2003 Right in Milton | DO5: Recharge Accrtns Used to Augment OOP Storage under 2003 Right in Milton | DP5: Remaining Requirement in SPR Reach 4 | DQ5: Riverside Accrtns used to Replace Obligation in SPR Reach 4 | DR5: Recharge Accrtns in SPR Reach 5 used to Replace Obligation in SPR Reach 4 | DS5: Weldon Valley Accrtns used to Replace Obligation in SPR Reach 4 | DT5: NFC Well Pumping Delivered to the South Platte for Replacement | DU5: United Res #3 Release to Satisfy Remaining Requirement in SPR Reach 4 | DV5: Transit Loss on United Res Release | DW5: ECCV LIRFs to Replace Remaining RF Obligation to SPR Reach 4 | DX5: Transit Loss on ECCV's Toll Gate Creek LIRFs | DY5: Milliken Release to Satisfy Remaining Requirement in SPR Reach 4 | DZ5: Transit Loss on Milliken Release | EA5: Surplus CU in SPR Reach 4 Available for Upstream Replacement and/or Exchange | EB5: New Cache Delivery Measured at Headgate Aug Station | EC5: New Cache Delivery Measured at Serfer Aug Station | ED5: New Cache Delivery Measured at John Law Aug Station | EE5: Transit Loss on John Law Release to CLP | EF5: New Cache Delivery Measured at Orr Lateral Aug Station | EG5: Transit Loss on Orr Lateral Release to CLP | EH5: ECCV Serfer Pit Release | EI5: Transit Loss on SerFer Pit Release to Ogilvy Ditch | EJ5: Is the Greeley No. 3 drying up the river (Yes or No) | EK5: New Cache Delivery Measured at Graham Seep Aug Station | EL5: Transit Loss on Graham Seep Release to CLP | EM5: New Cache Delivery Measured at Carpenter Lateral Aug Station | EN5: Transit Loss on Carpenter Lateral Release to CLP | EO5: New Cache Delivery Measured at Eaton Draw Aug Station | EP5: Transit Loss on Eaton Draw Release to CLP | EQ5: GIC RF Obligation abv the Ogilvy Ditch | ER5: Total RF Obligation | ES5: ECCV's GIC Delivery Measured at F Street Release Structure | ET5: Transit Loss on F Street Release to Ogilvy | EU5: ECCV's GIC Delivery Measured at 23rd Avenue Release Structure | EV5: Transit Loss on 23rd Ave Release to Ogilvy | EW5: Other Approved Water used to Replace Obligation abv the Ogilvy Ditch | EX5: Source of Other Approved Water | EY5: Is the Ogilvy Ditch drying up the river (Yes or No) | EZ5: Net Effect between GIC and Ogilvy Ditch | FA5: GIC RF Obligation below the Ogilvy Ditch | FB5: CU above Ogilvy available to SPR | FC5: Transit Loss on CU above Ogilvy to SPR | FD5: New Cache Delivery Measured at Upper Sand Creek Aug Station | FE5: Transit Loss on Upper Sand Creek Releases to SPR | FF5: New Cache Delivery Measured at Lower Sand Creek Aug Station | FG5: Transit Loss on Lower Sand Creek Releases to SPR | FH5: ECCV's GIC Delivery Measured at 16th Street Release Structure | FI5: Transit Loss on 16th Street Releases to SPR | FJ5: Total GIC Delivery at all Structures | FK5: Total Greeley No. 3 Portion of GIC Delivery | FL5: Total Fossil Creek Portion of GIC Delivery | FM5: Net Effect from CLP to SPR | FN5: OOP Historic RF Obligation to SPR Reach 3 | FO5: New Cache Lagged Subsurface RF Obligation to SPR Reach 3 | FP5: GIC RF Obligation above Highland Ditch | FQ5: CLP RF Obligation to SPR Reach 3 | FR5: Total RF Obligation | FS5: ECCV's CLP CU used to meet RFO in SPR Reach 3 | FT5: New Cache Delivery Measured at Lone Tree Creek Aug Station | FU5: Transit Loss on Lone Tree Creek Releases to SPR | FV5: New Cache Delivery Measured at Galeton Draw Aug Station | FW5: Transit Loss on Galeton Draw Aug Releases to SPR | FX5: New Cache Delivery Measured at Gill Aug Station | FY5: Transit Loss on Gill Aug Releases to SPR | FZ5: New Cache Delivery Measured at Upper Crow Creek Aug Station | GA5: Transit Loss on Upper Crow Creek Releases to SPR | GB5: New Cache Delivery Measured at Lower Crow Creek Aug Station | GC5: Transit Loss on Lower Crow Creek Releases to SPR | GD5: ECCV's SPR New Cache Augmentation Station Delivery Used to Meet RFO in SPR3 | GE5: Is there a call between Lower Latham and Bijou that is drying up the river (Yes or No) | GF5: Available Bypassed at the Lower Latham | GG5: Requested Bypassed at Lower Latham | GH5: Actual Amount Bypassed at Lower Latham | GI5: Source of Water Bypassed at Lower Latham | GJ5: 70 Ranch CU Water in SPR Reach 4 Substituted to Replace RF Obligation to SPR Reach 3 | GK5: 70 Ranch CU Water in SPR Reach 5 Substituted to Replace RF Obligation to SPR Reach 3 | GL5: United Res #3 Release to Replace Remaining RF Obligation to SPR Reach 3 | GM5: ECCV's Cache la Poudre Res Co lagged RFOs used | GN5: ECCV's New Cache Irr Co lagged RFOs used | GO5: Transit Loss on United #3 Release | GP5: ECCV LIRFs to Replace Remaining RF Obligation to SPR Reach 3 | GQ5: Transit Loss on ECCV's Toll Gate Creek LIRFs | GR5: Milliken Res Release to Replace Remaining RF Obligation to SPR Reach 3 | GS5: Transit Loss on Milliken Release | GT5: Other Approved Water used to Replace Obligation in SPR Reach 3 | GU5: Source of Other Approved Water | GV5: CLP Excess CU to SPR Reach 3 | GW5: Obligation in SPR Reach 3 | GX5: Surplus CU in SPR Reach 3 Available for Replacement and/or Exchange | GY5: ECCV's Surplus Consumable Water in SPR Reach 4 | GZ5: ECCV's Surplus Consumable Water in SPR Reach 5 | HA5: OOP Barr Share Historic RF Obligation to SPR Reach 2 | HB5: FIDCO RF Obligation to SPR Reach 2 | HC5: Western RF Obligation to Reach 2 | HD5: Total RF Obligation | HE5: FIDCO Lower Aug Station deliveries for replacement of RF obligation | HF5: FIDCO Middle Aug Station deliveries for replacement of RF Obiligation | HG5: FIDCO Upper Aug Station deliveries for replacement of RF Obiligation | HH5: Transit Loss on FIDCO Upper Aug Station Delivery for replacement of RF Obligation | HI5: Haren Pond Recharge Accretions in SPR Reach 2 | HJ5: Haren Pond Recharge Accrtns used to Replace Obligation in SPR Reach 2 | HK5: Haren Recharge Accretions Used to Augment Well Depletions abv Milton | HL5: Is there a call between the Western and Bijou that is drying up the river (Yes or No) | HM5: Is the Western (Jay Thomas) the Calling Right and Drying up the River (Yes or No) | HN5: Is the Union or Godfrey the Calling Right (Yes or No) | HO5: Available Bypassed at Western | HP5: Requested Bypassed at Western | HQ5: Actual Amount Bypassed at Western | HR5: Source of Water Bypassed at Western | HS5: 70 Ranch CU Water in SPR-Reach 4 Substituted to Replace RF Obligation to SPR Reach 2 | HT5: 70 Ranch CU Water in SPR-Reach 5 Substituted to Replace RF Obligation to SPR Reach 2 | HU5: Remaining Historic RF Obligation to SPR Reach 2 | HV5: United Res #3 Release to Replace Remaining RF Obligation to SPR Reach 2 | HW5: Transit Loss on United #3 Release | HX5: ECCV LIRFs to Replace Remaining RF Obligation to SPR Reach 2 | HY5: Transit Loss on ECCV's Toll Gate Creek LIRFs | HZ5: Milliken Res Release to Replace RF Obligations | IA5: Milliken Res Release to Replace RF Obligation to SPR Reach 2 | IB5: Transit Loss on Milliken Release | IC5: Other Approved Water used to Replace Obligation in SPR Reach 2 | ID5: Source of Other Approved Water | IE5: Remaining Historic RF Obligation to SPR Reach 2 | IF5: Western Ditch Delivery Measured at Aug Station | IG5: Western CU Credit | IH5: FIDCO Delivery Measured at Lower Aug Station | II5: FIDCO CU Credit from Lower Aug Station | IJ5: FIDCO Delivery Measured at Middle Aug Station | IK5: FIDCO CU Credit from Middle Aug Station | IL5: FIDCO CU from Lower Aug Station used to Replace Obligation to Beebe abv Milton | IM5: Western CU used to Replace Obligation to Beebe abv Milton | IN5: FIDCO CU from Lower Aug Station used to Replace Longmont Obligation | IO5: Transit loss from FIDCO Lower Aug Station to Longmont Obligation | IP5: Western CU used to Replace Longmont Obligation | IQ5: Milliken Release used to Replace Longmont Obligation | IR5: Transit Loss on Milliken Release | IS5: Western CU Available for Exchange to Milliken and United | IT5: Western CU Exchanged to Milliken Res | IU5: Western CU Exchanged to United Res | IV5: FIDCO Lower Aug Station CU Available for Exchange to Milliken and United | IW5: FIDCO SPR Reach 2 CU Exchanged to Milliken | IX5: FIDCO SPR Reach 2 CU Exchanged to United Res | IY5: CU Water from SPR Reach 5 Available for Exchange to Milliken | IZ5: CU Water from SPR Reach 5 Exchanged to Milliken Res | JA5: CU Water from SPR Reach 4 Available for Exchange to Milliken | JB5: CU Water from SPR Reach 4 Exchanged to Milliken Res | JC5: FIDCO CU Diverted to Milliken Res | JD5: ECCV Toll Gate Creek LIRFs to Milliken Res | JE5: Transit Loss on ECCV's Toll Gate Creek LIRFs to Milliken Res | JF5: Total ECCV Diversion to Milliken Res of CU Water | JG5: ECCV's Surplus Consumable Water in SPR Reach 2 | JH5: ECCV's Surplus Consumable Water in SPR Reach 4 | JI5: ECCV's Surplus Consumable Water in SPR Reach 5 | JJ5: OOP Barr Share Historic RF Obligation to SPR Reach 1 | JK5: FIDCO Delivery Measured at Upper Aug Station | JL5: FIDCO CU Credit from Upper Aug Station | JM5: FIDCO CU Used for Barr RF | JN5: Is there a call between the Farmers Independent and Bijou that is drying up the river (Yes or No) | JO5: CU Water in SPR-Reach 4 Substituted to Replace RF Obligation to SPR Reach 1 | JP5: CU Water in SPR-Reach 5 Substituted to Replace RF Obligation to SPR Reach 1 | JQ5: CU Water in SPR-Reach 2 Substituted to Replace RF Obligation to SPR Reach 1 | JR5: Remaining Historic RF Obligation to SPR Reach 1 | JS5: ECCV United Res #3 Release to Replace RF Obligations | JT5: United Res #3 Release to Replace Remaining RF Obligation to SPR Reach 1 | JU5: Transit Loss on United Res Release | JV5: Milliken Release to Replace Remaining RF Obligation to SPR Reach 1 | JW5: ECCV's 03CW200 Toll Gate LIRFs | JX5: Transit Loss on ECCV's Toll Gate Creek LIRFs from Sand Crk Abv Burlington gage to South Platte River | JY5: ECCV LIRFs to Replace Remaining RF Obligation to SPR Reach 1 | JZ5: Transit Loss on ECCV's Toll Gate Creek LIRFs | KA5: Other Approved Water used to Replace Obligation in SPR Reach 1 | KB5: Source of Other Approved Water | KC5: Remaining Requirement in SPR Reach 1 | KD5: CU Water from SPR Reach 5 Available for Exchange to United Res | KE5: CU Water from SPR Reach 5 Exchanged to United Res | KF5: CU Water from SPR Reach 4 Available for Exchange to United Res | KG5: CU Water from SPR Reach 4 Exchanged to United Res | KH5: Western CU Water from SPR Reach 2 Exchanged to United Res | KI5: FIDCO CU Water from SPR Reach 2 Exchanged to United Res | KJ5: ECCV Toll Gate Creek LIRFs to United Res | KK5: Transit Loss on ECCV's Toll Gate Creek LIRFs to United Res | KL5: Total ECCV Diversion to United Res of CU Water | KM5: ECCV's Surplus Consumable Water in SPR Reach 4 | KN5: ECCV's Surplus Consumable Water in SPR Reach 5 | KO5: OOP ECCV Well Depletion to Beebe abv Milton | KP5: OOP Historic RF Obligation to Beebe abv Milton | KQ5: Total Ditch Loss Obligation for ECCV's Changed Barr Shares | KR5: ECCV Recharge Accretions to Beebe above Milton Lake | KS5: Total 84CW090 Direct Flow above Milton Lake | KT5: ECCV's 84CW090 Direct Flow above Milton Lake | KU5: ECCV's use of 84CW090 Direct Flow above Milton Lake to Augment Well Depletions abv Milton | KV5: 84CW090 Recharge Accretions to Beebe above Milton Lake | KW5: Lochbuie 84CW090 Accretions used for Replacement to Beebe above Milton Lake | KX5: ECCV's Share Allocation of 84CW090 Accretions | KY5: ECCV Recharge Accretions Used to Augment Well Depletions abv Milton | KZ5: ECCV's 84CW090 Accretions Used to Augment Well Depletions abv Milton | LA5: Is there a call on Beebe Draw or SPR between Powell Spillway and Bijou Canal that is drying up the river (Yes or No) | LB5: Milton Lake Net Loss Based on Mass Balance | LC5: CU Water in SPR-Reach 4 Substituted to Replace RF Obligation abv Milton | LD5: CU Water in SPR-Reach 4 Used to Augment Well Depletions abv Milton | LE5: CU Water in SPR-Reach 5 Substituted to Replace RF Obligation abv Milton | LF5: CU Water in SPR-Reach 5 Used to Augment Well Depletions abv Milton | LG5: CU Water in SPR-Reach 3 Substituted to Replace RF Obligation abv Milton | LH5: CU Water in SPR-Reach 3 Used to Augment Well Depletions abv Milton | LI5: Remaining Well Depletion to Beebe abv Milton | LJ5: Remaining Historic RF Obligation to Beebe abv Milton | LK5: Barr Release to Replace Well Depletion to Beebe abv Milton | LL5: Transit Loss on Barr Release | LM5: Barr Release to Replace RF Obligation to Beebe abv Milton | LN5: Barr Release to Replace Ditch Loss Obligation to Beebe abv Milton | LO5: Milton Bookover to Replace Well Depletion to Beebe abv Milton | LP5: FIDCO CU from Lower Aug Station Substituted to Replace RF Obligation abv Milton | LQ5: FIDCO CU from Lower Aug Station Used to Augment Well Depletions abv Milton | LR5: Western CU in SPR-Reach 2 Substituted to Replace RF Obligation abv Milton | LS5: Western CU in SPR-Reach 2 Used to Augment Well Depletions abv Milton | LT5: Haren Recharge Accretions in SPR- Reach 2 Used to Augment Well Depletions abv Milton | LU5: ECCV's Milliken Release to Replace Remaining Obligation to abv Milton | LV5: Transit Loss on Milliken Res Release | LW5: ECCV's Other Approved Water used to Replace Obligation above Milton | LX5: Source of ECCV's Other Approved Water | LY5: Remaining Obligation to Beebe abv Milton | LZ5: ECCV's Surplus Recharge Accretions to Beebe above Milton Lake | MA5: ECCV's Surplus 84CW090 Recharge Accretions to Beebe above Milton Lake | MB5: ECCV's Surplus Consumable Water in SPR-Reach 4 | MC5: ECCV's Surplus Consumable Water in SPR-Reach 5 | MD5: OOP Historic RF Obligation to Beebe blw Milton | ME5: Is there a call on Beebe Draw blw Milton or SPR btwn Powell Spillway and Bijou Canal drying up the river (Yes or No) | MF5: 70 Ranch CU Water in SPR Reach 4 Substituted to Replace RF Obligation blw Milton | MG5: 70 Ranch CU Water in SPR Reach 5 Substituted to Replace RF Obligation blw Milton | MH5: Remaining Historic RF Obligation to Beebe blw Milton | MI5: Milton Release to meet RF Obligation to Beebe blw Milton | MJ5: Transit Loss on Milton Release | MK5: Other Approved Water used to Replace Obligation below Milton | ML5: Source of Other Approved Water | MM5: Total 84CW090 Direct Flow below Milton Lake | MN5: ECCV's 84CW090 Direct Flow below Milton Lake | MO5: ECCV's use of 84CW090 Direct Flow below Milton Lake to Augment Well Pumping Depletions | MP5: ECCV's Surplus Consumable Water in SPR-Reach 4 | MQ5: ECCV's Surplus Consumable Water in SPR-Reach 5 | MR5: OOP Historic RF Obligation to Box Elder Creek | MS5: ECCV Recharge Accretions to Box Elder Creek | MT5: ECCV Recharge Accretions Used to Augment Box Elder Creek Obligation | MU5: Milton Release to meet RF Obligation to Box Elder Ck | MV5: Transit Loss on Milton Release | MW5: Other Approved Water used to Replace Obligation to Box Elder | MX5: Source of Other Approved Water | MY5: Total Out of Priority Replacement Requirement | MZ5: Total Replacement to Beebe abv Milton | NA5: Total Replacement to Beebe blw Milton | NB5: Total Replacement to Box Elder Ck | NC5: Total Replacement to SPR-Reach 1 | ND5: Total Replacement to SPR-Reach 2 | NE5: Total Replacement to SPR-Reach 3 | NF5: Total Replacement to CLP | NG5: Total Replacement to SPR-Reach 4 | NH5: Total Replacement to SPR-Reach 5 | NI5: Total Replacement | NJ5: Total Remaining Replacement Requirement | NK5: ECCV's Surplus Recharge Accretions in Beebe abv Milton | NL5: ECCV's Surplus Consumable Water in SPR-Reach 4 | NM5: ECCV's Surplus Consumable Water in SPR-Reach 5 | NO5: Minimum Flow within Reach 5 | NP5: Minimum Flow within Reach 4 | NQ5: Minimum Flow within Reach 3 | NR5: Minimum Flow within Reach 2 | NS5: Minimum Flow within Reach 1 | NT5: Measured flow at Beaver Creek | NU5: Exchange from Beaver Creek to Ft. Morgan Headgate | NV5: Total Exchanged from Beaver Creek under 12/29/2011 Appropriation Date | NW5: Source of Substitute Supply Used for Exchanges from Beaver Creek | NX5: Measured flow at all Ft. Morgan Canal Aug Stations | NY5: Exchange from all Ft. Morgan Canal Aug Stations to Ft Morgan Canal Headgate | NZ5: Exchange from all Ft. Morgan Canal Aug Stations to United Div Facility No. 1 | OA5: Total exchange from all Ft. Morgan Canal Aug Stations to either Milliken Res Diversion | OB5: Exchange from all Ft. Morgan Canal Aug Stations to St Vrain Pipeline | OC5: Exchange from all Ft. Morgan Canal Aug Stations to Jay Thomas Ditch | OD5: Exchange from all Ft. Morgan Canal Aug Stations to Platte Valley Canal | OE5: Exchange from all Ft. Morgan Canal Aug Stations to United Div Facility No. 3 | OF5: Exchange from all Ft. Morgan Canal Aug Stations to Burlington Canal | OG5: Total Exchanged from all Ft. Morgan Canal Aug Stations under 12/31/2003 Appropriation Date | OH5: Total Exchanged from all Ft. Morgan Canal Aug Stations under 5/31/2007 Appropriation Date | OI5: Total Exchanged from all Ft. Morgan Canal Aug Stations under 12/29/2011 Appropriation Date | OJ5: Source of Substitute Supply Used for Exchanges from all Ft. Morgan Canal Aug Stations | OK5: Measured flow at all Weldon Valley Canal Aug Stations | OL5: Exchange from all Weldon Valley Canal Aug Stations to United Div Facility No. 1 | OM5: Exchange from all Weldon Valley Canal Aug Stations to either Milliken Res Diversion | ON5: Exchange from all Weldon Valley Canal Aug Stations to St Vrain Pipeline | OO5: Exchange from all Weldon Valley Canal Aug Stations to Jay Thomas Ditch | OP5: Exchange from all Weldon Valley Canal Aug Stations to Platte Valley Canal | OQ5: Exchange from all Weldon Valley Canal Aug Stations to United Div Facility No. 3 | OR5: Exchange from all Weldon Valley Canal Aug Stations to Burlington Canal | OS5: Total Exchanged from all Weldon Valley Aug Stations under 12/31/2003 Appropriation Date | OT5: Total Exchanged from all Weldon Valley Aug Stations under 5/31/2007 Appropriation Date | OU5: Total Exchanged from all Weldon Valley Aug Stations under 12/29/2011 Appropriation Date | OV5: Source of Substitute Supply Used for Exchanges from Weldon Valley Canal | OW5: ECCV's Surplus Consumable Water in SPR-Reaches 4 and 5 Available for Exchanges from 70 Ranch | OX5: Exchange from 70 Ranch Exchange Quantification Point to United Div Facility No. 1 | OY5: Exchange from 70 Ranch Exchange Quantification Point to either Milliken Res Diversion | OZ5: Exchange from 70 Ranch Exchange Quantification Point to St Vrain Pipeline | PA5: Exchange from 70 Ranch Exchange Quantification Point to Jay Thomas Ditch | PB5: Exchange from 70 Ranch Exchange Quantification Point to Platte Valley Canal | PC5: Exchange from 70 Ranch Exchange Quantification Point to United Div Facility No. 3 | PD5: Exchange from 70 Ranch Exchange Quantification Point to Burlington Canal | PE5: Total Exchanged from 70 Ranch under 12/31/2003 Appropriation Date | PF5: Total Exchanged from 70 Ranch under 5/31/2007 Appropriation Date | PG5: Total Exchanged from 70 Ranch under 12/29/2011 Appropriation Date | PH5: Source of Substitute Supply Used for Exchanges from 70 Ranch | PI5: Amount Available at South Platte and Cache la Poudre Confluence for Exchange | PJ5: Amount Available at Sand Creek Aug Station for Exchange | PK5: Amount Available at Lone Tree Creek Aug Station for Exchange | PL5: Amount Available at Crow Creek Aug Station for Exchange | PM5: Total exchange from all Cache la Poudre Rights on the South Platte to either Milliken Res Diversion | PN5: Exchange from all Cache la Poudre Rights on the South Platte to St Vrain Pipeline | PO5: Exchange from all Cache la Poudre Rights on the South Platte to Jay Thomas Ditch | PP5: Exchange from all Cache la Poudre Rights on the South Platte to Platte Valley Canal | PQ5: Exchange from all Cache la Poudre Rights on the South Platte to United Div Facility No. 3 | PR5: Exchange from all Cache la Poudre Rights on the South Platte to Burlington Canal | PS5: Total Exchanged from all Cache la Poudre Rights on the South Platte under 12/31/2003 Appropriation Date | PT5: Total Exchanged from all Cache la Poudre Rights on the South Platte under 5/31/2007 Appropriation Date | PU5: Total Exchanged from all Cache la Poudre Rights on the South Platte under 12/29/2011 Appropriation Date | PV5: Source of Substitute Supply Used for Exchanges from all Cache la Poudre Rights on the South Platte | PW5: Measured flow at Western Mutual Ditch Aug Station | PX5: Total exchange from downstream and mid Western Mutual Ditch Aug Station to either Milliken Res Diversion | PY5: Exchange from downstream and mid Western Mutual Ditch Aug Station to St Vrain Pipeline (United Div Facility No. 5) | PZ5: Exchange from all Western Mutual Ditch Aug Station to Platte Valley Canal | QA5: Exchange from all Western Mutual Ditch Aug Station to United Div Facility No. 3 | QB5: Exchange from all Western Mutual Ditch Aug Station to Burlington Canal | QC5: Total Exchanged from Western Mutual under 12/31/2003 Appropriation Date | QD5: Total Exchanged from Western Mutual under 5/31/2007 Appropriation Date | QE5: Total Exchanged from Western Mutual under 12/29/2011 Appropriation Date | QF5: Source of Substitute Supply Used for Exchanges from Western Mutual Ditch Aug Station | QG5: Total Measured flow at all Milliken Res Outlet Structures | QH5: Exchange from all Milliken Res Outlet Structures to St Vrain Pipeline | QI5: Exchange from all Milliken Res Outlet Structures to Platte Valley Canal | QJ5: Exchange from all Milliken Res Outlet Structures to United Div Facility No. 3 | QK5: Exchange from all Milliken Res Outlet Structures to Burlington Canal | QL5: Total Exchanged from Milliken Res Outlets under 12/31/2003 Appropriation Date | QM5: Total Exchanged from Milliken Res Outlets under 5/31/2007 Appropriation Date | QN5: Total Exchanged from Milliken Res Outlets under 12/29/2011 Appropriation Date | QO5: Source of Substitute Supply Used for Exchanges from all Milliken Res Outlet Structures | QP5: Amount Available at South Platte and St Vrain Confluence for Exchange | QQ5: Exchange from Confluence of South Platte and St Vrain Rivers to St Vrain Pipeline | QR5: Total Exchanged from Confluence of South Platte and St Vrain Rivers to St Vrain Pipeline under 12/29/2011 Appropriation Date | QS5: Source of Substitute Supply Used for Exchanges from South Platte and St Vrain Confluence | QT5: Measured flow at St. Vrain Pipeline Outlet | QU5: Exchange from St. Vrain Pipeline to United Div Facility No. 3 | QV5: Exchange from St. Vrain Pipeline to Burlington Canal | QW5: Total Exchanged from the St Vrain Pipeline under 12/29/2011 Appropriation Date | QX5: Source of Substitute Supply Used for Exchanges from St. Vrain Pipeline | QY5: Measured flow at Farmers Independent Ditch Lower Aug Station | QZ5: Exchange from Farmers Independent Lower Aug Station to St Vrain Pipeline | RA5: Exchange from Farmers Independent Ditch Lower Aug Station to Platte Valley Canal | RB5: Exchange from Farmers Independent Ditch Lower Aug Station to United Div Facility No. 3 | RC5: Exchange from Farmers Independent Ditch Lower Aug Station to Burlington Canal | RD5: Total Exchanged from Farmers Independent Lower Aug Station under 12/31/2003 Appropriation Date | RE5: Total Exchanged from Farmers Independent Lower Aug Station under 5/31/2007 Appropriation Date | RF5: Total Exchanged from Farmers Independent Lower Aug Station under 12/29/2011 Appropriation Date | RG5: Source of Substitute Supply Used for Exchanges from Farmers Independent Ditch Lower Aug Station | RH5: Total Exchanged under 12/31/2003 Appropriation Date, Decree 02CW404 | RI5: Total Exchanged under 5/31/2007 Appropriation Date, Decree 11CW285 | RJ5: Total Exchanged under 12/29/2011 Appropriation Date, Decree 11CW285 | RK5: Total Aggregate Rate of Exchange | RL5: Cumulative Total | RM5: Maximum Allowable Total Aggregate Rate of Exchange | RO5: Surplus ECCV Beebe Recharge Accretions abv Milton | RP5: Surplus Recharge Accretions Delivered to Milton Lake | RQ5: Surplus ECCV Beebe Recharge Accretions Diverted to Bowles Seep | RR5: Surplus ECCV Beebe Recharge Accretions Diverted to East Neres | RS5: Surplus ECCV Beebe Recharge Accretions Diverted to Speer | RT5: Surplus ECCV Beebe Recharge Accretions Diverted to West Burl. | RU5: Surplus ECCV Beebe Recharge Accretions Diverted to East Burl. | RV5: Surplus ECCV Beebe Recharge Accretions Diverted to Neres | RW5: Surplus ECCV Recharge Accretions Diverted to the Tu Site | RX5: Surplus ECCV Recharge Accretions Diverted to the Mile High Lakes Site | RY5: Surplus ECCV Recharge Accretions Diverted to the Bromley Site | RZ5: Surplus ECCV Recharge Accretions Diverted to the Schupman Site | SA5: Surplus ECCV Recharge Accretions Diverted to the Moser Site | SB5: Surplus ECCV Recharge Accretions Diverted to the Pettinger East Site | SC5: Surplus ECCV Recharge Accretions Diverted to the Pettinger West Site | SD5: Surplus ECCV Recharge Accretions Diverted to the Artese Site | SE5: Surplus ECCV Recharge Accretions Diverted to the Dechant Site | SF5: Surplus ECCV Recharge Accretions Diverted to Carlin Site | SG5: Surplus ECCV Recharge Accretions Diverted to the Klug Site | SH5: Surplus ECCV Recharge Accretions Diverted to the Sater Site | SI5: Check on Diversion of Surplus Recharge Accretions (must be >=0) | SJ5: Check on ECCV LIRFs use of credits | SK5: Check on ECCV FIDCO credits | SM5: Release from Barr Lake for Replacement | SN5: Release from Milton Lake for Replacement | SP5: Days in the Month
AA6: WDID # 0100587 | AB6: WDID # 0100587 | AC6: WDID # 0100587 | AD6: WDID # 0100587 | AF6: WDID # 0100587 | AG6: WDID # 0109961, 0109962, 0109963, 0109964 | AH6: WDID # 0107968, 0107969, 0107656, 0107657, 0107520, 0109719 | AI6: WDID # 0110707, 0110708, 0110709 | AJ6: WDID # 0110707, 0110708, 0110709 | AK6: WDID # 0110707, 0110708, 0110709 | AL6: WDID # 0110707, 0110708, 0110709 | BL6: WDID # 0102900 | BM6: WDID # 102909 | BV6: WDID # 0201511 | BX6: WDID # 0203388 | CE6: WDID # 0100507, 0100503, 0100514 | CF6: WDID # 0100507, 0100503, 0100514 | CG6: WDID # 0100507, 0100503, 0100514 | CH6: WDID # 0100507, 0100503, 0100514 | DA6: WDID # 0102917 | DD6: WDID # 0102907 | DU6: WDID # 0201511 | DY6: WDID # 0203388 | EB6: WDID # | EC6: WDID # | ED6: WDID # 0300771 | EF6: WDID # | EK6: WDID # | EM6: WDID # | EO6: WDID # | ES6: WDID # 0302320 | EU6: WDID # 0302318 | FD6: WDID # | FF6: WDID # 0302902 | FH6: WDID # 0302319 | FT6: WDID # 0102932 | FV6: WDID # | FX6: WDID # | FZ6: WDID # | GB6: WDID # 0102911 | GF6: WDID # 0102917 | GG6: WDID # 0102917 | GH6: WDID # 0102917 | GL6: WDID # 0201511 | GR6: WDID # 0203388 | HE6: WDID # 0202909 | HF6: WDID # | HG6: WDID # 0202908 | HO6: WDID # 0200825 | HP6: WDID # 0200825 | HQ6: WDID # 0200825 | HV6: WDID # 0201511 | HZ6: WDID # 0203388 | IA6: WDID # 0203388 | IF6: WDID # 0201023 | IH6: WDID # 0202909 | IJ6: WDID # | JK6: WDID # 0202908 | JS6: WDID # 0201511 | JT6: WDID # 0201511
AA7: cfs | AB7: cfs | AC7: cfs | AD7: cfs | AE7: cfs | AF7: cfs | AG7: cfs | AH7: cfs | AI7: cfs | AJ7: cfs | AK7: cfs | AL7: cfs | AM7: cfs | AN7: cfs | AO7: cfs | AP7: cfs | AQ7: cfs | AR7: cfs | AS7: cfs | AT7: cfs | AU7: cfs | AV7: cfs | AW7: cfs | AX7: cfs | AY7: cfs | AZ7: cfs | BA7: cfs | BB7: cfs | BC7: cfs | BD7: cfs | BE7: cfs | BF7: cfs | BG7: cfs | BH7: cfs | BI7: cfs | BJ7: cfs | BK7: cfs | BL7: cfs | BM7: cfs | BN7: cfs | BO7: cfs | BP7: cfs | BQ7: cfs | BR7: cfs | BS7: cfs | BT7: cfs | BU7: cfs | BV7: cfs | BW7: cfs | BX7: cfs | BY7: cfs | BZ7: cfs | CB7: cfs | CC7: cfs | CD7: cfs | CE7: cfs | CF7: cfs | CG7: cfs | CH7: cfs | CI7: cfs | CJ7: cfs | CK7: cfs | CL7: cfs | CM7: cfs | CN7: cfs | CO7: cfs | CP7: cfs | CQ7: cfs | CR7: cfs | CS7: cfs | CT7: cfs | CU7: cfs | CV7: cfs | CW7: cfs | CX7: cfs | CY7: cfs | CZ7: cfs | DA7: cfs | DB7: cfs | DC7: cfs | DD7: cfs | DE7: cfs | DF7: cfs | DG7: cfs | DH7: cfs | DI7: cfs | DJ7: cfs | DK7: cfs | DL7: cfs | DM7: cfs | DN7: cfs | DO7: cfs | DP7: cfs | DQ7: cfs | DR7: cfs | DS7: cfs | DT7: cfs | DU7: cfs | DV7: cfs | DW7: cfs | DX7: cfs | DY7: cfs | DZ7: cfs | EA7: cfs | EB7: cfs | EC7: cfs | ED7: cfs | EE7: cfs | EF7: cfs | EG7: cfs | EH7: cfs | EI7: cfs | EK7: cfs | EL7: cfs | EM7: cfs | EN7: cfs | EO7: cfs | EP7: cfs | EQ7: cfs | ER7: cfs | ES7: cfs | ET7: cfs | EU7: cfs | EV7: cfs | EW7: cfs | EZ7: cfs | FA7: cfs | FB7: cfs | FC7: cfs | FD7: cfs | FE7: cfs | FF7: cfs | FG7: cfs | FH7: cfs | FI7: cfs | FJ7: cfs | FK7: cfs | FL7: cfs | FM7: cfs | FN7: cfs | FO7: cfs | FP7: cfs | FQ7: cfs | FR7: cfs | FS7: cfs | FT7: cfs | FU7: cfs | FV7: cfs | FW7: cfs | FX7: cfs | FY7: cfs | FZ7: cfs | GA7: cfs | GB7: cfs | GC7: cfs | GD7: cfs | GF7: cfs | GG7: cfs | GH7: cfs | GJ7: cfs | GK7: cfs | GL7: cfs | GM7: cfs | GN7: cfs | GO7: cfs | GP7: cfs | GQ7: cfs | GR7: cfs | GS7: cfs | GT7: cfs | GV7: cfs | GW7: cfs | GX7: cfs | GY7: cfs | GZ7: cfs | HA7: cfs | HB7: cfs | HC7: cfs | HD7: cfs | HE7: cfs | HF7: cfs | HG7: cfs | HH7: cfs | HI7: cfs | HJ7: cfs | HK7: cfs | HO7: cfs | HP7: cfs | HQ7: cfs | HS7: cfs | HT7: cfs | HU7: cfs | HV7: cfs | HW7: cfs | HX7: cfs | HY7: cfs | HZ7: cfs | IA7: cfs | IB7: cfs | IC7: cfs | IE7: cfs | IF7: cfs | IG7: cfs | IH7: cfs | II7: cfs | IJ7: cfs | IK7: cfs | IL7: cfs | IM7: cfs | IN7: cfs | IO7: cfs | IP7: cfs | IQ7: cfs | IR7: cfs | IS7: cfs | IT7: cfs | IU7: cfs | IV7: cfs | IW7: cfs | IX7: cfs | IY7: cfs | IZ7: cfs | JA7: cfs | JB7: cfs | JC7: cfs | JD7: cfs | JE7: cfs | JF7: cfs | JG7: cfs | JH7: cfs | JI7: cfs | JJ7: cfs | JK7: cfs | JL7: cfs | JM7: cfs | JO7: cfs | JP7: cfs | JQ7: cfs | JR7: cfs | JS7: cfs | JT7: cfs | JU7: cfs | JV7: cfs | JW7: cfs | JX7: cfs | JY7: cfs | JZ7: cfs | KA7: cfs | KB7: cfs | KC7: cfs | KD7: cfs | KE7: cfs | KF7: cfs | KG7: cfs | KH7: cfs | KI7: cfs | KJ7: cfs | KK7: cfs | KL7: cfs | KM7: cfs | KN7: cfs | KO7: cfs | KP7: cfs | KQ7: cfs | KR7: cfs | KS7: cfs | KT7: cfs | KU7: cfs | KV7: cfs | KW7: cfs | KX7: cfs | KY7: cfs | KZ7: cfs | LB7: cfs | LC7: cfs | LD7: cfs | LE7: cfs | LF7: cfs | LG7: cfs | LH7: cfs | LI7: cfs | LJ7: cfs | LK7: cfs | LL7: cfs | LM7: cfs | LN7: cfs | LO7: cfs | LP7: cfs | LQ7: cfs | LR7: cfs | LS7: cfs | LT7: cfs | LU7: cfs | LV7: cfs | LW7: cfs | LX7: cfs | LY7: cfs | LZ7: cfs | MA7: cfs | MB7: cfs | MC7: cfs | MD7: cfs | MF7: cfs | MG7: cfs | MH7: cfs | MI7: cfs | MJ7: cfs | MK7: cfs | ML7: cfs | MM7: cfs | MN7: cfs | MO7: cfs | MP7: cfs | MQ7: cfs | MR7: cfs | MS7: cfs | MT7: cfs | MU7: cfs | MV7: cfs | MW7: cfs | MY7: cfs | MZ7: cfs | NA7: cfs | NB7: cfs | NC7: cfs | ND7: cfs | NE7: cfs | NF7: cfs | NG7: cfs | NH7: cfs | NI7: cfs | NJ7: cfs | NK7: cfs | NL7: cfs | NM7: cfs | NT7: cfs | NU7: cfs | NV7: cfs | NX7: cfs | NY7: cfs | NZ7: cfs | OA7: cfs | OB7: cfs | OC7: cfs | OD7: cfs | OE7: cfs | OF7: cfs | OG7: cfs | OH7: cfs | OI7: cfs | OL7: cfs | OM7: cfs | ON7: cfs | OO7: cfs | OP7: cfs | OQ7: cfs | OR7: cfs | OS7: cfs | OT7: cfs | OU7: cfs | OW7: cfs | OX7: cfs | OY7: cfs | OZ7: cfs | PA7: cfs | PB7: cfs | PC7: cfs | PD7: cfs | PE7: cfs | PF7: cfs | PG7: cfs | PM7: cfs | PN7: cfs | PO7: cfs | PP7: cfs | PQ7: cfs | PR7: cfs | PS7: cfs | PT7: cfs | PU7: cfs | PX7: cfs | PY7: cfs | PZ7: cfs | QA7: cfs | QB7: cfs | QC7: cfs | QD7: cfs | QE7: cfs | QH7: cfs | QI7: cfs | QJ7: cfs | QK7: cfs | QL7: cfs | QM7: cfs | QN7: cfs | QQ7: cfs | QR7: cfs | QT7: cfs | QU7: cfs | QV7: cfs | QZ7: cfs | RA7: cfs | RB7: cfs | RC7: cfs | RD7: cfs | RE7: cfs | RF7: cfs | RH7: cfs | RI7: cfs | RJ7: cfs | RK7: cfs | RM7: cfs | RO7: cfs | RP7: cfs | RQ7: cfs | RR7: cfs | RS7: cfs | RT7: cfs | RU7: cfs | RV7: cfs | RW7: cfs | RX7: cfs | RY7: cfs | RZ7: cfs | SA7: cfs | SB7: cfs | SC7: cfs | SD7: cfs | SE7: cfs | SF7: cfs | SG7: cfs | SH7: cfs | SI7: cfs | SM7: cfs | SN7: cfs
C8: 1 | D8: =C8+1 -> 2 | E8: 3 | F8: 4 | G8: 5 | H8: 6 | I8: 7 | J8: 8 | K8: 9 | L8: 10 | M8: 11 | N8: 12 | O8: 13 | P8: 14 | Q8: 15 | R8: 16 | S8: =R8+1 -> 17 | T8: =S8+1 -> 18 | U8: =T8+1 -> 19 | V8: =U8+1 -> 20 | W8: =V8+1 -> 21 | X8: =W8+1 -> 22 | Y8: =X8+1 -> 23 | Z8: =Y8+1 -> 24 | AA8: 25 | AB8: 26 | AC8: 27 | AD8: 28 | AE8: 29 | AF8: 30 | AG8: =AF8+1 -> 31 | AH8: 32 | AI8: 33 | AJ8: 34 | AK8: 35 | AL8: 36 | AM8: 37 | AN8: 38 | AO8: 39 | AP8: 40 | AQ8: 41 | AR8: =AQ8+1 -> 42 | AS8: 43 | AT8: 44 | AU8: 45 | AV8: 46 | AW8: =AV8+1 -> 47 | AX8: =AW8+1 -> 48 | AY8: 49 | AZ8: 50 | BA8: 51 | BB8: 52 | BC8: 53 | BD8: 54 | BE8: 55 | BF8: 56 | BG8: 57 | BH8: 58 | BI8: =BH8+1 -> 59 | BJ8: 60 | BK8: 61 | BL8: 62 | BM8: 63 | BN8: =BM8+1 -> 64 | BO8: =BN8+1 -> 65 | BP8: =BO8+1 -> 66 | BQ8: =BP8+1 -> 67 | BR8: =BQ8+1 -> 68 | BS8: 69 | BT8: 70 | BU8: 71 | BV8: 72 | BW8: 73 | BX8: 74 | BY8: 75 | BZ8: 76 | CA8: 77 | CB8: =CA8+1 -> 78 | CC8: =CB8+1 -> 79 | CD8: 80 | CE8: =CD8+1 -> 81 | CF8: 82 | CG8: 83 | CH8: 84 | CI8: 85 | CJ8: 86 | CK8: 87 | CL8: 88 | CM8: 89 | CN8: 90 | CO8: =CN8+1 -> 91 | CP8: 92 | CQ8: 93 | CR8: 94 | CS8: 95 | CT8: 96 | CU8: 97 | CV8: 98 | CW8: 99 | CX8: 100 | CY8: 101 | CZ8: =CY8+1 -> 102 | DA8: 103 | DB8: 104 | DC8: =DB8+1 -> 105 | DD8: =DC8+1 -> 106 | DE8: 107 | DF8: 108 | DG8: 109 | DH8: 110 | DI8: 111 | DJ8: 112 | DK8: =DJ8+1 -> 113 | DL8: =DK8+1 -> 114 | DM8: =DL8+1 -> 115 | DN8: 116 | DO8: 117 | DP8: 118 | DQ8: 119 | DR8: 120 | DS8: 121 | DT8: 122 | DU8: 123 | DV8: 124 | DW8: =DV8+1 -> 125 | DX8: =DW8+1 -> 126 | DY8: =DX8+1 -> 127 | DZ8: 128 | EA8: 129 | EB8: =EA8+1 -> 130 | EC8: =EB8+1 -> 131 | ED8: =EC8+1 -> 132 | EE8: 133 | EF8: 134 | EG8: 135 | EH8: =EG8+1 -> 136 | EI8: 137 | EJ8: 138 | EK8: 139 | EL8: 140 | EM8: 141 | EN8: 142 | EO8: =EN8+1 -> 143 | EP8: 144 | EQ8: 145 | ER8: 146 | ES8: 147 | ET8: 148 | EU8: 149 | EV8: 150 | EW8: =EV8+1 -> 151 | EX8: 152 | EY8: 153 | EZ8: =EY8+1 -> 154 | FA8: 155 | FB8: 156 | FC8: 157 | FD8: 158 | FE8: 159 | FF8: 160 | FG8: 161 | FH8: 162 | FI8: 163 | FJ8: 164 | FK8: =FJ8+1 -> 165 | FL8: =FK8+1 -> 166 | FM8: =FL8+1 -> 167 | FN8: =FM8+1 -> 168 | FO8: =FN8+1 -> 169 | FP8: =FO8+1 -> 170 | FQ8: =FP8+1 -> 171 | FR8: =FQ8+1 -> 172 | FS8: =FR8+1 -> 173 | FT8: =FS8+1 -> 174 | FU8: =FT8+1 -> 175 | FV8: =FU8+1 -> 176 | FW8: =FV8+1 -> 177 | FX8: =FW8+1 -> 178 | FY8: =FX8+1 -> 179 | FZ8: =FY8+1 -> 180 | GA8: =FZ8+1 -> 181 | GB8: =GA8+1 -> 182 | GC8: =GB8+1 -> 183 | GD8: =GC8+1 -> 184 | GE8: =GD8+1 -> 185 | GF8: =GE8+1 -> 186 | GG8: 187 | GH8: 188 | GI8: 189 | GJ8: 190 | GK8: 191 | GL8: 192 | GM8: =GL8+1 -> 193 | GN8: =GM8+1 -> 194 | GO8: =GN8+1 -> 195 | GP8: =GO8+1 -> 196 | GQ8: =GP8+1 -> 197 | GR8: =GQ8+1 -> 198 | GS8: 199 | GT8: 200 | GU8: 201 | GV8: 202 | GW8: 203 | GX8: =GW8+1 -> 204 | GY8: 205 | GZ8: 206 | HA8: 207 | HB8: 208 | HC8: 209 | HD8: 210 | HE8: =HD8+1 -> 211 | HF8: =HE8+1 -> 212 | HG8: =HF8+1 -> 213 | HH8: =HG8+1 -> 214 | HI8: =HH8+1 -> 215 | HJ8: =HI8+1 -> 216 | HK8: =HJ8+1 -> 217 | HL8: =HK8+1 -> 218 | HM8: 219 | HN8: =HM8+1 -> 220 | HO8: =HN8+1 -> 221 | HP8: 222 | HQ8: 223 | HR8: 224 | HS8: 225 | HT8: 226 | HU8: 227 | HV8: 228 | HW8: 229 | HX8: =HW8+1 -> 230 | HY8: =HX8+1 -> 231 | HZ8: =HY8+1 -> 232 | IA8: 233 | IB8: =IA8+1 -> 234 | IC8: 235 | ID8: 236 | IE8: 237 | IF8: 238 | IG8: 239 | IH8: 240 | II8: 241 | IJ8: =II8+1 -> 242 | IK8: =IJ8+1 -> 243 | IL8: =IK8+1 -> 244 | IM8: 245 | IN8: 246 | IO8: 247 | IP8: =IO8+1 -> 248 | IQ8: =IP8+1 -> 249 | IR8: =IQ8+1 -> 250 | IS8: =IR8+1 -> 251 | IT8: 252 | IU8: 253 | IV8: 254 | IW8: =IV8+1 -> 255 | IX8: 256 | IY8: 257 | IZ8: 258 | JA8: 259 | JB8: 260 | JC8: 261 | JD8: =JC8+1 -> 262 | JE8: =JD8+1 -> 263 | JF8: =JE8+1 -> 264 | JG8: 265 | JH8: 266 | JI8: 267 | JJ8: 268 | JK8: =JJ8+1 -> 269 | JL8: =JK8+1 -> 270 | JM8: =JL8+1 -> 271 | JN8: =JM8+1 -> 272 | JO8: 273 | JP8: 274 | JQ8: 275 | JR8: =JQ8+1 -> 276 | JS8: =JR8+1 -> 277 | JT8: 278 | JU8: =JT8+1 -> 279 | JV8: 280 | JW8: =JV8+1 -> 281 | JX8: =JW8+1 -> 282 | JY8: 283 | JZ8: =JY8+1 -> 284 | KA8: 285 | KB8: 286 | KC8: 287 | KD8: 288 | KE8: =KD8+1 -> 289 | KF8: 290 | KG8: 291 | KH8: 292 | KI8: 293 | KJ8: =KI8+1 -> 294 | KK8: =KJ8+1 -> 295 | KL8: =KK8+1 -> 296 | KM8: 297 | KN8: 298 | KO8: 299 | KP8: 300 | KQ8: 301 | KR8: 302 | KS8: =KR8+1 -> 303 | KT8: =KS8+1 -> 304 | KU8: =KT8+1 -> 305 | KV8: =KU8+1 -> 306 | KW8: 307 | KX8: 308 | KY8: 309 | KZ8: 310 | LA8: 311 | LB8: 312 | LC8: 313 | LD8: 314 | LE8: 315 | LF8: 316 | LG8: =LF8+1 -> 317 | LH8: =LG8+1 -> 318 | LI8: =LH8+1 -> 319 | LJ8: =LI8+1 -> 320 | LK8: 321 | LL8: 322 | LM8: =LL8+1 -> 323 | LN8: =LM8+1 -> 324 | LO8: =LN8+1 -> 325 | LP8: =LO8+1 -> 326 | LQ8: 327 | LR8: 328 | LS8: 329 | LT8: =LS8+1 -> 330 | LU8: 331 | LV8: 332 | LW8: 333 | LX8: 334 | LY8: 335 | LZ8: =LY8+1 -> 336 | MA8: =LZ8+1 -> 337 | MB8: 338 | MC8: 339 | MD8: 340 | ME8: 341 | MF8: 342 | MG8: 343 | MH8: 344 | MI8: 345 | MJ8: 346 | MK8: 347 | ML8: 348 | MM8: =ML8+1 -> 349 | MN8: =MM8+1 -> 350 | MO8: =MN8+1 -> 351 | MP8: =MO8+1 -> 352 | MQ8: 353 | MR8: 354 | MS8: =MR8+1 -> 355 | MT8: 356 | MU8: 357 | MV8: 358 | MW8: 359 | MX8: 360 | MY8: 361 | MZ8: 362 | NA8: 363 | NB8: 364 | NC8: 365 | ND8: 366 | NE8: 367 | NF8: 368 | NG8: 369 | NH8: 370 | NI8: 371 | NJ8: 372 | NK8: 373 | NL8: 374 | NM8: 375 | NO8: =NM8+1 -> 376 | NP8: =NO8+1 -> 377 | NQ8: 378 | NR8: 379 | NS8: 380 | NT8: 381 | NU8: 382 | NV8: 383 | NW8: 384 | NX8: =NW8+1 -> 385 | NY8: 386 | NZ8: 387 | OA8: 388 | OB8: 389 | OC8: 390 | OD8: 391 | OE8: 392 | OF8: 393 | OG8: 394 | OH8: 395 | OI8: 396 | OJ8: 397 | OK8: 398 | OL8: 399 | OM8: 400 | ON8: 401 | OO8: 402 | OP8: 403 | OQ8: 404 | OR8: 405 | OS8: 406 | OT8: 407 | OU8: 408 | OV8: 409 | OW8: 410 | OX8: =OW8+1 -> 411 | OY8: 412 | OZ8: 413 | PA8: =OZ8+1 -> 414 | PB8: 415 | PC8: 416 | PD8: 417 | PE8: 418 | PF8: 419 | PG8: 420 | PH8: =PG8+1 -> 421 | PI8: =PH8+1 -> 422 | PJ8: =PI8+1 -> 423 | PK8: 424 | PL8: 425 | PM8: 426 | PN8: 427 | PO8: 428 | PP8: 429 | PQ8: 430 | PR8: 431 | PS8: 432 | PT8: =PS8+1 -> 433 | PU8: 434 | PV8: =PU8+1 -> 435 | PW8: 436 | PX8: 437 | PY8: 438 | PZ8: 439 | QA8: 440 | QB8: 441 | QC8: 442 | QD8: 443 | QE8: 444 | QF8: =QE8+1 -> 445 | QG8: 446 | QH8: 447 | QI8: 448 | QJ8: 449 | QK8: 450 | QL8: 451 | QM8: 452 | QN8: 453 | QO8: =QN8+1 -> 454 | QP8: =QO8+1 -> 455 | QQ8: =QP8+1 -> 456 | QR8: 457 | QS8: =QR8+1 -> 458 | QT8: 459 | QU8: 460 | QV8: 461 | QW8: 462 | QX8: =QW8+1 -> 463 | QY8: 464 | QZ8: 465 | RA8: 466 | RB8: 467 | RC8: 468 | RD8: 469 | RE8: 470 | RF8: 471 | RG8: =RF8+1 -> 472 | RH8: 473 | RI8: 474 | RJ8: 475 | RK8: 476 | RL8: 477 | RM8: 478 | RO8: =RM8+1 -> 479 | RP8: =RO8+1 -> 480 | RQ8: 481 | RR8: 482 | RS8: 483 | RT8: 484 | RU8: 485 | RV8: 486 | RW8: 487 | RX8: 488 | RY8: 489 | RZ8: 490 | SA8: 491 | SB8: 492 | SC8: 493 | SD8: 494 | SE8: 495 | SF8: 496 | SG8: 497 | SH8: 498 | SI8: 499 | SJ8: 500 | SK8: 501 | SM8: =SI8+1 -> 500 | SN8: =SM8+1 -> 501
A9: Apr | B9: =DATE($B$2,4,1) -> 2018-04-01 | C9: Free River | F9: 99999.99999 | K9: Free River | N9: 99999.99999 | AA9: =OW9 -> 1.876626111 | AB9: 0 | AC9: =AF9-AB9-AD9 -> 0 | AD9: 0 | AE9: 0 | AF9: 0 | AG9: =('NFC Well Pumping'!$L7+'NFC Well Pumping'!$L44+'NFC Well Pumping'!$L80)/1.9835 -> 0 | AH9: ='88CW264(B) Pumping'!$E7/1.9835+'88CW264(B) Pumping'!$E43/1.9835+'88CW264(B) Pumping'!E83/1.9835+'88CW264(B) Pumping'!E119/1.9835+'88CW264(B) Pumping'!E159/1.9835+'88CW264(B) Pumping'!E195/1.9835 -> 0.01481193911 | AI9: =$NL9+$NM9 -> 1.876626111 | AJ9: =('United No. 2 Well Pumping'!G8+'United No. 2 Well Pumping'!G44+'United No. 2 Well Pumping'!G80)/1.9835 -> 0 | AK9: =('United No. 2 Well Pumping'!F8+'United No. 2 Well Pumping'!F44+'United No. 2 Well Pumping'!F80)/1.9835 -> 0 | AL9: 0 | AN9: =AG9+AH9+AJ9+AK9+AL9 -> 0.01481193911 | AO9: =AC9+AK9+'United Res'!AA171+'United Res'!AQ171+'Milliken Res'!I159 -> 0 | AP9: 100 | AQ9: =-(IF($N9=99999.99999,0,VLOOKUP($B9,'NFC Well Dplns-URF'!B$7:$AB$306,27))/$SP9/1.9835) -> 0 | AR9: 0 | AT9: =(VLOOKUP($B9,'ECCV 70R Pond Acrtns'!$B$7:$AI$1206,34)+VLOOKUP($B9,'2003 70R Pond Acrtns'!$B$7:$AI$1206,34)+VLOOKUP($B9,'ECCV 70R Canal Acrtns'!$B$7:$AI$1206,27)+VLOOKUP($B9,'2003 70R Canal Acrtns'!$B$7:$AI$1206,27))/$SP9/1.9835 -> 0 | AU9: =IF(AT9<(-AQ9)-AR9,AQ9+AR9+AT9,0) -> 0 | AV9: =-(IF($N9=99999.99999,0,VLOOKUP($B9,'NFC Well Dplns-SDF'!$B$7:$Z$306,25)+VLOOKUP($B9,'NFC Well Dplns-URF'!B$7:$AB$306,20))/$SP9/1.9835) -> 0 | AW9: 0.003352812464 | AX9: 0.04 | AY9: ECCV Riverside Credits | AZ9: =-((BL9+BM9)*'Weldon Credit'!$BB$36) -> 0 | BA9: =-((BL9+BM9)*'Weldon Credit'!$BB$34) -> 0 | BB9: =-INDEX('Weldon Credit'!$AX$249:$BJ$276,MATCH($B$2,'Weldon Credit'!$AX$249:$AX$276,0),MATCH(A9,'Weldon Credit'!$AX$249:$BJ$249,0))/SP9/1.9835 -> -0.007996419995 | BC9: =AZ9+BB9 -> -0.007996419995 | BD9: =-((BL9+BM9)*'Weldon Credit'!$BB$37) -> 0 | BE9: =-((BL9+BM9)*'Weldon Credit'!$BB$35) -> 0 | BF9: =-INDEX('Weldon Credit'!$AX$281:$BJ$308,MATCH($B$2,'Weldon Credit'!$AX$281:$AX$308,0),MATCH(A9,'Weldon Credit'!$AX$281:$BJ$281,0))/SP9/1.9835 -> -0.1409485256 | BG9: =BD9+BF9 -> -0.1409485256 | BH9: =-(BL9+BM9)*'Weldon Credit'!$BB$38 -> 0 | BI9: =0.4*(INDEX('Riverside Pond Accrtns'!$B$6:$M$36,MATCH($B$2,'Riverside Pond Accrtns'!$A$6:$A$36,0),MATCH('ECCV Daily Replacement Summary'!A9,'Riverside Pond Accrtns'!$B$5:$M$5,0))/SP9)/1.9835 -> 1.65541047 | BJ9: =(44/640)*(INDEX('Weldon Valley Accrtns (02CW377)'!$B$6:$M$30,MATCH($B$2,'Weldon Valley Accrtns (02CW377)'!$A$6:$A$30,0),MATCH(A9,'Weldon Valley Accrtns (02CW377)'!$B$5:$M$5,0))/SP9)/1.9835 -> 0.2998172422 | BK9: =(VLOOKUP($B9,'ECCV 70R Pond Acrtns'!$B$7:$AI$1206,25)+VLOOKUP($B9,'ECCV 70R Canal Acrtns'!$B$7:$AI$1206,20)+VLOOKUP($B9,'2003 70R Pond Acrtns'!$B$7:$AI$1206,25)+VLOOKUP($B9,'2003 70R Canal Acrtns'!$B$7:$AI$1206,20))/$SP9/1.9835 -> 0 | BL9: ='Joint Aug Station Deliveries'!G9 -> 0 | BM9: ='Joint Aug Station Deliveries'!H9 -> 0 | BN9: =IF(CB9="yes",MIN(-(BC9+BH9),BM9),0) -> 0 | BO9: =IF(CB9="no",MIN(-(BC9+BG9+BH9),BL9+BM9),MIN(-BG9,BL9)) -> 0 | BP9: =IF(CB9="no",-MAX(0,MIN(BO9,(BM9-BL9))*(0.5/100*'Distances for Transit Losses'!$C$75)),0) -> 0 | BQ9: =IF(BL9+BM9>0,BL9+BM9-BN9-BO9+BP9,0) -> 0 | BR9: =MIN(-($BC9+BG9+BH9+BN9+BO9+BP9),BI9-BI9*0.5/100*'Distances for Transit Losses'!$C$77) -> 0.1489449456 | BS9: =MIN(-($BC9+BG9+BH9+BN9+BO9+BP9+BR9),BJ9) -> 0 | BT9: =MIN(-($BC9+BG9+BH9+BN9+BO9+BP9+BR9+BS9),BK9-BK9*0.5/100*'Distances for Transit Losses'!$C$77) -> 0 | BU9: =-((BR9+BT9)*(0.5/100*'Distances for Transit Losses'!$C$77)) -> -0.01586263671 | BV9: =IF(AND(JS9-JT9-GL9-DU9>0,JN9="no"),MIN(-(BC9+BG9+BH9+BN9+BO9+BP9+BR9+BS9+BT9+BU9)/(1-0.5/100*'Distances for Transit Losses'!$C$99),JS9-JT9-GL9-DU9),0) -> 0 | BW9: =--BV9*0.5/100*'Distances for Transit Losses'!C$99 -> 0 | BX9: =IF(AND(HZ9-IA9-JV9-GR9-LU9-DY9>0,GE9="no"),MIN(-(BC9+BG9+BH9+BN9+BO9+BP9+BR9+BS9+BT9+BU9+BV9+BW9)/(1-0.5/100*'Distances for Transit Losses'!$C$101),HZ9-IA9-JV9-GR9-LU9-DY9),0) -> 0 | BY9: =--BX9*0.5/100*'Distances for Transit Losses'!$C$101 -> 0 | BZ9: 0 | CB9: no | CC9: no | CD9: no | CE9: 0 | CF9: 0 | CG9: 0 | CI9: =IF($CD9="No",MIN(IF(-DP9<0,0,-DP9),BI9-BR9/(1-0.5/100*'Distances for Transit Losses'!$C$77)),0) -> 0 | CJ9: =IF($CD9="No",IF(MIN(-DP9+CI9,BK9-BT9/(1-0.5/100*'Distances for Transit Losses'!$C$77))<0,0,MIN(-DP9+CI9,BK9-BT9/(1-0.5/100*'Distances for Transit Losses'!$C$77))),0) -> 0 | CK9: =IF(AND($CB9="No",$CC9="No",$CD9="No"),MIN(DP9+CI9+CJ9,BQ9),0) -> 0 | CL9: 0 | CM9: 0 | CN9: =AV9+AW9+BC9+BG9+BH9+BI9+BJ9+BK9+BL9+BM9 -> 1.809635579 | CO9: =AV9+AW9+AX9+BC9+BG9+BH9+BI9+BJ9+BK9+BL9+BM9+BP9+BZ9-SUM(CI9:CM9) -> 1.849635579 | CP9: =-(IF($N9=99999.99999,0,VLOOKUP($B9,'NFC Well Dplns-SDF'!$B$7:$Z$306,16)+VLOOKUP($B9,'NFC Well Dplns-URF'!$B$7:$AB$306,13))/$SP9/1.9835) -> 0 | CQ9: =-(IF($N9>=99999,0,'88CW264(B) Pumping'!$E7/1.9835)+IF($N9>=99999,0,'88CW264(B) Pumping'!$E43/1.9835)+IF($N9>=99999,0,'88CW264(B) Pumping'!$E83/1.9835)+IF($N9>=99999,0,'88CW264(B) Pumping'!$E119/1.9835)+IF($N9>=51134.50919,0,'88CW264(B) Pumping'!$E159/1.9835)+IF($N9>=53406,0,'88CW264(B) Pumping'!$E195/1.9835)) -> 0 | CR9: =CQ9+CP9 -> 0 | CS9: 0.03193008991 | CV9: =-(IF($N9=99999.99999,0,VLOOKUP($B9,'United No. 2 Dplns'!$B$7:$X$676,13)/1.9835)) -> 0 | CW9: =CV9+(-(INDEX('Pre 1995 Net Accretions'!$B$6:$M$105,MATCH($B$2,'Pre 1995 Net Accretions'!$A$6:$A$105,0),MATCH($A9,'Pre 1995 Net Accretions'!$B$5:$M$5,0))/$SP9/1.9835)) -> 0.02775653206 | CX9: =-(IF(N9<99999.99999,(INDEX('70 Ranch RF Obligation'!$B$6:$M$36,MATCH($B$2,'70 Ranch RF Obligation'!$A$6:$A$36,0),MATCH('ECCV Daily Replacement Summary'!A9,'70 Ranch RF Obligation'!$B$5:$M$5,0))/SP9)/1.9835,0))-DA9*(1-'L. Latham Credit'!$E$41) -> 0 | CY9: =MIN(0,CX9+CW9) -> 0 | CZ9: =(VLOOKUP($B9,'ECCV 70R Pond Acrtns'!$B$7:$AI$1206,16)+VLOOKUP($B9,'ECCV 70R Canal Acrtns'!$B$7:$AI$1206,13)+VLOOKUP($B9,'2003 70R Pond Acrtns'!$B$7:$AI$1206,16)+VLOOKUP($B9,'2003 70R Canal Acrtns'!$B$7:$AI$1206,13))/$SP9/1.9835 -> 0 | DA9: ='Joint Aug Station Deliveries'!DE9 -> 0 | DB9: =IF(DA9>0,DA9-DC9,0) -> 0 | DC9: =MAX(0,MIN(-CY9,DA9)) -> 0 | DD9: ='Joint Aug Station Deliveries'!DH9 -> 0 | DE9: 0 | DF9: 0 | DI9: =MAX(0,CW9)+DB9+DE9+DF9+DG9 -> 0.02775653206 | DJ9: =MAX(0,MIN(-(CY9+DC9),DI9)) -> 0 | DK9: 0 | DL9: =-DK9*0.5/100*'Distances for Transit Losses'!$C$48 -> 0 | DM9: =MAX(0,MIN(CZ9,-(CY9+DC9+DJ9))) -> 0 | DN9: 0 | DO9: 0 | DP9: =CR9+CS9+CT9+CY9+DC9+DJ9+DM9 -> 0.03193008991 | DQ9: =CI9 -> 0 | DR9: =CJ9 -> 0 | DS9: =CK9 -> 0 | DT9: =('NFC Well Pumping'!I7+'NFC Well Pumping'!I44+'NFC Well Pumping'!I80)/1.9835 -> 0 | DU9: =IF(AND(JS9-JT9-GL9>0,JN9="no"),MIN(-SUM(DP9:DT9)/(1-0.5/100*'Distances for Transit Losses'!$C$103),JS9-JT9-GL9),0) -> 0 | DV9: =-DU9*0.5/100*'Distances for Transit Losses'!C$103 -> 0 | DW9: 0 | DX9: =-DW9*0.5/100*'Distances for Transit Losses'!$C$127 -> 0 | DY9: =IF(AND(HZ9-IA9-JV9-GR9-LU9>0,GE9="no"),MIN(-SUM(DP9:DX9)/(1-0.5/100*'Distances for Transit Losses'!$C$105),HZ9-IA9-JV9-GR9-LU9),0) -> 0 | DZ9: =--DY9*0.5/100*'Distances for Transit Losses'!$C$105 -> 0 | EA9: =CZ9+DI9-DJ9-DK9+DL9-SUM(DM9:DO9) -> 0.02775653206 | EB9: =IF('Joint Aug Station Deliveries'!R9="Yes",'Joint Aug Station Deliveries'!P9,0) -> 0 | EC9: ='Joint Aug Station Deliveries'!T9 -> 0 | ED9: =IF('Joint Aug Station Deliveries'!Z9="Yes",'Joint Aug Station Deliveries'!X9,0) -> 0 | EE9: =-(ED9*0.5/100*'Distances for Transit Losses'!$C$216) -> 0 | EF9: =IF('Joint Aug Station Deliveries'!AD9="Yes",'Joint Aug Station Deliveries'!AB9,0) -> 0 | EG9: =-(EF9*0.5/100*'Distances for Transit Losses'!$C$248) -> 0 | EH9: 0 | EI9: =-(EH9*0.5/100*'Distances for Transit Losses'!$C$238) -> 0 | EJ9: no | EK9: =IF('Joint Aug Station Deliveries'!AH9="Yes",'Joint Aug Station Deliveries'!AF9,0) -> 0 | EL9: =-(EK9*0.5/100*'Distances for Transit Losses'!$C$250) -> 0 | EM9: =IF('Joint Aug Station Deliveries'!AL9="Yes",'Joint Aug Station Deliveries'!AJ9,0) -> 0 | EN9: =-(EM9*0.5/100*'Distances for Transit Losses'!$C$252) -> 0 | EO9: =IF('Joint Aug Station Deliveries'!AP9="Yes",'Joint Aug Station Deliveries'!AN9,0) -> 0 | EP9: =-(EO9*0.5/100*'Distances for Transit Losses'!$C$254) -> 0 | EQ9: =-0.25*(INDEX('GIC Credit'!$B$85:$M$116,MATCH($B$2,'GIC Credit'!$A$85:$A$116,0),MATCH($A9,'GIC Credit'!$B$85:$M$85,0))/$SP9/1.9835+FK9*'GIC Credit'!$Z$39+FL9*'GIC Credit'!$AO$39) -> -0.0001915 | ER9: =EQ9 -> -0.0001915 | ES9: ='Joint Aug Station Deliveries'!CW9 -> 0 | ET9: =-(ES9*0.5/100*'Distances for Transit Losses'!$C$244) -> 0 | EU9: ='Joint Aug Station Deliveries'!CX9 -> 0 | EV9: =-(EU9*0.5/100*'Distances for Transit Losses'!$C$246) -> 0 | EW9: 0 | EY9: no | EZ9: =SUM(ER9:EW9) -> -0.0001915 | FA9: =-0.39*(INDEX('GIC Credit'!$B$85:$M$116,MATCH($B$2,'GIC Credit'!$A$85:$A$116,0),MATCH($A9,'GIC Credit'!$B$85:$M$85,0))/$SP9/1.9835+FK9*'GIC Credit'!$Z$39+FL9*'GIC Credit'!$AO$39) -> -0.00029874 | FB9: =MAX(IF(AND(EY9="No",EZ9>0),EZ9,0),0) -> 0 | FC9: =-(FB9*0.5/100*('Distances for Transit Losses'!$C$220+'Distances for Transit Losses'!$C$226)) -> 0 | FD9: =IF('Joint Aug Station Deliveries'!AT9="Yes",'Joint Aug Station Deliveries'!AR9,0) -> 0 | FE9: =-(FD9*0.5/100*('Distances for Transit Losses'!$C$222+'Distances for Transit Losses'!$C$224)) -> 0 | FF9: =IF('Joint Aug Station Deliveries'!AX9="Yes",'Joint Aug Station Deliveries'!AV9,0) -> 0 | FG9: =-(FF9*0.5/100*'Distances for Transit Losses'!$C$224) -> 0 | FH9: ='Joint Aug Station Deliveries'!CY9 -> 0 | FI9: =-(FH9*0.5/100*'Distances for Transit Losses'!$C$230) -> 0 | FJ9: =ES9+EU9+FH9 -> 0 | FK9: ='Joint Aug Station Deliveries'!DA9 -> 0 | FL9: ='Joint Aug Station Deliveries'!DB9 -> 0 | FM9: =MIN(0,EZ9)+SUM(FA9:FC9)+EB9/(1-0.5/100*('Distances for Transit Losses'!$C$256+'Distances for Transit Losses'!$C$268))+EC9/(1-0.5/100*('Distances for Transit Losses'!$C$242))+SUM(ED9:EE9)/(1-0.5/100*('Distances for Transit Losses'!$C$258+'Distances for Transit Losses'!$C$268))+SUM(EF9:EG9)/(1-0.5/100*('Distances for Transit Losses'!$C$260+'Distances for Transit Losses'!$C$268))+EH9/(1-0.5/100*('Distances for Transit Losses'!$C$242))+SUM(EK9:EL9)/(1-0.5/100*('Distances for Transit Losses'!$C$262+'Distances for Transit Losses'!$C$270))+SUM(EM9:EN9)/(1-0.5/100*('Distances for Transit Losses'!$C$264+'Distances for Transit Losses'!$C$270))+SUM(EO9:EP9)/(1-0.5/100*('Distances for Transit Losses'!$C$266+'Distances for Transit Losses'!$C$270))+SUM(FD9:FG9)/(1-0.5/100*('Distances for Transit Losses'!$C$226))+SUM(FH9:FI9) -> -0.00049024 | FN9: =-(IF(N9<99999.99999,INDEX('Hist RF to SPR'!$AF$6:$AQ$30,MATCH($B$2,'Hist RF to SPR'!$AE$6:$AE$30,0),MATCH($A9,'Hist RF to SPR'!$AF$5:$AQ$5,0))/SP9/1.9835,0)) -> 0 | FO9: =IF(N9<99999.99999,-INDEX('New Cache Credit'!$BO$109:$CA$136,MATCH($B$2,'New Cache Credit'!$BO$109:$BO$136,0),MATCH(A9,'New Cache Credit'!$BO$109:$CA$109,0))/SP9/1.9835-INDEX('New Cache Credit'!$CD$77:$CP$104,MATCH($B$2,'New Cache Credit'!$CD$77:$CD$104,0),MATCH(A9,'New Cache Credit'!$CD$77:$CP$77,0))/SP9/1.9835,0) -> 0 | FP9: =-0.36*(INDEX('GIC Credit'!$B$85:$M$116,MATCH($B$2,'GIC Credit'!$A$85:$A$116,0),MATCH($A9,'GIC Credit'!$B$85:$M$85,0))/$SP9/1.9835+FK9*'GIC Credit'!$Z$39+FL9*'GIC Credit'!$AO$39) -> -0.00027576 | FQ9: =IF(FM9<0,FM9,0) -> -0.00049024 | FR9: =SUM(FN9:FQ9) -> -0.000766 | FS9: =IF(FM9>0,MIN(-FR9,FM9),0) -> 0 | FT9: =IF('Joint Aug Station Deliveries'!BB9="Yes",'Joint Aug Station Deliveries'!AZ9,0) -> 0 | FU9: =-(FT9*0.5/100*'Distances for Transit Losses'!$C$208) -> 0 | FV9: =IF('Joint Aug Station Deliveries'!BF9="Yes",'Joint Aug Station Deliveries'!BD9,0) -> 0 | FW9: =-(FV9*0.5/100*'Distances for Transit Losses'!$C$210) -> 0 | FX9: =IF('Joint Aug Station Deliveries'!BJ9,'Joint Aug Station Deliveries'!BH9,0) -> 0 | FY9: =-(FX9*0.5/100*'Distances for Transit Losses'!$C$212) -> 0 | FZ9: =IF('Joint Aug Station Deliveries'!BN9="Yes",'Joint Aug Station Deliveries'!BL9,0) -> 0 | GA9: =-(FZ9*0.5/100*'Distances for Transit Losses'!$C$200) -> 0 | GB9: =IF('Joint Aug Station Deliveries'!BR9="Yes",'Joint Aug Station Deliveries'!BP9,0) -> 0 | GC9: =-(GB9*0.5/100*'Distances for Transit Losses'!$C$206) -> 0 | GD9: =MIN(-FR9-FS9,SUM(FT9:FU9)/(1-0.5/100*('Distances for Transit Losses'!$C$274))+SUM(FV9:FW9)/(1-0.5/100*('Distances for Transit Losses'!$C$276))+SUM(FX9:FY9)+SUM(FZ9:GA9)+SUM(GB9:GC9)) -> 0 | GE9: no | GF9: 0 | GG9: 0 | GH9: 0 | GJ9: =IF(AND(GE9="No",MB9>0),MIN(-FR9-FS9-GD9,MB9),0) -> 0.000766 | GK9: =IF(AND(GE9="No",$CD9="No"),MIN(-(FR9+FS9+GD9+GJ9),MC9),0) -> 0 | GL9: =IF(AND(JS9-JT9-HV9>0,JN9="no"),MIN(-(FR9+FS9+GD9+GJ9+GK9)/(1-0.5/100*'Distances for Transit Losses'!$C$107),JS9-JT9-HV9),0) -> 0 | GM9: 0 | GN9: 0 | GO9: =-GL9*0.5/100*'Distances for Transit Losses'!$C$107 -> 0 | GP9: 0 | GQ9: =-GP9*0.5/100*'Distances for Transit Losses'!$C$125 -> 0 | GR9: =IF(AND(HZ9-IA9-JV9>0,HL9="no"),MIN(-(FR9+FS9+GD9+GJ9+GK9+GL9+GO9+GP9+GQ9)/(1-0.5/100*'Distances for Transit Losses'!$C$109),HZ9-IA9-JV9),0) -> 0 | GS9: =-GR9*0.5/100*'Distances for Transit Losses'!$C$115 -> 0 | GT9: 0 | GV9: =IF(FM9>0,FM9,0) -> 0 | GW9: =IF(FM9>0,FM9,0)+FR9+SUM(FT9:GC9)+SUM(GJ9:GT9) -> 0 | GX9: =IF(GW9>0,GW9,0) -> 0 | GY9: =MP9-GJ9 -> 0.02699053206 | GZ9: =MQ9-GK9 -> 1.849635579 | HA9: =-(IF(N9<99999.99999,INDEX('Hist RF to SPR'!$Q$6:$AB$30,MATCH($B$2,'Hist RF to SPR'!$P$6:$P$30,0),MATCH($A9,'Hist RF to SPR'!$Q$5:$AB$5,0))/SP9/1.9835,0)) -> 0 | HB9: =-(IF(OR($N9<99999.99999,E9="Lower Latham",I9="Lower Latham",E9="Highland",I9="Highland",E9="Plum",I9="Plum"),(INDEX('FIDCO Credit'!$Y$48:$AJ$78,MATCH($B$2,'FIDCO Credit'!$X$48:$X$78,0),MATCH($A9,'FIDCO Credit'!$Y$47:$AJ$47,0))/$SP9)/1.9835,0)) -> 0 | HC9: =-(IF(OR($N9<99999.99999,E9="Lower Latham",I9="Lower Latham",E9="Highland",I9="Highland",E9="Plum",I9="Plum"),(INDEX('Western Credit'!$W$84:$AH$114,MATCH($B$2,'Western Credit'!$V$84:$V$114,0),MATCH($A9,'Western Credit'!$W$83:$AH$83,0))/$SP9)/1.9835+'Haren Daily Recharge'!K8*'Western Credit'!$Z$40,0)) -> 0 | HD9: =SUM(HA9:HC9) -> 0 | HE9: =MIN(-HB9,IH9) -> 0 | HF9: =IF(HN9="yes",0,MIN(-HB9-HE9,IJ9)) -> 0 | HG9: =IF(AND(HM9="no",HN9="no"),MIN(-(HB9-HE9-HF9)/(1-0.5/100*'Distances for Transit Losses'!$C$95),JK9),0) -> 0 | HH9: =-HG9*0.5/100*'Distances for Transit Losses'!$C$95 -> 0 | HI9: =VLOOKUP($B9,'ECCV Haren Pond S.P. Acrtns'!$B$7:$G$306,6)/$SP9/1.9835-0.1 -> 1.571957767 | HJ9: =MIN(-HD9-HE9-HF9-HG9,HI9) -> 0 | HK9: =LT9 -> 0 | HL9: no | HM9: no | HN9: no | HO9: 0 | HP9: 0 | HQ9: 0 | HS9: =IF($HL9="No",MIN(-HD9-HJ9,GY9),0) -> 0 | HT9: =IF(AND(HL9="No",$CD9="No"),MIN(-(HD9+HJ9+HS9),GZ9),0) -> 0 | HU9: =HD9+HJ9+HS9+HT9 -> 0 | HV9: =IF(AND(JS9-JT9>0,JN9="no"),MIN(-HU9/(1-0.5/100*'Distances for Transit Losses'!$C$111),JS9-JT9),0) -> 0 | HW9: =-HV9*0.5/100*'Distances for Transit Losses'!$C$111 -> 0 | HX9: =IF(AND(JW9+JX9-JY9-KJ9>0,JN9="no"),MIN((-HU9-(HV9+HW9))/(1-0.5/100*'Distances for Transit Losses'!$C$113),JW9+JX9-JY9-KJ9),0) -> 0 | HY9: =-HX9*0.5/100*'Distances for Transit Losses'!$C$113 -> 0 | HZ9: 0 | IA9: =IF(HZ9>0,MIN(-(HU9+HV9+HW9+HX9+HY9)/(1-0.5/100*'Distances for Transit Losses'!$C$115),HZ9),0) -> 0 | IB9: =-IA9*0.5/100*'Distances for Transit Losses'!$C$115 -> 0 | IC9: 0 | IE9: =MIN(0,SUM(HU9:HY9)+SUM(IA9:IC9)) -> 0 | IF9: ='Joint Aug Station Deliveries'!CJ9 -> 0 | IG9: =IF9*'Western Credit'!$Z$42 -> 0 | IH9: ='Joint Aug Station Deliveries'!CA9 -> 0 | II9: =IF(AND(IH9>0,SUM($IH$9:IH9,$IJ$9:IJ9,$JK$9:JK9)*1.9835<OFFSET('FIDCO Credit'!$X$39,0,MATCH($A9,'FIDCO Credit'!$Y$5:$AJ$5,0))),IH9-HE9,0) -> 0 | IJ9: ='Joint Aug Station Deliveries'!CD9 -> 0 | IK9: =IF(AND(IJ9>0,SUM($IH$9:IH9,$IJ$9:IJ9,$JK$9:JK9)*1.9835<OFFSET('FIDCO Credit'!$X$39,0,MATCH($A9,'FIDCO Credit'!$Y$5:$AJ$5,0))),IJ9-HF9,0) -> 0 | IL9: =MAX(0,(LP9+LQ9))/(1-0.5/100*'Distances for Transit Losses'!$C$83) -> 0 | IM9: =MAX(0,(LR9+LS9)/(1-0.5/100*'Distances for Transit Losses'!$C$79)) -> 0 | IN9: 0 | IO9: =-IN9*0.5/100*'Distances for Transit Losses'!$C$85 -> 0 | IP9: 0 | IQ9: 0 | IR9: =-IQ9*0.5/100*'Distances for Transit Losses'!$C$34 -> 0 | IS9: =IF($HM9="No",IG9-IM9-IP9,0) -> 0 | IT9: 0 | IU9: 0 | IV9: =IF($HM9="No",II9-IL9-IN9,0) -> 0 | IW9: 0 | IX9: 0 | IY9: =IF(AND($HL9="No",$CD9="No"),$KN9,0) -> 1.849635579 | IZ9: 0 | JA9: =IF(HL9="No",$KM9,0) -> 0.02699053206 | JB9: 0 | JC9: 0 | JD9: 0 | JE9: =-JD9*0.5/100*'Distances for Transit Losses'!$C$123 -> 0 | JF9: =IT9+IW9+IZ9+SUM(JB9:JE9) -> 0 | JG9: =HI9-HJ9-HK9+IG9+II9-SUM(IL9:IP9)-IT9-IU9-IW9-IX9 -> 1.571957767 | JH9: =GY9-HS9 -> 0.02699053206 | JI9: =GZ9-HT9 -> 1.849635579 | JJ9: =-(IF(F9<99999.99999,INDEX('Hist RF to SPR'!$B$6:$M$30,MATCH($B$2,'Hist RF to SPR'!$A$6:$A$30,0),MATCH($A9,'Hist RF to SPR'!$B$5:$M$5,0))/SP9/1.9835,0)) -> 0 | JK9: ='Joint Aug Station Deliveries'!CG9 -> 0 | JL9: =IF(AND(JK9>0,SUM($IH$9:IH9,$IJ$9:IJ9,$JK$9:JK9)*1.9835<OFFSET('FIDCO Credit'!$X$39,0,MATCH($A9,'FIDCO Credit'!$Y$5:$AJ$5,0))),JK9-HG9,0) -> 0 | JM9: =MIN(-JJ9,JL9) -> 0 | JN9: no | JO9: =IF($JN9="No",MIN(-(JJ9+JM9),JH9),0) -> 0 | JP9: =IF(AND(JN9="No",$CD9="No"),MIN(-(JJ9+JM9+JO9),JI9),0) -> 0 | JQ9: =IF(AND($HM9="No"),MIN(-(JJ9+JM9+JO9+JP9),JG9),0) -> 0 | JR9: =JJ9+JO9+JP9+JQ9 -> 0 | JS9: 0 | JT9: =IF(JS9>0,MIN(-JR9/(1-0.5/100*'Distances for Transit Losses'!$C$117),JS9),0) -> 0 | JU9: =-JT9*0.5/100*'Distances for Transit Losses'!$C$117 -> 0 | JV9: =IF(AND(HZ9-IA9>0,JN9="no"),MIN(-(JR9+JT9+JU9),HZ9-IA9),0) -> 0 | JW9: 0 | JX9: =-JW9*0.5/100*'Distances for Transit Losses'!$C$70 -> 0 | JY9: =IF((JW9+JX9)>0,MIN((-JR9-(JT9-JU9)-JV9)/(1-0.5/100*'Distances for Transit Losses'!$C$119),(JW9+JX9)),0) -> 0 | JZ9: =-JY9*0.5/100*'Distances for Transit Losses'!$C$119 -> 0 | KA9: 0 | KC9: =JR9+JT9+JU9+JV9+JY9+JZ9+KA9 -> 0 | KD9: =IF(AND($JN9="No",$CD9="No"),$KN9-IZ9,0) -> 1.849635579 | KE9: 0 | KF9: =IF(JN9="No",$KM9-JB9,0) -> 0.02699053206 | KG9: 0 | KH9: =IU9 -> 0 | KI9: =IX9 -> 0 | KJ9: 0 | KK9: =-KJ9*0.5/100*'Distances for Transit Losses'!$C$121 -> 0 | KL9: =KE9+KG9+KH9+KI9+KJ9+KK9 -> 0 | KM9: =JH9-JO9 -> 0.02699053206 | KN9: =JI9-JP9 -> 1.849635579 | KO9: =-(IF(N9<99999.99999,(VLOOKUP(B9,'ECCV Upper Dpln'!$B$7:$BD$306,55))/SP9/1.9835,0)) -> 0 | KP9: =-(IF(N9<99999.99999,INDEX('Hist RF abv Milton'!$B$6:$M$30,MATCH($B$2,'Hist RF abv Milton'!$A$6:$A$30,0),MATCH($A9,'Hist RF abv Milton'!$B$5:$M$5,0))/SP9/1.9835,0)) -> 0 | KQ9: 0 | KR9: =(VLOOKUP($B9,'ECCV Beebe Pond Acrtns'!$B$7:$BI$1206,41)+VLOOKUP($B9,'ECCV Canal Acrtns'!$B$7:$AL$1206,22)+VLOOKUP($B9,'2003 Beebe Pond Acrtns'!$B$7:$BI$1206,41)+VLOOKUP($B9,'2003 Canal Acrtns'!$B$7:$AL$1206,22))/$SP9/1.9835 -> 1.065139416 | KS9: ='Barr Lake'!BV20 -> 0 | KT9: 0 | KU9: 0 | KV9: 0 | KW9: 0 | KX9: 0 | KY9: =MIN(KR9,-(KO9+KU9)) -> 0 | KZ9: =MIN($KX9,-($KO9+$KU9+$KY9)) -> 0 | LA9: no | LB9: 0 | LC9: =IF($LA9="No",IF($LB9>0,0,MIN(-KP9,EA9)),0) -> 0 | LD9: =IF($LA9="No",IF($LB9>0,0,MIN(-(KO9+KU9+KY9+KZ9),EA9-LC9)),0) -> 0 | LE9: =IF(AND(LA9="No",$CD9="No"),IF($LB9>0,0,MIN(-(KP9+LC9),CO9)),0) -> 0 | LF9: =IF(AND(LA9="No",$CD9="No"),IF($LB9>0,0,MIN(-(KO9+KU9+KY9+KZ9+LD9),$CO9-LE9)),0) -> 0 | LG9: =IF($LA9="No",IF($LB9>0,0,MIN(-(KP9+LC9+LE9),GX9)),0) -> 0 | LH9: =IF($LA9="No",IF($LB9>0,0,MIN(-(KO9+KU9+KY9+KZ9+LD9+LF9),GX9-LG9)),0) -> 0 | LI9: =KO9+KU9+KY9+KZ9+LD9+LF9+LH9 -> 0 | LJ9: =KP9+LC9+LE9+LG9 -> 0 | LK9: 0 | LL9: =-(LK9*0.5/100*'Distances for Transit Losses'!$C$6) -> 0 | LM9: 0 | LN9: 0 | LO9: 0 | LP9: =IF(AND(E9<>"Lower Latham",I9<>"Lower Latham"),MIN(-(LJ9+LM9),II9-II9*0.5/100*'Distances for Transit Losses'!$C$83),0) -> 0 | LQ9: =IF(AND(E9<>"Lower Latham",I9<>"Lower Latham"),MAX(0,MIN(-(LI9+LK9+LL9+LO9),II9-II9*0.5/100*'Distances for Transit Losses'!$C$83-LP9/(1-0.5/100*'Distances for Transit Losses'!$C$83))),0) -> 0 | LR9: =MIN(-(LJ9+LM9+LP9),IG9-IG9*0.5/100*'Distances for Transit Losses'!$C$79) -> 0 | LS9: =MAX(0,MIN(-(LI9+LK9+LL9+LQ9),IG9-IG9*0.5/100*'Distances for Transit Losses'!$C$79-LR9/(1-0.5/100*'Distances for Transit Losses'!$C$79))) -> 0 | LT9: =IF(GE9="no",MIN(-(MIN(0,LI9+LJ9+LK9+LL9+LQ9+LS9)),(HI9-HJ9)-(HI9-HJ9)*0.5/100*'Distances for Transit Losses'!$C$79),0) -> 0 | LU9: =MAX(0,IF(AND(HZ9-IA9-JV9-GR9>0,GE9="no"),MIN(-(LI9+LK9+LL9+LO9+LQ9+LS9+LT9)/(1-0.5/100*'Distances for Transit Losses'!$C$89),HZ9-IA9-JV9-GR9),0)) -> 0 | LV9: =-LU9*0.5/100*'Distances for Transit Losses'!$C$89 -> 0 | LY9: =SUM(KO9:KQ9)+KT9+KY9+KZ9+SUM(LC9:LH9)+SUM(LK9:LW9) -> 0 | LZ9: =KR9-KY9 -> 1.065139416 | MA9: =KX9-KZ9 -> 0 | MB9: =EA9-LC9-LD9 -> 0.02775653206 | MC9: =CO9-LE9-LF9 -> 1.849635579 | MD9: =-(IF(N9<99999.99999,INDEX('Hist RF blw Milton'!$B$6:$M$30,MATCH($B$2,'Hist RF blw Milton'!$A$6:$A$30,0),MATCH($A9,'Hist RF blw Milton'!$B$5:$M$5,0))/SP9/1.9835,0)) -> 0 | ME9: no | MF9: =IF($ME9="No",MIN(-(MD9+MO9),$MB9),0) -> 0 | MG9: =IF(AND(ME9="No",$CD9="No"),MIN(-(MD9+MF9+MO9),$MC9),0) -> 0 | MH9: =MD9+MO9+MF9+MG9 -> 0 | MI9: =MAX(0,-(MH9+MK9)) -> 0 | MJ9: 0 | MK9: 0.03 | ML9: Haren Recharge | MM9: ='Milton Lake'!DY8 -> 0 | MN9: 0 | MO9: 0 | MP9: =IF(MB9-MF9<0,0,MB9-MF9) -> 0.02775653206 | MQ9: =MC9-MG9 -> 1.849635579 | MR9: =-(IF(N9<99999.99999,INDEX('Hist RF to Box Elder'!$B$6:$M$30,MATCH($B$2,'Hist RF to Box Elder'!$A$6:$A$30,0),MATCH($A9,'Hist RF to Box Elder'!$B$5:$M$5,0))/SP9/1.9835,0)) -> 0 | MS9: =(VLOOKUP($B9,'ECCV Beebe Pond Acrtns'!$B$7:$BI$1206,54)+VLOOKUP($B9,'ECCV Canal Acrtns'!$B$7:$AL$1206,34)+VLOOKUP($B9,'2003 Beebe Pond Acrtns'!$B$7:$BI$1206,54)+VLOOKUP($B9,'2003 Canal Acrtns'!$B$7:$AL$1206,34)+VLOOKUP($B9,'84CW090 Beebe Pond Acrtns'!$B$7:$BI$1206,55)+VLOOKUP($B9,'84CW090 Canal Acrtns'!$B$7:$AL$1206,34))/$SP9/1.9835 -> 0.1080499331 | MT9: =MIN(-MR9,MS9) -> 0 | MU9: =IF(MR9+MT9+MW9=0,0,-(MR9+MS9+MW9)) -> 0 | MV9: 0 | MW9: 0 | MY9: =AV9+AZ9+BB9+BD9+BF9+BH9+CR9+CY9+EQ9+FA9+FR9+KO9+KP9+KQ9+HD9+JJ9+MD9+MR9 -> -0.1502011856 | MZ9: =KU9+KY9+KZ9+SUM(LC9:LH9)+SUM(LK9:LW9) -> 0 | NA9: =MF9+MG9+MI9+MJ9+MK9+MO9 -> 0.03 | NB9: =MT9+MU9+MV9+MW9 -> 0 | NC9: =JM9+JO9+JP9+JQ9+JT9+JU9+JV9+JY9+JZ9+KA9 -> 0 | ND9: =HE9+HF9+HG9+HH9+HJ9+HS9+HT9+HV9+HW9+HX9+HY9+SUM(IA9:IC9) -> 0 | NE9: =SUM(FT9:GC9)+SUM(GJ9:GT9) -> 0.000766 | NF9: =SUM(EB9:EH9)+SUM(EK9:EP9)+SUM(ES9:EW9)+SUM(FD9:FI9) -> 0 | NG9: =CS9+CT9+DC9+DJ9+DM9+SUM(DQ9:DZ9) -> 0.03193008991 | NH9: =AW9+AX9+BN9+BO9+BP9+SUM(BR9:BZ9) -> 0.1764351214 | NI9: =SUM(MZ9:NH9) -> 0.2391312113 | NJ9: =MY9+NI9 -> 0.08893002566 | NK9: =LZ9+MA9 -> 1.065139416 | NL9: =KF9-KG9 -> 0.02699053206 | NM9: =KD9-KE9 -> 1.849635579 | NO9: 0 | NP9: 0 | NQ9: 0 | NR9: 0 | NS9: 0 | NT9: 0 | NU9: 0 | NV9: 0 | NX9: 0 | NY9: 0 | NZ9: 0 | OA9: 0 | OB9: 0 | OC9: 0 | OD9: 0 | OE9: 0 | OF9: 0 | OG9: 0 | OH9: 0 | OI9: 0 | OK9: =BL9+BM9 -> 0 | OL9: 0 | OM9: 0 | ON9: 0 | OO9: 0 | OP9: 0 | OQ9: 0 | OR9: 0 | OS9: 0 | OT9: 0 | OU9: 0 | OW9: =NL9+NM9-AJ9 -> 1.876626111 | OX9: 0 | OY9: 0 | OZ9: 0 | PA9: 0 | PB9: 0 | PC9: 0 | PD9: 0 | PE9: 0 | PF9: 0 | PG9: 0 | PI9: 0 | PJ9: 0 | PK9: 0 | PL9: 0 | PM9: 0 | PN9: 0 | PO9: 0 | PP9: 0 | PQ9: 0 | PR9: 0 | PS9: 0 | PT9: 0 | PU9: 0 | PW9: 0 | PX9: 0 | PY9: 0 | PZ9: 0 | QA9: 0 | QB9: 0 | QC9: 0 | QD9: 0 | QE9: 0 | QG9: 0 | QH9: 0 | QI9: 0 | QJ9: 0 | QK9: 0 | QL9: 0 | QM9: 0 | QN9: 0 | QP9: 0 | QQ9: 0 | QR9: 0 | QT9: 0 | QU9: 0 | QV9: 0 | QW9: 0 | QZ9: 0 | RA9: 0 | RB9: 0 | RC9: 0 | RD9: =SUM(QZ9:RC9) -> 0 | RE9: 0 | RF9: 0 | RH9: =PE9+OS9+OG9+PS9+QC9+QL9+RD9 -> 0 | RI9: =PF9+OT9+OH9+PT9+QD9+QM9+RE9 -> 0 | RJ9: =PG9+OU9+NV9+OI9+PU9+QE9+QN9+QR9+QW9+RF9 -> 0 | RK9: =NU9+SUM(OX9:PD9)+SUM(OL9:OR9)+SUM(NY9:OF9)+SUM(PM9:PR9)+SUM(PX9:QB9)+SUM(QH9:QK9)+SUM(QZ9:RC9) -> 0 | RL9: =IF(RK9*1.9835>8706,"Exceeded Annual Maximum",RK9*1.9835) -> 0 | RM9: 309.6 | RO9: =NK9 -> 1.065139416 | RP9: 0 | RQ9: 0 | RR9: 0 | RS9: 0 | RT9: 0 | RU9: 0 | RV9: 0 | RW9: 0 | RX9: 0 | RY9: 0 | RZ9: 0 | SA9: 0 | SB9: 0 | SC9: 0 | SD9: 0 | SE9: 0 | SF9: 0 | SG9: 0 | SH9: 0 | SI9: =RO9-SUM(RP9:SH9) -> 1.065139416 | SJ9: =ABS((JW9+JX9)-JY9-KJ9-JD9-HX9-GP9-DW9)<0.05 -> TRUE | SK9: =ABS((II9+IK9+JL9)-(IL9+IN9+IW9+IX9+JC9+JM9+LP9+LQ9))<0.05 -> TRUE | SM9: =LK9+LM9+LN9 -> 0 | SN9: =MU9+MI9 -> 0 | SP9: =VLOOKUP(A9,'Control Sheet'!$G$9:$H$20,2) -> 30
A10: Apr | B10: =B9+1 -> 2018-04-02 | C10: Free River | F10: 99999.99999 | K10: Free River | N10: 99999.99999 | AA10: =OW10 -> 1.876626111 | AB10: 0 | AC10: 0 | AD10: 0 | AE10: 0 | AF10: 0 | AG10: =('NFC Well Pumping'!$L8+'NFC Well Pumping'!$L45+'NFC Well Pumping'!$L81)/1.9835 -> 0 | AH10: ='88CW264(B) Pumping'!$E8/1.9835+'88CW264(B) Pumping'!$E44/1.9835+'88CW264(B) Pumping'!E84/1.9835+'88CW264(B) Pumping'!E120/1.9835+'88CW264(B) Pumping'!E160/1.9835+'88CW264(B) Pumping'!E196/1.9835 -> 0.01481193911 | AI10: =$NL10+$NM10 -> 1.876626111 | AJ10: =('United No. 2 Well Pumping'!G9+'United No. 2 Well Pumping'!G45+'United No. 2 Well Pumping'!G81)/1.9835 -> 0 | AK10: =('United No. 2 Well Pumping'!F9+'United No. 2 Well Pumping'!F45+'United No. 2 Well Pumping'!F81)/1.9835 -> 0 | AL10: 0 | AN10: =AG10+AH10+AJ10+AK10+AL10 -> 0.01481193911 | AO10: =AC10+AK10+'United Res'!AA172+'United Res'!AQ172+'Milliken Res'!I160 -> 0 | AP10: 100 | AQ10: =-(IF($N10=99999.99999,0,VLOOKUP($B10,'NFC Well Dplns-URF'!B$7:$AB$306,27))/$SP10/1.9835) -> 0 | AR10: 0 | AT10: =(VLOOKUP($B10,'ECCV 70R Pond Acrtns'!$B$7:$AI$1206,34)+VLOOKUP($B10,'2003 70R Pond Acrtns'!$B$7:$AI$1206,34)+VLOOKUP($B10,'ECCV 70R Canal Acrtns'!$B$7:$AI$1206,27)+VLOOKUP($B10,'2003 70R Canal Acrtns'!$B$7:$AI$1206,27))/$SP10/1.9835 -> 0 | AU10: 0 | AV10: =-(IF($N10=99999.99999,0,VLOOKUP($B10,'NFC Well Dplns-SDF'!$B$7:$Z$306,25)+VLOOKUP($B10,'NFC Well Dplns-URF'!B$7:$AB$306,20))/$SP10/1.9835) -> 0 | AW10: 0.003352812464 | AX10: 0.04 | AY10: ECCV Riverside Credits | AZ10: =-((BL10+BM10)*'Weldon Credit'!$BB$36) -> 0 | BA10: =-((BL10+BM10)*'Weldon Credit'!$BB$34) -> 0 | BB10: =-INDEX('Weldon Credit'!$AX$249:$BJ$276,MATCH($B$2,'Weldon Credit'!$AX$249:$AX$276,0),MATCH(A10,'Weldon Credit'!$AX$249:$BJ$249,0))/SP10/1.9835 -> -0.007996419995 | BC10: =AZ10+BB10 -> -0.007996419995 | BD10: =-((BL10+BM10)*'Weldon Credit'!$BB$37) -> 0 | BE10: =-((BL10+BM10)*'Weldon Credit'!$BB$35) -> 0 | BF10: =-INDEX('Weldon Credit'!$AX$281:$BJ$308,MATCH($B$2,'Weldon Credit'!$AX$281:$AX$308,0),MATCH(A10,'Weldon Credit'!$AX$281:$BJ$281,0))/SP10/1.9835 -> -0.1409485256 | BG10: =BD10+BF10 -> -0.1409485256 | BH10: =-(BL10+BM10)*'Weldon Credit'!$BB$38 -> 0 | BI10: =0.4*(INDEX('Riverside Pond Accrtns'!$B$6:$M$36,MATCH($B$2,'Riverside Pond Accrtns'!$A$6:$A$36,0),MATCH('ECCV Daily Replacement Summary'!A10,'Riverside Pond Accrtns'!$B$5:$M$5,0))/SP10)/1.9835 -> 1.65541047 | BJ10: =(44/640)*(INDEX('Weldon Valley Accrtns (02CW377)'!$B$6:$M$30,MATCH($B$2,'Weldon Valley Accrtns (02CW377)'!$A$6:$A$30,0),MATCH(A10,'Weldon Valley Accrtns (02CW377)'!$B$5:$M$5,0))/SP10)/1.9835 -> 0.2998172422 | BK10: =(VLOOKUP($B10,'ECCV 70R Pond Acrtns'!$B$7:$AI$1206,25)+VLOOKUP($B10,'ECCV 70R Canal Acrtns'!$B$7:$AI$1206,20)+VLOOKUP($B10,'2003 70R Pond Acrtns'!$B$7:$AI$1206,25)+VLOOKUP($B10,'2003 70R Canal Acrtns'!$B$7:$AI$1206,20))/$SP10/1.9835 -> 0 | BL10: ='Joint Aug Station Deliveries'!G10 -> 0 | BM10: ='Joint Aug Station Deliveries'!H10 -> 0 | BN10: 0 | BO10: 0 | BP10: =IF(CB10="no",-MAX(0,MIN(BO10,(BM10-BL10))*(0.5/100*'Distances for Transit Losses'!$C$75)),0) -> 0 | BQ10: =IF(BL10+BM10>0,BL10+BM10-BN10-BO10+BP10,0) -> 0 | BR10: =MIN(-($BC10+BG10+BH10+BN10+BO10+BP10),BI10-BI10*0.5/100*'Distances for Transit Losses'!$C$77) -> 0.1489449456 | BS10: =MIN(-($BC10+BG10+BH10+BN10+BO10+BP10+BR10),BJ10) -> 0 | BT10: =MIN(-($BC10+BG10+BH10+BN10+BO10+BP10+BR10+BS10),BK10-BK10*0.5/100*'Distances for Transit Losses'!$C$77) -> 0 | BU10: =-((BR10+BT10)*(0.5/100*'Distances for Transit Losses'!$C$77)) -> -0.01586263671 | BV10: =IF(AND(JS10-JT10-GL10-DU10>0,JN10="no"),MIN(-(BC10+BG10+BH10+BN10+BO10+BP10+BR10+BS10+BT10+BU10)/(1-0.5/100*'Distances for Transit Losses'!$C$99),JS10-JT10-GL10-DU10),0) -> 0 | BW10: =--BV10*0.5/100*'Distances for Transit Losses'!C$99 -> 0 | BX10: =IF(AND(HZ10-IA10-JV10-GR10-LU10-DY10>0,GE10="no"),MIN(-(BC10+BG10+BH10+BN10+BO10+BP10+BR10+BS10+BT10+BU10+BV10+BW10)/(1-0.5/100*'Distances for Transit Losses'!$C$101),HZ10-IA10-JV10-GR10-LU10-DY10),0) -> 0 | BY10: =--BX10*0.5/100*'Distances for Transit Losses'!$C$101 -> 0 | BZ10: 0 | CB10: no | CC10: no | CD10: no | CE10: 0 | CF10: 0 | CG10: 0 | CI10: =IF($CD10="No",MIN(IF(-DP10<0,0,-DP10),BI10-BR10/(1-0.5/100*'Distances for Transit Losses'!$C$77)),0) -> 0 | CJ10: =IF($CD10="No",IF(MIN(-DP10+CI10,BK10-BT10/(1-0.5/100*'Distances for Transit Losses'!$C$77))<0,0,MIN(-DP10+CI10,BK10-BT10/(1-0.5/100*'Distances for Transit Losses'!$C$77))),0) -> 0 | CK10: 0 | CL10: 0 | CM10: 0 | CN10: =AV10+AW10+BC10+BG10+BH10+BI10+BJ10+BK10+BL10+BM10 -> 1.809635579 | CO10: =AV10+AW10+AX10+BC10+BG10+BH10+BI10+BJ10+BK10+BL10+BM10+BP10+BZ10-SUM(CI10:CM10) -> 1.849635579 | CP10: =-(IF($N10=99999.99999,0,VLOOKUP($B10,'NFC Well Dplns-SDF'!$B$7:$Z$306,16)+VLOOKUP($B10,'NFC Well Dplns-URF'!$B$7:$AB$306,13))/$SP10/1.9835) -> 0 | CQ10: =-(IF($N10>=99999,0,'88CW264(B) Pumping'!$E8/1.9835)+IF($N10>=99999,0,'88CW264(B) Pumping'!$E44/1.9835)+IF($N10>=99999,0,'88CW264(B) Pumping'!$E84/1.9835)+IF($N10>=99999,0,'88CW264(B) Pumping'!$E120/1.9835)+IF($N10>=51134.50919,0,'88CW264(B) Pumping'!$E160/1.9835)+IF($N10>=53406,0,'88CW264(B) Pumping'!$E196/1.9835)) -> 0 | CR10: 0 | CS10: 0.03193008991 | CV10: =-(IF($N10=99999.99999,0,VLOOKUP($B10,'United No. 2 Dplns'!$B$7:$X$676,13)/1.9835)) -> 0 | CW10: =CV10+(-(INDEX('Pre 1995 Net Accretions'!$B$6:$M$105,MATCH($B$2,'Pre 1995 Net Accretions'!$A$6:$A$105,0),MATCH($A10,'Pre 1995 Net Accretions'!$B$5:$M$5,0))/$SP10/1.9835)) -> 0.02775653206 | CX10: =-(IF(N10<99999.99999,(INDEX('70 Ranch RF Obligation'!$B$6:$M$36,MATCH($B$2,'70 Ranch RF Obligation'!$A$6:$A$36,0),MATCH('ECCV Daily Replacement Summary'!A10,'70 Ranch RF Obligation'!$B$5:$M$5,0))/SP10)/1.9835,0))-DA10*(1-'L. Latham Credit'!$E$41) -> 0 | CY10: =MIN(0,CX10+CW10) -> 0 | CZ10: =(VLOOKUP($B10,'ECCV 70R Pond Acrtns'!$B$7:$AI$1206,16)+VLOOKUP($B10,'ECCV 70R Canal Acrtns'!$B$7:$AI$1206,13)+VLOOKUP($B10,'2003 70R Pond Acrtns'!$B$7:$AI$1206,16)+VLOOKUP($B10,'2003 70R Canal Acrtns'!$B$7:$AI$1206,13))/$SP10/1.9835 -> 0 | DA10: ='Joint Aug Station Deliveries'!DE10 -> 0 | DB10: =IF(DA10>0,DA10-DC10,0) -> 0 | DC10: =MAX(0,MIN(-CY10,DA10)) -> 0 | DD10: ='Joint Aug Station Deliveries'!DH10 -> 0 | DE10: 0 | DF10: 0 | DI10: =MAX(0,CW10)+DB10+DE10+DF10+DG10 -> 0.02775653206 | DJ10: =MAX(0,MIN(-(CY10+DC10),DI10)) -> 0 | DK10: 0 | DL10: =-DK10*0.5/100*'Distances for Transit Losses'!$C$48 -> 0 | DM10: =MAX(0,MIN(CZ10,-(CY10+DC10+DJ10))) -> 0 | DN10: 0 | DO10: 0 | DP10: =CR10+CS10+CT10+CY10+DC10+DJ10+DM10 -> 0.03193008991 | DQ10: 0 | DR10: 0 | DS10: 0 | DT10: =('NFC Well Pumping'!I8+'NFC Well Pumping'!I45+'NFC Well Pumping'!I81)/1.9835 -> 0 | DU10: =IF(AND(JS10-JT10-GL10>0,JN10="no"),MIN(-SUM(DP10:DT10)/(1-0.5/100*'Distances for Transit Losses'!$C$103),JS10-JT10-GL10),0) -> 0 | DV10: =-DU10*0.5/100*'Distances for Transit Losses'!C$103 -> 0 | DW10: 0 | DX10: =-DW10*0.5/100*'Distances for Transit Losses'!$C$127 -> 0 | DY10: =IF(AND(HZ10-IA10-JV10-GR10-LU10>0,GE10="no"),MIN(-SUM(DP10:DX10)/(1-0.5/100*'Distances for Transit Losses'!$C$105),HZ10-IA10-JV10-GR10-LU10),0) -> 0 | DZ10: =--DY10*0.5/100*'Distances for Transit Losses'!$C$105 -> 0 | EA10: =CZ10+DI10-DJ10-DK10+DL10-SUM(DM10:DO10) -> 0.02775653206 | EB10: =IF('Joint Aug Station Deliveries'!R10="Yes",'Joint Aug Station Deliveries'!P10,0) -> 0 | EC10: ='Joint Aug Station Deliveries'!T10 -> 0 | ED10: =IF('Joint Aug Station Deliveries'!Z10="Yes",'Joint Aug Station Deliveries'!X10,0) -> 0 | EE10: =-(ED10*0.5/100*'Distances for Transit Losses'!$C$216) -> 0 | EF10: =IF('Joint Aug Station Deliveries'!AD10="Yes",'Joint Aug Station Deliveries'!AB10,0) -> 0 | EG10: =-(EF10*0.5/100*'Distances for Transit Losses'!$C$248) -> 0 | EH10: 0 | EI10: =-(EH10*0.5/100*'Distances for Transit Losses'!$C$238) -> 0 | EJ10: no | EK10: =IF('Joint Aug Station Deliveries'!AH10="Yes",'Joint Aug Station Deliveries'!AF10,0) -> 0 | EL10: =-(EK10*0.5/100*'Distances for Transit Losses'!$C$250) -> 0 | EM10: =IF('Joint Aug Station Deliveries'!AL10="Yes",'Joint Aug Station Deliveries'!AJ10,0) -> 0 | EN10: =-(EM10*0.5/100*'Distances for Transit Losses'!$C$252) -> 0 | EO10: =IF('Joint Aug Station Deliveries'!AP10="Yes",'Joint Aug Station Deliveries'!AN10,0) -> 0 | EP10: =-(EO10*0.5/100*'Distances for Transit Losses'!$C$254) -> 0 | EQ10: =-0.25*(INDEX('GIC Credit'!$B$85:$M$116,MATCH($B$2,'GIC Credit'!$A$85:$A$116,0),MATCH($A10,'GIC Credit'!$B$85:$M$85,0))/$SP10/1.9835+FK10*'GIC Credit'!$Z$39+FL10*'GIC Credit'!$AO$39) -> -0.0001915 | ER10: =EQ10 -> -0.0001915 | ES10: ='Joint Aug Station Deliveries'!CW10 -> 0 | ET10: =-(ES10*0.5/100*'Distances for Transit Losses'!$C$244) -> 0 | EU10: ='Joint Aug Station Deliveries'!CX10 -> 0 | EV10: =-(EU10*0.5/100*'Distances for Transit Losses'!$C$246) -> 0 | EW10: 0 | EY10: no | EZ10: -0.0001915 | FA10: =-0.39*(INDEX('GIC Credit'!$B$85:$M$116,MATCH($B$2,'GIC Credit'!$A$85:$A$116,0),MATCH($A10,'GIC Credit'!$B$85:$M$85,0))/$SP10/1.9835+FK10*'GIC Credit'!$Z$39+FL10*'GIC Credit'!$AO$39) -> -0.00029874 | FB10: 0 | FC10: =-(FB10*0.5/100*('Distances for Transit Losses'!$C$220+'Distances for Transit Losses'!$C$226)) -> 0 | FD10: =IF('Joint Aug Station Deliveries'!AT10="Yes",'Joint Aug Station Deliveries'!AR10,0) -> 0 | FE10: =-(FD10*0.5/100*('Distances for Transit Losses'!$C$222+'Distances for Transit Losses'!$C$224)) -> 0 | FF10: =IF('Joint Aug Station Deliveries'!AX10="Yes",'Joint Aug Station Deliveries'!AV10,0) -> 0 | FG10: =-(FF10*0.5/100*'Distances for Transit Losses'!$C$224) -> 0 | FH10: ='Joint Aug Station Deliveries'!CY10 -> 0 | FI10: =-(FH10*0.5/100*'Distances for Transit Losses'!$C$230) -> 0 | FJ10: 0 | FK10: ='Joint Aug Station Deliveries'!DA10 -> 0 | FL10: ='Joint Aug Station Deliveries'!DB10 -> 0 | FM10: =MIN(0,EZ10)+SUM(FA10:FC10)+EB10/(1-0.5/100*('Distances for Transit Losses'!$C$256+'Distances for Transit Losses'!$C$268))+EC10/(1-0.5/100*('Distances for Transit Losses'!$C$242))+SUM(ED10:EE10)/(1-0.5/100*('Distances for Transit Losses'!$C$258+'Distances for Transit Losses'!$C$268))+SUM(EF10:EG10)/(1-0.5/100*('Distances for Transit Losses'!$C$260+'Distances for Transit Losses'!$C$268))+EH10/(1-0.5/100*('Distances for Transit Losses'!$C$242))+SUM(EK10:EL10)/(1-0.5/100*('Distances for Transit Losses'!$C$262+'Distances for Transit Losses'!$C$270))+SUM(EM10:EN10)/(1-0.5/100*('Distances for Transit Losses'!$C$264+'Distances for Transit Losses'!$C$270))+SUM(EO10:EP10)/(1-0.5/100*('Distances for Transit Losses'!$C$266+'Distances for Transit Losses'!$C$270))+SUM(FD10:FG10)/(1-0.5/100*('Distances for Transit Losses'!$C$226))+SUM(FH10:FI10) -> -0.00049024 | FN10: =-(IF(N10<99999.99999,INDEX('Hist RF to SPR'!$AF$6:$AQ$30,MATCH($B$2,'Hist RF to SPR'!$AE$6:$AE$30,0),MATCH($A10,'Hist RF to SPR'!$AF$5:$AQ$5,0))/SP10/1.9835,0)) -> 0 | FO10: =IF(N10<99999.99999,-INDEX('New Cache Credit'!$BO$109:$CA$136,MATCH($B$2,'New Cache Credit'!$BO$109:$BO$136,0),MATCH(A10,'New Cache Credit'!$BO$109:$CA$109,0))/SP10/1.9835-INDEX('New Cache Credit'!$CD$77:$CP$104,MATCH($B$2,'New Cache Credit'!$CD$77:$CD$104,0),MATCH(A10,'New Cache Credit'!$CD$77:$CP$77,0))/SP10/1.9835,0) -> 0 | FP10: =-0.36*(INDEX('GIC Credit'!$B$85:$M$116,MATCH($B$2,'GIC Credit'!$A$85:$A$116,0),MATCH($A10,'GIC Credit'!$B$85:$M$85,0))/$SP10/1.9835+FK10*'GIC Credit'!$Z$39+FL10*'GIC Credit'!$AO$39) -> -0.00027576 | FQ10: -0.00049024 | FR10: -0.000766 | FS10: 0 | FT10: =IF('Joint Aug Station Deliveries'!BB10="Yes",'Joint Aug Station Deliveries'!AZ10,0) -> 0 | FU10: =-(FT10*0.5/100*'Distances for Transit Losses'!$C$208) -> 0 | FV10: =IF('Joint Aug Station Deliveries'!BF10="Yes",'Joint Aug Station Deliveries'!BD10,0) -> 0 | FW10: =-(FV10*0.5/100*'Distances for Transit Losses'!$C$210) -> 0 | FX10: =IF('Joint Aug Station Deliveries'!BJ10,'Joint Aug Station Deliveries'!BH10,0) -> 0 | FY10: =-(FX10*0.5/100*'Distances for Transit Losses'!$C$212) -> 0 | FZ10: =IF('Joint Aug Station Deliveries'!BN10="Yes",'Joint Aug Station Deliveries'!BL10,0) -> 0 | GA10: =-(FZ10*0.5/100*'Distances for Transit Losses'!$C$200) -> 0 | GB10: =IF('Joint Aug Station Deliveries'!BR10="Yes",'Joint Aug Station Deliveries'!BP10,0) -> 0 | GC10: =-(GB10*0.5/100*'Distances for Transit Losses'!$C$206) -> 0 | GD10: =MIN(-FR10-FS10,SUM(FT10:FU10)/(1-0.5/100*('Distances for Transit Losses'!$C$274))+SUM(FV10:FW10)/(1-0.5/100*('Distances for Transit Losses'!$C$276))+SUM(FX10:FY10)+SUM(FZ10:GA10)+SUM(GB10:GC10)) -> 0 | GE10: no | GF10: 0 | GG10: 0 | GH10: 0 | GJ10: 0.000766 | GK10: 0 | GL10: =IF(AND(JS10-JT10-HV10>0,JN10="no"),MIN(-(FR10+FS10+GD10+GJ10+GK10)/(1-0.5/100*'Distances for Transit Losses'!$C$107),JS10-JT10-HV10),0) -> 0 | GM10: 0 | GN10: 0 | GO10: =-GL10*0.5/100*'Distances for Transit Losses'!$C$107 -> 0 | GP10: 0 | GQ10: =-GP10*0.5/100*'Distances for Transit Losses'!$C$125 -> 0 | GR10: =IF(AND(HZ10-IA10-JV10>0,HL10="no"),MIN(-(FR10+FS10+GD10+GJ10+GK10+GL10+GO10+GP10+GQ10)/(1-0.5/100*'Distances for Transit Losses'!$C$109),HZ10-IA10-JV10),0) -> 0 | GS10: =-GR10*0.5/100*'Distances for Transit Losses'!$C$115 -> 0 | GT10: 0 | GV10: 0 | GW10: 0 | GX10: 0 | GY10: =IF(MP10>FN10,MP10-GJ10,0) -> 0.02699053206 | GZ10: =MQ10-GK10 -> 1.849635579 | HA10: =-(IF(N10<99999.99999,INDEX('Hist RF to SPR'!$Q$6:$AB$30,MATCH($B$2,'Hist RF to SPR'!$P$6:$P$30,0),MATCH($A10,'Hist RF to SPR'!$Q$5:$AB$5,0))/SP10/1.9835,0)) -> 0 | HB10: =-(IF(OR($N10<99999.99999,E10="Lower Latham",I10="Lower Latham",E10="Highland",I10="Highland",E10="Plum",I10="Plum"),(INDEX('FIDCO Credit'!$Y$48:$AJ$78,MATCH($B$2,'FIDCO Credit'!$X$48:$X$78,0),MATCH($A10,'FIDCO Credit'!$Y$47:$AJ$47,0))/$SP10)/1.9835,0)) -> 0 | HC10: =-(IF(OR($N10<99999.99999,E10="Lower Latham",I10="Lower Latham",E10="Highland",I10="Highland",E10="Plum",I10="Plum"),(INDEX('Western Credit'!$W$84:$AH$114,MATCH($B$2,'Western Credit'!$V$84:$V$114,0),MATCH($A10,'Western Credit'!$W$83:$AH$83,0))/$SP10)/1.9835+'Haren Daily Recharge'!K9*'Western Credit'!$Z$40,0)) -> 0 | HD10: 0 | HE10: 0 | HF10: =IF(HN10="yes",0,MIN(-HB10-HE10,IJ10)) -> 0 | HG10: =IF(AND(HM10="no",HN10="no"),MIN(-(HB10-HE10-HF10)/(1-0.5/100*'Distances for Transit Losses'!$C$95),JK10),0) -> 0 | HH10: =-HG10*0.5/100*'Distances for Transit Losses'!$C$95 -> 0 | HI10: =VLOOKUP($B10,'ECCV Haren Pond S.P. Acrtns'!$B$7:$G$306,6)/$SP10/1.9835-0.1 -> 1.571957767 | HJ10: =MIN(-HD10-HE10-HF10-HG10,HI10) -> 0 | HK10: =LT10 -> 0 | HL10: no | HM10: no | HN10: no | HO10: 0 | HP10: 0 | HQ10: 0 | HS10: =IF($HL10="No",MIN(-HD10-HJ10,GY10),0) -> 0 | HT10: =IF(AND(HL10="No",$CD10="No"),MIN(-(HD10+HJ10+HS10),GZ10),0) -> 0 | HU10: =HD10+HJ10+HS10+HT10 -> 0 | HV10: =IF(AND(JS10-JT10>0,JN10="no"),MIN(-HU10/(1-0.5/100*'Distances for Transit Losses'!$C$111),JS10-JT10),0) -> 0 | HW10: =-HV10*0.5/100*'Distances for Transit Losses'!$C$111 -> 0 | HX10: =IF(AND(JW10+JX10-JY10-KJ10>0,JN10="no"),MIN((-HU10-(HV10+HW10))/(1-0.5/100*'Distances for Transit Losses'!$C$113),JW10+JX10-JY10-KJ10),0) -> 0 | HY10: =-HX10*0.5/100*'Distances for Transit Losses'!$C$113 -> 0 | HZ10: 0 | IA10: =IF(HZ10>0,MIN(-(HU10+HV10+HW10+HX10+HY10)/(1-0.5/100*'Distances for Transit Losses'!$C$115),HZ10),0) -> 0 | IB10: =-IA10*0.5/100*'Distances for Transit Losses'!$C$115 -> 0 | IC10: 0 | IE10: =MIN(0,SUM(HU10:HY10)+SUM(IA10:IC10)) -> 0 | IF10: ='Joint Aug Station Deliveries'!CJ10 -> 0 | IG10: =IF10*'Western Credit'!$Z$42 -> 0 | IH10: ='Joint Aug Station Deliveries'!CA10 -> 0 | II10: =IF(AND(IH10>0,SUM($IH$9:IH10,$IJ$9:IJ10,$JK$9:JK10)*1.9835<OFFSET('FIDCO Credit'!$X$39,0,MATCH($A10,'FIDCO Credit'!$Y$5:$AJ$5,0))),IH10-HE10,0) -> 0 | IJ10: ='Joint Aug Station Deliveries'!CD10 -> 0 | IK10: =IF(AND(IJ10>0,SUM($IH$9:IH10,$IJ$9:IJ10,$JK$9:JK10)*1.9835<OFFSET('FIDCO Credit'!$X$39,0,MATCH($A10,'FIDCO Credit'!$Y$5:$AJ$5,0))),IJ10-HF10,0) -> 0 | IL10: =MAX(0,(LP10+LQ10))/(1-0.5/100*'Distances for Transit Losses'!$C$83) -> 0 | IM10: =MAX(0,(LR10+LS10)/(1-0.5/100*'Distances for Transit Losses'!$C$79)) -> 0 | IN10: 0 | IO10: =-IN10*0.5/100*'Distances for Transit Losses'!$C$85 -> 0 | IP10: 0 | IQ10: 0 | IR10: =-IQ10*0.5/100*'Distances for Transit Losses'!$C$34 -> 0 | IS10: 0 | IT10: 0 | IU10: 0 | IV10: 0 | IW10: 0 | IX10: 0 | IY10: =IF(AND($HL10="No",$CD10="No"),KN10,0) -> 1.849635579 | IZ10: 0 | JA10: =IF(HL10="No",KM10,0) -> 0.02699053206 | JB10: 0 | JC10: 0 | JD10: 0 | JE10: =-JD10*0.5/100*'Distances for Transit Losses'!$C$123 -> 0 | JF10: =IT10+IW10+IZ10+SUM(JB10:JE10) -> 0 | JG10: 1.571957767 | JH10: 0.02699053206 | JI10: 1.849635579 | JJ10: =-(IF(F10<99999.99999,INDEX('Hist RF to SPR'!$B$6:$M$30,MATCH($B$2,'Hist RF to SPR'!$A$6:$A$30,0),MATCH($A10,'Hist RF to SPR'!$B$5:$M$5,0))/SP10/1.9835,0)) -> 0 | JK10: ='Joint Aug Station Deliveries'!CG10 -> 0 | JL10: =IF(AND(JK10>0,SUM($IH$9:IH10,$IJ$9:IJ10,$JK$9:JK10)*1.9835<OFFSET('FIDCO Credit'!$X$39,0,MATCH($A10,'FIDCO Credit'!$Y$5:$AJ$5,0))),JK10-HG10,0) -> 0 | JM10: =MIN(-JJ10,JL10) -> 0 | JN10: no | JO10: =IF($JN10="No",MIN(-(JJ10+JM10),JH10),0) -> 0 | JP10: =IF(AND(JN10="No",$CD10="No"),MIN(-(JJ10+JM10+JO10),JI10),0) -> 0 | JQ10: =IF(AND($HM10="No"),MIN(-(JJ10+JM10+JO10+JP10),JG10),0) -> 0 | JR10: 0 | JS10: 0 | JT10: =IF(JS10>0,MIN(-JR10/(1-0.5/100*'Distances for Transit Losses'!$C$117),JS10),0) -> 0 | JU10: =-JT10*0.5/100*'Distances for Transit Losses'!$C$117 -> 0 | JV10: 0 | JW10: 0 | JX10: =-JW10*0.5/100*'Distances for Transit Losses'!$C$70 -> 0 | JY10: =IF((JW10+JX10)>0,MIN((-JR10-(JT10-JU10)-JV10)/(1-0.5/100*'Distances for Transit Losses'!$C$119),(JW10+JX10)),0) -> 0 | JZ10: =-JY10*0.5/100*'Distances for Transit Losses'!$C$119 -> 0 | KA10: 0 | KC10: =JR10+JT10+JU10+JV10+JY10+JZ10+KA10 -> 0 | KD10: 1.849635579 | KE10: 0 | KF10: 0.02699053206 | KG10: 0 | KH10: 0 | KI10: 0 | KJ10: 0 | KK10: =-KJ10*0.5/100*'Distances for Transit Losses'!$C$121 -> 0 | KL10: =KE10+KG10+KH10+KI10+KJ10+KK10 -> 0 | KM10: 0.02699053206 | KN10: 1.849635579 | KO10: =-(IF(N10<99999.99999,(VLOOKUP(B10,'ECCV Upper Dpln'!$B$7:$BD$306,55))/SP10/1.9835,0)) -> 0 | KP10: =-(IF(N10<99999.99999,INDEX('Hist RF abv Milton'!$B$6:$M$30,MATCH($B$2,'Hist RF abv Milton'!$A$6:$A$30,0),MATCH($A10,'Hist RF abv Milton'!$B$5:$M$5,0))/SP10/1.9835,0)) -> 0 | KQ10: 0 | KR10: =(VLOOKUP($B10,'ECCV Beebe Pond Acrtns'!$B$7:$BI$1206,41)+VLOOKUP($B10,'ECCV Canal Acrtns'!$B$7:$AL$1206,22)+VLOOKUP($B10,'2003 Beebe Pond Acrtns'!$B$7:$BI$1206,41)+VLOOKUP($B10,'2003 Canal Acrtns'!$B$7:$AL$1206,22))/$SP10/1.9835 -> 1.065139416 | KS10: ='Barr Lake'!BV21 -> 0 | KT10: 0 | KU10: 0 | KV10: 0 | KW10: 0 | KX10: 0 | KY10: =MIN(KR10,-KO10) -> 0 | KZ10: =MIN($KX10,-($KO10+$KY10)) -> 0 | LA10: no | LB10: 0 | LC10: 0 | LD10: =IF($LA10="No",IF($LB10>0,0,MIN(-(KO10+KY10+KZ10),EA10-LC10)),0) -> 0 | LE10: 0 | LF10: =IF(AND(LA10="No",$CD10="No"),IF($LB10>0,0,MIN(-(KO10+KY10+KZ10+LD10),$CO10-LE10)),0) -> 0 | LG10: =IF($LA10="No",IF($LB10>0,0,MIN(-(KP10+LC10+LE10),GX10)),0) -> 0 | LH10: =IF($LA10="No",IF($LB10>0,0,MIN(-(KO10+KY10+KZ10+LD10+LF10),GX10-LG10)),0) -> 0 | LI10: =KO10+KY10+KZ10+LD10+LF10+LH10 -> 0 | LJ10: =KP10+LC10+LE10+LG10 -> 0 | LK10: 0 | LL10: =-(LK10*0.5/100*'Distances for Transit Losses'!$C$6) -> 0 | LM10: 0 | LN10: 0 | LO10: 0 | LP10: =IF(AND(E10<>"Lower Latham",I10<>"Lower Latham"),MIN(-(LJ10+LM10),II10-II10*0.5/100*'Distances for Transit Losses'!$C$83),0) -> 0 | LQ10: =IF(AND(E10<>"Lower Latham",I10<>"Lower Latham"),MAX(0,MIN(-(LI10+LK10+LL10+LO10),II10-II10*0.5/100*'Distances for Transit Losses'!$C$83-LP10/(1-0.5/100*'Distances for Transit Losses'!$C$83))),0) -> 0 | LR10: =MIN(-(LJ10+LP10),IG10-IG10*0.5/100*'Distances for Transit Losses'!$C$79) -> 0 | LS10: =MAX(0,MIN(-(LI10+LK10+LL10+LQ10),IG10-IG10*0.5/100*'Distances for Transit Losses'!$C$79-LR10/(1-0.5/100*'Distances for Transit Losses'!$C$79))) -> 0 | LT10: =IF(GE10="no",MIN(-(MIN(0,LI10+LJ10+LK10+LL10+LQ10+LS10)),(HI10-HJ10)-(HI10-HJ10)*0.5/100*'Distances for Transit Losses'!$C$79),0) -> 0 | LU10: =MAX(0,IF(AND(HZ10-IA10-JV10-GR10>0,GE10="no"),MIN(-(LI10+LK10+LL10+LO10+LQ10+LS10+LT10)/(1-0.5/100*'Distances for Transit Losses'!$C$89),HZ10-IA10-JV10-GR10),0)) -> 0 | LV10: =-LU10*0.5/100*'Distances for Transit Losses'!$C$89 -> 0 | LY10: =SUM(KO10:KQ10)+KY10+KZ10+SUM(LC10:LH10)+SUM(LK10:LW10) -> 0 | LZ10: 1.065139416 | MA10: 0 | MB10: 0.02775653206 | MC10: 1.849635579 | MD10: =-(IF(N10<99999.99999,INDEX('Hist RF blw Milton'!$B$6:$M$30,MATCH($B$2,'Hist RF blw Milton'!$A$6:$A$30,0),MATCH($A10,'Hist RF blw Milton'!$B$5:$M$5,0))/SP10/1.9835,0)) -> 0 | ME10: no | MF10: =IF($ME10="No",MIN(-MD10,$MB10),0) -> 0 | MG10: =IF(AND(ME10="No",$CD10="No"),MIN(-(MD10+MF10),$MC10),0) -> 0 | MH10: =MD10+MF10+MG10 -> 0 | MI10: =MAX(0,-(MH10+MK10)) -> 0 | MJ10: 0 | MK10: 0.03 | ML10: Haren Recharge | MM10: ='Milton Lake'!DY9 -> 0 | MN10: 0 | MO10: 0 | MP10: 0.02775653206 | MQ10: 1.849635579 | MR10: =-(IF(N10<99999.99999,INDEX('Hist RF to Box Elder'!$B$6:$M$30,MATCH($B$2,'Hist RF to Box Elder'!$A$6:$A$30,0),MATCH($A10,'Hist RF to Box Elder'!$B$5:$M$5,0))/SP10/1.9835,0)) -> 0 | MS10: =(VLOOKUP($B10,'ECCV Beebe Pond Acrtns'!$B$7:$BI$1206,54)+VLOOKUP($B10,'ECCV Canal Acrtns'!$B$7:$AL$1206,34)+VLOOKUP($B10,'2003 Beebe Pond Acrtns'!$B$7:$BI$1206,54)+VLOOKUP($B10,'2003 Canal Acrtns'!$B$7:$AL$1206,34)+VLOOKUP($B10,'84CW090 Beebe Pond Acrtns'!$B$7:$BI$1206,55)+VLOOKUP($B10,'84CW090 Canal Acrtns'!$B$7:$AL$1206,34))/$SP10/1.9835 -> 0.1080499331 | MT10: 0 | MU10: 0 | MV10: 0 | MW10: 0 | MY10: -0.1502011856 | MZ10: =KY10+KZ10+SUM(LC10:LH10)+SUM(LK10:LW10) -> 0 | NA10: =MF10+MG10+MI10+MJ10+MK10 -> 0.03 | NB10: =MT10+MU10+MV10+MW10 -> 0 | NC10: 0 | ND10: 0 | NE10: 0.000766 | NF10: 0 | NG10: 0.03193008991 | NH10: 0.1764351214 | NI10: 0.2391312113 | NJ10: 0.08893002566 | NK10: =LZ10 -> 1.065139416 | NL10: 0.02699053206 | NM10: 1.849635579 | NO10: 0 | NP10: 0 | NQ10: 0 | NR10: 0 | NS10: 0 | NT10: 0 | NU10: 0 | NV10: 0 | NX10: 0 | NY10: 0 | NZ10: 0 | OA10: 0 | OB10: 0 | OC10: 0 | OD10: 0 | OE10: 0 | OF10: 0 | OG10: 0 | OH10: 0 | OI10: 0 | OK10: 0 | OL10: 0 | OM10: 0 | ON10: 0 | OO10: 0 | OP10: 0 | OQ10: 0 | OR10: 0 | OS10: 0 | OT10: 0 | OU10: 0 | OW10: 1.876626111 | OX10: 0 | OY10: 0 | OZ10: 0 | PA10: 0 | PB10: 0 | PC10: 0 | PD10: 0 | PE10: 0 | PF10: 0 | PG10: 0 | PI10: 0 | PJ10: 0 | PK10: 0 | PL10: 0 | PM10: 0 | PN10: 0 | PO10: 0 | PP10: 0 | PQ10: 0 | PR10: 0 | PS10: 0 | PT10: 0 | PU10: 0 | PW10: 0 | PX10: 0 | PY10: 0 | PZ10: 0 | QA10: 0 | QB10: 0 | QC10: 0 | QD10: 0 | QE10: 0 | QG10: 0 | QH10: 0 | QI10: 0 | QJ10: 0 | QK10: 0 | QL10: 0 | QM10: 0 | QN10: 0 | QP10: 0 | QQ10: 0 | QR10: 0 | QT10: 0 | QU10: 0 | QV10: 0 | QW10: 0 | QZ10: 0 | RA10: 0 | RB10: 0 | RC10: 0 | RD10: =SUM(QZ10:RC10) -> 0 | RE10: 0 | RF10: 0 | RH10: 0 | RI10: 0 | RJ10: 0 | RK10: =NU10+SUM(OX10:PD10)+SUM(OL10:OR10)+SUM(NY10:OF10)+SUM(PM10:PR10)+SUM(PX10:QB10)+SUM(QH10:QK10)+SUM(QZ10:RC10) -> 0 | RL10: =IF(RK10*1.9835>8706,"Exceeded Annual Maximum",RK10*1.9835) -> 0 | RM10: 309.6 | RO10: 1.065139416 | RP10: 0 | RQ10: 0 | RR10: 0 | RS10: 0 | RT10: 0 | RU10: 0 | RV10: 0 | RW10: 0 | RX10: 0 | RY10: 0 | RZ10: 0 | SA10: 0 | SB10: 0 | SC10: 0 | SD10: 0 | SE10: 0 | SF10: 0 | SG10: 0 | SH10: 0 | SI10: =RO10-SUM(RP10:SH10) -> 1.065139416 | SJ10: TRUE | SK10: TRUE | SM10: 0 | SN10: 0 | SP10: =VLOOKUP(A10,'Control Sheet'!$G$9:$H$20,2) -> 30
A11: Apr | B11: 2018-04-03 | C11: Free River | F11: 99999.99999 | K11: Free River | N11: 99999.99999 | AA11: 1.876626111 | AB11: 0 | AC11: 0 | AD11: 0 | AE11: 0 | AF11: 0 | AG11: =('NFC Well Pumping'!$L9+'NFC Well Pumping'!$L46+'NFC Well Pumping'!$L82)/1.9835 -> 3.225928938 | AH11: ='88CW264(B) Pumping'!$E9/1.9835+'88CW264(B) Pumping'!$E45/1.9835+'88CW264(B) Pumping'!E85/1.9835+'88CW264(B) Pumping'!E121/1.9835+'88CW264(B) Pumping'!E161/1.9835+'88CW264(B) Pumping'!E197/1.9835 -> 0.01481193911 | AI11: =$NL11+$NM11 -> 1.876626111 | AJ11: =('United No. 2 Well Pumping'!G10+'United No. 2 Well Pumping'!G46+'United No. 2 Well Pumping'!G82)/1.9835 -> 0 | AK11: =('United No. 2 Well Pumping'!F10+'United No. 2 Well Pumping'!F46+'United No. 2 Well Pumping'!F82)/1.9835 -> 0 | AL11: 0 | AN11: 3.240740877 | AO11: =AC11+AK11+'United Res'!AA173+'United Res'!AQ173+'Milliken Res'!I161 -> 0 | AP11: 100 | AQ11: =-(IF($N11=99999.99999,0,VLOOKUP($B11,'NFC Well Dplns-URF'!B$7:$AB$306,27))/$SP11/1.9835) -> 0 | AR11: 0 | AT11: =(VLOOKUP($B11,'ECCV 70R Pond Acrtns'!$B$7:$AI$1206,34)+VLOOKUP($B11,'2003 70R Pond Acrtns'!$B$7:$AI$1206,34)+VLOOKUP($B11,'ECCV 70R Canal Acrtns'!$B$7:$AI$1206,27)+VLOOKUP($B11,'2003 70R Canal Acrtns'!$B$7:$AI$1206,27))/$SP11/1.9835 -> 0 | AU11: 0 | AV11: =-(IF($N11=99999.99999,0,VLOOKUP($B11,'NFC Well Dplns-SDF'!$B$7:$Z$306,25)+VLOOKUP($B11,'NFC Well Dplns-URF'!B$7:$AB$306,20))/$SP11/1.9835) -> 0 | AW11: 0.003352812464 | AX11: 0.04 | AY11: ECCV Riverside Credits | AZ11: =-((BL11+BM11)*'Weldon Credit'!$BB$36) -> 0 | BA11: =-((BL11+BM11)*'Weldon Credit'!$BB$34) -> 0 | BB11: =-INDEX('Weldon Credit'!$AX$249:$BJ$276,MATCH($B$2,'Weldon Credit'!$AX$249:$AX$276,0),MATCH(A11,'Weldon Credit'!$AX$249:$BJ$249,0))/SP11/1.9835 -> -0.007996419995 | BC11: -0.007996419995 | BD11: =-((BL11+BM11)*'Weldon Credit'!$BB$37) -> 0 | BE11: =-((BL11+BM11)*'Weldon Credit'!$BB$35) -> 0 | BF11: =-INDEX('Weldon Credit'!$AX$281:$BJ$308,MATCH($B$2,'Weldon Credit'!$AX$281:$AX$308,0),MATCH(A11,'Weldon Credit'!$AX$281:$BJ$281,0))/SP11/1.9835 -> -0.1409485256 | BG11: -0.1409485256 | BH11: =-(BL11+BM11)*'Weldon Credit'!$BB$38 -> 0 | BI11: =0.4*(INDEX('Riverside Pond Accrtns'!$B$6:$M$36,MATCH($B$2,'Riverside Pond Accrtns'!$A$6:$A$36,0),MATCH('ECCV Daily Replacement Summary'!A11,'Riverside Pond Accrtns'!$B$5:$M$5,0))/SP11)/1.9835 -> 1.65541047 | BJ11: =(44/640)*(INDEX('Weldon Valley Accrtns (02CW377)'!$B$6:$M$30,MATCH($B$2,'Weldon Valley Accrtns (02CW377)'!$A$6:$A$30,0),MATCH(A11,'Weldon Valley Accrtns (02CW377)'!$B$5:$M$5,0))/SP11)/1.9835 -> 0.2998172422 | BK11: =(VLOOKUP($B11,'ECCV 70R Pond Acrtns'!$B$7:$AI$1206,25)+VLOOKUP($B11,'ECCV 70R Canal Acrtns'!$B$7:$AI$1206,20)+VLOOKUP($B11,'2003 70R Pond Acrtns'!$B$7:$AI$1206,25)+VLOOKUP($B11,'2003 70R Canal Acrtns'!$B$7:$AI$1206,20))/$SP11/1.9835 -> 0 | BL11: ='Joint Aug Station Deliveries'!G11 -> 0 | BM11: ='Joint Aug Station Deliveries'!H11 -> 0 | BN11: 0 | BO11: 0 | BP11: =IF(CB11="no",-MAX(0,MIN(BO11,(BM11-BL11))*(0.5/100*'Distances for Transit Losses'!$C$75)),0) -> 0 | BQ11: 0 | BR11: =MIN(-($BC11+BG11+BH11+BN11+BO11+BP11),BI11-BI11*0.5/100*'Distances for Transit Losses'!$C$77) -> 0.1489449456 | BS11: 0 | BT11: =MIN(-($BC11+BG11+BH11+BN11+BO11+BP11+BR11+BS11),BK11-BK11*0.5/100*'Distances for Transit Losses'!$C$77) -> 0 | BU11: =-((BR11+BT11)*(0.5/100*'Distances for Transit Losses'!$C$77)) -> -0.01586263671 | BV11: =IF(AND(JS11-JT11-GL11-DU11>0,JN11="no"),MIN(-(BC11+BG11+BH11+BN11+BO11+BP11+BR11+BS11+BT11+BU11)/(1-0.5/100*'Distances for Transit Losses'!$C$99),JS11-JT11-GL11-DU11),0) -> 0 | BW11: =--BV11*0.5/100*'Distances for Transit Losses'!C$99 -> 0 | BX11: =IF(AND(HZ11-IA11-JV11-GR11-LU11-DY11>0,GE11="no"),MIN(-(BC11+BG11+BH11+BN11+BO11+BP11+BR11+BS11+BT11+BU11+BV11+BW11)/(1-0.5/100*'Distances for Transit Losses'!$C$101),HZ11-IA11-JV11-GR11-LU11-DY11),0) -> 0 | BY11: =--BX11*0.5/100*'Distances for Transit Losses'!$C$101 -> 0 | BZ11: 0 | CB11: no | CC11: no | CD11: no | CE11: 0 | CF11: 0 | CG11: 0 | CI11: =IF($CD11="No",MIN(IF(-DP11<0,0,-DP11),BI11-BR11/(1-0.5/100*'Distances for Transit Losses'!$C$77)),0) -> 0 | CJ11: =IF($CD11="No",IF(MIN(-DP11+CI11,BK11-BT11/(1-0.5/100*'Distances for Transit Losses'!$C$77))<0,0,MIN(-DP11+CI11,BK11-BT11/(1-0.5/100*'Distances for Transit Losses'!$C$77))),0) -> 0 | CK11: 0 | CL11: 0 | CM11: 0 | CN11: 1.809635579 | CO11: 1.849635579 | CP11: =-(IF($N11=99999.99999,0,VLOOKUP($B11,'NFC Well Dplns-SDF'!$B$7:$Z$306,16)+VLOOKUP($B11,'NFC Well Dplns-URF'!$B$7:$AB$306,13))/$SP11/1.9835) -> 0 | CQ11: =-(IF($N11>=99999,0,'88CW264(B) Pumping'!$E9/1.9835)+IF($N11>=99999,0,'88CW264(B) Pumping'!$E45/1.9835)+IF($N11>=99999,0,'88CW264(B) Pumping'!$E85/1.9835)+IF($N11>=99999,0,'88CW264(B) Pumping'!$E121/1.9835)+IF($N11>=51134.50919,0,'88CW264(B) Pumping'!$E161/1.9835)+IF($N11>=53406,0,'88CW264(B) Pumping'!$E197/1.9835)) -> 0 | CR11: 0 | CS11: 0.03193008991 | CV11: =-(IF($N11=99999.99999,0,VLOOKUP($B11,'United No. 2 Dplns'!$B$7:$X$676,13)/1.9835)) -> 0 | CW11: =CV11+(-(INDEX('Pre 1995 Net Accretions'!$B$6:$M$105,MATCH($B$2,'Pre 1995 Net Accretions'!$A$6:$A$105,0),MATCH($A11,'Pre 1995 Net Accretions'!$B$5:$M$5,0))/$SP11/1.9835)) -> 0.02775653206 | CX11: =-(IF(N11<99999.99999,(INDEX('70 Ranch RF Obligation'!$B$6:$M$36,MATCH($B$2,'70 Ranch RF Obligation'!$A$6:$A$36,0),MATCH('ECCV Daily Replacement Summary'!A11,'70 Ranch RF Obligation'!$B$5:$M$5,0))/SP11)/1.9835,0))-DA11*(1-'L. Latham Credit'!$E$41) -> 0 | CY11: 0 | CZ11: =(VLOOKUP($B11,'ECCV 70R Pond Acrtns'!$B$7:$AI$1206,16)+VLOOKUP($B11,'ECCV 70R Canal Acrtns'!$B$7:$AI$1206,13)+VLOOKUP($B11,'2003 70R Pond Acrtns'!$B$7:$AI$1206,16)+VLOOKUP($B11,'2003 70R Canal Acrtns'!$B$7:$AI$1206,13))/$SP11/1.9835 -> 0 | DA11: ='Joint Aug Station Deliveries'!DE11 -> 0 | DB11: 0 | DC11: 0 | DD11: ='Joint Aug Station Deliveries'!DH11 -> 0 | DE11: 0 | DF11: 0 | DI11: 0.02775653206 | DJ11: 0 | DK11: 0 | DL11: =-DK11*0.5/100*'Distances for Transit Losses'!$C$48 -> 0 | DM11: 0 | DN11: 0 | DO11: 0 | DP11: =CR11+CS11+CT11+CY11+DC11+DJ11+DM11 -> 0.03193008991 | DQ11: 0 | DR11: 0 | DS11: 0 | DT11: =('NFC Well Pumping'!I9+'NFC Well Pumping'!I46+'NFC Well Pumping'!I82)/1.9835 -> 0 | DU11: =IF(AND(JS11-JT11-GL11>0,JN11="no"),MIN(-SUM(DP11:DT11)/(1-0.5/100*'Distances for Transit Losses'!$C$103),JS11-JT11-GL11),0) -> 0 | DV11: =-DU11*0.5/100*'Distances for Transit Losses'!C$103 -> 0 | DW11: 0 | DX11: =-DW11*0.5/100*'Distances for Transit Losses'!$C$127 -> 0 | DY11: =IF(AND(HZ11-IA11-JV11-GR11-LU11>0,GE11="no"),MIN(-SUM(DP11:DX11)/(1-0.5/100*'Distances for Transit Losses'!$C$105),HZ11-IA11-JV11-GR11-LU11),0) -> 0 | DZ11: =--DY11*0.5/100*'Distances for Transit Losses'!$C$105 -> 0 | EA11: 0.02775653206 | EB11: =IF('Joint Aug Station Deliveries'!R11="Yes",'Joint Aug Station Deliveries'!P11,0) -> 0 | EC11: ='Joint Aug Station Deliveries'!T11 -> 0 | ED11: =IF('Joint Aug Station Deliveries'!Z11="Yes",'Joint Aug Station Deliveries'!X11,0) -> 0 | EE11: =-(ED11*0.5/100*'Distances for Transit Losses'!$C$216) -> 0 | EF11: =IF('Joint Aug Station Deliveries'!AD11="Yes",'Joint Aug Station Deliveries'!AB11,0) -> 0 | EG11: =-(EF11*0.5/100*'Distances for Transit Losses'!$C$248) -> 0 | EH11: 0 | EI11: =-(EH11*0.5/100*'Distances for Transit Losses'!$C$238) -> 0 | EJ11: no | EK11: =IF('Joint Aug Station Deliveries'!AH11="Yes",'Joint Aug Station Deliveries'!AF11,0) -> 0 | EL11: =-(EK11*0.5/100*'Distances for Transit Losses'!$C$250) -> 0 | EM11: =IF('Joint Aug Station Deliveries'!AL11="Yes",'Joint Aug Station Deliveries'!AJ11,0) -> 0 | EN11: =-(EM11*0.5/100*'Distances for Transit Losses'!$C$252) -> 0 | EO11: =IF('Joint Aug Station Deliveries'!AP11="Yes",'Joint Aug Station Deliveries'!AN11,0) -> 0 | EP11: =-(EO11*0.5/100*'Distances for Transit Losses'!$C$254) -> 0 | EQ11: =-0.25*(INDEX('GIC Credit'!$B$85:$M$116,MATCH($B$2,'GIC Credit'!$A$85:$A$116,0),MATCH($A11,'GIC Credit'!$B$85:$M$85,0))/$SP11/1.9835+FK11*'GIC Credit'!$Z$39+FL11*'GIC Credit'!$AO$39) -> -0.0001915 | ER11: -0.0001915 | ES11: ='Joint Aug Station Deliveries'!CW11 -> 0 | ET11: =-(ES11*0.5/100*'Distances for Transit Losses'!$C$244) -> 0 | EU11: ='Joint Aug Station Deliveries'!CX11 -> 0 | EV11: =-(EU11*0.5/100*'Distances for Transit Losses'!$C$246) -> 0 | EW11: 0 | EY11: no | EZ11: -0.0001915 | FA11: =-0.39*(INDEX('GIC Credit'!$B$85:$M$116,MATCH($B$2,'GIC Credit'!$A$85:$A$116,0),MATCH($A11,'GIC Credit'!$B$85:$M$85,0))/$SP11/1.9835+FK11*'GIC Credit'!$Z$39+FL11*'GIC Credit'!$AO$39) -> -0.00029874 | FB11: 0 | FC11: =-(FB11*0.5/100*('Distances for Transit Losses'!$C$220+'Distances for Transit Losses'!$C$226)) -> 0 | FD11: =IF('Joint Aug Station Deliveries'!AT11="Yes",'Joint Aug Station Deliveries'!AR11,0) -> 0 | FE11: =-(FD11*0.5/100*('Distances for Transit Losses'!$C$222+'Distances for Transit Losses'!$C$224)) -> 0 | FF11: =IF('Joint Aug Station Deliveries'!AX11="Yes",'Joint Aug Station Deliveries'!AV11,0) -> 0 | FG11: =-(FF11*0.5/100*'Distances for Transit Losses'!$C$224) -> 0 | FH11: ='Joint Aug Station Deliveries'!CY11 -> 0 | FI11: =-(FH11*0.5/100*'Distances for Transit Losses'!$C$230) -> 0 | FJ11: 0 | FK11: ='Joint Aug Station Deliveries'!DA11 -> 0 | FL11: ='Joint Aug Station Deliveries'!DB11 -> 0 | FM11: =MIN(0,EZ11)+SUM(FA11:FC11)+EB11/(1-0.5/100*('Distances for Transit Losses'!$C$256+'Distances for Transit Losses'!$C$268))+EC11/(1-0.5/100*('Distances for Transit Losses'!$C$242))+SUM(ED11:EE11)/(1-0.5/100*('Distances for Transit Losses'!$C$258+'Distances for Transit Losses'!$C$268))+SUM(EF11:EG11)/(1-0.5/100*('Distances for Transit Losses'!$C$260+'Distances for Transit Losses'!$C$268))+EH11/(1-0.5/100*('Distances for Transit Losses'!$C$242))+SUM(EK11:EL11)/(1-0.5/100*('Distances for Transit Losses'!$C$262+'Distances for Transit Losses'!$C$270))+SUM(EM11:EN11)/(1-0.5/100*('Distances for Transit Losses'!$C$264+'Distances for Transit Losses'!$C$270))+SUM(EO11:EP11)/(1-0.5/100*('Distances for Transit Losses'!$C$266+'Distances for Transit Losses'!$C$270))+SUM(FD11:FG11)/(1-0.5/100*('Distances for Transit Losses'!$C$226))+SUM(FH11:FI11) -> -0.00049024 | FN11: =-(IF(N11<99999.99999,INDEX('Hist RF to SPR'!$AF$6:$AQ$30,MATCH($B$2,'Hist RF to SPR'!$AE$6:$AE$30,0),MATCH($A11,'Hist RF to SPR'!$AF$5:$AQ$5,0))/SP11/1.9835,0)) -> 0 | FO11: =IF(N11<99999.99999,-INDEX('New Cache Credit'!$BO$109:$CA$136,MATCH($B$2,'New Cache Credit'!$BO$109:$BO$136,0),MATCH(A11,'New Cache Credit'!$BO$109:$CA$109,0))/SP11/1.9835-INDEX('New Cache Credit'!$CD$77:$CP$104,MATCH($B$2,'New Cache Credit'!$CD$77:$CD$104,0),MATCH(A11,'New Cache Credit'!$CD$77:$CP$77,0))/SP11/1.9835,0) -> 0 | FP11: =-0.36*(INDEX('GIC Credit'!$B$85:$M$116,MATCH($B$2,'GIC Credit'!$A$85:$A$116,0),MATCH($A11,'GIC Credit'!$B$85:$M$85,0))/$SP11/1.9835+FK11*'GIC Credit'!$Z$39+FL11*'GIC Credit'!$AO$39) -> -0.00027576 | FQ11: -0.00049024 | FR11: -0.000766 | FS11: 0 | FT11: =IF('Joint Aug Station Deliveries'!BB11="Yes",'Joint Aug Station Deliveries'!AZ11,0) -> 0 | FU11: =-(FT11*0.5/100*'Distances for Transit Losses'!$C$208) -> 0 | FV11: =IF('Joint Aug Station Deliveries'!BF11="Yes",'Joint Aug Station Deliveries'!BD11,0) -> 0 | FW11: =-(FV11*0.5/100*'Distances for Transit Losses'!$C$210) -> 0 | FX11: =IF('Joint Aug Station Deliveries'!BJ11,'Joint Aug Station Deliveries'!BH11,0) -> 0 | FY11: =-(FX11*0.5/100*'Distances for Transit Losses'!$C$212) -> 0 | FZ11: =IF('Joint Aug Station Deliveries'!BN11="Yes",'Joint Aug Station Deliveries'!BL11,0) -> 0 | GA11: =-(FZ11*0.5/100*'Distances for Transit Losses'!$C$200) -> 0 | GB11: =IF('Joint Aug Station Deliveries'!BR11="Yes",'Joint Aug Station Deliveries'!BP11,0) -> 0 | GC11: =-(GB11*0.5/100*'Distances for Transit Losses'!$C$206) -> 0 | GD11: =MIN(-FR11-FS11,SUM(FT11:FU11)/(1-0.5/100*('Distances for Transit Losses'!$C$274))+SUM(FV11:FW11)/(1-0.5/100*('Distances for Transit Losses'!$C$276))+SUM(FX11:FY11)+SUM(FZ11:GA11)+SUM(GB11:GC11)) -> 0 | GE11: no | GF11: 0 | GG11: 0 | GH11: 0 | GJ11: 0.000766 | GK11: 0 | GL11: =IF(AND(JS11-JT11-HV11>0,JN11="no"),MIN(-(FR11+FS11+GD11+GJ11+GK11)/(1-0.5/100*'Distances for Transit Losses'!$C$107),JS11-JT11-HV11),0) -> 0 | GM11: 0 | GN11: 0 | GO11: =-GL11*0.5/100*'Distances for Transit Losses'!$C$107 -> 0 | GP11: 0 | GQ11: =-GP11*0.5/100*'Distances for Transit Losses'!$C$125 -> 0 | GR11: =IF(AND(HZ11-IA11-JV11>0,HL11="no"),MIN(-(FR11+FS11+GD11+GJ11+GK11+GL11+GO11+GP11+GQ11)/(1-0.5/100*'Distances for Transit Losses'!$C$109),HZ11-IA11-JV11),0) -> 0 | GS11: =-GR11*0.5/100*'Distances for Transit Losses'!$C$115 -> 0 | GT11: 0 | GV11: 0 | GW11: 0 | GX11: 0 | GY11: 0.02699053206 | GZ11: 1.849635579 | HA11: =-(IF(N11<99999.99999,INDEX('Hist RF to SPR'!$Q$6:$AB$30,MATCH($B$2,'Hist RF to SPR'!$P$6:$P$30,0),MATCH($A11,'Hist RF to SPR'!$Q$5:$AB$5,0))/SP11/1.9835,0)) -> 0 | HB11: =-(IF(OR($N11<99999.99999,E11="Lower Latham",I11="Lower Latham",E11="Highland",I11="Highland",E11="Plum",I11="Plum"),(INDEX('FIDCO Credit'!$Y$48:$AJ$78,MATCH($B$2,'FIDCO Credit'!$X$48:$X$78,0),MATCH($A11,'FIDCO Credit'!$Y$47:$AJ$47,0))/$SP11)/1.9835,0)) -> 0 | HC11: =-(IF(OR($N11<99999.99999,E11="Lower Latham",I11="Lower Latham",E11="Highland",I11="Highland",E11="Plum",I11="Plum"),(INDEX('Western Credit'!$W$84:$AH$114,MATCH($B$2,'Western Credit'!$V$84:$V$114,0),MATCH($A11,'Western Credit'!$W$83:$AH$83,0))/$SP11)/1.9835+'Haren Daily Recharge'!K10*'Western Credit'!$Z$40,0)) -> 0 | HD11: 0 | HE11: 0 | HF11: 0 | HG11: =IF(AND(HM11="no",HN11="no"),MIN(-(HB11-HE11-HF11)/(1-0.5/100*'Distances for Transit Losses'!$C$95),JK11),0) -> 0 | HH11: =-HG11*0.5/100*'Distances for Transit Losses'!$C$95 -> 0 | HI11: =VLOOKUP($B11,'ECCV Haren Pond S.P. Acrtns'!$B$7:$G$306,6)/$SP11/1.9835-0.1 -> 1.571957767 | HJ11: 0 | HK11: 0 | HL11: no | HM11: no | HN11: no | HO11: 0 | HP11: 0 | HQ11: 0 | HS11: 0 | HT11: 0 | HU11: 0 | HV11: =IF(AND(JS11-JT11>0,JN11="no"),MIN(-HU11/(1-0.5/100*'Distances for Transit Losses'!$C$111),JS11-JT11),0) -> 0 | HW11: =-HV11*0.5/100*'Distances for Transit Losses'!$C$111 -> 0 | HX11: =IF(AND(JW11+JX11-JY11-KJ11>0,JN11="no"),MIN((-HU11-(HV11+HW11))/(1-0.5/100*'Distances for Transit Losses'!$C$113),JW11+JX11-JY11-KJ11),0) -> 0 | HY11: =-HX11*0.5/100*'Distances for Transit Losses'!$C$113 -> 0 | HZ11: 0 | IA11: =IF(HZ11>0,MIN(-(HU11+HV11+HW11+HX11+HY11)/(1-0.5/100*'Distances for Transit Losses'!$C$115),HZ11),0) -> 0 | IB11: =-IA11*0.5/100*'Distances for Transit Losses'!$C$115 -> 0 | IC11: 0 | IE11: 0 | IF11: ='Joint Aug Station Deliveries'!CJ11 -> 0 | IG11: =IF11*'Western Credit'!$Z$42 -> 0 | IH11: ='Joint Aug Station Deliveries'!CA11 -> 0 | II11: =IF(AND(IH11>0,SUM($IH$9:IH11,$IJ$9:IJ11,$JK$9:JK11)*1.9835<OFFSET('FIDCO Credit'!$X$39,0,MATCH($A11,'FIDCO Credit'!$Y$5:$AJ$5,0))),IH11-HE11,0) -> 0 | IJ11: ='Joint Aug Station Deliveries'!CD11 -> 0 | IK11: =IF(AND(IJ11>0,SUM($IH$9:IH11,$IJ$9:IJ11,$JK$9:JK11)*1.9835<OFFSET('FIDCO Credit'!$X$39,0,MATCH($A11,'FIDCO Credit'!$Y$5:$AJ$5,0))),IJ11-HF11,0) -> 0 | IL11: =MAX(0,(LP11+LQ11))/(1-0.5/100*'Distances for Transit Losses'!$C$83) -> 0 | IM11: =MAX(0,(LR11+LS11)/(1-0.5/100*'Distances for Transit Losses'!$C$79)) -> 0 | IN11: 0 | IO11: =-IN11*0.5/100*'Distances for Transit Losses'!$C$85 -> 0 | IP11: 0 | IQ11: 0 | IR11: =-IQ11*0.5/100*'Distances for Transit Losses'!$C$34 -> 0 | IS11: 0 | IT11: 0 | IU11: 0 | IV11: 0 | IW11: 0 | IX11: 0 | IY11: 1.849635579 | IZ11: 0 | JA11: 0.02699053206 | JB11: 0 | JC11: 0 | JD11: 0 | JE11: =-JD11*0.5/100*'Distances for Transit Losses'!$C$123 -> 0 | JF11: 0 | JG11: 1.571957767 | JH11: 0.02699053206 | JI11: 1.849635579 | JJ11: =-(IF(F11<99999.99999,INDEX('Hist RF to SPR'!$B$6:$M$30,MATCH($B$2,'Hist RF to SPR'!$A$6:$A$30,0),MATCH($A11,'Hist RF to SPR'!$B$5:$M$5,0))/SP11/1.9835,0)) -> 0 | JK11: ='Joint Aug Station Deliveries'!CG11 -> 0 | JL11: =IF(AND(JK11>0,SUM($IH$9:IH11,$IJ$9:IJ11,$JK$9:JK11)*1.9835<OFFSET('FIDCO Credit'!$X$39,0,MATCH($A11,'FIDCO Credit'!$Y$5:$AJ$5,0))),JK11-HG11,0) -> 0 | JM11: 0 | JN11: no | JO11: 0 | JP11: 0 | JQ11: 0 | JR11: 0 | JS11: 0 | JT11: =IF(JS11>0,MIN(-JR11/(1-0.5/100*'Distances for Transit Losses'!$C$117),JS11),0) -> 0 | JU11: =-JT11*0.5/100*'Distances for Transit Losses'!$C$117 -> 0 | JV11: 0 | JW11: 0 | JX11: =-JW11*0.5/100*'Distances for Transit Losses'!$C$70 -> 0 | JY11: =IF((JW11+JX11)>0,MIN((-JR11-(JT11-JU11)-JV11)/(1-0.5/100*'Distances for Transit Losses'!$C$119),(JW11+JX11)),0) -> 0 | JZ11: =-JY11*0.5/100*'Distances for Transit Losses'!$C$119 -> 0 | KA11: 0 | KC11: 0 | KD11: 1.849635579 | KE11: 0 | KF11: 0.02699053206 | KG11: 0 | KH11: 0 | KI11: 0 | KJ11: 0 | KK11: =-KJ11*0.5/100*'Distances for Transit Losses'!$C$121 -> 0 | KL11: =KE11+KG11+KH11+KI11+KJ11+KK11 -> 0 | KM11: 0.02699053206 | KN11: 1.849635579 | KO11: =-(IF(N11<99999.99999,(VLOOKUP(B11,'ECCV Upper Dpln'!$B$7:$BD$306,55))/SP11/1.9835,0)) -> 0 | KP11: =-(IF(N11<99999.99999,INDEX('Hist RF abv Milton'!$B$6:$M$30,MATCH($B$2,'Hist RF abv Milton'!$A$6:$A$30,0),MATCH($A11,'Hist RF abv Milton'!$B$5:$M$5,0))/SP11/1.9835,0)) -> 0 | KQ11: 0 | KR11: =(VLOOKUP($B11,'ECCV Beebe Pond Acrtns'!$B$7:$BI$1206,41)+VLOOKUP($B11,'ECCV Canal Acrtns'!$B$7:$AL$1206,22)+VLOOKUP($B11,'2003 Beebe Pond Acrtns'!$B$7:$BI$1206,41)+VLOOKUP($B11,'2003 Canal Acrtns'!$B$7:$AL$1206,22))/$SP11/1.9835 -> 1.065139416 | KS11: ='Barr Lake'!BV22 -> 0 | KT11: 0 | KU11: 0 | KV11: 0 | KW11: 0 | KX11: 0 | KY11: 0 | KZ11: 0 | LA11: no | LB11: 0 | LC11: 0 | LD11: 0 | LE11: 0 | LF11: 0 | LG11: 0 | LH11: 0 | LI11: 0 | LJ11: 0 | LK11: 0 | LL11: =-(LK11*0.5/100*'Distances for Transit Losses'!$C$6) -> 0 | LM11: 0 | LN11: 0 | LO11: 0 | LP11: =IF(AND(E11<>"Lower Latham",I11<>"Lower Latham"),MIN(-(LJ11+LM11),II11-II11*0.5/100*'Distances for Transit Losses'!$C$83),0) -> 0 | LQ11: =IF(AND(E11<>"Lower Latham",I11<>"Lower Latham"),MAX(0,MIN(-(LI11+LK11+LL11+LO11),II11-II11*0.5/100*'Distances for Transit Losses'!$C$83-LP11/(1-0.5/100*'Distances for Transit Losses'!$C$83))),0) -> 0 | LR11: =MIN(-(LJ11+LP11),IG11-IG11*0.5/100*'Distances for Transit Losses'!$C$79) -> 0 | LS11: =MAX(0,MIN(-(LI11+LK11+LL11+LQ11),IG11-IG11*0.5/100*'Distances for Transit Losses'!$C$79-LR11/(1-0.5/100*'Distances for Transit Losses'!$C$79))) -> 0 | LT11: =IF(GE11="no",MIN(-(MIN(0,LI11+LJ11+LK11+LL11+LQ11+LS11)),(HI11-HJ11)-(HI11-HJ11)*0.5/100*'Distances for Transit Losses'!$C$79),0) -> 0 | LU11: =MAX(0,IF(AND(HZ11-IA11-JV11-GR11>0,GE11="no"),MIN(-(LI11+LK11+LL11+LO11+LQ11+LS11+LT11)/(1-0.5/100*'Distances for Transit Losses'!$C$89),HZ11-IA11-JV11-GR11),0)) -> 0 | LV11: =-LU11*0.5/100*'Distances for Transit Losses'!$C$89 -> 0 | LY11: 0 | LZ11: 1.065139416 | MA11: 0 | MB11: 0.02775653206 | MC11: 1.849635579 | MD11: =-(IF(N11<99999.99999,INDEX('Hist RF blw Milton'!$B$6:$M$30,MATCH($B$2,'Hist RF blw Milton'!$A$6:$A$30,0),MATCH($A11,'Hist RF blw Milton'!$B$5:$M$5,0))/SP11/1.9835,0)) -> 0 | ME11: no | MF11: 0 | MG11: 0 | MH11: 0 | MI11: 0 | MJ11: 0 | MK11: 0.03 | ML11: Haren Recharge | MM11: ='Milton Lake'!DY10 -> 0 | MN11: 0 | MO11: 0 | MP11: 0.02775653206 | MQ11: 1.849635579 | MR11: =-(IF(N11<99999.99999,INDEX('Hist RF to Box Elder'!$B$6:$M$30,MATCH($B$2,'Hist RF to Box Elder'!$A$6:$A$30,0),MATCH($A11,'Hist RF to Box Elder'!$B$5:$M$5,0))/SP11/1.9835,0)) -> 0 | MS11: =(VLOOKUP($B11,'ECCV Beebe Pond Acrtns'!$B$7:$BI$1206,54)+VLOOKUP($B11,'ECCV Canal Acrtns'!$B$7:$AL$1206,34)+VLOOKUP($B11,'2003 Beebe Pond Acrtns'!$B$7:$BI$1206,54)+VLOOKUP($B11,'2003 Canal Acrtns'!$B$7:$AL$1206,34)+VLOOKUP($B11,'84CW090 Beebe Pond Acrtns'!$B$7:$BI$1206,55)+VLOOKUP($B11,'84CW090 Canal Acrtns'!$B$7:$AL$1206,34))/$SP11/1.9835 -> 0.1080499331 | MT11: 0 | MU11: 0 | MV11: 0 | MW11: 0 | MY11: -0.1502011856 | MZ11: 0 | NA11: 0.03 | NB11: 0 | NC11: 0 | ND11: 0 | NE11: 0.000766 | NF11: 0 | NG11: 0.03193008991 | NH11: 0.1764351214 | NI11: 0.2391312113 | NJ11: 0.08893002566 | NK11: 1.065139416 | NL11: 0.02699053206 | NM11: 1.849635579 | NO11: 0 | NP11: 0 | NQ11: 0 | NR11: 0 | NS11: 0 | NT11: 0 | NU11: 0 | NV11: 0 | NX11: 0 | NY11: 0 | NZ11: 0 | OA11: 0 | OB11: 0 | OC11: 0 | OD11: 0 | OE11: 0 | OF11: 0 | OG11: 0 | OH11: 0 | OI11: 0 | OK11: 0 | OL11: 0 | OM11: 0 | ON11: 0 | OO11: 0 | OP11: 0 | OQ11: 0 | OR11: 0 | OS11: 0 | OT11: 0 | OU11: 0 | OW11: 1.876626111 | OX11: 0 | OY11: 0 | OZ11: 0 | PA11: 0 | PB11: 0 | PC11: 0 | PD11: 0 | PE11: 0 | PF11: 0 | PG11: 0 | PI11: 0 | PJ11: 0 | PK11: 0 | PL11: 0 | PM11: 0 | PN11: 0 | PO11: 0 | PP11: 0 | PQ11: 0 | PR11: 0 | PS11: 0 | PT11: 0 | PU11: 0 | PW11: 0 | PX11: 0 | PY11: 0 | PZ11: 0 | QA11: 0 | QB11: 0 | QC11: 0 | QD11: 0 | QE11: 0 | QG11: 0 | QH11: 0 | QI11: 0 | QJ11: 0 | QK11: 0 | QL11: 0 | QM11: 0 | QN11: 0 | QP11: 0 | QQ11: 0 | QR11: 0 | QT11: 0 | QU11: 0 | QV11: 0 | QW11: 0 | QZ11: 0 | RA11: 0 | RB11: 0 | RC11: 0 | RD11: 0 | RE11: 0 | RF11: 0 | RH11: 0 | RI11: 0 | RJ11: 0 | RK11: =NU11+SUM(OX11:PD11)+SUM(OL11:OR11)+SUM(NY11:OF11)+SUM(PM11:PR11)+SUM(PX11:QB11)+SUM(QH11:QK11)+SUM(QZ11:RC11) -> 0 | RL11: 0 | RM11: 309.6 | RO11: 1.065139416 | RP11: 0 | RQ11: 0 | RR11: 0 | RS11: 0 | RT11: 0 | RU11: 0 | RV11: 0 | RW11: 0 | RX11: 0 | RY11: 0 | RZ11: 0 | SA11: 0 | SB11: 0 | SC11: 0 | SD11: 0 | SE11: 0 | SF11: 0 | SG11: 0 | SH11: 0 | SI11: =RO11-SUM(RP11:SH11) -> 1.065139416 | SJ11: TRUE | SK11: TRUE | SM11: 0 | SN11: 0 | SP11: =VLOOKUP(A11,'Control Sheet'!$G$9:$H$20,2) -> 30
A12: Apr | B12: 2018-04-04 | C12: Free River | F12: 99999.99999 | K12: Free River | N12: 99999.99999 | AA12: 1.876626111 | AB12: 0 | AC12: 0 | AD12: 0 | AE12: 0 | AF12: 0 | AG12: =('NFC Well Pumping'!$L10+'NFC Well Pumping'!$L47+'NFC Well Pumping'!$L83)/1.9835 -> 3.225928938 | AH12: ='88CW264(B) Pumping'!$E10/1.9835+'88CW264(B) Pumping'!$E46/1.9835+'88CW264(B) Pumping'!E86/1.9835+'88CW264(B) Pumping'!E122/1.9835+'88CW264(B) Pumping'!E162/1.9835+'88CW264(B) Pumping'!E198/1.9835 -> 0.01481193911 | AI12: 1.876626111 | AJ12: =('United No. 2 Well Pumping'!G11+'United No. 2 Well Pumping'!G47+'United No. 2 Well Pumping'!G83)/1.9835 -> 0 | AK12: =('United No. 2 Well Pumping'!F11+'United No. 2 Well Pumping'!F47+'United No. 2 Well Pumping'!F83)/1.9835 -> 0 | AL12: 0 | AN12: 3.240740877 | AO12: =AC12+AK12+'United Res'!AA174+'United Res'!AQ174+'Milliken Res'!I162 -> 0 | AP12: 100 | AQ12: =-(IF($N12=99999.99999,0,VLOOKUP($B12,'NFC Well Dplns-URF'!B$7:$AB$306,27))/$SP12/1.9835) -> 0 | AR12: 0 | AT12: =(VLOOKUP($B12,'ECCV 70R Pond Acrtns'!$B$7:$AI$1206,34)+VLOOKUP($B12,'2003 70R Pond Acrtns'!$B$7:$AI$1206,34)+VLOOKUP($B12,'ECCV 70R Canal Acrtns'!$B$7:$AI$1206,27)+VLOOKUP($B12,'2003 70R Canal Acrtns'!$B$7:$AI$1206,27))/$SP12/1.9835 -> 0 | AU12: 0 | AV12: =-(IF($N12=99999.99999,0,VLOOKUP($B12,'NFC Well Dplns-SDF'!$B$7:$Z$306,25)+VLOOKUP($B12,'NFC Well Dplns-URF'!B$7:$AB$306,20))/$SP12/1.9835) -> 0 | AW12: 0.003352812464 | AX12: 0.04 | AY12: ECCV Riverside Credits | AZ12: =-((BL12+BM12)*'Weldon Credit'!$BB$36) -> 0 | BA12: =-((BL12+BM12)*'Weldon Credit'!$BB$34) -> 0 | BB12: =-INDEX('Weldon Credit'!$AX$249:$BJ$276,MATCH($B$2,'Weldon Credit'!$AX$249:$AX$276,0),MATCH(A12,'Weldon Credit'!$AX$249:$BJ$249,0))/SP12/1.9835 -> -0.007996419995 | BC12: -0.007996419995 | BD12: =-((BL12+BM12)*'Weldon Credit'!$BB$37) -> 0 | BE12: =-((BL12+BM12)*'Weldon Credit'!$BB$35) -> 0 | BF12: =-INDEX('Weldon Credit'!$AX$281:$BJ$308,MATCH($B$2,'Weldon Credit'!$AX$281:$AX$308,0),MATCH(A12,'Weldon Credit'!$AX$281:$BJ$281,0))/SP12/1.9835 -> -0.1409485256 | BG12: -0.1409485256 | BH12: =-(BL12+BM12)*'Weldon Credit'!$BB$38 -> 0 | BI12: =0.4*(INDEX('Riverside Pond Accrtns'!$B$6:$M$36,MATCH($B$2,'Riverside Pond Accrtns'!$A$6:$A$36,0),MATCH('ECCV Daily Replacement Summary'!A12,'Riverside Pond Accrtns'!$B$5:$M$5,0))/SP12)/1.9835 -> 1.65541047 | BJ12: =(44/640)*(INDEX('Weldon Valley Accrtns (02CW377)'!$B$6:$M$30,MATCH($B$2,'Weldon Valley Accrtns (02CW377)'!$A$6:$A$30,0),MATCH(A12,'Weldon Valley Accrtns (02CW377)'!$B$5:$M$5,0))/SP12)/1.9835 -> 0.2998172422 | BK12: =(VLOOKUP($B12,'ECCV 70R Pond Acrtns'!$B$7:$AI$1206,25)+VLOOKUP($B12,'ECCV 70R Canal Acrtns'!$B$7:$AI$1206,20)+VLOOKUP($B12,'2003 70R Pond Acrtns'!$B$7:$AI$1206,25)+VLOOKUP($B12,'2003 70R Canal Acrtns'!$B$7:$AI$1206,20))/$SP12/1.9835 -> 0 | BL12: ='Joint Aug Station Deliveries'!G12 -> 0 | BM12: ='Joint Aug Station Deliveries'!H12 -> 0 | BN12: 0 | BO12: 0 | BP12: =IF(CB12="no",-MAX(0,MIN(BO12,(BM12-BL12))*(0.5/100*'Distances for Transit Losses'!$C$75)),0) -> 0 | BQ12: 0 | BR12: =MIN(-($BC12+BG12+BH12+BN12+BO12+BP12),BI12-BI12*0.5/100*'Distances for Transit Losses'!$C$77) -> 0.1489449456 | BS12: 0 | BT12: =MIN(-($BC12+BG12+BH12+BN12+BO12+BP12+BR12+BS12),BK12-BK12*0.5/100*'Distances for Transit Losses'!$C$77) -> 0 | BU12: =-((BR12+BT12)*(0.5/100*'Distances for Transit Losses'!$C$77)) -> -0.01586263671 | BV12: =IF(AND(JS12-JT12-GL12-DU12>0,JN12="no"),MIN(-(BC12+BG12+BH12+BN12+BO12+BP12+BR12+BS12+BT12+BU12)/(1-0.5/100*'Distances for Transit Losses'!$C$99),JS12-JT12-GL12-DU12),0) -> 0 | BW12: =--BV12*0.5/100*'Distances for Transit Losses'!C$99 -> 0 | BX12: =IF(AND(HZ12-IA12-JV12-GR12-LU12-DY12>0,GE12="no"),MIN(-(BC12+BG12+BH12+BN12+BO12+BP12+BR12+BS12+BT12+BU12+BV12+BW12)/(1-0.5/100*'Distances for Transit Losses'!$C$101),HZ12-IA12-JV12-GR12-LU12-DY12),0) -> 0 | BY12: =--BX12*0.5/100*'Distances for Transit Losses'!$C$101 -> 0 | BZ12: 0 | CB12: no | CC12: no | CD12: no | CE12: 0 | CF12: 0 | CG12: 0 | CI12: =IF($CD12="No",MIN(IF(-DP12<0,0,-DP12),BI12-BR12/(1-0.5/100*'Distances for Transit Losses'!$C$77)),0) -> 0 | CJ12: =IF($CD12="No",IF(MIN(-DP12+CI12,BK12-BT12/(1-0.5/100*'Distances for Transit Losses'!$C$77))<0,0,MIN(-DP12+CI12,BK12-BT12/(1-0.5/100*'Distances for Transit Losses'!$C$77))),0) -> 0 | CK12: 0 | CL12: 0 | CM12: 0 | CN12: 1.809635579 | CO12: 1.849635579 | CP12: =-(IF($N12=99999.99999,0,VLOOKUP($B12,'NFC Well Dplns-SDF'!$B$7:$Z$306,16)+VLOOKUP($B12,'NFC Well Dplns-URF'!$B$7:$AB$306,13))/$SP12/1.9835) -> 0 | CQ12: =-(IF($N12>=99999,0,'88CW264(B) Pumping'!$E10/1.9835)+IF($N12>=99999,0,'88CW264(B) Pumping'!$E46/1.9835)+IF($N12>=99999,0,'88CW264(B) Pumping'!$E86/1.9835)+IF($N12>=99999,0,'88CW264(B) Pumping'!$E122/1.9835)+IF($N12>=51134.50919,0,'88CW264(B) Pumping'!$E162/1.9835)+IF($N12>=53406,0,'88CW264(B) Pumping'!$E198/1.9835)) -> 0 | CR12: 0 | CS12: 0.03193008991 | CV12: =-(IF($N12=99999.99999,0,VLOOKUP($B12,'United No. 2 Dplns'!$B$7:$X$676,13)/1.9835)) -> 0 | CW12: =CV12+(-(INDEX('Pre 1995 Net Accretions'!$B$6:$M$105,MATCH($B$2,'Pre 1995 Net Accretions'!$A$6:$A$105,0),MATCH($A12,'Pre 1995 Net Accretions'!$B$5:$M$5,0))/$SP12/1.9835)) -> 0.02775653206 | CX12: =-(IF(N12<99999.99999,(INDEX('70 Ranch RF Obligation'!$B$6:$M$36,MATCH($B$2,'70 Ranch RF Obligation'!$A$6:$A$36,0),MATCH('ECCV Daily Replacement Summary'!A12,'70 Ranch RF Obligation'!$B$5:$M$5,0))/SP12)/1.9835,0))-DA12*(1-'L. Latham Credit'!$E$41) -> 0 | CY12: 0 | CZ12: =(VLOOKUP($B12,'ECCV 70R Pond Acrtns'!$B$7:$AI$1206,16)+VLOOKUP($B12,'ECCV 70R Canal Acrtns'!$B$7:$AI$1206,13)+VLOOKUP($B12,'2003 70R Pond Acrtns'!$B$7:$AI$1206,16)+VLOOKUP($B12,'2003 70R Canal Acrtns'!$B$7:$AI$1206,13))/$SP12/1.9835 -> 0 | DA12: ='Joint Aug Station Deliveries'!DE12 -> 0 | DB12: 0 | DC12: 0 | DD12: ='Joint Aug Station Deliveries'!DH12 -> 0 | DE12: 0 | DF12: 0 | DI12: 0.02775653206 | DJ12: 0 | DK12: 0 | DL12: =-DK12*0.5/100*'Distances for Transit Losses'!$C$48 -> 0 | DM12: 0 | DN12: 0 | DO12: 0 | DP12: 0.03193008991 | DQ12: 0 | DR12: 0 | DS12: 0 | DT12: =('NFC Well Pumping'!I10+'NFC Well Pumping'!I47+'NFC Well Pumping'!I83)/1.9835 -> 0 | DU12: =IF(AND(JS12-JT12-GL12>0,JN12="no"),MIN(-SUM(DP12:DT12)/(1-0.5/100*'Distances for Transit Losses'!$C$103),JS12-JT12-GL12),0) -> 0 | DV12: =-DU12*0.5/100*'Distances for Transit Losses'!C$103 -> 0 | DW12: 0 | DX12: =-DW12*0.5/100*'Distances for Transit Losses'!$C$127 -> 0 | DY12: =IF(AND(HZ12-IA12-JV12-GR12-LU12>0,GE12="no"),MIN(-SUM(DP12:DX12)/(1-0.5/100*'Distances for Transit Losses'!$C$105),HZ12-IA12-JV12-GR12-LU12),0) -> 0 | DZ12: =--DY12*0.5/100*'Distances for Transit Losses'!$C$105 -> 0 | EA12: 0.02775653206 | EB12: =IF('Joint Aug Station Deliveries'!R12="Yes",'Joint Aug Station Deliveries'!P12,0) -> 0 | EC12: ='Joint Aug Station Deliveries'!T12 -> 0 | ED12: =IF('Joint Aug Station Deliveries'!Z12="Yes",'Joint Aug Station Deliveries'!X12,0) -> 0 | EE12: =-(ED12*0.5/100*'Distances for Transit Losses'!$C$216) -> 0 | EF12: =IF('Joint Aug Station Deliveries'!AD12="Yes",'Joint Aug Station Deliveries'!AB12,0) -> 0 | EG12: =-(EF12*0.5/100*'Distances for Transit Losses'!$C$248) -> 0 | EH12: 0 | EI12: =-(EH12*0.5/100*'Distances for Transit Losses'!$C$238) -> 0 | EJ12: no | EK12: =IF('Joint Aug Station Deliveries'!AH12="Yes",'Joint Aug Station Deliveries'!AF12,0) -> 0 | EL12: =-(EK12*0.5/100*'Distances for Transit Losses'!$C$250) -> 0 | EM12: =IF('Joint Aug Station Deliveries'!AL12="Yes",'Joint Aug Station Deliveries'!AJ12,0) -> 0 | EN12: =-(EM12*0.5/100*'Distances for Transit Losses'!$C$252) -> 0 | EO12: =IF('Joint Aug Station Deliveries'!AP12="Yes",'Joint Aug Station Deliveries'!AN12,0) -> 0 | EP12: =-(EO12*0.5/100*'Distances for Transit Losses'!$C$254) -> 0 | EQ12: =-0.25*(INDEX('GIC Credit'!$B$85:$M$116,MATCH($B$2,'GIC Credit'!$A$85:$A$116,0),MATCH($A12,'GIC Credit'!$B$85:$M$85,0))/$SP12/1.9835+FK12*'GIC Credit'!$Z$39+FL12*'GIC Credit'!$AO$39) -> -0.0001915 | ER12: -0.0001915 | ES12: ='Joint Aug Station Deliveries'!CW12 -> 0 | ET12: =-(ES12*0.5/100*'Distances for Transit Losses'!$C$244) -> 0 | EU12: ='Joint Aug Station Deliveries'!CX12 -> 0 | EV12: =-(EU12*0.5/100*'Distances for Transit Losses'!$C$246) -> 0 | EW12: 0 | EY12: no | EZ12: -0.0001915 | FA12: =-0.39*(INDEX('GIC Credit'!$B$85:$M$116,MATCH($B$2,'GIC Credit'!$A$85:$A$116,0),MATCH($A12,'GIC Credit'!$B$85:$M$85,0))/$SP12/1.9835+FK12*'GIC Credit'!$Z$39+FL12*'GIC Credit'!$AO$39) -> -0.00029874 | FB12: 0 | FC12: =-(FB12*0.5/100*('Distances for Transit Losses'!$C$220+'Distances for Transit Losses'!$C$226)) -> 0 | FD12: =IF('Joint Aug Station Deliveries'!AT12="Yes",'Joint Aug Station Deliveries'!AR12,0) -> 0 | FE12: =-(FD12*0.5/100*('Distances for Transit Losses'!$C$222+'Distances for Transit Losses'!$C$224)) -> 0 | FF12: =IF('Joint Aug Station Deliveries'!AX12="Yes",'Joint Aug Station Deliveries'!AV12,0) -> 0 | FG12: =-(FF12*0.5/100*'Distances for Transit Losses'!$C$224) -> 0 | FH12: ='Joint Aug Station Deliveries'!CY12 -> 0 | FI12: =-(FH12*0.5/100*'Distances for Transit Losses'!$C$230) -> 0 | FJ12: 0 | FK12: ='Joint Aug Station Deliveries'!DA12 -> 0 | FL12: ='Joint Aug Station Deliveries'!DB12 -> 0 | FM12: =MIN(0,EZ12)+SUM(FA12:FC12)+EB12/(1-0.5/100*('Distances for Transit Losses'!$C$256+'Distances for Transit Losses'!$C$268))+EC12/(1-0.5/100*('Distances for Transit Losses'!$C$242))+SUM(ED12:EE12)/(1-0.5/100*('Distances for Transit Losses'!$C$258+'Distances for Transit Losses'!$C$268))+SUM(EF12:EG12)/(1-0.5/100*('Distances for Transit Losses'!$C$260+'Distances for Transit Losses'!$C$268))+EH12/(1-0.5/100*('Distances for Transit Losses'!$C$242))+SUM(EK12:EL12)/(1-0.5/100*('Distances for Transit Losses'!$C$262+'Distances for Transit Losses'!$C$270))+SUM(EM12:EN12)/(1-0.5/100*('Distances for Transit Losses'!$C$264+'Distances for Transit Losses'!$C$270))+SUM(EO12:EP12)/(1-0.5/100*('Distances for Transit Losses'!$C$266+'Distances for Transit Losses'!$C$270))+SUM(FD12:FG12)/(1-0.5/100*('Distances for Transit Losses'!$C$226))+SUM(FH12:FI12) -> -0.00049024 | FN12: =-(IF(N12<99999.99999,INDEX('Hist RF to SPR'!$AF$6:$AQ$30,MATCH($B$2,'Hist RF to SPR'!$AE$6:$AE$30,0),MATCH($A12,'Hist RF to SPR'!$AF$5:$AQ$5,0))/SP12/1.9835,0)) -> 0 | FO12: =IF(N12<99999.99999,-INDEX('New Cache Credit'!$BO$109:$CA$136,MATCH($B$2,'New Cache Credit'!$BO$109:$BO$136,0),MATCH(A12,'New Cache Credit'!$BO$109:$CA$109,0))/SP12/1.9835-INDEX('New Cache Credit'!$CD$77:$CP$104,MATCH($B$2,'New Cache Credit'!$CD$77:$CD$104,0),MATCH(A12,'New Cache Credit'!$CD$77:$CP$77,0))/SP12/1.9835,0) -> 0 | FP12: =-0.36*(INDEX('GIC Credit'!$B$85:$M$116,MATCH($B$2,'GIC Credit'!$A$85:$A$116,0),MATCH($A12,'GIC Credit'!$B$85:$M$85,0))/$SP12/1.9835+FK12*'GIC Credit'!$Z$39+FL12*'GIC Credit'!$AO$39) -> -0.00027576 | FQ12: -0.00049024 | FR12: -0.000766 | FS12: 0 | FT12: =IF('Joint Aug Station Deliveries'!BB12="Yes",'Joint Aug Station Deliveries'!AZ12,0) -> 0 | FU12: =-(FT12*0.5/100*'Distances for Transit Losses'!$C$208) -> 0 | FV12: =IF('Joint Aug Station Deliveries'!BF12="Yes",'Joint Aug Station Deliveries'!BD12,0) -> 0 | FW12: =-(FV12*0.5/100*'Distances for Transit Losses'!$C$210) -> 0 | FX12: =IF('Joint Aug Station Deliveries'!BJ12,'Joint Aug Station Deliveries'!BH12,0) -> 0 | FY12: =-(FX12*0.5/100*'Distances for Transit Losses'!$C$212) -> 0 | FZ12: =IF('Joint Aug Station Deliveries'!BN12="Yes",'Joint Aug Station Deliveries'!BL12,0) -> 0 | GA12: =-(FZ12*0.5/100*'Distances for Transit Losses'!$C$200) -> 0 | GB12: =IF('Joint Aug Station Deliveries'!BR12="Yes",'Joint Aug Station Deliveries'!BP12,0) -> 0 | GC12: =-(GB12*0.5/100*'Distances for Transit Losses'!$C$206) -> 0 | GD12: =MIN(-FR12-FS12,SUM(FT12:FU12)/(1-0.5/100*('Distances for Transit Losses'!$C$274))+SUM(FV12:FW12)/(1-0.5/100*('Distances for Transit Losses'!$C$276))+SUM(FX12:FY12)+SUM(FZ12:GA12)+SUM(GB12:GC12)) -> 0 | GE12: no | GF12: 0 | GG12: 0 | GH12: 0 | GJ12: 0.000766 | GK12: 0 | GL12: =IF(AND(JS12-JT12-HV12>0,JN12="no"),MIN(-(FR12+FS12+GD12+GJ12+GK12)/(1-0.5/100*'Distances for Transit Losses'!$C$107),JS12-JT12-HV12),0) -> 0 | GM12: 0 | GN12: 0 | GO12: =-GL12*0.5/100*'Distances for Transit Losses'!$C$107 -> 0 | GP12: 0 | GQ12: =-GP12*0.5/100*'Distances for Transit Losses'!$C$125 -> 0 | GR12: =IF(AND(HZ12-IA12-JV12>0,HL12="no"),MIN(-(FR12+FS12+GD12+GJ12+GK12+GL12+GO12+GP12+GQ12)/(1-0.5/100*'Distances for Transit Losses'!$C$109),HZ12-IA12-JV12),0) -> 0 | GS12: =-GR12*0.5/100*'Distances for Transit Losses'!$C$115 -> 0 | GT12: 0 | GV12: 0 | GW12: 0 | GX12: 0 | GY12: 0.02699053206 | GZ12: 1.849635579 | HA12: =-(IF(N12<99999.99999,INDEX('Hist RF to SPR'!$Q$6:$AB$30,MATCH($B$2,'Hist RF to SPR'!$P$6:$P$30,0),MATCH($A12,'Hist RF to SPR'!$Q$5:$AB$5,0))/SP12/1.9835,0)) -> 0 | HB12: =-(IF(OR($N12<99999.99999,E12="Lower Latham",I12="Lower Latham",E12="Highland",I12="Highland",E12="Plum",I12="Plum"),(INDEX('FIDCO Credit'!$Y$48:$AJ$78,MATCH($B$2,'FIDCO Credit'!$X$48:$X$78,0),MATCH($A12,'FIDCO Credit'!$Y$47:$AJ$47,0))/$SP12)/1.9835,0)) -> 0 | HC12: =-(IF(OR($N12<99999.99999,E12="Lower Latham",I12="Lower Latham",E12="Highland",I12="Highland",E12="Plum",I12="Plum"),(INDEX('Western Credit'!$W$84:$AH$114,MATCH($B$2,'Western Credit'!$V$84:$V$114,0),MATCH($A12,'Western Credit'!$W$83:$AH$83,0))/$SP12)/1.9835+'Haren Daily Recharge'!K11*'Western Credit'!$Z$40,0)) -> 0 | HD12: 0 | HE12: 0 | HF12: 0 | HG12: =IF(AND(HM12="no",HN12="no"),MIN(-(HB12-HE12-HF12)/(1-0.5/100*'Distances for Transit Losses'!$C$95),JK12),0) -> 0 | HH12: =-HG12*0.5/100*'Distances for Transit Losses'!$C$95 -> 0 | HI12: =VLOOKUP($B12,'ECCV Haren Pond S.P. Acrtns'!$B$7:$G$306,6)/$SP12/1.9835-0.1 -> 1.571957767 | HJ12: 0 | HK12: 0 | HL12: no | HM12: no | HN12: no | HO12: 0 | HP12: 0 | HQ12: 0 | HS12: 0 | HT12: 0 | HU12: 0 | HV12: =IF(AND(JS12-JT12>0,JN12="no"),MIN(-HU12/(1-0.5/100*'Distances for Transit Losses'!$C$111),JS12-JT12),0) -> 0 | HW12: =-HV12*0.5/100*'Distances for Transit Losses'!$C$111 -> 0 | HX12: =IF(AND(JW12+JX12-JY12-KJ12>0,JN12="no"),MIN((-HU12-(HV12+HW12))/(1-0.5/100*'Distances for Transit Losses'!$C$113),JW12+JX12-JY12-KJ12),0) -> 0 | HY12: =-HX12*0.5/100*'Distances for Transit Losses'!$C$113 -> 0 | HZ12: 0 | IA12: =IF(HZ12>0,MIN(-(HU12+HV12+HW12+HX12+HY12)/(1-0.5/100*'Distances for Transit Losses'!$C$115),HZ12),0) -> 0 | IB12: =-IA12*0.5/100*'Distances for Transit Losses'!$C$115 -> 0 | IC12: 0 | IE12: 0 | IF12: ='Joint Aug Station Deliveries'!CJ12 -> 0 | IG12: =IF12*'Western Credit'!$Z$42 -> 0 | IH12: ='Joint Aug Station Deliveries'!CA12 -> 0 | II12: =IF(AND(IH12>0,SUM($IH$9:IH12,$IJ$9:IJ12,$JK$9:JK12)*1.9835<OFFSET('FIDCO Credit'!$X$39,0,MATCH($A12,'FIDCO Credit'!$Y$5:$AJ$5,0))),IH12-HE12,0) -> 0 | IJ12: ='Joint Aug Station Deliveries'!CD12 -> 0 | IK12: =IF(AND(IJ12>0,SUM($IH$9:IH12,$IJ$9:IJ12,$JK$9:JK12)*1.9835<OFFSET('FIDCO Credit'!$X$39,0,MATCH($A12,'FIDCO Credit'!$Y$5:$AJ$5,0))),IJ12-HF12,0) -> 0 | IL12: =MAX(0,(LP12+LQ12))/(1-0.5/100*'Distances for Transit Losses'!$C$83) -> 0 | IM12: =MAX(0,(LR12+LS12)/(1-0.5/100*'Distances for Transit Losses'!$C$79)) -> 0 | IN12: 0 | IO12: =-IN12*0.5/100*'Distances for Transit Losses'!$C$85 -> 0 | IP12: 0 | IQ12: 0 | IR12: =-IQ12*0.5/100*'Distances for Transit Losses'!$C$34 -> 0 | IS12: 0 | IT12: 0 | IU12: 0 | IV12: 0 | IW12: 0 | IX12: 0 | IY12: 1.849635579 | IZ12: 0 | JA12: 0.02699053206 | JB12: 0 | JC12: 0 | JD12: 0 | JE12: =-JD12*0.5/100*'Distances for Transit Losses'!$C$123 -> 0 | JF12: 0 | JG12: 1.571957767 | JH12: 0.02699053206 | JI12: 1.849635579 | JJ12: =-(IF(F12<99999.99999,INDEX('Hist RF to SPR'!$B$6:$M$30,MATCH($B$2,'Hist RF to SPR'!$A$6:$A$30,0),MATCH($A12,'Hist RF to SPR'!$B$5:$M$5,0))/SP12/1.9835,0)) -> 0 | JK12: ='Joint Aug Station Deliveries'!CG12 -> 0 | JL12: =IF(AND(JK12>0,SUM($IH$9:IH12,$IJ$9:IJ12,$JK$9:JK12)*1.9835<OFFSET('FIDCO Credit'!$X$39,0,MATCH($A12,'FIDCO Credit'!$Y$5:$AJ$5,0))),JK12-HG12,0) -> 0 | JM12: 0 | JN12: no | JO12: 0 | JP12: 0 | JQ12: 0 | JR12: 0 | JS12: 0 | JT12: =IF(JS12>0,MIN(-JR12/(1-0.5/100*'Distances for Transit Losses'!$C$117),JS12),0) -> 0 | JU12: =-JT12*0.5/100*'Distances for Transit Losses'!$C$117 -> 0 | JV12: 0 | JW12: 0 | JX12: =-JW12*0.5/100*'Distances for Transit Losses'!$C$70 -> 0 | JY12: =IF((JW12+JX12)>0,MIN((-JR12-(JT12-JU12)-JV12)/(1-0.5/100*'Distances for Transit Losses'!$C$119),(JW12+JX12)),0) -> 0 | JZ12: =-JY12*0.5/100*'Distances for Transit Losses'!$C$119 -> 0 | KA12: 0 | KC12: 0 | KD12: 1.849635579 | KE12: 0 | KF12: 0.02699053206 | KG12: 0 | KH12: 0 | KI12: 0 | KJ12: 0 | KK12: =-KJ12*0.5/100*'Distances for Transit Losses'!$C$121 -> 0 | KL12: 0 | KM12: 0.02699053206 | KN12: 1.849635579 | KO12: =-(IF(N12<99999.99999,(VLOOKUP(B12,'ECCV Upper Dpln'!$B$7:$BD$306,55))/SP12/1.9835,0)) -> 0 | KP12: =-(IF(N12<99999.99999,INDEX('Hist RF abv Milton'!$B$6:$M$30,MATCH($B$2,'Hist RF abv Milton'!$A$6:$A$30,0),MATCH($A12,'Hist RF abv Milton'!$B$5:$M$5,0))/SP12/1.9835,0)) -> 0 | KQ12: 0 | KR12: =(VLOOKUP($B12,'ECCV Beebe Pond Acrtns'!$B$7:$BI$1206,41)+VLOOKUP($B12,'ECCV Canal Acrtns'!$B$7:$AL$1206,22)+VLOOKUP($B12,'2003 Beebe Pond Acrtns'!$B$7:$BI$1206,41)+VLOOKUP($B12,'2003 Canal Acrtns'!$B$7:$AL$1206,22))/$SP12/1.9835 -> 1.065139416 | KS12: ='Barr Lake'!BV23 -> 0 | KT12: 0 | KU12: 0 | KV12: 0 | KW12: 0 | KX12: 0 | KY12: 0 | KZ12: 0 | LA12: no | LB12: 0 | LC12: 0 | LD12: 0 | LE12: 0 | LF12: 0 | LG12: 0 | LH12: 0 | LI12: 0 | LJ12: 0 | LK12: 0 | LL12: =-(LK12*0.5/100*'Distances for Transit Losses'!$C$6) -> 0 | LM12: 0 | LN12: 0 | LO12: 0 | LP12: =IF(AND(E12<>"Lower Latham",I12<>"Lower Latham"),MIN(-(LJ12+LM12),II12-II12*0.5/100*'Distances for Transit Losses'!$C$83),0) -> 0 | LQ12: =IF(AND(E12<>"Lower Latham",I12<>"Lower Latham"),MAX(0,MIN(-(LI12+LK12+LL12+LO12),II12-II12*0.5/100*'Distances for Transit Losses'!$C$83-LP12/(1-0.5/100*'Distances for Transit Losses'!$C$83))),0) -> 0 | LR12: =MIN(-(LJ12+LP12),IG12-IG12*0.5/100*'Distances for Transit Losses'!$C$79) -> 0 | LS12: =MAX(0,MIN(-(LI12+LK12+LL12+LQ12),IG12-IG12*0.5/100*'Distances for Transit Losses'!$C$79-LR12/(1-0.5/100*'Distances for Transit Losses'!$C$79))) -> 0 | LT12: =IF(GE12="no",MIN(-(MIN(0,LI12+LJ12+LK12+LL12+LQ12+LS12)),(HI12-HJ12)-(HI12-HJ12)*0.5/100*'Distances for Transit Losses'!$C$79),0) -> 0 | LU12: =MAX(0,IF(AND(HZ12-IA12-JV12-GR12>0,GE12="no"),MIN(-(LI12+LK12+LL12+LO12+LQ12+LS12+LT12)/(1-0.5/100*'Distances for Transit Losses'!$C$89),HZ12-IA12-JV12-GR12),0)) -> 0 | LV12: =-LU12*0.5/100*'Distances for Transit Losses'!$C$89 -> 0 | LY12: 0 | LZ12: 1.065139416 | MA12: 0 | MB12: 0.02775653206 | MC12: 1.849635579 | MD12: =-(IF(N12<99999.99999,INDEX('Hist RF blw Milton'!$B$6:$M$30,MATCH($B$2,'Hist RF blw Milton'!$A$6:$A$30,0),MATCH($A12,'Hist RF blw Milton'!$B$5:$M$5,0))/SP12/1.9835,0)) -> 0 | ME12: no | MF12: 0 | MG12: 0 | MH12: 0 | MI12: 0 | MJ12: 0 | MK12: 0.03 | ML12: Haren Recharge | MM12: ='Milton Lake'!DY11 -> 0 | MN12: 0 | MO12: 0 | MP12: 0.02775653206 | MQ12: 1.849635579 | MR12: =-(IF(N12<99999.99999,INDEX('Hist RF to Box Elder'!$B$6:$M$30,MATCH($B$2,'Hist RF to Box Elder'!$A$6:$A$30,0),MATCH($A12,'Hist RF to Box Elder'!$B$5:$M$5,0))/SP12/1.9835,0)) -> 0 | MS12: =(VLOOKUP($B12,'ECCV Beebe Pond Acrtns'!$B$7:$BI$1206,54)+VLOOKUP($B12,'ECCV Canal Acrtns'!$B$7:$AL$1206,34)+VLOOKUP($B12,'2003 Beebe Pond Acrtns'!$B$7:$BI$1206,54)+VLOOKUP($B12,'2003 Canal Acrtns'!$B$7:$AL$1206,34)+VLOOKUP($B12,'84CW090 Beebe Pond Acrtns'!$B$7:$BI$1206,55)+VLOOKUP($B12,'84CW090 Canal Acrtns'!$B$7:$AL$1206,34))/$SP12/1.9835 -> 0.1080499331 | MT12: 0 | MU12: 0 | MV12: 0 | MW12: 0 | MY12: -0.1502011856 | MZ12: 0 | NA12: 0.03 | NB12: 0 | NC12: 0 | ND12: 0 | NE12: 0.000766 | NF12: 0 | NG12: 0.03193008991 | NH12: 0.1764351214 | NI12: 0.2391312113 | NJ12: 0.08893002566 | NK12: 1.065139416 | NL12: 0.02699053206 | NM12: 1.849635579 | NO12: 0 | NP12: 0 | NQ12: 0 | NR12: 0 | NS12: 0 | NT12: 0 | NU12: 0 | NV12: 0 | NX12: 0 | NY12: 0 | NZ12: 0 | OA12: 0 | OB12: 0 | OC12: 0 | OD12: 0 | OE12: 0 | OF12: 0 | OG12: 0 | OH12: 0 | OI12: 0 | OK12: 0 | OL12: 0 | OM12: 0 | ON12: 0 | OO12: 0 | OP12: 0 | OQ12: 0 | OR12: 0 | OS12: 0 | OT12: 0 | OU12: 0 | OW12: 1.876626111 | OX12: 0 | OY12: 0 | OZ12: 0 | PA12: 0 | PB12: 0 | PC12: 0 | PD12: 0 | PE12: 0 | PF12: 0 | PG12: 0 | PI12: 0 | PJ12: 0 | PK12: 0 | PL12: 0 | PM12: 0 | PN12: 0 | PO12: 0 | PP12: 0 | PQ12: 0 | PR12: 0 | PS12: 0 | PT12: 0 | PU12: 0 | PW12: 0 | PX12: 0 | PY12: 0 | PZ12: 0 | QA12: 0 | QB12: 0 | QC12: 0 | QD12: 0 | QE12: 0 | QG12: 0 | QH12: 0 | QI12: 0 | QJ12: 0 | QK12: 0 | QL12: 0 | QM12: 0 | QN12: 0 | QP12: 0 | QQ12: 0 | QR12: 0 | QT12: 0 | QU12: 0 | QV12: 0 | QW12: 0 | QZ12: 0 | RA12: 0 | RB12: 0 | RC12: 0 | RD12: 0 | RE12: 0 | RF12: 0 | RH12: 0 | RI12: 0 | RJ12: 0 | RK12: 0 | RL12: 0 | RM12: 309.6 | RO12: 1.065139416 | RP12: 0 | RQ12: 0 | RR12: 0 | RS12: 0 | RT12: 0 | RU12: 0 | RV12: 0 | RW12: 0 | RX12: 0 | RY12: 0 | RZ12: 0 | SA12: 0 | SB12: 0 | SC12: 0 | SD12: 0 | SE12: 0 | SF12: 0 | SG12: 0 | SH12: 0 | SI12: 1.065139416 | SJ12: TRUE | SK12: TRUE | SM12: 0 | SN12: 0 | SP12: =VLOOKUP(A12,'Control Sheet'!$G$9:$H$20,2) -> 30
A13: Apr | B13: 2018-04-05 | C13: Free River | F13: 99999.99999 | K13: Free River | N13: 99999.99999 | AA13: 1.876626111 | AB13: 0 | AC13: 0 | AD13: 0 | AE13: 0 | AF13: 0 | AG13: =('NFC Well Pumping'!$L11+'NFC Well Pumping'!$L48+'NFC Well Pumping'!$L84)/1.9835 -> 3.218192897 | AH13: ='88CW264(B) Pumping'!$E11/1.9835+'88CW264(B) Pumping'!$E47/1.9835+'88CW264(B) Pumping'!E87/1.9835+'88CW264(B) Pumping'!E123/1.9835+'88CW264(B) Pumping'!E163/1.9835+'88CW264(B) Pumping'!E199/1.9835 -> 0.01481193911 | AI13: 1.876626111 | AJ13: =('United No. 2 Well Pumping'!G12+'United No. 2 Well Pumping'!G48+'United No. 2 Well Pumping'!G84)/1.9835 -> 0 | AK13: =('United No. 2 Well Pumping'!F12+'United No. 2 Well Pumping'!F48+'United No. 2 Well Pumping'!F84)/1.9835 -> 0 | AL13: 0 | AN13: 3.233004837 | AO13: =AC13+AK13+'United Res'!AA175+'United Res'!AQ175+'Milliken Res'!I163 -> 0 | AP13: 100 | AQ13: =-(IF($N13=99999.99999,0,VLOOKUP($B13,'NFC Well Dplns-URF'!B$7:$AB$306,27))/$SP13/1.9835) -> 0 | AR13: 0 | AT13: =(VLOOKUP($B13,'ECCV 70R Pond Acrtns'!$B$7:$AI$1206,34)+VLOOKUP($B13,'2003 70R Pond Acrtns'!$B$7:$AI$1206,34)+VLOOKUP($B13,'ECCV 70R Canal Acrtns'!$B$7:$AI$1206,27)+VLOOKUP($B13,'2003 70R Canal Acrtns'!$B$7:$AI$1206,27))/$SP13/1.9835 -> 0 | AU13: 0 | AV13: =-(IF($N13=99999.99999,0,VLOOKUP($B13,'NFC Well Dplns-SDF'!$B$7:$Z$306,25)+VLOOKUP($B13,'NFC Well Dplns-URF'!B$7:$AB$306,20))/$SP13/1.9835) -> 0 | AW13: 0.003352812464 | AX13: 0.04 | AY13: ECCV Riverside Credits | AZ13: =-((BL13+BM13)*'Weldon Credit'!$BB$36) -> 0 | BA13: =-((BL13+BM13)*'Weldon Credit'!$BB$34) -> 0 | BB13: =-INDEX('Weldon Credit'!$AX$249:$BJ$276,MATCH($B$2,'Weldon Credit'!$AX$249:$AX$276,0),MATCH(A13,'Weldon Credit'!$AX$249:$BJ$249,0))/SP13/1.9835 -> -0.007996419995 | BC13: -0.007996419995 | BD13: =-((BL13+BM13)*'Weldon Credit'!$BB$37) -> 0 | BE13: =-((BL13+BM13)*'Weldon Credit'!$BB$35) -> 0 | BF13: =-INDEX('Weldon Credit'!$AX$281:$BJ$308,MATCH($B$2,'Weldon Credit'!$AX$281:$AX$308,0),MATCH(A13,'Weldon Credit'!$AX$281:$BJ$281,0))/SP13/1.9835 -> -0.1409485256 | BG13: -0.1409485256 | BH13: =-(BL13+BM13)*'Weldon Credit'!$BB$38 -> 0 | BI13: =0.4*(INDEX('Riverside Pond Accrtns'!$B$6:$M$36,MATCH($B$2,'Riverside Pond Accrtns'!$A$6:$A$36,0),MATCH('ECCV Daily Replacement Summary'!A13,'Riverside Pond Accrtns'!$B$5:$M$5,0))/SP13)/1.9835 -> 1.65541047 | BJ13: =(44/640)*(INDEX('Weldon Valley Accrtns (02CW377)'!$B$6:$M$30,MATCH($B$2,'Weldon Valley Accrtns (02CW377)'!$A$6:$A$30,0),MATCH(A13,'Weldon Valley Accrtns (02CW377)'!$B$5:$M$5,0))/SP13)/1.9835 -> 0.2998172422 | BK13: =(VLOOKUP($B13,'ECCV 70R Pond Acrtns'!$B$7:$AI$1206,25)+VLOOKUP($B13,'ECCV 70R Canal Acrtns'!$B$7:$AI$1206,20)+VLOOKUP($B13,'2003 70R Pond Acrtns'!$B$7:$AI$1206,25)+VLOOKUP($B13,'2003 70R Canal Acrtns'!$B$7:$AI$1206,20))/$SP13/1.9835 -> 0 | BL13: ='Joint Aug Station Deliveries'!G13 -> 0 | BM13: ='Joint Aug Station Deliveries'!H13 -> 0 | BN13: 0 | BO13: 0 | BP13: =IF(CB13="no",-MAX(0,MIN(BO13,(BM13-BL13))*(0.5/100*'Distances for Transit Losses'!$C$75)),0) -> 0 | BQ13: 0 | BR13: =MIN(-($BC13+BG13+BH13+BN13+BO13+BP13),BI13-BI13*0.5/100*'Distances for Transit Losses'!$C$77) -> 0.1489449456 | BS13: 0 | BT13: =MIN(-($BC13+BG13+BH13+BN13+BO13+BP13+BR13+BS13),BK13-BK13*0.5/100*'Distances for Transit Losses'!$C$77) -> 0 | BU13: =-((BR13+BT13)*(0.5/100*'Distances for Transit Losses'!$C$77)) -> -0.01586263671 | BV13: =IF(AND(JS13-JT13-GL13-DU13>0,JN13="no"),MIN(-(BC13+BG13+BH13+BN13+BO13+BP13+BR13+BS13+BT13+BU13)/(1-0.5/100*'Distances for Transit Losses'!$C$99),JS13-JT13-GL13-DU13),0) -> 0 | BW13: =--BV13*0.5/100*'Distances for Transit Losses'!C$99 -> 0 | BX13: =IF(AND(HZ13-IA13-JV13-GR13-LU13-DY13>0,GE13="no"),MIN(-(BC13+BG13+BH13+BN13+BO13+BP13+BR13+BS13+BT13+BU13+BV13+BW13)/(1-0.5/100*'Distances for Transit Losses'!$C$101),HZ13-IA13-JV13-GR13-LU13-DY13),0) -> 0 | BY13: =--BX13*0.5/100*'Distances for Transit Losses'!$C$101 -> 0 | BZ13: 0 | CB13: no | CC13: no | CD13: no | CE13: 0 | CF13: 0 | CG13: 0 | CI13: =IF($CD13="No",MIN(IF(-DP13<0,0,-DP13),BI13-BR13/(1-0.5/100*'Distances for Transit Losses'!$C$77)),0) -> 0 | CJ13: =IF($CD13="No",IF(MIN(-DP13+CI13,BK13-BT13/(1-0.5/100*'Distances for Transit Losses'!$C$77))<0,0,MIN(-DP13+CI13,BK13-BT13/(1-0.5/100*'Distances for Transit Losses'!$C$77))),0) -> 0 | CK13: 0 | CL13: 0 | CM13: 0 | CN13: 1.809635579 | CO13: 1.849635579 | CP13: =-(IF($N13=99999.99999,0,VLOOKUP($B13,'NFC Well Dplns-SDF'!$B$7:$Z$306,16)+VLOOKUP($B13,'NFC Well Dplns-URF'!$B$7:$AB$306,13))/$SP13/1.9835) -> 0 | CQ13: =-(IF($N13>=99999,0,'88CW264(B) Pumping'!$E11/1.9835)+IF($N13>=99999,0,'88CW264(B) Pumping'!$E47/1.9835)+IF($N13>=99999,0,'88CW264(B) Pumping'!$E87/1.9835)+IF($N13>=99999,0,'88CW264(B) Pumping'!$E123/1.9835)+IF($N13>=51134.50919,0,'88CW264(B) Pumping'!$E163/1.9835)+IF($N13>=53406,0,'88CW264(B) Pumping'!$E199/1.9835)) -> 0 | CR13: 0 | CS13: 0.03193008991 | CV13: =-(IF($N13=99999.99999,0,VLOOKUP($B13,'United No. 2 Dplns'!$B$7:$X$676,13)/1.9835)) -> 0 | CW13: =CV13+(-(INDEX('Pre 1995 Net Accretions'!$B$6:$M$105,MATCH($B$2,'Pre 1995 Net Accretions'!$A$6:$A$105,0),MATCH($A13,'Pre 1995 Net Accretions'!$B$5:$M$5,0))/$SP13/1.9835)) -> 0.02775653206 | CX13: =-(IF(N13<99999.99999,(INDEX('70 Ranch RF Obligation'!$B$6:$M$36,MATCH($B$2,'70 Ranch RF Obligation'!$A$6:$A$36,0),MATCH('ECCV Daily Replacement Summary'!A13,'70 Ranch RF Obligation'!$B$5:$M$5,0))/SP13)/1.9835,0))-DA13*(1-'L. Latham Credit'!$E$41) -> 0 | CY13: 0 | CZ13: =(VLOOKUP($B13,'ECCV 70R Pond Acrtns'!$B$7:$AI$1206,16)+VLOOKUP($B13,'ECCV 70R Canal Acrtns'!$B$7:$AI$1206,13)+VLOOKUP($B13,'2003 70R Pond Acrtns'!$B$7:$AI$1206,16)+VLOOKUP($B13,'2003 70R Canal Acrtns'!$B$7:$AI$1206,13))/$SP13/1.9835 -> 0 | DA13: ='Joint Aug Station Deliveries'!DE13 -> 0 | DB13: 0 | DC13: 0 | DD13: ='Joint Aug Station Deliveries'!DH13 -> 0 | DE13: 0 | DF13: 0 | DI13: 0.02775653206 | DJ13: 0 | DK13: 0 | DL13: =-DK13*0.5/100*'Distances for Transit Losses'!$C$48 -> 0 | DM13: 0 | DN13: 0 | DO13: 0 | DP13: 0.03193008991 | DQ13: 0 | DR13: 0 | DS13: 0 | DT13: =('NFC Well Pumping'!I11+'NFC Well Pumping'!I48+'NFC Well Pumping'!I84)/1.9835 -> 0 | DU13: =IF(AND(JS13-JT13-GL13>0,JN13="no"),MIN(-SUM(DP13:DT13)/(1-0.5/100*'Distances for Transit Losses'!$C$103),JS13-JT13-GL13),0) -> 0 | DV13: =-DU13*0.5/100*'Distances for Transit Losses'!C$103 -> 0 | DW13: 0 | DX13: =-DW13*0.5/100*'Distances for Transit Losses'!$C$127 -> 0 | DY13: =IF(AND(HZ13-IA13-JV13-GR13-LU13>0,GE13="no"),MIN(-SUM(DP13:DX13)/(1-0.5/100*'Distances for Transit Losses'!$C$105),HZ13-IA13-JV13-GR13-LU13),0) -> 0 | DZ13: =--DY13*0.5/100*'Distances for Transit Losses'!$C$105 -> 0 | EA13: 0.02775653206 | EB13: =IF('Joint Aug Station Deliveries'!R13="Yes",'Joint Aug Station Deliveries'!P13,0) -> 0 | EC13: ='Joint Aug Station Deliveries'!T13 -> 0 | ED13: =IF('Joint Aug Station Deliveries'!Z13="Yes",'Joint Aug Station Deliveries'!X13,0) -> 0 | EE13: =-(ED13*0.5/100*'Distances for Transit Losses'!$C$216) -> 0 | EF13: =IF('Joint Aug Station Deliveries'!AD13="Yes",'Joint Aug Station Deliveries'!AB13,0) -> 0 | EG13: =-(EF13*0.5/100*'Distances for Transit Losses'!$C$248) -> 0 | EH13: 0 | EI13: =-(EH13*0.5/100*'Distances for Transit Losses'!$C$238) -> 0 | EJ13: no | EK13: =IF('Joint Aug Station Deliveries'!AH13="Yes",'Joint Aug Station Deliveries'!AF13,0) -> 0 | EL13: =-(EK13*0.5/100*'Distances for Transit Losses'!$C$250) -> 0 | EM13: =IF('Joint Aug Station Deliveries'!AL13="Yes",'Joint Aug Station Deliveries'!AJ13,0) -> 0 | EN13: =-(EM13*0.5/100*'Distances for Transit Losses'!$C$252) -> 0 | EO13: =IF('Joint Aug Station Deliveries'!AP13="Yes",'Joint Aug Station Deliveries'!AN13,0) -> 0 | EP13: =-(EO13*0.5/100*'Distances for Transit Losses'!$C$254) -> 0 | EQ13: =-0.25*(INDEX('GIC Credit'!$B$85:$M$116,MATCH($B$2,'GIC Credit'!$A$85:$A$116,0),MATCH($A13,'GIC Credit'!$B$85:$M$85,0))/$SP13/1.9835+FK13*'GIC Credit'!$Z$39+FL13*'GIC Credit'!$AO$39) -> -0.0001915 | ER13: -0.0001915 | ES13: ='Joint Aug Station Deliveries'!CW13 -> 0 | ET13: =-(ES13*0.5/100*'Distances for Transit Losses'!$C$244) -> 0 | EU13: ='Joint Aug Station Deliveries'!CX13 -> 0 | EV13: =-(EU13*0.5/100*'Distances for Transit Losses'!$C$246) -> 0 | EW13: 0 | EY13: no | EZ13: -0.0001915 | FA13: =-0.39*(INDEX('GIC Credit'!$B$85:$M$116,MATCH($B$2,'GIC Credit'!$A$85:$A$116,0),MATCH($A13,'GIC Credit'!$B$85:$M$85,0))/$SP13/1.9835+FK13*'GIC Credit'!$Z$39+FL13*'GIC Credit'!$AO$39) -> -0.00029874 | FB13: 0 | FC13: =-(FB13*0.5/100*('Distances for Transit Losses'!$C$220+'Distances for Transit Losses'!$C$226)) -> 0 | FD13: =IF('Joint Aug Station Deliveries'!AT13="Yes",'Joint Aug Station Deliveries'!AR13,0) -> 0 | FE13: =-(FD13*0.5/100*('Distances for Transit Losses'!$C$222+'Distances for Transit Losses'!$C$224)) -> 0 | FF13: =IF('Joint Aug Station Deliveries'!AX13="Yes",'Joint Aug Station Deliveries'!AV13,0) -> 0 | FG13: =-(FF13*0.5/100*'Distances for Transit Losses'!$C$224) -> 0 | FH13: ='Joint Aug Station Deliveries'!CY13 -> 0 | FI13: =-(FH13*0.5/100*'Distances for Transit Losses'!$C$230) -> 0 | FJ13: 0 | FK13: ='Joint Aug Station Deliveries'!DA13 -> 0 | FL13: ='Joint Aug Station Deliveries'!DB13 -> 0 | FM13: =MIN(0,EZ13)+SUM(FA13:FC13)+EB13/(1-0.5/100*('Distances for Transit Losses'!$C$256+'Distances for Transit Losses'!$C$268))+EC13/(1-0.5/100*('Distances for Transit Losses'!$C$242))+SUM(ED13:EE13)/(1-0.5/100*('Distances for Transit Losses'!$C$258+'Distances for Transit Losses'!$C$268))+SUM(EF13:EG13)/(1-0.5/100*('Distances for Transit Losses'!$C$260+'Distances for Transit Losses'!$C$268))+EH13/(1-0.5/100*('Distances for Transit Losses'!$C$242))+SUM(EK13:EL13)/(1-0.5/100*('Distances for Transit Losses'!$C$262+'Distances for Transit Losses'!$C$270))+SUM(EM13:EN13)/(1-0.5/100*('Distances for Transit Losses'!$C$264+'Distances for Transit Losses'!$C$270))+SUM(EO13:EP13)/(1-0.5/100*('Distances for Transit Losses'!$C$266+'Distances for Transit Losses'!$C$270))+SUM(FD13:FG13)/(1-0.5/100*('Distances for Transit Losses'!$C$226))+SUM(FH13:FI13) -> -0.00049024 | FN13: =-(IF(N13<99999.99999,INDEX('Hist RF to SPR'!$AF$6:$AQ$30,MATCH($B$2,'Hist RF to SPR'!$AE$6:$AE$30,0),MATCH($A13,'Hist RF to SPR'!$AF$5:$AQ$5,0))/SP13/1.9835,0)) -> 0 | FO13: =IF(N13<99999.99999,-INDEX('New Cache Credit'!$BO$109:$CA$136,MATCH($B$2,'New Cache Credit'!$BO$109:$BO$136,0),MATCH(A13,'New Cache Credit'!$BO$109:$CA$109,0))/SP13/1.9835-INDEX('New Cache Credit'!$CD$77:$CP$104,MATCH($B$2,'New Cache Credit'!$CD$77:$CD$104,0),MATCH(A13,'New Cache Credit'!$CD$77:$CP$77,0))/SP13/1.9835,0) -> 0 | FP13: =-0.36*(INDEX('GIC Credit'!$B$85:$M$116,MATCH($B$2,'GIC Credit'!$A$85:$A$116,0),MATCH($A13,'GIC Credit'!$B$85:$M$85,0))/$SP13/1.9835+FK13*'GIC Credit'!$Z$39+FL13*'GIC Credit'!$AO$39) -> -0.00027576 | FQ13: -0.00049024 | FR13: -0.000766 | FS13: 0 | FT13: =IF('Joint Aug Station Deliveries'!BB13="Yes",'Joint Aug Station Deliveries'!AZ13,0) -> 0 | FU13: =-(FT13*0.5/100*'Distances for Transit Losses'!$C$208) -> 0 | FV13: =IF('Joint Aug Station Deliveries'!BF13="Yes",'Joint Aug Station Deliveries'!BD13,0) -> 0 | FW13: =-(FV13*0.5/100*'Distances for Transit Losses'!$C$210) -> 0 | FX13: =IF('Joint Aug Station Deliveries'!BJ13,'Joint Aug Station Deliveries'!BH13,0) -> 0 | FY13: =-(FX13*0.5/100*'Distances for Transit Losses'!$C$212) -> 0 | FZ13: =IF('Joint Aug Station Deliveries'!BN13="Yes",'Joint Aug Station Deliveries'!BL13,0) -> 0 | GA13: =-(FZ13*0.5/100*'Distances for Transit Losses'!$C$200) -> 0 | GB13: =IF('Joint Aug Station Deliveries'!BR13="Yes",'Joint Aug Station Deliveries'!BP13,0) -> 0 | GC13: =-(GB13*0.5/100*'Distances for Transit Losses'!$C$206) -> 0 | GD13: =MIN(-FR13-FS13,SUM(FT13:FU13)/(1-0.5/100*('Distances for Transit Losses'!$C$274))+SUM(FV13:FW13)/(1-0.5/100*('Distances for Transit Losses'!$C$276))+SUM(FX13:FY13)+SUM(FZ13:GA13)+SUM(GB13:GC13)) -> 0 | GE13: no | GF13: 0 | GG13: 0 | GH13: 0 | GJ13: 0.000766 | GK13: 0 | GL13: =IF(AND(JS13-JT13-HV13>0,JN13="no"),MIN(-(FR13+FS13+GD13+GJ13+GK13)/(1-0.5/100*'Distances for Transit Losses'!$C$107),JS13-JT13-HV13),0) -> 0 | GM13: 0 | GN13: 0 | GO13: =-GL13*0.5/100*'Distances for Transit Losses'!$C$107 -> 0 | GP13: 0 | GQ13: =-GP13*0.5/100*'Distances for Transit Losses'!$C$125 -> 0 | GR13: =IF(AND(HZ13-IA13-JV13>0,HL13="no"),MIN(-(FR13+FS13+GD13+GJ13+GK13+GL13+GO13+GP13+GQ13)/(1-0.5/100*'Distances for Transit Losses'!$C$109),HZ13-IA13-JV13),0) -> 0 | GS13: =-GR13*0.5/100*'Distances for Transit Losses'!$C$115 -> 0 | GT13: 0 | GV13: 0 | GW13: 0 | GX13: 0 | GY13: 0.02699053206 | GZ13: 1.849635579 | HA13: =-(IF(N13<99999.99999,INDEX('Hist RF to SPR'!$Q$6:$AB$30,MATCH($B$2,'Hist RF to SPR'!$P$6:$P$30,0),MATCH($A13,'Hist RF to SPR'!$Q$5:$AB$5,0))/SP13/1.9835,0)) -> 0 | HB13: =-(IF(OR($N13<99999.99999,E13="Lower Latham",I13="Lower Latham",E13="Highland",I13="Highland",E13="Plum",I13="Plum"),(INDEX('FIDCO Credit'!$Y$48:$AJ$78,MATCH($B$2,'FIDCO Credit'!$X$48:$X$78,0),MATCH($A13,'FIDCO Credit'!$Y$47:$AJ$47,0))/$SP13)/1.9835,0)) -> 0 | HC13: =-(IF(OR($N13<99999.99999,E13="Lower Latham",I13="Lower Latham",E13="Highland",I13="Highland",E13="Plum",I13="Plum"),(INDEX('Western Credit'!$W$84:$AH$114,MATCH($B$2,'Western Credit'!$V$84:$V$114,0),MATCH($A13,'Western Credit'!$W$83:$AH$83,0))/$SP13)/1.9835+'Haren Daily Recharge'!K12*'Western Credit'!$Z$40,0)) -> 0 | HD13: 0 | HE13: 0 | HF13: 0 | HG13: =IF(AND(HM13="no",HN13="no"),MIN(-(HB13-HE13-HF13)/(1-0.5/100*'Distances for Transit Losses'!$C$95),JK13),0) -> 0 | HH13: =-HG13*0.5/100*'Distances for Transit Losses'!$C$95 -> 0 | HI13: =VLOOKUP($B13,'ECCV Haren Pond S.P. Acrtns'!$B$7:$G$306,6)/$SP13/1.9835-0.1 -> 1.571957767 | HJ13: 0 | HK13: 0 | HL13: no | HM13: no | HN13: no | HO13: 0 | HP13: 0 | HQ13: 0 | HS13: 0 | HT13: 0 | HU13: 0 | HV13: =IF(AND(JS13-JT13>0,JN13="no"),MIN(-HU13/(1-0.5/100*'Distances for Transit Losses'!$C$111),JS13-JT13),0) -> 0 | HW13: =-HV13*0.5/100*'Distances for Transit Losses'!$C$111 -> 0 | HX13: =IF(AND(JW13+JX13-JY13-KJ13>0,JN13="no"),MIN((-HU13-(HV13+HW13))/(1-0.5/100*'Distances for Transit Losses'!$C$113),JW13+JX13-JY13-KJ13),0) -> 0 | HY13: =-HX13*0.5/100*'Distances for Transit Losses'!$C$113 -> 0 | HZ13: 0 | IA13: =IF(HZ13>0,MIN(-(HU13+HV13+HW13+HX13+HY13)/(1-0.5/100*'Distances for Transit Losses'!$C$115),HZ13),0) -> 0 | IB13: =-IA13*0.5/100*'Distances for Transit Losses'!$C$115 -> 0 | IC13: 0 | IE13: 0 | IF13: ='Joint Aug Station Deliveries'!CJ13 -> 0 | IG13: =IF13*'Western Credit'!$Z$42 -> 0 | IH13: ='Joint Aug Station Deliveries'!CA13 -> 0 | II13: =IF(AND(IH13>0,SUM($IH$9:IH13,$IJ$9:IJ13,$JK$9:JK13)*1.9835<OFFSET('FIDCO Credit'!$X$39,0,MATCH($A13,'FIDCO Credit'!$Y$5:$AJ$5,0))),IH13-HE13,0) -> 0 | IJ13: ='Joint Aug Station Deliveries'!CD13 -> 0 | IK13: =IF(AND(IJ13>0,SUM($IH$9:IH13,$IJ$9:IJ13,$JK$9:JK13)*1.9835<OFFSET('FIDCO Credit'!$X$39,0,MATCH($A13,'FIDCO Credit'!$Y$5:$AJ$5,0))),IJ13-HF13,0) -> 0 | IL13: =MAX(0,(LP13+LQ13))/(1-0.5/100*'Distances for Transit Losses'!$C$83) -> 0 | IM13: =MAX(0,(LR13+LS13)/(1-0.5/100*'Distances for Transit Losses'!$C$79)) -> 0 | IN13: 0 | IO13: =-IN13*0.5/100*'Distances for Transit Losses'!$C$85 -> 0 | IP13: 0 | IQ13: 0 | IR13: =-IQ13*0.5/100*'Distances for Transit Losses'!$C$34 -> 0 | IS13: 0 | IT13: 0 | IU13: 0 | IV13: 0 | IW13: 0 | IX13: 0 | IY13: 1.849635579 | IZ13: 0 | JA13: 0.02699053206 | JB13: 0 | JC13: 0 | JD13: 0 | JE13: =-JD13*0.5/100*'Distances for Transit Losses'!$C$123 -> 0 | JF13: 0 | JG13: 1.571957767 | JH13: 0.02699053206 | JI13: 1.849635579 | JJ13: =-(IF(F13<99999.99999,INDEX('Hist RF to SPR'!$B$6:$M$30,MATCH($B$2,'Hist RF to SPR'!$A$6:$A$30,0),MATCH($A13,'Hist RF to SPR'!$B$5:$M$5,0))/SP13/1.9835,0)) -> 0 | JK13: ='Joint Aug Station Deliveries'!CG13 -> 0 | JL13: =IF(AND(JK13>0,SUM($IH$9:IH13,$IJ$9:IJ13,$JK$9:JK13)*1.9835<OFFSET('FIDCO Credit'!$X$39,0,MATCH($A13,'FIDCO Credit'!$Y$5:$AJ$5,0))),JK13-HG13,0) -> 0 | JM13: 0 | JN13: no | JO13: 0 | JP13: 0 | JQ13: 0 | JR13: 0 | JS13: 0 | JT13: =IF(JS13>0,MIN(-JR13/(1-0.5/100*'Distances for Transit Losses'!$C$117),JS13),0) -> 0 | JU13: =-JT13*0.5/100*'Distances for Transit Losses'!$C$117 -> 0 | JV13: 0 | JW13: 0 | JX13: =-JW13*0.5/100*'Distances for Transit Losses'!$C$70 -> 0 | JY13: =IF((JW13+JX13)>0,MIN((-JR13-(JT13-JU13)-JV13)/(1-0.5/100*'Distances for Transit Losses'!$C$119),(JW13+JX13)),0) -> 0 | JZ13: =-JY13*0.5/100*'Distances for Transit Losses'!$C$119 -> 0 | KA13: 0 | KC13: 0 | KD13: 1.849635579 | KE13: 0 | KF13: 0.02699053206 | KG13: 0 | KH13: 0 | KI13: 0 | KJ13: 0 | KK13: =-KJ13*0.5/100*'Distances for Transit Losses'!$C$121 -> 0 | KL13: 0 | KM13: 0.02699053206 | KN13: 1.849635579 | KO13: =-(IF(N13<99999.99999,(VLOOKUP(B13,'ECCV Upper Dpln'!$B$7:$BD$306,55))/SP13/1.9835,0)) -> 0 | KP13: =-(IF(N13<99999.99999,INDEX('Hist RF abv Milton'!$B$6:$M$30,MATCH($B$2,'Hist RF abv Milton'!$A$6:$A$30,0),MATCH($A13,'Hist RF abv Milton'!$B$5:$M$5,0))/SP13/1.9835,0)) -> 0 | KQ13: 0 | KR13: =(VLOOKUP($B13,'ECCV Beebe Pond Acrtns'!$B$7:$BI$1206,41)+VLOOKUP($B13,'ECCV Canal Acrtns'!$B$7:$AL$1206,22)+VLOOKUP($B13,'2003 Beebe Pond Acrtns'!$B$7:$BI$1206,41)+VLOOKUP($B13,'2003 Canal Acrtns'!$B$7:$AL$1206,22))/$SP13/1.9835 -> 1.065139416 | KS13: ='Barr Lake'!BV24 -> 0 | KT13: 0 | KU13: 0 | KV13: 0 | KW13: 0 | KX13: 0 | KY13: 0 | KZ13: 0 | LA13: no | LB13: 0 | LC13: 0 | LD13: 0 | LE13: 0 | LF13: 0 | LG13: 0 | LH13: 0 | LI13: 0 | LJ13: 0 | LK13: 0 | LL13: =-(LK13*0.5/100*'Distances for Transit Losses'!$C$6) -> 0 | LM13: 0 | LN13: 0 | LO13: 0 | LP13: =IF(AND(E13<>"Lower Latham",I13<>"Lower Latham"),MIN(-(LJ13+LM13),II13-II13*0.5/100*'Distances for Transit Losses'!$C$83),0) -> 0 | LQ13: =IF(AND(E13<>"Lower Latham",I13<>"Lower Latham"),MAX(0,MIN(-(LI13+LK13+LL13+LO13),II13-II13*0.5/100*'Distances for Transit Losses'!$C$83-LP13/(1-0.5/100*'Distances for Transit Losses'!$C$83))),0) -> 0 | LR13: =MIN(-(LJ13+LP13),IG13-IG13*0.5/100*'Distances for Transit Losses'!$C$79) -> 0 | LS13: =MAX(0,MIN(-(LI13+LK13+LL13+LQ13),IG13-IG13*0.5/100*'Distances for Transit Losses'!$C$79-LR13/(1-0.5/100*'Distances for Transit Losses'!$C$79))) -> 0 | LT13: =IF(GE13="no",MIN(-(MIN(0,LI13+LJ13+LK13+LL13+LQ13+LS13)),(HI13-HJ13)-(HI13-HJ13)*0.5/100*'Distances for Transit Losses'!$C$79),0) -> 0 | LU13: =MAX(0,IF(AND(HZ13-IA13-JV13-GR13>0,GE13="no"),MIN(-(LI13+LK13+LL13+LO13+LQ13+LS13+LT13)/(1-0.5/100*'Distances for Transit Losses'!$C$89),HZ13-IA13-JV13-GR13),0)) -> 0 | LV13: =-LU13*0.5/100*'Distances for Transit Losses'!$C$89 -> 0 | LY13: 0 | LZ13: 1.065139416 | MA13: 0 | MB13: 0.02775653206 | MC13: 1.849635579 | MD13: =-(IF(N13<99999.99999,INDEX('Hist RF blw Milton'!$B$6:$M$30,MATCH($B$2,'Hist RF blw Milton'!$A$6:$A$30,0),MATCH($A13,'Hist RF blw Milton'!$B$5:$M$5,0))/SP13/1.9835,0)) -> 0 | ME13: no | MF13: 0 | MG13: 0 | MH13: 0 | MI13: 0 | MJ13: 0 | MK13: 0.03 | ML13: Haren Recharge | MM13: ='Milton Lake'!DY12 -> 0 | MN13: 0 | MO13: 0 | MP13: 0.02775653206 | MQ13: 1.849635579 | MR13: =-(IF(N13<99999.99999,INDEX('Hist RF to Box Elder'!$B$6:$M$30,MATCH($B$2,'Hist RF to Box Elder'!$A$6:$A$30,0),MATCH($A13,'Hist RF to Box Elder'!$B$5:$M$5,0))/SP13/1.9835,0)) -> 0 | MS13: =(VLOOKUP($B13,'ECCV Beebe Pond Acrtns'!$B$7:$BI$1206,54)+VLOOKUP($B13,'ECCV Canal Acrtns'!$B$7:$AL$1206,34)+VLOOKUP($B13,'2003 Beebe Pond Acrtns'!$B$7:$BI$1206,54)+VLOOKUP($B13,'2003 Canal Acrtns'!$B$7:$AL$1206,34)+VLOOKUP($B13,'84CW090 Beebe Pond Acrtns'!$B$7:$BI$1206,55)+VLOOKUP($B13,'84CW090 Canal Acrtns'!$B$7:$AL$1206,34))/$SP13/1.9835 -> 0.1080499331 | MT13: 0 | MU13: 0 | MV13: 0 | MW13: 0 | MY13: -0.1502011856 | MZ13: 0 | NA13: 0.03 | NB13: 0 | NC13: 0 | ND13: 0 | NE13: 0.000766 | NF13: 0 | NG13: 0.03193008991 | NH13: 0.1764351214 | NI13: 0.2391312113 | NJ13: 0.08893002566 | NK13: 1.065139416 | NL13: 0.02699053206 | NM13: 1.849635579 | NO13: 0 | NP13: 0 | NQ13: 0 | NR13: 0 | NS13: 0 | NT13: 0 | NU13: 0 | NV13: 0 | NX13: 0 | NY13: 0 | NZ13: 0 | OA13: 0 | OB13: 0 | OC13: 0 | OD13: 0 | OE13: 0 | OF13: 0 | OG13: 0 | OH13: 0 | OI13: 0 | OK13: 0 | OL13: 0 | OM13: 0 | ON13: 0 | OO13: 0 | OP13: 0 | OQ13: 0 | OR13: 0 | OS13: 0 | OT13: 0 | OU13: 0 | OW13: 1.876626111 | OX13: 0 | OY13: 0 | OZ13: 0 | PA13: 0 | PB13: 0 | PC13: 0 | PD13: 0 | PE13: 0 | PF13: 0 | PG13: 0 | PI13: 0 | PJ13: 0 | PK13: 0 | PL13: 0 | PM13: 0 | PN13: 0 | PO13: 0 | PP13: 0 | PQ13: 0 | PR13: 0 | PS13: 0 | PT13: 0 | PU13: 0 | PW13: 0 | PX13: 0 | PY13: 0 | PZ13: 0 | QA13: 0 | QB13: 0 | QC13: 0 | QD13: 0 | QE13: 0 | QG13: 0 | QH13: 0 | QI13: 0 | QJ13: 0 | QK13: 0 | QL13: 0 | QM13: 0 | QN13: 0 | QP13: 0 | QQ13: 0 | QR13: 0 | QT13: 0 | QU13: 0 | QV13: 0 | QW13: 0 | QZ13: 0 | RA13: 0 | RB13: 0 | RC13: 0 | RD13: 0 | RE13: 0 | RF13: 0 | RH13: 0 | RI13: 0 | RJ13: 0 | RK13: 0 | RL13: 0 | RM13: 309.6 | RO13: 1.065139416 | RP13: 0 | RQ13: 0 | RR13: 0 | RS13: 0 | RT13: 0 | RU13: 0 | RV13: 0 | RW13: 0 | RX13: 0 | RY13: 0 | RZ13: 0 | SA13: 0 | SB13: 0 | SC13: 0 | SD13: 0 | SE13: 0 | SF13: 0 | SG13: 0 | SH13: 0 | SI13: 1.065139416 | SJ13: TRUE | SK13: TRUE | SM13: 0 | SN13: 0 | SP13: =VLOOKUP(A13,'Control Sheet'!$G$9:$H$20,2) -> 30
A14: Apr | B14: 2018-04-06 | C14: Free River | F14: 99999.99999 | K14: Free River | N14: 99999.99999 | AA14: 1.876626111 | AB14: 0 | AC14: 0 | AD14: 0 | AE14: 0 | AF14: 0 | AG14: =('NFC Well Pumping'!$L12+'NFC Well Pumping'!$L49+'NFC Well Pumping'!$L85)/1.9835 -> 3.202720816 | AH14: ='88CW264(B) Pumping'!$E12/1.9835+'88CW264(B) Pumping'!$E48/1.9835+'88CW264(B) Pumping'!E88/1.9835+'88CW264(B) Pumping'!E124/1.9835+'88CW264(B) Pumping'!E164/1.9835+'88CW264(B) Pumping'!E200/1.9835 -> 0.01481193911 | AI14: 1.876626111 | AJ14: =('United No. 2 Well Pumping'!G13+'United No. 2 Well Pumping'!G49+'United No. 2 Well Pumping'!G85)/1.9835 -> 0 | AK14: =('United No. 2 Well Pumping'!F13+'United No. 2 Well Pumping'!F49+'United No. 2 Well Pumping'!F85)/1.9835 -> 0 | AL14: 0 | AN14: 3.217532755 | AO14: =AC14+AK14+'United Res'!AA176+'United Res'!AQ176+'Milliken Res'!I164 -> 0 | AP14: 100 | AQ14: =-(IF($N14=99999.99999,0,VLOOKUP($B14,'NFC Well Dplns-URF'!B$7:$AB$306,27))/$SP14/1.9835) -> 0 | AR14: 0 | AT14: =(VLOOKUP($B14,'ECCV 70R Pond Acrtns'!$B$7:$AI$1206,34)+VLOOKUP($B14,'2003 70R Pond Acrtns'!$B$7:$AI$1206,34)+VLOOKUP($B14,'ECCV 70R Canal Acrtns'!$B$7:$AI$1206,27)+VLOOKUP($B14,'2003 70R Canal Acrtns'!$B$7:$AI$1206,27))/$SP14/1.9835 -> 0 | AU14: 0 | AV14: =-(IF($N14=99999.99999,0,VLOOKUP($B14,'NFC Well Dplns-SDF'!$B$7:$Z$306,25)+VLOOKUP($B14,'NFC Well Dplns-URF'!B$7:$AB$306,20))/$SP14/1.9835) -> 0 | AW14: 0.003352812464 | AX14: 0.04 | AY14: ECCV Riverside Credits | AZ14: =-((BL14+BM14)*'Weldon Credit'!$BB$36) -> 0 | BA14: =-((BL14+BM14)*'Weldon Credit'!$BB$34) -> 0 | BB14: =-INDEX('Weldon Credit'!$AX$249:$BJ$276,MATCH($B$2,'Weldon Credit'!$AX$249:$AX$276,0),MATCH(A14,'Weldon Credit'!$AX$249:$BJ$249,0))/SP14/1.9835 -> -0.007996419995 | BC14: -0.007996419995 | BD14: =-((BL14+BM14)*'Weldon Credit'!$BB$37) -> 0 | BE14: =-((BL14+BM14)*'Weldon Credit'!$BB$35) -> 0 | BF14: =-INDEX('Weldon Credit'!$AX$281:$BJ$308,MATCH($B$2,'Weldon Credit'!$AX$281:$AX$308,0),MATCH(A14,'Weldon Credit'!$AX$281:$BJ$281,0))/SP14/1.9835 -> -0.1409485256 | BG14: -0.1409485256 | BH14: =-(BL14+BM14)*'Weldon Credit'!$BB$38 -> 0 | BI14: =0.4*(INDEX('Riverside Pond Accrtns'!$B$6:$M$36,MATCH($B$2,'Riverside Pond Accrtns'!$A$6:$A$36,0),MATCH('ECCV Daily Replacement Summary'!A14,'Riverside Pond Accrtns'!$B$5:$M$5,0))/SP14)/1.9835 -> 1.65541047 | BJ14: =(44/640)*(INDEX('Weldon Valley Accrtns (02CW377)'!$B$6:$M$30,MATCH($B$2,'Weldon Valley Accrtns (02CW377)'!$A$6:$A$30,0),MATCH(A14,'Weldon Valley Accrtns (02CW377)'!$B$5:$M$5,0))/SP14)/1.9835 -> 0.2998172422 | BK14: =(VLOOKUP($B14,'ECCV 70R Pond Acrtns'!$B$7:$AI$1206,25)+VLOOKUP($B14,'ECCV 70R Canal Acrtns'!$B$7:$AI$1206,20)+VLOOKUP($B14,'2003 70R Pond Acrtns'!$B$7:$AI$1206,25)+VLOOKUP($B14,'2003 70R Canal Acrtns'!$B$7:$AI$1206,20))/$SP14/1.9835 -> 0 | BL14: ='Joint Aug Station Deliveries'!G14 -> 0 | BM14: ='Joint Aug Station Deliveries'!H14 -> 0 | BN14: 0 | BO14: 0 | BP14: =IF(CB14="no",-MAX(0,MIN(BO14,(BM14-BL14))*(0.5/100*'Distances for Transit Losses'!$C$75)),0) -> 0 | BQ14: 0 | BR14: =MIN(-($BC14+BG14+BH14+BN14+BO14+BP14),BI14-BI14*0.5/100*'Distances for Transit Losses'!$C$77) -> 0.1489449456 | BS14: 0 | BT14: =MIN(-($BC14+BG14+BH14+BN14+BO14+BP14+BR14+BS14),BK14-BK14*0.5/100*'Distances for Transit Losses'!$C$77) -> 0 | BU14: =-((BR14+BT14)*(0.5/100*'Distances for Transit Losses'!$C$77)) -> -0.01586263671 | BV14: =IF(AND(JS14-JT14-GL14-DU14>0,JN14="no"),MIN(-(BC14+BG14+BH14+BN14+BO14+BP14+BR14+BS14+BT14+BU14)/(1-0.5/100*'Distances for Transit Losses'!$C$99),JS14-JT14-GL14-DU14),0) -> 0 | BW14: =--BV14*0.5/100*'Distances for Transit Losses'!C$99 -> 0 | BX14: =IF(AND(HZ14-IA14-JV14-GR14-LU14-DY14>0,GE14="no"),MIN(-(BC14+BG14+BH14+BN14+BO14+BP14+BR14+BS14+BT14+BU14+BV14+BW14)/(1-0.5/100*'Distances for Transit Losses'!$C$101),HZ14-IA14-JV14-GR14-LU14-DY14),0) -> 0 | BY14: =--BX14*0.5/100*'Distances for Transit Losses'!$C$101 -> 0 | BZ14: 0 | CB14: no | CC14: no | CD14: no | CE14: 0 | CF14: 0 | CG14: 0 | CI14: =IF($CD14="No",MIN(IF(-DP14<0,0,-DP14),BI14-BR14/(1-0.5/100*'Distances for Transit Losses'!$C$77)),0) -> 0 | CJ14: =IF($CD14="No",IF(MIN(-DP14+CI14,BK14-BT14/(1-0.5/100*'Distances for Transit Losses'!$C$77))<0,0,MIN(-DP14+CI14,BK14-BT14/(1-0.5/100*'Distances for Transit Losses'!$C$77))),0) -> 0 | CK14: 0 | CL14: 0 | CM14: 0 | CN14: 1.809635579 | CO14: 1.849635579 | CP14: =-(IF($N14=99999.99999,0,VLOOKUP($B14,'NFC Well Dplns-SDF'!$B$7:$Z$306,16)+VLOOKUP($B14,'NFC Well Dplns-URF'!$B$7:$AB$306,13))/$SP14/1.9835) -> 0 | CQ14: =-(IF($N14>=99999,0,'88CW264(B) Pumping'!$E12/1.9835)+IF($N14>=99999,0,'88CW264(B) Pumping'!$E48/1.9835)+IF($N14>=99999,0,'88CW264(B) Pumping'!$E88/1.9835)+IF($N14>=99999,0,'88CW264(B) Pumping'!$E124/1.9835)+IF($N14>=51134.50919,0,'88CW264(B) Pumping'!$E164/1.9835)+IF($N14>=53406,0,'88CW264(B) Pumping'!$E200/1.9835)) -> 0 | CR14: 0 | CS14: 0.03193008991 | CV14: =-(IF($N14=99999.99999,0,VLOOKUP($B14,'United No. 2 Dplns'!$B$7:$X$676,13)/1.9835)) -> 0 | CW14: =CV14+(-(INDEX('Pre 1995 Net Accretions'!$B$6:$M$105,MATCH($B$2,'Pre 1995 Net Accretions'!$A$6:$A$105,0),MATCH($A14,'Pre 1995 Net Accretions'!$B$5:$M$5,0))/$SP14/1.9835)) -> 0.02775653206 | CX14: =-(IF(N14<99999.99999,(INDEX('70 Ranch RF Obligation'!$B$6:$M$36,MATCH($B$2,'70 Ranch RF Obligation'!$A$6:$A$36,0),MATCH('ECCV Daily Replacement Summary'!A14,'70 Ranch RF Obligation'!$B$5:$M$5,0))/SP14)/1.9835,0))-DA14*(1-'L. Latham Credit'!$E$41) -> 0 | CY14: 0 | CZ14: =(VLOOKUP($B14,'ECCV 70R Pond Acrtns'!$B$7:$AI$1206,16)+VLOOKUP($B14,'ECCV 70R Canal Acrtns'!$B$7:$AI$1206,13)+VLOOKUP($B14,'2003 70R Pond Acrtns'!$B$7:$AI$1206,16)+VLOOKUP($B14,'2003 70R Canal Acrtns'!$B$7:$AI$1206,13))/$SP14/1.9835 -> 0 | DA14: ='Joint Aug Station Deliveries'!DE14 -> 0 | DB14: 0 | DC14: 0 | DD14: ='Joint Aug Station Deliveries'!DH14 -> 0 | DE14: 0 | DF14: 0 | DI14: 0.02775653206 | DJ14: 0 | DK14: 0 | DL14: =-DK14*0.5/100*'Distances for Transit Losses'!$C$48 -> 0 | DM14: 0 | DN14: 0 | DO14: 0 | DP14: 0.03193008991 | DQ14: 0 | DR14: 0 | DS14: 0 | DT14: =('NFC Well Pumping'!I12+'NFC Well Pumping'!I49+'NFC Well Pumping'!I85)/1.9835 -> 0 | DU14: =IF(AND(JS14-JT14-GL14>0,JN14="no"),MIN(-SUM(DP14:DT14)/(1-0.5/100*'Distances for Transit Losses'!$C$103),JS14-JT14-GL14),0) -> 0 | DV14: =-DU14*0.5/100*'Distances for Transit Losses'!C$103 -> 0 | DW14: 0 | DX14: =-DW14*0.5/100*'Distances for Transit Losses'!$C$127 -> 0 | DY14: =IF(AND(HZ14-IA14-JV14-GR14-LU14>0,GE14="no"),MIN(-SUM(DP14:DX14)/(1-0.5/100*'Distances for Transit Losses'!$C$105),HZ14-IA14-JV14-GR14-LU14),0) -> 0 | DZ14: =--DY14*0.5/100*'Distances for Transit Losses'!$C$105 -> 0 | EA14: 0.02775653206 | EB14: =IF('Joint Aug Station Deliveries'!R14="Yes",'Joint Aug Station Deliveries'!P14,0) -> 0 | EC14: ='Joint Aug Station Deliveries'!T14 -> 0 | ED14: =IF('Joint Aug Station Deliveries'!Z14="Yes",'Joint Aug Station Deliveries'!X14,0) -> 0 | EE14: =-(ED14*0.5/100*'Distances for Transit Losses'!$C$216) -> 0 | EF14: =IF('Joint Aug Station Deliveries'!AD14="Yes",'Joint Aug Station Deliveries'!AB14,0) -> 0 | EG14: =-(EF14*0.5/100*'Distances for Transit Losses'!$C$248) -> 0 | EH14: 0 | EI14: =-(EH14*0.5/100*'Distances for Transit Losses'!$C$238) -> 0 | EJ14: no | EK14: =IF('Joint Aug Station Deliveries'!AH14="Yes",'Joint Aug Station Deliveries'!AF14,0) -> 0 | EL14: =-(EK14*0.5/100*'Distances for Transit Losses'!$C$250) -> 0 | EM14: =IF('Joint Aug Station Deliveries'!AL14="Yes",'Joint Aug Station Deliveries'!AJ14,0) -> 0 | EN14: =-(EM14*0.5/100*'Distances for Transit Losses'!$C$252) -> 0 | EO14: =IF('Joint Aug Station Deliveries'!AP14="Yes",'Joint Aug Station Deliveries'!AN14,0) -> 0 | EP14: =-(EO14*0.5/100*'Distances for Transit Losses'!$C$254) -> 0 | EQ14: =-0.25*(INDEX('GIC Credit'!$B$85:$M$116,MATCH($B$2,'GIC Credit'!$A$85:$A$116,0),MATCH($A14,'GIC Credit'!$B$85:$M$85,0))/$SP14/1.9835+FK14*'GIC Credit'!$Z$39+FL14*'GIC Credit'!$AO$39) -> -0.0001915 | ER14: -0.0001915 | ES14: ='Joint Aug Station Deliveries'!CW14 -> 0 | ET14: =-(ES14*0.5/100*'Distances for Transit Losses'!$C$244) -> 0 | EU14: ='Joint Aug Station Deliveries'!CX14 -> 0 | EV14: =-(EU14*0.5/100*'Distances for Transit Losses'!$C$246) -> 0 | EW14: 0 | EY14: no | EZ14: -0.0001915 | FA14: =-0.39*(INDEX('GIC Credit'!$B$85:$M$116,MATCH($B$2,'GIC Credit'!$A$85:$A$116,0),MATCH($A14,'GIC Credit'!$B$85:$M$85,0))/$SP14/1.9835+FK14*'GIC Credit'!$Z$39+FL14*'GIC Credit'!$AO$39) -> -0.00029874 | FB14: 0 | FC14: =-(FB14*0.5/100*('Distances for Transit Losses'!$C$220+'Distances for Transit Losses'!$C$226)) -> 0 | FD14: =IF('Joint Aug Station Deliveries'!AT14="Yes",'Joint Aug Station Deliveries'!AR14,0) -> 0 | FE14: =-(FD14*0.5/100*('Distances for Transit Losses'!$C$222+'Distances for Transit Losses'!$C$224)) -> 0 | FF14: =IF('Joint Aug Station Deliveries'!AX14="Yes",'Joint Aug Station Deliveries'!AV14,0) -> 0 | FG14: =-(FF14*0.5/100*'Distances for Transit Losses'!$C$224) -> 0 | FH14: ='Joint Aug Station Deliveries'!CY14 -> 0 | FI14: =-(FH14*0.5/100*'Distances for Transit Losses'!$C$230) -> 0 | FJ14: 0 | FK14: ='Joint Aug Station Deliveries'!DA14 -> 0 | FL14: ='Joint Aug Station Deliveries'!DB14 -> 0 | FM14: =MIN(0,EZ14)+SUM(FA14:FC14)+EB14/(1-0.5/100*('Distances for Transit Losses'!$C$256+'Distances for Transit Losses'!$C$268))+EC14/(1-0.5/100*('Distances for Transit Losses'!$C$242))+SUM(ED14:EE14)/(1-0.5/100*('Distances for Transit Losses'!$C$258+'Distances for Transit Losses'!$C$268))+SUM(EF14:EG14)/(1-0.5/100*('Distances for Transit Losses'!$C$260+'Distances for Transit Losses'!$C$268))+EH14/(1-0.5/100*('Distances for Transit Losses'!$C$242))+SUM(EK14:EL14)/(1-0.5/100*('Distances for Transit Losses'!$C$262+'Distances for Transit Losses'!$C$270))+SUM(EM14:EN14)/(1-0.5/100*('Distances for Transit Losses'!$C$264+'Distances for Transit Losses'!$C$270))+SUM(EO14:EP14)/(1-0.5/100*('Distances for Transit Losses'!$C$266+'Distances for Transit Losses'!$C$270))+SUM(FD14:FG14)/(1-0.5/100*('Distances for Transit Losses'!$C$226))+SUM(FH14:FI14) -> -0.00049024 | FN14: =-(IF(N14<99999.99999,INDEX('Hist RF to SPR'!$AF$6:$AQ$30,MATCH($B$2,'Hist RF to SPR'!$AE$6:$AE$30,0),MATCH($A14,'Hist RF to SPR'!$AF$5:$AQ$5,0))/SP14/1.9835,0)) -> 0 | FO14: =IF(N14<99999.99999,-INDEX('New Cache Credit'!$BO$109:$CA$136,MATCH($B$2,'New Cache Credit'!$BO$109:$BO$136,0),MATCH(A14,'New Cache Credit'!$BO$109:$CA$109,0))/SP14/1.9835-INDEX('New Cache Credit'!$CD$77:$CP$104,MATCH($B$2,'New Cache Credit'!$CD$77:$CD$104,0),MATCH(A14,'New Cache Credit'!$CD$77:$CP$77,0))/SP14/1.9835,0) -> 0 | FP14: =-0.36*(INDEX('GIC Credit'!$B$85:$M$116,MATCH($B$2,'GIC Credit'!$A$85:$A$116,0),MATCH($A14,'GIC Credit'!$B$85:$M$85,0))/$SP14/1.9835+FK14*'GIC Credit'!$Z$39+FL14*'GIC Credit'!$AO$39) -> -0.00027576 | FQ14: -0.00049024 | FR14: -0.000766 | FS14: 0 | FT14: =IF('Joint Aug Station Deliveries'!BB14="Yes",'Joint Aug Station Deliveries'!AZ14,0) -> 0 | FU14: =-(FT14*0.5/100*'Distances for Transit Losses'!$C$208) -> 0 | FV14: =IF('Joint Aug Station Deliveries'!BF14="Yes",'Joint Aug Station Deliveries'!BD14,0) -> 0 | FW14: =-(FV14*0.5/100*'Distances for Transit Losses'!$C$210) -> 0 | FX14: =IF('Joint Aug Station Deliveries'!BJ14,'Joint Aug Station Deliveries'!BH14,0) -> 0 | FY14: =-(FX14*0.5/100*'Distances for Transit Losses'!$C$212) -> 0 | FZ14: =IF('Joint Aug Station Deliveries'!BN14="Yes",'Joint Aug Station Deliveries'!BL14,0) -> 0 | GA14: =-(FZ14*0.5/100*'Distances for Transit Losses'!$C$200) -> 0 | GB14: =IF('Joint Aug Station Deliveries'!BR14="Yes",'Joint Aug Station Deliveries'!BP14,0) -> 0 | GC14: =-(GB14*0.5/100*'Distances for Transit Losses'!$C$206) -> 0 | GD14: =MIN(-FR14-FS14,SUM(FT14:FU14)/(1-0.5/100*('Distances for Transit Losses'!$C$274))+SUM(FV14:FW14)/(1-0.5/100*('Distances for Transit Losses'!$C$276))+SUM(FX14:FY14)+SUM(FZ14:GA14)+SUM(GB14:GC14)) -> 0 | GE14: no | GF14: 0 | GG14: 0 | GH14: 0 | GJ14: 0.000766 | GK14: 0 | GL14: =IF(AND(JS14-JT14-HV14>0,JN14="no"),MIN(-(FR14+FS14+GD14+GJ14+GK14)/(1-0.5/100*'Distances for Transit Losses'!$C$107),JS14-JT14-HV14),0) -> 0 | GM14: 0 | GN14: 0 | GO14: =-GL14*0.5/100*'Distances for Transit Losses'!$C$107 -> 0 | GP14: 0 | GQ14: =-GP14*0.5/100*'Distances for Transit Losses'!$C$125 -> 0 | GR14: =IF(AND(HZ14-IA14-JV14>0,HL14="no"),MIN(-(FR14+FS14+GD14+GJ14+GK14+GL14+GO14+GP14+GQ14)/(1-0.5/100*'Distances for Transit Losses'!$C$109),HZ14-IA14-JV14),0) -> 0 | GS14: =-GR14*0.5/100*'Distances for Transit Losses'!$C$115 -> 0 | GT14: 0 | GV14: 0 | GW14: 0 | GX14: 0 | GY14: =IF(MP14>FN14,MP14-GJ14,0) -> 0.02699053206 | GZ14: 1.849635579 | HA14: =-(IF(N14<99999.99999,INDEX('Hist RF to SPR'!$Q$6:$AB$30,MATCH($B$2,'Hist RF to SPR'!$P$6:$P$30,0),MATCH($A14,'Hist RF to SPR'!$Q$5:$AB$5,0))/SP14/1.9835,0)) -> 0 | HB14: =-(IF(OR($N14<99999.99999,E14="Lower Latham",I14="Lower Latham",E14="Highland",I14="Highland",E14="Plum",I14="Plum"),(INDEX('FIDCO Credit'!$Y$48:$AJ$78,MATCH($B$2,'FIDCO Credit'!$X$48:$X$78,0),MATCH($A14,'FIDCO Credit'!$Y$47:$AJ$47,0))/$SP14)/1.9835,0)) -> 0 | HC14: =-(IF(OR($N14<99999.99999,E14="Lower Latham",I14="Lower Latham",E14="Highland",I14="Highland",E14="Plum",I14="Plum"),(INDEX('Western Credit'!$W$84:$AH$114,MATCH($B$2,'Western Credit'!$V$84:$V$114,0),MATCH($A14,'Western Credit'!$W$83:$AH$83,0))/$SP14)/1.9835+'Haren Daily Recharge'!K13*'Western Credit'!$Z$40,0)) -> 0 | HD14: 0 | HE14: 0 | HF14: 0 | HG14: =IF(AND(HM14="no",HN14="no"),MIN(-(HB14-HE14-HF14)/(1-0.5/100*'Distances for Transit Losses'!$C$95),JK14),0) -> 0 | HH14: =-HG14*0.5/100*'Distances for Transit Losses'!$C$95 -> 0 | HI14: =VLOOKUP($B14,'ECCV Haren Pond S.P. Acrtns'!$B$7:$G$306,6)/$SP14/1.9835-0.1 -> 1.571957767 | HJ14: 0 | HK14: 0 | HL14: no | HM14: no | HN14: no | HO14: 0 | HP14: 0 | HQ14: 0 | HS14: 0 | HT14: 0 | HU14: 0 | HV14: =IF(AND(JS14-JT14>0,JN14="no"),MIN(-HU14/(1-0.5/100*'Distances for Transit Losses'!$C$111),JS14-JT14),0) -> 0 | HW14: =-HV14*0.5/100*'Distances for Transit Losses'!$C$111 -> 0 | HX14: =IF(AND(JW14+JX14-JY14-KJ14>0,JN14="no"),MIN((-HU14-(HV14+HW14))/(1-0.5/100*'Distances for Transit Losses'!$C$113),JW14+JX14-JY14-KJ14),0) -> 0 | HY14: =-HX14*0.5/100*'Distances for Transit Losses'!$C$113 -> 0 | HZ14: 0 | IA14: =IF(HZ14>0,MIN(-(HU14+HV14+HW14+HX14+HY14)/(1-0.5/100*'Distances for Transit Losses'!$C$115),HZ14),0) -> 0 | IB14: =-IA14*0.5/100*'Distances for Transit Losses'!$C$115 -> 0 | IC14: 0 | IE14: 0 | IF14: ='Joint Aug Station Deliveries'!CJ14 -> 0 | IG14: =IF14*'Western Credit'!$Z$42 -> 0 | IH14: ='Joint Aug Station Deliveries'!CA14 -> 0 | II14: =IF(AND(IH14>0,SUM($IH$9:IH14,$IJ$9:IJ14,$JK$9:JK14)*1.9835<OFFSET('FIDCO Credit'!$X$39,0,MATCH($A14,'FIDCO Credit'!$Y$5:$AJ$5,0))),IH14-HE14,0) -> 0 | IJ14: ='Joint Aug Station Deliveries'!CD14 -> 0 | IK14: =IF(AND(IJ14>0,SUM($IH$9:IH14,$IJ$9:IJ14,$JK$9:JK14)*1.9835<OFFSET('FIDCO Credit'!$X$39,0,MATCH($A14,'FIDCO Credit'!$Y$5:$AJ$5,0))),IJ14-HF14,0) -> 0 | IL14: =MAX(0,(LP14+LQ14))/(1-0.5/100*'Distances for Transit Losses'!$C$83) -> 0 | IM14: =MAX(0,(LR14+LS14)/(1-0.5/100*'Distances for Transit Losses'!$C$79)) -> 0 | IN14: 0 | IO14: =-IN14*0.5/100*'Distances for Transit Losses'!$C$85 -> 0 | IP14: 0 | IQ14: 0 | IR14: =-IQ14*0.5/100*'Distances for Transit Losses'!$C$34 -> 0 | IS14: 0 | IT14: 0 | IU14: 0 | IV14: 0 | IW14: 0 | IX14: 0 | IY14: 1.849635579 | IZ14: 0 | JA14: 0.02699053206 | JB14: 0 | JC14: 0 | JD14: 0 | JE14: =-JD14*0.5/100*'Distances for Transit Losses'!$C$123 -> 0 | JF14: 0 | JG14: 1.571957767 | JH14: 0.02699053206 | JI14: 1.849635579 | JJ14: =-(IF(F14<99999.99999,INDEX('Hist RF to SPR'!$B$6:$M$30,MATCH($B$2,'Hist RF to SPR'!$A$6:$A$30,0),MATCH($A14,'Hist RF to SPR'!$B$5:$M$5,0))/SP14/1.9835,0)) -> 0 | JK14: ='Joint Aug Station Deliveries'!CG14 -> 0 | JL14: =IF(AND(JK14>0,SUM($IH$9:IH14,$IJ$9:IJ14,$JK$9:JK14)*1.9835<OFFSET('FIDCO Credit'!$X$39,0,MATCH($A14,'FIDCO Credit'!$Y$5:$AJ$5,0))),JK14-HG14,0) -> 0 | JM14: 0 | JN14: no | JO14: 0 | JP14: 0 | JQ14: 0 | JR14: 0 | JS14: 0 | JT14: =IF(JS14>0,MIN(-JR14/(1-0.5/100*'Distances for Transit Losses'!$C$117),JS14),0) -> 0 | JU14: =-JT14*0.5/100*'Distances for Transit Losses'!$C$117 -> 0 | JV14: 0 | JW14: 0 | JX14: =-JW14*0.5/100*'Distances for Transit Losses'!$C$70 -> 0 | JY14: =IF((JW14+JX14)>0,MIN((-JR14-(JT14-JU14)-JV14)/(1-0.5/100*'Distances for Transit Losses'!$C$119),(JW14+JX14)),0) -> 0 | JZ14: =-JY14*0.5/100*'Distances for Transit Losses'!$C$119 -> 0 | KA14: 0 | KC14: 0 | KD14: 1.849635579 | KE14: 0 | KF14: 0.02699053206 | KG14: 0 | KH14: 0 | KI14: 0 | KJ14: 0 | KK14: =-KJ14*0.5/100*'Distances for Transit Losses'!$C$121 -> 0 | KL14: 0 | KM14: 0.02699053206 | KN14: 1.849635579 | KO14: =-(IF(N14<99999.99999,(VLOOKUP(B14,'ECCV Upper Dpln'!$B$7:$BD$306,55))/SP14/1.9835,0)) -> 0 | KP14: =-(IF(N14<99999.99999,INDEX('Hist RF abv Milton'!$B$6:$M$30,MATCH($B$2,'Hist RF abv Milton'!$A$6:$A$30,0),MATCH($A14,'Hist RF abv Milton'!$B$5:$M$5,0))/SP14/1.9835,0)) -> 0 | KQ14: 0 | KR14: =(VLOOKUP($B14,'ECCV Beebe Pond Acrtns'!$B$7:$BI$1206,41)+VLOOKUP($B14,'ECCV Canal Acrtns'!$B$7:$AL$1206,22)+VLOOKUP($B14,'2003 Beebe Pond Acrtns'!$B$7:$BI$1206,41)+VLOOKUP($B14,'2003 Canal Acrtns'!$B$7:$AL$1206,22))/$SP14/1.9835 -> 1.065139416 | KS14: ='Barr Lake'!BV25 -> 0 | KT14: 0 | KU14: 0 | KV14: 0 | KW14: 0 | KX14: 0 | KY14: 0 | KZ14: 0 | LA14: no | LB14: 0 | LC14: 0 | LD14: 0 | LE14: 0 | LF14: 0 | LG14: 0 | LH14: 0 | LI14: 0 | LJ14: 0 | LK14: 0 | LL14: =-(LK14*0.5/100*'Distances for Transit Losses'!$C$6) -> 0 | LM14: 0 | LN14: 0 | LO14: 0 | LP14: =IF(AND(E14<>"Lower Latham",I14<>"Lower Latham"),MIN(-(LJ14+LM14),II14-II14*0.5/100*'Distances for Transit Losses'!$C$83),0) -> 0 | LQ14: =IF(AND(E14<>"Lower Latham",I14<>"Lower Latham"),MAX(0,MIN(-(LI14+LK14+LL14+LO14),II14-II14*0.5/100*'Distances for Transit Losses'!$C$83-LP14/(1-0.5/100*'Distances for Transit Losses'!$C$83))),0) -> 0 | LR14: =MIN(-(LJ14+LP14),IG14-IG14*0.5/100*'Distances for Transit Losses'!$C$79) -> 0 | LS14: =MAX(0,MIN(-(LI14+LK14+LL14+LQ14),IG14-IG14*0.5/100*'Distances for Transit Losses'!$C$79-LR14/(1-0.5/100*'Distances for Transit Losses'!$C$79))) -> 0 | LT14: =IF(GE14="no",MIN(-(MIN(0,LI14+LJ14+LK14+LL14+LQ14+LS14)),(HI14-HJ14)-(HI14-HJ14)*0.5/100*'Distances for Transit Losses'!$C$79),0) -> 0 | LU14: =MAX(0,IF(AND(HZ14-IA14-JV14-GR14>0,GE14="no"),MIN(-(LI14+LK14+LL14+LO14+LQ14+LS14+LT14)/(1-0.5/100*'Distances for Transit Losses'!$C$89),HZ14-IA14-JV14-GR14),0)) -> 0 | LV14: =-LU14*0.5/100*'Distances for Transit Losses'!$C$89 -> 0 | LY14: 0 | LZ14: 1.065139416 | MA14: 0 | MB14: 0.02775653206 | MC14: 1.849635579 | MD14: =-(IF(N14<99999.99999,INDEX('Hist RF blw Milton'!$B$6:$M$30,MATCH($B$2,'Hist RF blw Milton'!$A$6:$A$30,0),MATCH($A14,'Hist RF blw Milton'!$B$5:$M$5,0))/SP14/1.9835,0)) -> 0 | ME14: no | MF14: 0 | MG14: 0 | MH14: 0 | MI14: 0 | MJ14: 0 | MK14: 0.03 | ML14: Haren Recharge | MM14: ='Milton Lake'!DY13 -> 0 | MN14: 0 | MO14: 0 | MP14: 0.02775653206 | MQ14: 1.849635579 | MR14: =-(IF(N14<99999.99999,INDEX('Hist RF to Box Elder'!$B$6:$M$30,MATCH($B$2,'Hist RF to Box Elder'!$A$6:$A$30,0),MATCH($A14,'Hist RF to Box Elder'!$B$5:$M$5,0))/SP14/1.9835,0)) -> 0 | MS14: =(VLOOKUP($B14,'ECCV Beebe Pond Acrtns'!$B$7:$BI$1206,54)+VLOOKUP($B14,'ECCV Canal Acrtns'!$B$7:$AL$1206,34)+VLOOKUP($B14,'2003 Beebe Pond Acrtns'!$B$7:$BI$1206,54)+VLOOKUP($B14,'2003 Canal Acrtns'!$B$7:$AL$1206,34)+VLOOKUP($B14,'84CW090 Beebe Pond Acrtns'!$B$7:$BI$1206,55)+VLOOKUP($B14,'84CW090 Canal Acrtns'!$B$7:$AL$1206,34))/$SP14/1.9835 -> 0.1080499331 | MT14: 0 | MU14: 0 | MV14: 0 | MW14: 0 | MY14: -0.1502011856 | MZ14: 0 | NA14: 0.03 | NB14: 0 | NC14: 0 | ND14: 0 | NE14: 0.000766 | NF14: 0 | NG14: 0.03193008991 | NH14: 0.1764351214 | NI14: 0.2391312113 | NJ14: 0.08893002566 | NK14: 1.065139416 | NL14: 0.02699053206 | NM14: 1.849635579 | NO14: 0 | NP14: 0 | NQ14: 0 | NR14: 0 | NS14: 0 | NT14: 0 | NU14: 0 | NV14: 0 | NX14: 0 | NY14: 0 | NZ14: 0 | OA14: 0 | OB14: 0 | OC14: 0 | OD14: 0 | OE14: 0 | OF14: 0 | OG14: 0 | OH14: 0 | OI14: 0 | OK14: 0 | OL14: 0 | OM14: 0 | ON14: 0 | OO14: 0 | OP14: 0 | OQ14: 0 | OR14: 0 | OS14: 0 | OT14: 0 | OU14: 0 | OW14: 1.876626111 | OX14: 0 | OY14: 0 | OZ14: 0 | PA14: 0 | PB14: 0 | PC14: 0 | PD14: 0 | PE14: 0 | PF14: 0 | PG14: 0 | PI14: 0 | PJ14: 0 | PK14: 0 | PL14: 0 | PM14: 0 | PN14: 0 | PO14: 0 | PP14: 0 | PQ14: 0 | PR14: 0 | PS14: 0 | PT14: 0 | PU14: 0 | PW14: 0 | PX14: 0 | PY14: 0 | PZ14: 0 | QA14: 0 | QB14: 0 | QC14: 0 | QD14: 0 | QE14: 0 | QG14: 0 | QH14: 0 | QI14: 0 | QJ14: 0 | QK14: 0 | QL14: 0 | QM14: 0 | QN14: 0 | QP14: 0 | QQ14: 0 | QR14: 0 | QT14: 0 | QU14: 0 | QV14: 0 | QW14: 0 | QZ14: 0 | RA14: 0 | RB14: 0 | RC14: 0 | RD14: 0 | RE14: 0 | RF14: 0 | RH14: 0 | RI14: 0 | RJ14: 0 | RK14: 0 | RL14: 0 | RM14: 309.6 | RO14: 1.065139416 | RP14: 0 | RQ14: 0 | RR14: 0 | RS14: 0 | RT14: 0 | RU14: 0 | RV14: 0 | RW14: 0 | RX14: 0 | RY14: 0 | RZ14: 0 | SA14: 0 | SB14: 0 | SC14: 0 | SD14: 0 | SE14: 0 | SF14: 0 | SG14: 0 | SH14: 0 | SI14: 1.065139416 | SJ14: TRUE | SK14: TRUE | SM14: 0 | SN14: 0 | SP14: =VLOOKUP(A14,'Control Sheet'!$G$9:$H$20,2) -> 30
A15: Apr | B15: 2018-04-07 | C15: Free River | F15: 99999.99999 | K15: Free River | N15: 99999.99999 | AA15: 1.876626111 | AB15: 0 | AC15: 0 | AD15: 0 | AE15: 0 | AF15: 0 | AG15: =('NFC Well Pumping'!$L13+'NFC Well Pumping'!$L50+'NFC Well Pumping'!$L86)/1.9835 -> 3.202720816 | AH15: ='88CW264(B) Pumping'!$E13/1.9835+'88CW264(B) Pumping'!$E49/1.9835+'88CW264(B) Pumping'!E89/1.9835+'88CW264(B) Pumping'!E125/1.9835+'88CW264(B) Pumping'!E165/1.9835+'88CW264(B) Pumping'!E201/1.9835 -> 0.01481193911 | AI15: 1.876626111 | AJ15: =('United No. 2 Well Pumping'!G14+'United No. 2 Well Pumping'!G50+'United No. 2 Well Pumping'!G86)/1.9835 -> 0 | AK15: =('United No. 2 Well Pumping'!F14+'United No. 2 Well Pumping'!F50+'United No. 2 Well Pumping'!F86)/1.9835 -> 0 | AL15: 0 | AN15: 3.217532755 | AO15: =AC15+AK15+'United Res'!AA177+'United Res'!AQ177+'Milliken Res'!I165 -> 0 | AP15: 100 | AQ15: =-(IF($N15=99999.99999,0,VLOOKUP($B15,'NFC Well Dplns-URF'!B$7:$AB$306,27))/$SP15/1.9835) -> 0 | AR15: 0 | AT15: =(VLOOKUP($B15,'ECCV 70R Pond Acrtns'!$B$7:$AI$1206,34)+VLOOKUP($B15,'2003 70R Pond Acrtns'!$B$7:$AI$1206,34)+VLOOKUP($B15,'ECCV 70R Canal Acrtns'!$B$7:$AI$1206,27)+VLOOKUP($B15,'2003 70R Canal Acrtns'!$B$7:$AI$1206,27))/$SP15/1.9835 -> 0 | AU15: 0 | AV15: =-(IF($N15=99999.99999,0,VLOOKUP($B15,'NFC Well Dplns-SDF'!$B$7:$Z$306,25)+VLOOKUP($B15,'NFC Well Dplns-URF'!B$7:$AB$306,20))/$SP15/1.9835) -> 0 | AW15: 0.003352812464 | AX15: 0.04 | AY15: ECCV Riverside Credits | AZ15: =-((BL15+BM15)*'Weldon Credit'!$BB$36) -> 0 | BA15: =-((BL15+BM15)*'Weldon Credit'!$BB$34) -> 0 | BB15: =-INDEX('Weldon Credit'!$AX$249:$BJ$276,MATCH($B$2,'Weldon Credit'!$AX$249:$AX$276,0),MATCH(A15,'Weldon Credit'!$AX$249:$BJ$249,0))/SP15/1.9835 -> -0.007996419995 | BC15: -0.007996419995 | BD15: =-((BL15+BM15)*'Weldon Credit'!$BB$37) -> 0 | BE15: =-((BL15+BM15)*'Weldon Credit'!$BB$35) -> 0 | BF15: =-INDEX('Weldon Credit'!$AX$281:$BJ$308,MATCH($B$2,'Weldon Credit'!$AX$281:$AX$308,0),MATCH(A15,'Weldon Credit'!$AX$281:$BJ$281,0))/SP15/1.9835 -> -0.1409485256 | BG15: -0.1409485256 | BH15: =-(BL15+BM15)*'Weldon Credit'!$BB$38 -> 0 | BI15: =0.4*(INDEX('Riverside Pond Accrtns'!$B$6:$M$36,MATCH($B$2,'Riverside Pond Accrtns'!$A$6:$A$36,0),MATCH('ECCV Daily Replacement Summary'!A15,'Riverside Pond Accrtns'!$B$5:$M$5,0))/SP15)/1.9835 -> 1.65541047 | BJ15: =(44/640)*(INDEX('Weldon Valley Accrtns (02CW377)'!$B$6:$M$30,MATCH($B$2,'Weldon Valley Accrtns (02CW377)'!$A$6:$A$30,0),MATCH(A15,'Weldon Valley Accrtns (02CW377)'!$B$5:$M$5,0))/SP15)/1.9835 -> 0.2998172422 | BK15: =(VLOOKUP($B15,'ECCV 70R Pond Acrtns'!$B$7:$AI$1206,25)+VLOOKUP($B15,'ECCV 70R Canal Acrtns'!$B$7:$AI$1206,20)+VLOOKUP($B15,'2003 70R Pond Acrtns'!$B$7:$AI$1206,25)+VLOOKUP($B15,'2003 70R Canal Acrtns'!$B$7:$AI$1206,20))/$SP15/1.9835 -> 0 | BL15: ='Joint Aug Station Deliveries'!G15 -> 0 | BM15: ='Joint Aug Station Deliveries'!H15 -> 0 | BN15: 0 | BO15: 0 | BP15: =IF(CB15="no",-MAX(0,MIN(BO15,(BM15-BL15))*(0.5/100*'Distances for Transit Losses'!$C$75)),0) -> 0 | BQ15: 0 | BR15: =MIN(-($BC15+BG15+BH15+BN15+BO15+BP15),BI15-BI15*0.5/100*'Distances for Transit Losses'!$C$77) -> 0.1489449456 | BS15: 0 | BT15: =MIN(-($BC15+BG15+BH15+BN15+BO15+BP15+BR15+BS15),BK15-BK15*0.5/100*'Distances for Transit Losses'!$C$77) -> 0 | BU15: =-((BR15+BT15)*(0.5/100*'Distances for Transit Losses'!$C$77)) -> -0.01586263671 | BV15: =IF(AND(JS15-JT15-GL15-DU15>0,JN15="no"),MIN(-(BC15+BG15+BH15+BN15+BO15+BP15+BR15+BS15+BT15+BU15)/(1-0.5/100*'Distances for Transit Losses'!$C$99),JS15-JT15-GL15-DU15),0) -> 0 | BW15: =--BV15*0.5/100*'Distances for Transit Losses'!C$99 -> 0 | BX15: =IF(AND(HZ15-IA15-JV15-GR15-LU15-DY15>0,GE15="no"),MIN(-(BC15+BG15+BH15+BN15+BO15+BP15+BR15+BS15+BT15+BU15+BV15+BW15)/(1-0.5/100*'Distances for Transit Losses'!$C$101),HZ15-IA15-JV15-GR15-LU15-DY15),0) -> 0 | BY15: =--BX15*0.5/100*'Distances for Transit Losses'!$C$101 -> 0 | BZ15: 0 | CB15: no | CC15: no | CD15: no | CE15: 0 | CF15: 0 | CG15: 0 | CI15: =IF($CD15="No",MIN(IF(-DP15<0,0,-DP15),BI15-BR15/(1-0.5/100*'Distances for Transit Losses'!$C$77)),0) -> 0 | CJ15: =IF($CD15="No",IF(MIN(-DP15+CI15,BK15-BT15/(1-0.5/100*'Distances for Transit Losses'!$C$77))<0,0,MIN(-DP15+CI15,BK15-BT15/(1-0.5/100*'Distances for Transit Losses'!$C$77))),0) -> 0 | CK15: 0 | CL15: 0 | CM15: 0 | CN15: 1.809635579 | CO15: 1.849635579 | CP15: =-(IF($N15=99999.99999,0,VLOOKUP($B15,'NFC Well Dplns-SDF'!$B$7:$Z$306,16)+VLOOKUP($B15,'NFC Well Dplns-URF'!$B$7:$AB$306,13))/$SP15/1.9835) -> 0 | CQ15: =-(IF($N15>=99999,0,'88CW264(B) Pumping'!$E13/1.9835)+IF($N15>=99999,0,'88CW264(B) Pumping'!$E49/1.9835)+IF($N15>=99999,0,'88CW264(B) Pumping'!$E89/1.9835)+IF($N15>=99999,0,'88CW264(B) Pumping'!$E125/1.9835)+IF($N15>=51134.50919,0,'88CW264(B) Pumping'!$E165/1.9835)+IF($N15>=53406,0,'88CW264(B) Pumping'!$E201/1.9835)) -> 0 | CR15: 0 | CS15: 0.03193008991 | CV15: =-(IF($N15=99999.99999,0,VLOOKUP($B15,'United No. 2 Dplns'!$B$7:$X$676,13)/1.9835)) -> 0 | CW15: =CV15+(-(INDEX('Pre 1995 Net Accretions'!$B$6:$M$105,MATCH($B$2,'Pre 1995 Net Accretions'!$A$6:$A$105,0),MATCH($A15,'Pre 1995 Net Accretions'!$B$5:$M$5,0))/$SP15/1.9835)) -> 0.02775653206 | CX15: =-(IF(N15<99999.99999,(INDEX('70 Ranch RF Obligation'!$B$6:$M$36,MATCH($B$2,'70 Ranch RF Obligation'!$A$6:$A$36,0),MATCH('ECCV Daily Replacement Summary'!A15,'70 Ranch RF Obligation'!$B$5:$M$5,0))/SP15)/1.9835,0))-DA15*(1-'L. Latham Credit'!$E$41) -> 0 | CY15: 0 | CZ15: =(VLOOKUP($B15,'ECCV 70R Pond Acrtns'!$B$7:$AI$1206,16)+VLOOKUP($B15,'ECCV 70R Canal Acrtns'!$B$7:$AI$1206,13)+VLOOKUP($B15,'2003 70R Pond Acrtns'!$B$7:$AI$1206,16)+VLOOKUP($B15,'2003 70R Canal Acrtns'!$B$7:$AI$1206,13))/$SP15/1.9835 -> 0 | DA15: ='Joint Aug Station Deliveries'!DE15 -> 0 | DB15: 0 | DC15: 0 | DD15: ='Joint Aug Station Deliveries'!DH15 -> 0 | DE15: 0 | DF15: 0 | DI15: 0.02775653206 | DJ15: 0 | DK15: 0 | DL15: =-DK15*0.5/100*'Distances for Transit Losses'!$C$48 -> 0 | DM15: 0 | DN15: 0 | DO15: 0 | DP15: 0.03193008991 | DQ15: 0 | DR15: 0 | DS15: 0 | DT15: =('NFC Well Pumping'!I13+'NFC Well Pumping'!I50+'NFC Well Pumping'!I86)/1.9835 -> 0 | DU15: =IF(AND(JS15-JT15-GL15>0,JN15="no"),MIN(-SUM(DP15:DT15)/(1-0.5/100*'Distances for Transit Losses'!$C$103),JS15-JT15-GL15),0) -> 0 | DV15: =-DU15*0.5/100*'Distances for Transit Losses'!C$103 -> 0 | DW15: 0 | DX15: =-DW15*0.5/100*'Distances for Transit Losses'!$C$127 -> 0 | DY15: =IF(AND(HZ15-IA15-JV15-GR15-LU15>0,GE15="no"),MIN(-SUM(DP15:DX15)/(1-0.5/100*'Distances for Transit Losses'!$C$105),HZ15-IA15-JV15-GR15-LU15),0) -> 0 | DZ15: =--DY15*0.5/100*'Distances for Transit Losses'!$C$105 -> 0 | EA15: 0.02775653206 | EB15: =IF('Joint Aug Station Deliveries'!R15="Yes",'Joint Aug Station Deliveries'!P15,0) -> 0 | EC15: ='Joint Aug Station Deliveries'!T15 -> 0 | ED15: =IF('Joint Aug Station Deliveries'!Z15="Yes",'Joint Aug Station Deliveries'!X15,0) -> 0 | EE15: =-(ED15*0.5/100*'Distances for Transit Losses'!$C$216) -> 0 | EF15: =IF('Joint Aug Station Deliveries'!AD15="Yes",'Joint Aug Station Deliveries'!AB15,0) -> 0 | EG15: =-(EF15*0.5/100*'Distances for Transit Losses'!$C$248) -> 0 | EH15: 0 | EI15: =-(EH15*0.5/100*'Distances for Transit Losses'!$C$238) -> 0 | EJ15: no | EK15: =IF('Joint Aug Station Deliveries'!AH15="Yes",'Joint Aug Station Deliveries'!AF15,0) -> 0 | EL15: =-(EK15*0.5/100*'Distances for Transit Losses'!$C$250) -> 0 | EM15: =IF('Joint Aug Station Deliveries'!AL15="Yes",'Joint Aug Station Deliveries'!AJ15,0) -> 0 | EN15: =-(EM15*0.5/100*'Distances for Transit Losses'!$C$252) -> 0 | EO15: =IF('Joint Aug Station Deliveries'!AP15="Yes",'Joint Aug Station Deliveries'!AN15,0) -> 0 | EP15: =-(EO15*0.5/100*'Distances for Transit Losses'!$C$254) -> 0 | EQ15: =-0.25*(INDEX('GIC Credit'!$B$85:$M$116,MATCH($B$2,'GIC Credit'!$A$85:$A$116,0),MATCH($A15,'GIC Credit'!$B$85:$M$85,0))/$SP15/1.9835+FK15*'GIC Credit'!$Z$39+FL15*'GIC Credit'!$AO$39) -> -0.0001915 | ER15: -0.0001915 | ES15: ='Joint Aug Station Deliveries'!CW15 -> 0 | ET15: =-(ES15*0.5/100*'Distances for Transit Losses'!$C$244) -> 0 | EU15: ='Joint Aug Station Deliveries'!CX15 -> 0 | EV15: =-(EU15*0.5/100*'Distances for Transit Losses'!$C$246) -> 0 | EW15: 0 | EY15: no | EZ15: -0.0001915 | FA15: =-0.39*(INDEX('GIC Credit'!$B$85:$M$116,MATCH($B$2,'GIC Credit'!$A$85:$A$116,0),MATCH($A15,'GIC Credit'!$B$85:$M$85,0))/$SP15/1.9835+FK15*'GIC Credit'!$Z$39+FL15*'GIC Credit'!$AO$39) -> -0.00029874 | FB15: 0 | FC15: =-(FB15*0.5/100*('Distances for Transit Losses'!$C$220+'Distances for Transit Losses'!$C$226)) -> 0 | FD15: =IF('Joint Aug Station Deliveries'!AT15="Yes",'Joint Aug Station Deliveries'!AR15,0) -> 0 | FE15: =-(FD15*0.5/100*('Distances for Transit Losses'!$C$222+'Distances for Transit Losses'!$C$224)) -> 0 | FF15: =IF('Joint Aug Station Deliveries'!AX15="Yes",'Joint Aug Station Deliveries'!AV15,0) -> 0 | FG15: =-(FF15*0.5/100*'Distances for Transit Losses'!$C$224) -> 0 | FH15: ='Joint Aug Station Deliveries'!CY15 -> 0 | FI15: =-(FH15*0.5/100*'Distances for Transit Losses'!$C$230) -> 0 | FJ15: 0 | FK15: ='Joint Aug Station Deliveries'!DA15 -> 0 | FL15: ='Joint Aug Station Deliveries'!DB15 -> 0 | FM15: =MIN(0,EZ15)+SUM(FA15:FC15)+EB15/(1-0.5/100*('Distances for Transit Losses'!$C$256+'Distances for Transit Losses'!$C$268))+EC15/(1-0.5/100*('Distances for Transit Losses'!$C$242))+SUM(ED15:EE15)/(1-0.5/100*('Distances for Transit Losses'!$C$258+'Distances for Transit Losses'!$C$268))+SUM(EF15:EG15)/(1-0.5/100*('Distances for Transit Losses'!$C$260+'Distances for Transit Losses'!$C$268))+EH15/(1-0.5/100*('Distances for Transit Losses'!$C$242))+SUM(EK15:EL15)/(1-0.5/100*('Distances for Transit Losses'!$C$262+'Distances for Transit Losses'!$C$270))+SUM(EM15:EN15)/(1-0.5/100*('Distances for Transit Losses'!$C$264+'Distances for Transit Losses'!$C$270))+SUM(EO15:EP15)/(1-0.5/100*('Distances for Transit Losses'!$C$266+'Distances for Transit Losses'!$C$270))+SUM(FD15:FG15)/(1-0.5/100*('Distances for Transit Losses'!$C$226))+SUM(FH15:FI15) -> -0.00049024 | FN15: =-(IF(N15<99999.99999,INDEX('Hist RF to SPR'!$AF$6:$AQ$30,MATCH($B$2,'Hist RF to SPR'!$AE$6:$AE$30,0),MATCH($A15,'Hist RF to SPR'!$AF$5:$AQ$5,0))/SP15/1.9835,0)) -> 0 | FO15: =IF(N15<99999.99999,-INDEX('New Cache Credit'!$BO$109:$CA$136,MATCH($B$2,'New Cache Credit'!$BO$109:$BO$136,0),MATCH(A15,'New Cache Credit'!$BO$109:$CA$109,0))/SP15/1.9835-INDEX('New Cache Credit'!$CD$77:$CP$104,MATCH($B$2,'New Cache Credit'!$CD$77:$CD$104,0),MATCH(A15,'New Cache Credit'!$CD$77:$CP$77,0))/SP15/1.9835,0) -> 0 | FP15: =-0.36*(INDEX('GIC Credit'!$B$85:$M$116,MATCH($B$2,'GIC Credit'!$A$85:$A$116,0),MATCH($A15,'GIC Credit'!$B$85:$M$85,0))/$SP15/1.9835+FK15*'GIC Credit'!$Z$39+FL15*'GIC Credit'!$AO$39) -> -0.00027576 | FQ15: -0.00049024 | FR15: -0.000766 | FS15: 0 | FT15: =IF('Joint Aug Station Deliveries'!BB15="Yes",'Joint Aug Station Deliveries'!AZ15,0) -> 0 | FU15: =-(FT15*0.5/100*'Distances for Transit Losses'!$C$208) -> 0 | FV15: =IF('Joint Aug Station Deliveries'!BF15="Yes",'Joint Aug Station Deliveries'!BD15,0) -> 0 | FW15: =-(FV15*0.5/100*'Distances for Transit Losses'!$C$210) -> 0 | FX15: =IF('Joint Aug Station Deliveries'!BJ15,'Joint Aug Station Deliveries'!BH15,0) -> 0 | FY15: =-(FX15*0.5/100*'Distances for Transit Losses'!$C$212) -> 0 | FZ15: =IF('Joint Aug Station Deliveries'!BN15="Yes",'Joint Aug Station Deliveries'!BL15,0) -> 0 | GA15: =-(FZ15*0.5/100*'Distances for Transit Losses'!$C$200) -> 0 | GB15: =IF('Joint Aug Station Deliveries'!BR15="Yes",'Joint Aug Station Deliveries'!BP15,0) -> 0 | GC15: =-(GB15*0.5/100*'Distances for Transit Losses'!$C$206) -> 0 | GD15: =MIN(-FR15-FS15,SUM(FT15:FU15)/(1-0.5/100*('Distances for Transit Losses'!$C$274))+SUM(FV15:FW15)/(1-0.5/100*('Distances for Transit Losses'!$C$276))+SUM(FX15:FY15)+SUM(FZ15:GA15)+SUM(GB15:GC15)) -> 0 | GE15: no | GF15: 0 | GG15: 0 | GH15: 0 | GJ15: 0.000766 | GK15: 0 | GL15: =IF(AND(JS15-JT15-HV15>0,JN15="no"),MIN(-(FR15+FS15+GD15+GJ15+GK15)/(1-0.5/100*'Distances for Transit Losses'!$C$107),JS15-JT15-HV15),0) -> 0 | GM15: 0 | GN15: 0 | GO15: =-GL15*0.5/100*'Distances for Transit Losses'!$C$107 -> 0 | GP15: 0 | GQ15: =-GP15*0.5/100*'Distances for Transit Losses'!$C$125 -> 0 | GR15: =IF(AND(HZ15-IA15-JV15>0,HL15="no"),MIN(-(FR15+FS15+GD15+GJ15+GK15+GL15+GO15+GP15+GQ15)/(1-0.5/100*'Distances for Transit Losses'!$C$109),HZ15-IA15-JV15),0) -> 0 | GS15: =-GR15*0.5/100*'Distances for Transit Losses'!$C$115 -> 0 | GT15: 0 | GV15: 0 | GW15: 0 | GX15: 0 | GY15: 0.02699053206 | GZ15: 1.849635579 | HA15: =-(IF(N15<99999.99999,INDEX('Hist RF to SPR'!$Q$6:$AB$30,MATCH($B$2,'Hist RF to SPR'!$P$6:$P$30,0),MATCH($A15,'Hist RF to SPR'!$Q$5:$AB$5,0))/SP15/1.9835,0)) -> 0 | HB15: =-(IF(OR($N15<99999.99999,E15="Lower Latham",I15="Lower Latham",E15="Highland",I15="Highland",E15="Plum",I15="Plum"),(INDEX('FIDCO Credit'!$Y$48:$AJ$78,MATCH($B$2,'FIDCO Credit'!$X$48:$X$78,0),MATCH($A15,'FIDCO Credit'!$Y$47:$AJ$47,0))/$SP15)/1.9835,0)) -> 0 | HC15: =-(IF(OR($N15<99999.99999,E15="Lower Latham",I15="Lower Latham",E15="Highland",I15="Highland",E15="Plum",I15="Plum"),(INDEX('Western Credit'!$W$84:$AH$114,MATCH($B$2,'Western Credit'!$V$84:$V$114,0),MATCH($A15,'Western Credit'!$W$83:$AH$83,0))/$SP15)/1.9835+'Haren Daily Recharge'!K14*'Western Credit'!$Z$40,0)) -> 0 | HD15: 0 | HE15: 0 | HF15: 0 | HG15: =IF(AND(HM15="no",HN15="no"),MIN(-(HB15-HE15-HF15)/(1-0.5/100*'Distances for Transit Losses'!$C$95),JK15),0) -> 0 | HH15: =-HG15*0.5/100*'Distances for Transit Losses'!$C$95 -> 0 | HI15: =VLOOKUP($B15,'ECCV Haren Pond S.P. Acrtns'!$B$7:$G$306,6)/$SP15/1.9835-0.01 -> 1.661957767 | HJ15: 0 | HK15: 0 | HL15: no | HM15: no | HN15: no | HO15: 0 | HP15: 0 | HQ15: 0 | HS15: 0 | HT15: 0 | HU15: 0 | HV15: =IF(AND(JS15-JT15>0,JN15="no"),MIN(-HU15/(1-0.5/100*'Distances for Transit Losses'!$C$111),JS15-JT15),0) -> 0 | HW15: =-HV15*0.5/100*'Distances for Transit Losses'!$C$111 -> 0 | HX15: =IF(AND(JW15+JX15-JY15-KJ15>0,JN15="no"),MIN((-HU15-(HV15+HW15))/(1-0.5/100*'Distances for Transit Losses'!$C$113),JW15+JX15-JY15-KJ15),0) -> 0 | HY15: =-HX15*0.5/100*'Distances for Transit Losses'!$C$113 -> 0 | HZ15: 0 | IA15: =IF(HZ15>0,MIN(-(HU15+HV15+HW15+HX15+HY15)/(1-0.5/100*'Distances for Transit Losses'!$C$115),HZ15),0) -> 0 | IB15: =-IA15*0.5/100*'Distances for Transit Losses'!$C$115 -> 0 | IC15: 0 | IE15: 0 | IF15: ='Joint Aug Station Deliveries'!CJ15 -> 0 | IG15: =IF15*'Western Credit'!$Z$42 -> 0 | IH15: ='Joint Aug Station Deliveries'!CA15 -> 0 | II15: =IF(AND(IH15>0,SUM($IH$9:IH15,$IJ$9:IJ15,$JK$9:JK15)*1.9835<OFFSET('FIDCO Credit'!$X$39,0,MATCH($A15,'FIDCO Credit'!$Y$5:$AJ$5,0))),IH15-HE15,0) -> 0 | IJ15: ='Joint Aug Station Deliveries'!CD15 -> 0 | IK15: =IF(AND(IJ15>0,SUM($IH$9:IH15,$IJ$9:IJ15,$JK$9:JK15)*1.9835<OFFSET('FIDCO Credit'!$X$39,0,MATCH($A15,'FIDCO Credit'!$Y$5:$AJ$5,0))),IJ15-HF15,0) -> 0 | IL15: =MAX(0,(LP15+LQ15))/(1-0.5/100*'Distances for Transit Losses'!$C$83) -> 0 | IM15: =MAX(0,(LR15+LS15)/(1-0.5/100*'Distances for Transit Losses'!$C$79)) -> 0 | IN15: 0 | IO15: =-IN15*0.5/100*'Distances for Transit Losses'!$C$85 -> 0 | IP15: 0 | IQ15: 0 | IR15: =-IQ15*0.5/100*'Distances for Transit Losses'!$C$34 -> 0 | IS15: 0 | IT15: 0 | IU15: 0 | IV15: 0 | IW15: 0 | IX15: 0 | IY15: 1.849635579 | IZ15: 0 | JA15: 0.02699053206 | JB15: 0 | JC15: 0 | JD15: 0 | JE15: =-JD15*0.5/100*'Distances for Transit Losses'!$C$123 -> 0 | JF15: 0 | JG15: 1.661957767 | JH15: 0.02699053206 | JI15: 1.849635579 | JJ15: =-(IF(F15<99999.99999,INDEX('Hist RF to SPR'!$B$6:$M$30,MATCH($B$2,'Hist RF to SPR'!$A$6:$A$30,0),MATCH($A15,'Hist RF to SPR'!$B$5:$M$5,0))/SP15/1.9835,0)) -> 0 | JK15: ='Joint Aug Station Deliveries'!CG15 -> 0 | JL15: =IF(AND(JK15>0,SUM($IH$9:IH15,$IJ$9:IJ15,$JK$9:JK15)*1.9835<OFFSET('FIDCO Credit'!$X$39,0,MATCH($A15,'FIDCO Credit'!$Y$5:$AJ$5,0))),JK15-HG15,0) -> 0 | JM15: 0 | JN15: no | JO15: 0 | JP15: 0 | JQ15: 0 | JR15: 0 | JS15: 0 | JT15: =IF(JS15>0,MIN(-JR15/(1-0.5/100*'Distances for Transit Losses'!$C$117),JS15),0) -> 0 | JU15: =-JT15*0.5/100*'Distances for Transit Losses'!$C$117 -> 0 | JV15: 0 | JW15: 0 | JX15: =-JW15*0.5/100*'Distances for Transit Losses'!$C$70 -> 0 | JY15: =IF((JW15+JX15)>0,MIN((-JR15-(JT15-JU15)-JV15)/(1-0.5/100*'Distances for Transit Losses'!$C$119),(JW15+JX15)),0) -> 0 | JZ15: =-JY15*0.5/100*'Distances for Transit Losses'!$C$119 -> 0 | KA15: 0 | KC15: 0 | KD15: 1.849635579 | KE15: 0 | KF15: 0.02699053206 | KG15: 0 | KH15: 0 | KI15: 0 | KJ15: 0 | KK15: =-KJ15*0.5/100*'Distances for Transit Losses'!$C$121 -> 0 | KL15: 0 | KM15: 0.02699053206 | KN15: 1.849635579 | KO15: =-(IF(N15<99999.99999,(VLOOKUP(B15,'ECCV Upper Dpln'!$B$7:$BD$306,55))/SP15/1.9835,0)) -> 0 | KP15: =-(IF(N15<99999.99999,INDEX('Hist RF abv Milton'!$B$6:$M$30,MATCH($B$2,'Hist RF abv Milton'!$A$6:$A$30,0),MATCH($A15,'Hist RF abv Milton'!$B$5:$M$5,0))/SP15/1.9835,0)) -> 0 | KQ15: 0 | KR15: =(VLOOKUP($B15,'ECCV Beebe Pond Acrtns'!$B$7:$BI$1206,41)+VLOOKUP($B15,'ECCV Canal Acrtns'!$B$7:$AL$1206,22)+VLOOKUP($B15,'2003 Beebe Pond Acrtns'!$B$7:$BI$1206,41)+VLOOKUP($B15,'2003 Canal Acrtns'!$B$7:$AL$1206,22))/$SP15/1.9835 -> 1.065139416 | KS15: ='Barr Lake'!BV26 -> 0 | KT15: 0 | KU15: 0 | KV15: 0 | KW15: 0 | KX15: 0 | KY15: 0 | KZ15: 0 | LA15: no | LB15: 0 | LC15: 0 | LD15: 0 | LE15: 0 | LF15: 0 | LG15: 0 | LH15: 0 | LI15: 0 | LJ15: 0 | LK15: 0 | LL15: =-(LK15*0.5/100*'Distances for Transit Losses'!$C$6) -> 0 | LM15: 0 | LN15: 0 | LO15: 0 | LP15: =IF(AND(E15<>"Lower Latham",I15<>"Lower Latham"),MIN(-(LJ15+LM15),II15-II15*0.5/100*'Distances for Transit Losses'!$C$83),0) -> 0 | LQ15: =IF(AND(E15<>"Lower Latham",I15<>"Lower Latham"),MAX(0,MIN(-(LI15+LK15+LL15+LO15),II15-II15*0.5/100*'Distances for Transit Losses'!$C$83-LP15/(1-0.5/100*'Distances for Transit Losses'!$C$83))),0) -> 0 | LR15: =MIN(-(LJ15+LP15),IG15-IG15*0.5/100*'Distances for Transit Losses'!$C$79) -> 0 | LS15: =MAX(0,MIN(-(LI15+LK15+LL15+LQ15),IG15-IG15*0.5/100*'Distances for Transit Losses'!$C$79-LR15/(1-0.5/100*'Distances for Transit Losses'!$C$79))) -> 0 | LT15: =IF(GE15="no",MIN(-(MIN(0,LI15+LJ15+LK15+LL15+LQ15+LS15)),(HI15-HJ15)-(HI15-HJ15)*0.5/100*'Distances for Transit Losses'!$C$79),0) -> 0 | LU15: =MAX(0,IF(AND(HZ15-IA15-JV15-GR15>0,GE15="no"),MIN(-(LI15+LK15+LL15+LO15+LQ15+LS15+LT15)/(1-0.5/100*'Distances for Transit Losses'!$C$89),HZ15-IA15-JV15-GR15),0)) -> 0 | LV15: =-LU15*0.5/100*'Distances for Transit Losses'!$C$89 -> 0 | LY15: 0 | LZ15: 1.065139416 | MA15: 0 | MB15: 0.02775653206 | MC15: 1.849635579 | MD15: =-(IF(N15<99999.99999,INDEX('Hist RF blw Milton'!$B$6:$M$30,MATCH($B$2,'Hist RF blw Milton'!$A$6:$A$30,0),MATCH($A15,'Hist RF blw Milton'!$B$5:$M$5,0))/SP15/1.9835,0)) -> 0 | ME15: no | MF15: 0 | MG15: 0 | MH15: 0 | MI15: 0 | MJ15: 0 | MK15: 0.03 | ML15: Haren Recharge | MM15: ='Milton Lake'!DY14 -> 0 | MN15: 0 | MO15: 0 | MP15: 0.02775653206 | MQ15: 1.849635579 | MR15: =-(IF(N15<99999.99999,INDEX('Hist RF to Box Elder'!$B$6:$M$30,MATCH($B$2,'Hist RF to Box Elder'!$A$6:$A$30,0),MATCH($A15,'Hist RF to Box Elder'!$B$5:$M$5,0))/SP15/1.9835,0)) -> 0 | MS15: =(VLOOKUP($B15,'ECCV Beebe Pond Acrtns'!$B$7:$BI$1206,54)+VLOOKUP($B15,'ECCV Canal Acrtns'!$B$7:$AL$1206,34)+VLOOKUP($B15,'2003 Beebe Pond Acrtns'!$B$7:$BI$1206,54)+VLOOKUP($B15,'2003 Canal Acrtns'!$B$7:$AL$1206,34)+VLOOKUP($B15,'84CW090 Beebe Pond Acrtns'!$B$7:$BI$1206,55)+VLOOKUP($B15,'84CW090 Canal Acrtns'!$B$7:$AL$1206,34))/$SP15/1.9835 -> 0.1080499331 | MT15: 0 | MU15: 0 | MV15: 0 | MW15: 0 | MY15: -0.1502011856 | MZ15: 0 | NA15: 0.03 | NB15: 0 | NC15: 0 | ND15: 0 | NE15: 0.000766 | NF15: 0 | NG15: 0.03193008991 | NH15: 0.1764351214 | NI15: 0.2391312113 | NJ15: 0.08893002566 | NK15: 1.065139416 | NL15: 0.02699053206 | NM15: 1.849635579 | NO15: 0 | NP15: 0 | NQ15: 0 | NR15: 0 | NS15: 0 | NT15: 0 | NU15: 0 | NV15: 0 | NX15: 0 | NY15: 0 | NZ15: 0 | OA15: 0 | OB15: 0 | OC15: 0 | OD15: 0 | OE15: 0 | OF15: 0 | OG15: 0 | OH15: 0 | OI15: 0 | OK15: 0 | OL15: 0 | OM15: 0 | ON15: 0 | OO15: 0 | OP15: 0 | OQ15: 0 | OR15: 0 | OS15: 0 | OT15: 0 | OU15: 0 | OW15: 1.876626111 | OX15: 0 | OY15: 0 | OZ15: 0 | PA15: 0 | PB15: 0 | PC15: 0 | PD15: 0 | PE15: 0 | PF15: 0 | PG15: 0 | PI15: 0 | PJ15: 0 | PK15: 0 | PL15: 0 | PM15: 0 | PN15: 0 | PO15: 0 | PP15: 0 | PQ15: 0 | PR15: 0 | PS15: 0 | PT15: 0 | PU15: 0 | PW15: 0 | PX15: 0 | PY15: 0 | PZ15: 0 | QA15: 0 | QB15: 0 | QC15: 0 | QD15: 0 | QE15: 0 | QG15: 0 | QH15: 0 | QI15: 0 | QJ15: 0 | QK15: 0 | QL15: 0 | QM15: 0 | QN15: 0 | QP15: 0 | QQ15: 0 | QR15: 0 | QT15: 0 | QU15: 0 | QV15: 0 | QW15: 0 | QZ15: 0 | RA15: 0 | RB15: 0 | RC15: 0 | RD15: 0 | RE15: 0 | RF15: 0 | RH15: 0 | RI15: 0 | RJ15: 0 | RK15: 0 | RL15: 0 | RM15: 309.6 | RO15: 1.065139416 | RP15: 0 | RQ15: 0 | RR15: 0 | RS15: 0 | RT15: 0 | RU15: 0 | RV15: 0 | RW15: 0 | RX15: 0 | RY15: 0 | RZ15: 0 | SA15: 0 | SB15: 0 | SC15: 0 | SD15: 0 | SE15: 0 | SF15: 0 | SG15: 0 | SH15: 0 | SI15: 1.065139416 | SJ15: TRUE | SK15: TRUE | SM15: 0 | SN15: 0 | SP15: =VLOOKUP(A15,'Control Sheet'!$G$9:$H$20,2) -> 30
A16: Apr | B16: 2018-04-08 | C16: Free River | F16: 99999.99999 | K16: Free River | N16: 99999.99999 | AA16: 1.876626111 | AB16: 0 | AC16: 0 | AD16: 0 | AE16: 0 | AF16: 0 | AG16: =('NFC Well Pumping'!$L14+'NFC Well Pumping'!$L51+'NFC Well Pumping'!$L87)/1.9835 -> 3.202720816 | AH16: ='88CW264(B) Pumping'!$E14/1.9835+'88CW264(B) Pumping'!$E50/1.9835+'88CW264(B) Pumping'!E90/1.9835+'88CW264(B) Pumping'!E126/1.9835+'88CW264(B) Pumping'!E166/1.9835+'88CW264(B) Pumping'!E202/1.9835 -> 0.01481193911 | AI16: 1.876626111 | AJ16: =('United No. 2 Well Pumping'!G15+'United No. 2 Well Pumping'!G51+'United No. 2 Well Pumping'!G87)/1.9835 -> 0 | AK16: =('United No. 2 Well Pumping'!F15+'United No. 2 Well Pumping'!F51+'United No. 2 Well Pumping'!F87)/1.9835 -> 0 | AL16: 0 | AN16: 3.217532755 | AO16: =AC16+AK16+'United Res'!AA178+'United Res'!AQ178+'Milliken Res'!I166 -> 0 | AP16: 100 | AQ16: =-(IF($N16=99999.99999,0,VLOOKUP($B16,'NFC Well Dplns-URF'!B$7:$AB$306,27))/$SP16/1.9835) -> 0 | AR16: 0 | AT16: =(VLOOKUP($B16,'ECCV 70R Pond Acrtns'!$B$7:$AI$1206,34)+VLOOKUP($B16,'2003 70R Pond Acrtns'!$B$7:$AI$1206,34)+VLOOKUP($B16,'ECCV 70R Canal Acrtns'!$B$7:$AI$1206,27)+VLOOKUP($B16,'2003 70R Canal Acrtns'!$B$7:$AI$1206,27))/$SP16/1.9835 -> 0 | AU16: 0 | AV16: =-(IF($N16=99999.99999,0,VLOOKUP($B16,'NFC Well Dplns-SDF'!$B$7:$Z$306,25)+VLOOKUP($B16,'NFC Well Dplns-URF'!B$7:$AB$306,20))/$SP16/1.9835) -> 0 | AW16: 0.003352812464 | AX16: 0.04 | AY16: ECCV Riverside Credits | AZ16: =-((BL16+BM16)*'Weldon Credit'!$BB$36) -> 0 | BA16: =-((BL16+BM16)*'Weldon Credit'!$BB$34) -> 0 | BB16: =-INDEX('Weldon Credit'!$AX$249:$BJ$276,MATCH($B$2,'Weldon Credit'!$AX$249:$AX$276,0),MATCH(A16,'Weldon Credit'!$AX$249:$BJ$249,0))/SP16/1.9835 -> -0.007996419995 | BC16: -0.007996419995 | BD16: =-((BL16+BM16)*'Weldon Credit'!$BB$37) -> 0 | BE16: =-((BL16+BM16)*'Weldon Credit'!$BB$35) -> 0 | BF16: =-INDEX('Weldon Credit'!$AX$281:$BJ$308,MATCH($B$2,'Weldon Credit'!$AX$281:$AX$308,0),MATCH(A16,'Weldon Credit'!$AX$281:$BJ$281,0))/SP16/1.9835 -> -0.1409485256 | BG16: -0.1409485256 | BH16: =-(BL16+BM16)*'Weldon Credit'!$BB$38 -> 0 | BI16: =0.4*(INDEX('Riverside Pond Accrtns'!$B$6:$M$36,MATCH($B$2,'Riverside Pond Accrtns'!$A$6:$A$36,0),MATCH('ECCV Daily Replacement Summary'!A16,'Riverside Pond Accrtns'!$B$5:$M$5,0))/SP16)/1.9835 -> 1.65541047 | BJ16: =(44/640)*(INDEX('Weldon Valley Accrtns (02CW377)'!$B$6:$M$30,MATCH($B$2,'Weldon Valley Accrtns (02CW377)'!$A$6:$A$30,0),MATCH(A16,'Weldon Valley Accrtns (02CW377)'!$B$5:$M$5,0))/SP16)/1.9835 -> 0.2998172422 | BK16: =(VLOOKUP($B16,'ECCV 70R Pond Acrtns'!$B$7:$AI$1206,25)+VLOOKUP($B16,'ECCV 70R Canal Acrtns'!$B$7:$AI$1206,20)+VLOOKUP($B16,'2003 70R Pond Acrtns'!$B$7:$AI$1206,25)+VLOOKUP($B16,'2003 70R Canal Acrtns'!$B$7:$AI$1206,20))/$SP16/1.9835 -> 0 | BL16: ='Joint Aug Station Deliveries'!G16 -> 0 | BM16: ='Joint Aug Station Deliveries'!H16 -> 0 | BN16: 0 | BO16: 0 | BP16: =IF(CB16="no",-MAX(0,MIN(BO16,(BM16-BL16))*(0.5/100*'Distances for Transit Losses'!$C$75)),0) -> 0 | BQ16: 0 | BR16: =MIN(-($BC16+BG16+BH16+BN16+BO16+BP16),BI16-BI16*0.5/100*'Distances for Transit Losses'!$C$77) -> 0.1489449456 | BS16: 0 | BT16: =MIN(-($BC16+BG16+BH16+BN16+BO16+BP16+BR16+BS16),BK16-BK16*0.5/100*'Distances for Transit Losses'!$C$77) -> 0 | BU16: =-((BR16+BT16)*(0.5/100*'Distances for Transit Losses'!$C$77)) -> -0.01586263671 | BV16: =IF(AND(JS16-JT16-GL16-DU16>0,JN16="no"),MIN(-(BC16+BG16+BH16+BN16+BO16+BP16+BR16+BS16+BT16+BU16)/(1-0.5/100*'Distances for Transit Losses'!$C$99),JS16-JT16-GL16-DU16),0) -> 0 | BW16: =--BV16*0.5/100*'Distances for Transit Losses'!C$99 -> 0 | BX16: =IF(AND(HZ16-IA16-JV16-GR16-LU16-DY16>0,GE16="no"),MIN(-(BC16+BG16+BH16+BN16+BO16+BP16+BR16+BS16+BT16+BU16+BV16+BW16)/(1-0.5/100*'Distances for Transit Losses'!$C$101),HZ16-IA16-JV16-GR16-LU16-DY16),0) -> 0 | BY16: =--BX16*0.5/100*'Distances for Transit Losses'!$C$101 -> 0 | BZ16: 0 | CB16: no | CC16: no | CD16: no | CE16: 0 | CF16: 0 | CG16: 0 | CI16: =IF($CD16="No",MIN(IF(-DP16<0,0,-DP16),BI16-BR16/(1-0.5/100*'Distances for Transit Losses'!$C$77)),0) -> 0 | CJ16: =IF($CD16="No",IF(MIN(-DP16+CI16,BK16-BT16/(1-0.5/100*'Distances for Transit Losses'!$C$77))<0,0,MIN(-DP16+CI16,BK16-BT16/(1-0.5/100*'Distances for Transit Losses'!$C$77))),0) -> 0 | CK16: 0 | CL16: 0 | CM16: 0 | CN16: 1.809635579 | CO16: 1.849635579 | CP16: =-(IF($N16=99999.99999,0,VLOOKUP($B16,'NFC Well Dplns-SDF'!$B$7:$Z$306,16)+VLOOKUP($B16,'NFC Well Dplns-URF'!$B$7:$AB$306,13))/$SP16/1.9835) -> 0 | CQ16: =-(IF($N16>=99999,0,'88CW264(B) Pumping'!$E14/1.9835)+IF($N16>=99999,0,'88CW264(B) Pumping'!$E50/1.9835)+IF($N16>=99999,0,'88CW264(B) Pumping'!$E90/1.9835)+IF($N16>=99999,0,'88CW264(B) Pumping'!$E126/1.9835)+IF($N16>=51134.50919,0,'88CW264(B) Pumping'!$E166/1.9835)+IF($N16>=53406,0,'88CW264(B) Pumping'!$E202/1.9835)) -> 0 | CR16: 0 | CS16: 0.03193008991 | CV16: =-(IF($N16=99999.99999,0,VLOOKUP($B16,'United No. 2 Dplns'!$B$7:$X$676,13)/1.9835)) -> 0 | CW16: =CV16+(-(INDEX('Pre 1995 Net Accretions'!$B$6:$M$105,MATCH($B$2,'Pre 1995 Net Accretions'!$A$6:$A$105,0),MATCH($A16,'Pre 1995 Net Accretions'!$B$5:$M$5,0))/$SP16/1.9835)) -> 0.02775653206 | CX16: =-(IF(N16<99999.99999,(INDEX('70 Ranch RF Obligation'!$B$6:$M$36,MATCH($B$2,'70 Ranch RF Obligation'!$A$6:$A$36,0),MATCH('ECCV Daily Replacement Summary'!A16,'70 Ranch RF Obligation'!$B$5:$M$5,0))/SP16)/1.9835,0))-DA16*(1-'L. Latham Credit'!$E$41) -> 0 | CY16: 0 | CZ16: =(VLOOKUP($B16,'ECCV 70R Pond Acrtns'!$B$7:$AI$1206,16)+VLOOKUP($B16,'ECCV 70R Canal Acrtns'!$B$7:$AI$1206,13)+VLOOKUP($B16,'2003 70R Pond Acrtns'!$B$7:$AI$1206,16)+VLOOKUP($B16,'2003 70R Canal Acrtns'!$B$7:$AI$1206,13))/$SP16/1.9835 -> 0 | DA16: ='Joint Aug Station Deliveries'!DE16 -> 0 | DB16: 0 | DC16: 0 | DD16: ='Joint Aug Station Deliveries'!DH16 -> 0 | DE16: 0 | DF16: 0 | DI16: 0.02775653206 | DJ16: 0 | DK16: 0 | DL16: =-DK16*0.5/100*'Distances for Transit Losses'!$C$48 -> 0 | DM16: 0 | DN16: 0 | DO16: 0 | DP16: 0.03193008991 | DQ16: 0 | DR16: 0 | DS16: 0 | DT16: =('NFC Well Pumping'!I14+'NFC Well Pumping'!I51+'NFC Well Pumping'!I87)/1.9835 -> 0 | DU16: =IF(AND(JS16-JT16-GL16>0,JN16="no"),MIN(-SUM(DP16:DT16)/(1-0.5/100*'Distances for Transit Losses'!$C$103),JS16-JT16-GL16),0) -> 0 | DV16: =-DU16*0.5/100*'Distances for Transit Losses'!C$103 -> 0 | DW16: 0 | DX16: =-DW16*0.5/100*'Distances for Transit Losses'!$C$127 -> 0 | DY16: =IF(AND(HZ16-IA16-JV16-GR16-LU16>0,GE16="no"),MIN(-SUM(DP16:DX16)/(1-0.5/100*'Distances for Transit Losses'!$C$105),HZ16-IA16-JV16-GR16-LU16),0) -> 0 | DZ16: =--DY16*0.5/100*'Distances for Transit Losses'!$C$105 -> 0 | EA16: 0.02775653206 | EB16: =IF('Joint Aug Station Deliveries'!R16="Yes",'Joint Aug Station Deliveries'!P16,0) -> 0 | EC16: ='Joint Aug Station Deliveries'!T16 -> 0 | ED16: =IF('Joint Aug Station Deliveries'!Z16="Yes",'Joint Aug Station Deliveries'!X16,0) -> 0 | EE16: =-(ED16*0.5/100*'Distances for Transit Losses'!$C$216) -> 0 | EF16: =IF('Joint Aug Station Deliveries'!AD16="Yes",'Joint Aug Station Deliveries'!AB16,0) -> 0 | EG16: =-(EF16*0.5/100*'Distances for Transit Losses'!$C$248) -> 0 | EH16: 0 | EI16: =-(EH16*0.5/100*'Distances for Transit Losses'!$C$238) -> 0 | EJ16: no | EK16: =IF('Joint Aug Station Deliveries'!AH16="Yes",'Joint Aug Station Deliveries'!AF16,0) -> 0 | EL16: =-(EK16*0.5/100*'Distances for Transit Losses'!$C$250) -> 0 | EM16: =IF('Joint Aug Station Deliveries'!AL16="Yes",'Joint Aug Station Deliveries'!AJ16,0) -> 0 | EN16: =-(EM16*0.5/100*'Distances for Transit Losses'!$C$252) -> 0 | EO16: =IF('Joint Aug Station Deliveries'!AP16="Yes",'Joint Aug Station Deliveries'!AN16,0) -> 0 | EP16: =-(EO16*0.5/100*'Distances for Transit Losses'!$C$254) -> 0 | EQ16: =-0.25*(INDEX('GIC Credit'!$B$85:$M$116,MATCH($B$2,'GIC Credit'!$A$85:$A$116,0),MATCH($A16,'GIC Credit'!$B$85:$M$85,0))/$SP16/1.9835+FK16*'GIC Credit'!$Z$39+FL16*'GIC Credit'!$AO$39) -> -0.0001915 | ER16: -0.0001915 | ES16: ='Joint Aug Station Deliveries'!CW16 -> 0 | ET16: =-(ES16*0.5/100*'Distances for Transit Losses'!$C$244) -> 0 | EU16: ='Joint Aug Station Deliveries'!CX16 -> 0 | EV16: =-(EU16*0.5/100*'Distances for Transit Losses'!$C$246) -> 0 | EW16: 0 | EY16: no | EZ16: -0.0001915 | FA16: =-0.39*(INDEX('GIC Credit'!$B$85:$M$116,MATCH($B$2,'GIC Credit'!$A$85:$A$116,0),MATCH($A16,'GIC Credit'!$B$85:$M$85,0))/$SP16/1.9835+FK16*'GIC Credit'!$Z$39+FL16*'GIC Credit'!$AO$39) -> -0.00029874 | FB16: 0 | FC16: =-(FB16*0.5/100*('Distances for Transit Losses'!$C$220+'Distances for Transit Losses'!$C$226)) -> 0 | FD16: =IF('Joint Aug Station Deliveries'!AT16="Yes",'Joint Aug Station Deliveries'!AR16,0) -> 0 | FE16: =-(FD16*0.5/100*('Distances for Transit Losses'!$C$222+'Distances for Transit Losses'!$C$224)) -> 0 | FF16: =IF('Joint Aug Station Deliveries'!AX16="Yes",'Joint Aug Station Deliveries'!AV16,0) -> 0 | FG16: =-(FF16*0.5/100*'Distances for Transit Losses'!$C$224) -> 0 | FH16: ='Joint Aug Station Deliveries'!CY16 -> 0 | FI16: =-(FH16*0.5/100*'Distances for Transit Losses'!$C$230) -> 0 | FJ16: 0 | FK16: ='Joint Aug Station Deliveries'!DA16 -> 0 | FL16: ='Joint Aug Station Deliveries'!DB16 -> 0 | FM16: =MIN(0,EZ16)+SUM(FA16:FC16)+EB16/(1-0.5/100*('Distances for Transit Losses'!$C$256+'Distances for Transit Losses'!$C$268))+EC16/(1-0.5/100*('Distances for Transit Losses'!$C$242))+SUM(ED16:EE16)/(1-0.5/100*('Distances for Transit Losses'!$C$258+'Distances for Transit Losses'!$C$268))+SUM(EF16:EG16)/(1-0.5/100*('Distances for Transit Losses'!$C$260+'Distances for Transit Losses'!$C$268))+EH16/(1-0.5/100*('Distances for Transit Losses'!$C$242))+SUM(EK16:EL16)/(1-0.5/100*('Distances for Transit Losses'!$C$262+'Distances for Transit Losses'!$C$270))+SUM(EM16:EN16)/(1-0.5/100*('Distances for Transit Losses'!$C$264+'Distances for Transit Losses'!$C$270))+SUM(EO16:EP16)/(1-0.5/100*('Distances for Transit Losses'!$C$266+'Distances for Transit Losses'!$C$270))+SUM(FD16:FG16)/(1-0.5/100*('Distances for Transit Losses'!$C$226))+SUM(FH16:FI16) -> -0.00049024 | FN16: =-(IF(N16<99999.99999,INDEX('Hist RF to SPR'!$AF$6:$AQ$30,MATCH($B$2,'Hist RF to SPR'!$AE$6:$AE$30,0),MATCH($A16,'Hist RF to SPR'!$AF$5:$AQ$5,0))/SP16/1.9835,0)) -> 0 | FO16: =IF(N16<99999.99999,-INDEX('New Cache Credit'!$BO$109:$CA$136,MATCH($B$2,'New Cache Credit'!$BO$109:$BO$136,0),MATCH(A16,'New Cache Credit'!$BO$109:$CA$109,0))/SP16/1.9835-INDEX('New Cache Credit'!$CD$77:$CP$104,MATCH($B$2,'New Cache Credit'!$CD$77:$CD$104,0),MATCH(A16,'New Cache Credit'!$CD$77:$CP$77,0))/SP16/1.9835,0) -> 0 | FP16: =-0.36*(INDEX('GIC Credit'!$B$85:$M$116,MATCH($B$2,'GIC Credit'!$A$85:$A$116,0),MATCH($A16,'GIC Credit'!$B$85:$M$85,0))/$SP16/1.9835+FK16*'GIC Credit'!$Z$39+FL16*'GIC Credit'!$AO$39) -> -0.00027576 | FQ16: -0.00049024 | FR16: -0.000766 | FS16: 0 | FT16: =IF('Joint Aug Station Deliveries'!BB16="Yes",'Joint Aug Station Deliveries'!AZ16,0) -> 0 | FU16: =-(FT16*0.5/100*'Distances for Transit Losses'!$C$208) -> 0 | FV16: =IF('Joint Aug Station Deliveries'!BF16="Yes",'Joint Aug Station Deliveries'!BD16,0) -> 0 | FW16: =-(FV16*0.5/100*'Distances for Transit Losses'!$C$210) -> 0 | FX16: =IF('Joint Aug Station Deliveries'!BJ16,'Joint Aug Station Deliveries'!BH16,0) -> 0 | FY16: =-(FX16*0.5/100*'Distances for Transit Losses'!$C$212) -> 0 | FZ16: =IF('Joint Aug Station Deliveries'!BN16="Yes",'Joint Aug Station Deliveries'!BL16,0) -> 0 | GA16: =-(FZ16*0.5/100*'Distances for Transit Losses'!$C$200) -> 0 | GB16: =IF('Joint Aug Station Deliveries'!BR16="Yes",'Joint Aug Station Deliveries'!BP16,0) -> 0 | GC16: =-(GB16*0.5/100*'Distances for Transit Losses'!$C$206) -> 0 | GD16: =MIN(-FR16-FS16,SUM(FT16:FU16)/(1-0.5/100*('Distances for Transit Losses'!$C$274))+SUM(FV16:FW16)/(1-0.5/100*('Distances for Transit Losses'!$C$276))+SUM(FX16:FY16)+SUM(FZ16:GA16)+SUM(GB16:GC16)) -> 0 | GE16: no | GF16: 0 | GG16: 0 | GH16: 0 | GJ16: 0.000766 | GK16: 0 | GL16: =IF(AND(JS16-JT16-HV16>0,JN16="no"),MIN(-(FR16+FS16+GD16+GJ16+GK16)/(1-0.5/100*'Distances for Transit Losses'!$C$107),JS16-JT16-HV16),0) -> 0 | GM16: 0 | GN16: 0 | GO16: =-GL16*0.5/100*'Distances for Transit Losses'!$C$107 -> 0 | GP16: 0 | GQ16: =-GP16*0.5/100*'Distances for Transit Losses'!$C$125 -> 0 | GR16: =IF(AND(HZ16-IA16-JV16>0,HL16="no"),MIN(-(FR16+FS16+GD16+GJ16+GK16+GL16+GO16+GP16+GQ16)/(1-0.5/100*'Distances for Transit Losses'!$C$109),HZ16-IA16-JV16),0) -> 0 | GS16: =-GR16*0.5/100*'Distances for Transit Losses'!$C$115 -> 0 | GT16: 0 | GV16: 0 | GW16: 0 | GX16: 0 | GY16: 0.02699053206 | GZ16: 1.849635579 | HA16: =-(IF(N16<99999.99999,INDEX('Hist RF to SPR'!$Q$6:$AB$30,MATCH($B$2,'Hist RF to SPR'!$P$6:$P$30,0),MATCH($A16,'Hist RF to SPR'!$Q$5:$AB$5,0))/SP16/1.9835,0)) -> 0 | HB16: =-(IF(OR($N16<99999.99999,E16="Lower Latham",I16="Lower Latham",E16="Highland",I16="Highland",E16="Plum",I16="Plum"),(INDEX('FIDCO Credit'!$Y$48:$AJ$78,MATCH($B$2,'FIDCO Credit'!$X$48:$X$78,0),MATCH($A16,'FIDCO Credit'!$Y$47:$AJ$47,0))/$SP16)/1.9835,0)) -> 0 | HC16: =-(IF(OR($N16<99999.99999,E16="Lower Latham",I16="Lower Latham",E16="Highland",I16="Highland",E16="Plum",I16="Plum"),(INDEX('Western Credit'!$W$84:$AH$114,MATCH($B$2,'Western Credit'!$V$84:$V$114,0),MATCH($A16,'Western Credit'!$W$83:$AH$83,0))/$SP16)/1.9835+'Haren Daily Recharge'!K15*'Western Credit'!$Z$40,0)) -> 0 | HD16: 0 | HE16: 0 | HF16: 0 | HG16: =IF(AND(HM16="no",HN16="no"),MIN(-(HB16-HE16-HF16)/(1-0.5/100*'Distances for Transit Losses'!$C$95),JK16),0) -> 0 | HH16: =-HG16*0.5/100*'Distances for Transit Losses'!$C$95 -> 0 | HI16: =VLOOKUP($B16,'ECCV Haren Pond S.P. Acrtns'!$B$7:$G$306,6)/$SP16/1.9835 -> 1.671957767 | HJ16: 0 | HK16: 0 | HL16: no | HM16: no | HN16: no | HO16: 0 | HP16: 0 | HQ16: 0 | HS16: 0 | HT16: 0 | HU16: 0 | HV16: =IF(AND(JS16-JT16>0,JN16="no"),MIN(-HU16/(1-0.5/100*'Distances for Transit Losses'!$C$111),JS16-JT16),0) -> 0 | HW16: =-HV16*0.5/100*'Distances for Transit Losses'!$C$111 -> 0 | HX16: =IF(AND(JW16+JX16-JY16-KJ16>0,JN16="no"),MIN((-HU16-(HV16+HW16))/(1-0.5/100*'Distances for Transit Losses'!$C$113),JW16+JX16-JY16-KJ16),0) -> 0 | HY16: =-HX16*0.5/100*'Distances for Transit Losses'!$C$113 -> 0 | HZ16: 0 | IA16: =IF(HZ16>0,MIN(-(HU16+HV16+HW16+HX16+HY16)/(1-0.5/100*'Distances for Transit Losses'!$C$115),HZ16),0) -> 0 | IB16: =-IA16*0.5/100*'Distances for Transit Losses'!$C$115 -> 0 | IC16: 0 | IE16: 0 | IF16: ='Joint Aug Station Deliveries'!CJ16 -> 0 | IG16: =IF16*'Western Credit'!$Z$42 -> 0 | IH16: ='Joint Aug Station Deliveries'!CA16 -> 0 | II16: =IF(AND(IH16>0,SUM($IH$9:IH16,$IJ$9:IJ16,$JK$9:JK16)*1.9835<OFFSET('FIDCO Credit'!$X$39,0,MATCH($A16,'FIDCO Credit'!$Y$5:$AJ$5,0))),IH16-HE16,0) -> 0 | IJ16: ='Joint Aug Station Deliveries'!CD16 -> 0 | IK16: =IF(AND(IJ16>0,SUM($IH$9:IH16,$IJ$9:IJ16,$JK$9:JK16)*1.9835<OFFSET('FIDCO Credit'!$X$39,0,MATCH($A16,'FIDCO Credit'!$Y$5:$AJ$5,0))),IJ16-HF16,0) -> 0 | IL16: =MAX(0,(LP16+LQ16))/(1-0.5/100*'Distances for Transit Losses'!$C$83) -> 0 | IM16: =MAX(0,(LR16+LS16)/(1-0.5/100*'Distances for Transit Losses'!$C$79)) -> 0 | IN16: 0 | IO16: =-IN16*0.5/100*'Distances for Transit Losses'!$C$85 -> 0 | IP16: 0 | IQ16: 0 | IR16: =-IQ16*0.5/100*'Distances for Transit Losses'!$C$34 -> 0 | IS16: 0 | IT16: 0 | IU16: 0 | IV16: 0 | IW16: 0 | IX16: 0 | IY16: 1.849635579 | IZ16: 0 | JA16: 0.02699053206 | JB16: 0 | JC16: 0 | JD16: 0 | JE16: =-JD16*0.5/100*'Distances for Transit Losses'!$C$123 -> 0 | JF16: 0 | JG16: 1.671957767 | JH16: 0.02699053206 | JI16: 1.849635579 | JJ16: =-(IF(F16<99999.99999,INDEX('Hist RF to SPR'!$B$6:$M$30,MATCH($B$2,'Hist RF to SPR'!$A$6:$A$30,0),MATCH($A16,'Hist RF to SPR'!$B$5:$M$5,0))/SP16/1.9835,0)) -> 0 | JK16: ='Joint Aug Station Deliveries'!CG16 -> 0 | JL16: =IF(AND(JK16>0,SUM($IH$9:IH16,$IJ$9:IJ16,$JK$9:JK16)*1.9835<OFFSET('FIDCO Credit'!$X$39,0,MATCH($A16,'FIDCO Credit'!$Y$5:$AJ$5,0))),JK16-HG16,0) -> 0 | JM16: 0 | JN16: no | JO16: 0 | JP16: 0 | JQ16: 0 | JR16: 0 | JS16: 0 | JT16: =IF(JS16>0,MIN(-JR16/(1-0.5/100*'Distances for Transit Losses'!$C$117),JS16),0) -> 0 | JU16: =-JT16*0.5/100*'Distances for Transit Losses'!$C$117 -> 0 | JV16: 0 | JW16: 0 | JX16: =-JW16*0.5/100*'Distances for Transit Losses'!$C$70 -> 0 | JY16: =IF((JW16+JX16)>0,MIN((-JR16-(JT16-JU16)-JV16)/(1-0.5/100*'Distances for Transit Losses'!$C$119),(JW16+JX16)),0) -> 0 | JZ16: =-JY16*0.5/100*'Distances for Transit Losses'!$C$119 -> 0 | KA16: 0 | KC16: 0 | KD16: 1.849635579 | KE16: 0 | KF16: 0.02699053206 | KG16: 0 | KH16: 0 | KI16: 0 | KJ16: 0 | KK16: =-KJ16*0.5/100*'Distances for Transit Losses'!$C$121 -> 0 | KL16: 0 | KM16: 0.02699053206 | KN16: 1.849635579 | KO16: =-(IF(N16<99999.99999,(VLOOKUP(B16,'ECCV Upper Dpln'!$B$7:$BD$306,55))/SP16/1.9835,0)) -> 0 | KP16: =-(IF(N16<99999.99999,INDEX('Hist RF abv Milton'!$B$6:$M$30,MATCH($B$2,'Hist RF abv Milton'!$A$6:$A$30,0),MATCH($A16,'Hist RF abv Milton'!$B$5:$M$5,0))/SP16/1.9835,0)) -> 0 | KQ16: 0 | KR16: =(VLOOKUP($B16,'ECCV Beebe Pond Acrtns'!$B$7:$BI$1206,41)+VLOOKUP($B16,'ECCV Canal Acrtns'!$B$7:$AL$1206,22)+VLOOKUP($B16,'2003 Beebe Pond Acrtns'!$B$7:$BI$1206,41)+VLOOKUP($B16,'2003 Canal Acrtns'!$B$7:$AL$1206,22))/$SP16/1.9835 -> 1.065139416 | KS16: ='Barr Lake'!BV27 -> 0 | KT16: 0 | KU16: 0 | KV16: 0 | KW16: 0 | KX16: 0 | KY16: 0 | KZ16: 0 | LA16: no | LB16: 0 | LC16: 0 | LD16: 0 | LE16: 0 | LF16: 0 | LG16: 0 | LH16: 0 | LI16: 0 | LJ16: 0 | LK16: 0 | LL16: =-(LK16*0.5/100*'Distances for Transit Losses'!$C$6) -> 0 | LM16: 0 | LN16: 0 | LO16: 0 | LP16: =IF(AND(E16<>"Lower Latham",I16<>"Lower Latham"),MIN(-(LJ16+LM16),II16-II16*0.5/100*'Distances for Transit Losses'!$C$83),0) -> 0 | LQ16: =IF(AND(E16<>"Lower Latham",I16<>"Lower Latham"),MAX(0,MIN(-(LI16+LK16+LL16+LO16),II16-II16*0.5/100*'Distances for Transit Losses'!$C$83-LP16/(1-0.5/100*'Distances for Transit Losses'!$C$83))),0) -> 0 | LR16: =MIN(-(LJ16+LP16),IG16-IG16*0.5/100*'Distances for Transit Losses'!$C$79) -> 0 | LS16: =MAX(0,MIN(-(LI16+LK16+LL16+LQ16),IG16-IG16*0.5/100*'Distances for Transit Losses'!$C$79-LR16/(1-0.5/100*'Distances for Transit Losses'!$C$79))) -> 0 | LT16: =IF(GE16="no",MIN(-(MIN(0,LI16+LJ16+LK16+LL16+LQ16+LS16)),(HI16-HJ16)-(HI16-HJ16)*0.5/100*'Distances for Transit Losses'!$C$79),0) -> 0 | LU16: =MAX(0,IF(AND(HZ16-IA16-JV16-GR16>0,GE16="no"),MIN(-(LI16+LK16+LL16+LO16+LQ16+LS16+LT16)/(1-0.5/100*'Distances for Transit Losses'!$C$89),HZ16-IA16-JV16-GR16),0)) -> 0 | LV16: =-LU16*0.5/100*'Distances for Transit Losses'!$C$89 -> 0 | LY16: 0 | LZ16: 1.065139416 | MA16: 0 | MB16: 0.02775653206 | MC16: 1.849635579 | MD16: =-(IF(N16<99999.99999,INDEX('Hist RF blw Milton'!$B$6:$M$30,MATCH($B$2,'Hist RF blw Milton'!$A$6:$A$30,0),MATCH($A16,'Hist RF blw Milton'!$B$5:$M$5,0))/SP16/1.9835,0)) -> 0 | ME16: no | MF16: 0 | MG16: 0 | MH16: 0 | MI16: 0 | MJ16: 0 | MK16: 0.03 | ML16: Haren Recharge | MM16: ='Milton Lake'!DY15 -> 0 | MN16: 0 | MO16: 0 | MP16: 0.02775653206 | MQ16: 1.849635579 | MR16: =-(IF(N16<99999.99999,INDEX('Hist RF to Box Elder'!$B$6:$M$30,MATCH($B$2,'Hist RF to Box Elder'!$A$6:$A$30,0),MATCH($A16,'Hist RF to Box Elder'!$B$5:$M$5,0))/SP16/1.9835,0)) -> 0 | MS16: =(VLOOKUP($B16,'ECCV Beebe Pond Acrtns'!$B$7:$BI$1206,54)+VLOOKUP($B16,'ECCV Canal Acrtns'!$B$7:$AL$1206,34)+VLOOKUP($B16,'2003 Beebe Pond Acrtns'!$B$7:$BI$1206,54)+VLOOKUP($B16,'2003 Canal Acrtns'!$B$7:$AL$1206,34)+VLOOKUP($B16,'84CW090 Beebe Pond Acrtns'!$B$7:$BI$1206,55)+VLOOKUP($B16,'84CW090 Canal Acrtns'!$B$7:$AL$1206,34))/$SP16/1.9835 -> 0.1080499331 | MT16: 0 | MU16: 0 | MV16: 0 | MW16: 0 | MY16: -0.1502011856 | MZ16: 0 | NA16: 0.03 | NB16: 0 | NC16: 0 | ND16: 0 | NE16: 0.000766 | NF16: 0 | NG16: 0.03193008991 | NH16: 0.1764351214 | NI16: 0.2391312113 | NJ16: 0.08893002566 | NK16: 1.065139416 | NL16: 0.02699053206 | NM16: 1.849635579 | NO16: 0 | NP16: 0 | NQ16: 0 | NR16: 0 | NS16: 0 | NT16: 0 | NU16: 0 | NV16: 0 | NX16: 0 | NY16: 0 | NZ16: 0 | OA16: 0 | OB16: 0 | OC16: 0 | OD16: 0 | OE16: 0 | OF16: 0 | OG16: 0 | OH16: 0 | OI16: 0 | OK16: 0 | OL16: 0 | OM16: 0 | ON16: 0 | OO16: 0 | OP16: 0 | OQ16: 0 | OR16: 0 | OS16: 0 | OT16: 0 | OU16: 0 | OW16: 1.876626111 | OX16: 0 | OY16: 0 | OZ16: 0 | PA16: 0 | PB16: 0 | PC16: 0 | PD16: 0 | PE16: 0 | PF16: 0 | PG16: 0 | PI16: 0 | PJ16: 0 | PK16: 0 | PL16: 0 | PM16: 0 | PN16: 0 | PO16: 0 | PP16: 0 | PQ16: 0 | PR16: 0 | PS16: 0 | PT16: 0 | PU16: 0 | PW16: 0 | PX16: 0 | PY16: 0 | PZ16: 0 | QA16: 0 | QB16: 0 | QC16: 0 | QD16: 0 | QE16: 0 | QG16: 0 | QH16: 0 | QI16: 0 | QJ16: 0 | QK16: 0 | QL16: 0 | QM16: 0 | QN16: 0 | QP16: 0 | QQ16: 0 | QR16: 0 | QT16: 0 | QU16: 0 | QV16: 0 | QW16: 0 | QZ16: 0 | RA16: 0 | RB16: 0 | RC16: 0 | RD16: 0 | RE16: 0 | RF16: 0 | RH16: 0 | RI16: 0 | RJ16: 0 | RK16: 0 | RL16: 0 | RM16: 309.6 | RO16: 1.065139416 | RP16: 0 | RQ16: 0 | RR16: 0 | RS16: 0 | RT16: 0 | RU16: 0 | RV16: 0 | RW16: 0 | RX16: 0 | RY16: 0 | RZ16: 0 | SA16: 0 | SB16: 0 | SC16: 0 | SD16: 0 | SE16: 0 | SF16: 0 | SG16: 0 | SH16: 0 | SI16: 1.065139416 | SJ16: TRUE | SK16: TRUE | SM16: 0 | SN16: 0 | SP16: =VLOOKUP(A16,'Control Sheet'!$G$9:$H$20,2) -> 30
A17: Apr | B17: 2018-04-09 | C17: Prewitt Inlet Canal | D17: 1936-01-13 | E17: Prewitt Inlet Canal | F17: 31423.29219 | K17: Prewitt Inlet Canal | L17: 1936-01-13 | M17: Prewitt Inlet Canal | N17: 31423.29219 | AA17: 0.1464644481 | AB17: 0 | AC17: 0 | AD17: 0 | AE17: 0 | AF17: 0 | AG17: =('NFC Well Pumping'!$L15+'NFC Well Pumping'!$L52+'NFC Well Pumping'!$L88)/1.9835 -> 3.202720816 | AH17: ='88CW264(B) Pumping'!$E15/1.9835+'88CW264(B) Pumping'!$E51/1.9835+'88CW264(B) Pumping'!E91/1.9835+'88CW264(B) Pumping'!E127/1.9835+'88CW264(B) Pumping'!E167/1.9835+'88CW264(B) Pumping'!E203/1.9835 -> 0.01481193911 | AI17: 0.1464644481 | AJ17: =('United No. 2 Well Pumping'!G16+'United No. 2 Well Pumping'!G52+'United No. 2 Well Pumping'!G88)/1.9835 -> 0 | AK17: =('United No. 2 Well Pumping'!F16+'United No. 2 Well Pumping'!F52+'United No. 2 Well Pumping'!F88)/1.9835 -> 0 | AL17: 0 | AN17: 3.217532755 | AO17: =AC17+AK17+'United Res'!AA179+'United Res'!AQ179+'Milliken Res'!I167 -> 0 | AP17: 100 | AQ17: =-(IF($N17=99999.99999,0,VLOOKUP($B17,'NFC Well Dplns-URF'!B$7:$AB$306,27))/$SP17/1.9835) -> -0.003304877751 | AR17: 0 | AT17: =(VLOOKUP($B17,'ECCV 70R Pond Acrtns'!$B$7:$AI$1206,34)+VLOOKUP($B17,'2003 70R Pond Acrtns'!$B$7:$AI$1206,34)+VLOOKUP($B17,'ECCV 70R Canal Acrtns'!$B$7:$AI$1206,27)+VLOOKUP($B17,'2003 70R Canal Acrtns'!$B$7:$AI$1206,27))/$SP17/1.9835 -> 0 | AU17: -0.003304877751 | AV17: =-(IF($N17=99999.99999,0,VLOOKUP($B17,'NFC Well Dplns-SDF'!$B$7:$Z$306,25)+VLOOKUP($B17,'NFC Well Dplns-URF'!B$7:$AB$306,20))/$SP17/1.9835) -> -0.06850151537 | AW17: 0.003352812464 | AX17: 0.04 | AY17: ECCV Riverside Credits | AZ17: =-((BL17+BM17)*'Weldon Credit'!$BB$36) -> 0 | BA17: =-((BL17+BM17)*'Weldon Credit'!$BB$34) -> -0.00492471593 | BB17: =-INDEX('Weldon Credit'!$AX$249:$BJ$276,MATCH($B$2,'Weldon Credit'!$AX$249:$AX$276,0),MATCH(A17,'Weldon Credit'!$AX$249:$BJ$249,0))/SP17/1.9835 -> -0.007996419995 | BC17: -0.007996419995 | BD17: =-((BL17+BM17)*'Weldon Credit'!$BB$37) -> -0.159164391 | BE17: =-((BL17+BM17)*'Weldon Credit'!$BB$35) -> -0.1762855071 | BF17: =-INDEX('Weldon Credit'!$AX$281:$BJ$308,MATCH($B$2,'Weldon Credit'!$AX$281:$AX$308,0),MATCH(A17,'Weldon Credit'!$AX$281:$BJ$281,0))/SP17/1.9835 -> -0.1409485256 | BG17: -0.3001129166 | BH17: =-(BL17+BM17)*'Weldon Credit'!$BB$38 -> -0.714980629 | BI17: =0.4*(INDEX('Riverside Pond Accrtns'!$B$6:$M$36,MATCH($B$2,'Riverside Pond Accrtns'!$A$6:$A$36,0),MATCH('ECCV Daily Replacement Summary'!A17,'Riverside Pond Accrtns'!$B$5:$M$5,0))/SP17)/1.9835 -> 1.65541047 | BJ17: =(44/640)*(INDEX('Weldon Valley Accrtns (02CW377)'!$B$6:$M$30,MATCH($B$2,'Weldon Valley Accrtns (02CW377)'!$A$6:$A$30,0),MATCH(A17,'Weldon Valley Accrtns (02CW377)'!$B$5:$M$5,0))/SP17)/1.9835 -> 0.2998172422 | BK17: =(VLOOKUP($B17,'ECCV 70R Pond Acrtns'!$B$7:$AI$1206,25)+VLOOKUP($B17,'ECCV 70R Canal Acrtns'!$B$7:$AI$1206,20)+VLOOKUP($B17,'2003 70R Pond Acrtns'!$B$7:$AI$1206,25)+VLOOKUP($B17,'2003 70R Canal Acrtns'!$B$7:$AI$1206,20))/$SP17/1.9835 -> 0 | BL17: ='Joint Aug Station Deliveries'!G17 -> 1.4 | BM17: ='Joint Aug Station Deliveries'!H17 -> 0 | BN17: 0 | BO17: 1.023089966 | BP17: =IF(CB17="no",-MAX(0,MIN(BO17,(BM17-BL17))*(0.5/100*'Distances for Transit Losses'!$C$75)),0) -> 0 | BQ17: 0.3769100344 | BR17: =MIN(-($BC17+BG17+BH17+BN17+BO17+BP17),BI17-BI17*0.5/100*'Distances for Transit Losses'!$C$77) -> 0 | BS17: 0 | BT17: =MIN(-($BC17+BG17+BH17+BN17+BO17+BP17+BR17+BS17),BK17-BK17*0.5/100*'Distances for Transit Losses'!$C$77) -> 0 | BU17: =-((BR17+BT17)*(0.5/100*'Distances for Transit Losses'!$C$77)) -> 0 | BV17: =IF(AND(JS17-JT17-GL17-DU17>0,JN17="no"),MIN(-(BC17+BG17+BH17+BN17+BO17+BP17+BR17+BS17+BT17+BU17)/(1-0.5/100*'Distances for Transit Losses'!$C$99),JS17-JT17-GL17-DU17),0) -> 0 | BW17: =--BV17*0.5/100*'Distances for Transit Losses'!C$99 -> 0 | BX17: =IF(AND(HZ17-IA17-JV17-GR17-LU17-DY17>0,GE17="no"),MIN(-(BC17+BG17+BH17+BN17+BO17+BP17+BR17+BS17+BT17+BU17+BV17+BW17)/(1-0.5/100*'Distances for Transit Losses'!$C$101),HZ17-IA17-JV17-GR17-LU17-DY17),0) -> 0 | BY17: =--BX17*0.5/100*'Distances for Transit Losses'!$C$101 -> 0 | BZ17: 0 | CB17: no | CC17: no | CD17: no | CE17: 0 | CF17: 0 | CG17: 0 | CI17: =IF($CD17="No",MIN(IF(-DP17<0,0,-DP17),BI17-BR17/(1-0.5/100*'Distances for Transit Losses'!$C$77)),0) -> 0.3088176821 | CJ17: =IF($CD17="No",IF(MIN(-DP17+CI17,BK17-BT17/(1-0.5/100*'Distances for Transit Losses'!$C$77))<0,0,MIN(-DP17+CI17,BK17-BT17/(1-0.5/100*'Distances for Transit Losses'!$C$77))),0) -> 0 | CK17: 0 | CL17: 0 | CM17: 0 | CN17: 2.266989043 | CO17: 1.998171361 | CP17: =-(IF($N17=99999.99999,0,VLOOKUP($B17,'NFC Well Dplns-SDF'!$B$7:$Z$306,16)+VLOOKUP($B17,'NFC Well Dplns-URF'!$B$7:$AB$306,13))/$SP17/1.9835) -> -0.4359358329 | CQ17: =-(IF($N17>=99999,0,'88CW264(B) Pumping'!$E15/1.9835)+IF($N17>=99999,0,'88CW264(B) Pumping'!$E51/1.9835)+IF($N17>=99999,0,'88CW264(B) Pumping'!$E91/1.9835)+IF($N17>=99999,0,'88CW264(B) Pumping'!$E127/1.9835)+IF($N17>=51134.50919,0,'88CW264(B) Pumping'!$E167/1.9835)+IF($N17>=53406,0,'88CW264(B) Pumping'!$E203/1.9835)) -> -0.01481193911 | CR17: -0.450747772 | CS17: 0.03193008991 | CT17: 0.11 | CU17: Haren Recharge | CV17: =-(IF($N17=99999.99999,0,VLOOKUP($B17,'United No. 2 Dplns'!$B$7:$X$676,13)/1.9835)) -> 0 | CW17: =CV17+(-(INDEX('Pre 1995 Net Accretions'!$B$6:$M$105,MATCH($B$2,'Pre 1995 Net Accretions'!$A$6:$A$105,0),MATCH($A17,'Pre 1995 Net Accretions'!$B$5:$M$5,0))/$SP17/1.9835)) -> 0.02775653206 | CX17: =-(IF(N17<99999.99999,(INDEX('70 Ranch RF Obligation'!$B$6:$M$36,MATCH($B$2,'70 Ranch RF Obligation'!$A$6:$A$36,0),MATCH('ECCV Daily Replacement Summary'!A17,'70 Ranch RF Obligation'!$B$5:$M$5,0))/SP17)/1.9835,0))-DA17*(1-'L. Latham Credit'!$E$41) -> -1.454234606 | CY17: -1.426478074 | CZ17: =(VLOOKUP($B17,'ECCV 70R Pond Acrtns'!$B$7:$AI$1206,16)+VLOOKUP($B17,'ECCV 70R Canal Acrtns'!$B$7:$AI$1206,13)+VLOOKUP($B17,'2003 70R Pond Acrtns'!$B$7:$AI$1206,16)+VLOOKUP($B17,'2003 70R Canal Acrtns'!$B$7:$AI$1206,13))/$SP17/1.9835 -> 0 | DA17: ='Joint Aug Station Deliveries'!DE17 -> 2.4 | DB17: 0.973521926 | DC17: 1.426478074 | DD17: ='Joint Aug Station Deliveries'!DH17 -> 0 | DE17: 0 | DF17: 0 | DI17: 1.001278458 | DJ17: 0 | DK17: 0 | DL17: =-DK17*0.5/100*'Distances for Transit Losses'!$C$48 -> 0 | DM17: 0 | DN17: 0 | DO17: 0 | DP17: -0.3088176821 | DQ17: 0.3088176821 | DR17: 0 | DS17: 0 | DT17: =('NFC Well Pumping'!I15+'NFC Well Pumping'!I52+'NFC Well Pumping'!I88)/1.9835 -> 0 | DU17: =IF(AND(JS17-JT17-GL17>0,JN17="no"),MIN(-SUM(DP17:DT17)/(1-0.5/100*'Distances for Transit Losses'!$C$103),JS17-JT17-GL17),0) -> 0 | DV17: =-DU17*0.5/100*'Distances for Transit Losses'!C$103 -> 0 | DW17: 0 | DX17: =-DW17*0.5/100*'Distances for Transit Losses'!$C$127 -> 0 | DY17: =IF(AND(HZ17-IA17-JV17-GR17-LU17>0,GE17="no"),MIN(-SUM(DP17:DX17)/(1-0.5/100*'Distances for Transit Losses'!$C$105),HZ17-IA17-JV17-GR17-LU17),0) -> 0 | DZ17: =--DY17*0.5/100*'Distances for Transit Losses'!$C$105 -> 0 | EA17: 1.001278458 | EB17: =IF('Joint Aug Station Deliveries'!R17="Yes",'Joint Aug Station Deliveries'!P17,0) -> 0 | EC17: ='Joint Aug Station Deliveries'!T17 -> 0 | ED17: =IF('Joint Aug Station Deliveries'!Z17="Yes",'Joint Aug Station Deliveries'!X17,0) -> 0 | EE17: =-(ED17*0.5/100*'Distances for Transit Losses'!$C$216) -> 0 | EF17: =IF('Joint Aug Station Deliveries'!AD17="Yes",'Joint Aug Station Deliveries'!AB17,0) -> 0 | EG17: =-(EF17*0.5/100*'Distances for Transit Losses'!$C$248) -> 0 | EH17: 0 | EI17: =-(EH17*0.5/100*'Distances for Transit Losses'!$C$238) -> 0 | EJ17: no | EK17: =IF('Joint Aug Station Deliveries'!AH17="Yes",'Joint Aug Station Deliveries'!AF17,0) -> 0 | EL17: =-(EK17*0.5/100*'Distances for Transit Losses'!$C$250) -> 0 | EM17: =IF('Joint Aug Station Deliveries'!AL17="Yes",'Joint Aug Station Deliveries'!AJ17,0) -> 0 | EN17: =-(EM17*0.5/100*'Distances for Transit Losses'!$C$252) -> 0 | EO17: =IF('Joint Aug Station Deliveries'!AP17="Yes",'Joint Aug Station Deliveries'!AN17,0) -> 0 | EP17: =-(EO17*0.5/100*'Distances for Transit Losses'!$C$254) -> 0 | EQ17: =-0.25*(INDEX('GIC Credit'!$B$85:$M$116,MATCH($B$2,'GIC Credit'!$A$85:$A$116,0),MATCH($A17,'GIC Credit'!$B$85:$M$85,0))/$SP17/1.9835+FK17*'GIC Credit'!$Z$39+FL17*'GIC Credit'!$AO$39) -> -0.0001915 | ER17: -0.0001915 | ES17: ='Joint Aug Station Deliveries'!CW17 -> 0 | ET17: =-(ES17*0.5/100*'Distances for Transit Losses'!$C$244) -> 0 | EU17: ='Joint Aug Station Deliveries'!CX17 -> 0 | EV17: =-(EU17*0.5/100*'Distances for Transit Losses'!$C$246) -> 0 | EW17: 0 | EY17: no | EZ17: -0.0001915 | FA17: =-0.39*(INDEX('GIC Credit'!$B$85:$M$116,MATCH($B$2,'GIC Credit'!$A$85:$A$116,0),MATCH($A17,'GIC Credit'!$B$85:$M$85,0))/$SP17/1.9835+FK17*'GIC Credit'!$Z$39+FL17*'GIC Credit'!$AO$39) -> -0.00029874 | FB17: 0 | FC17: =-(FB17*0.5/100*('Distances for Transit Losses'!$C$220+'Distances for Transit Losses'!$C$226)) -> 0 | FD17: =IF('Joint Aug Station Deliveries'!AT17="Yes",'Joint Aug Station Deliveries'!AR17,0) -> 0 | FE17: =-(FD17*0.5/100*('Distances for Transit Losses'!$C$222+'Distances for Transit Losses'!$C$224)) -> 0 | FF17: =IF('Joint Aug Station Deliveries'!AX17="Yes",'Joint Aug Station Deliveries'!AV17,0) -> 0 | FG17: =-(FF17*0.5/100*'Distances for Transit Losses'!$C$224) -> 0 | FH17: ='Joint Aug Station Deliveries'!CY17 -> 0 | FI17: =-(FH17*0.5/100*'Distances for Transit Losses'!$C$230) -> 0 | FJ17: 0 | FK17: ='Joint Aug Station Deliveries'!DA17 -> 0 | FL17: ='Joint Aug Station Deliveries'!DB17 -> 0 | FM17: =MIN(0,EZ17)+SUM(FA17:FC17)+EB17/(1-0.5/100*('Distances for Transit Losses'!$C$256+'Distances for Transit Losses'!$C$268))+EC17/(1-0.5/100*('Distances for Transit Losses'!$C$242))+SUM(ED17:EE17)/(1-0.5/100*('Distances for Transit Losses'!$C$258+'Distances for Transit Losses'!$C$268))+SUM(EF17:EG17)/(1-0.5/100*('Distances for Transit Losses'!$C$260+'Distances for Transit Losses'!$C$268))+EH17/(1-0.5/100*('Distances for Transit Losses'!$C$242))+SUM(EK17:EL17)/(1-0.5/100*('Distances for Transit Losses'!$C$262+'Distances for Transit Losses'!$C$270))+SUM(EM17:EN17)/(1-0.5/100*('Distances for Transit Losses'!$C$264+'Distances for Transit Losses'!$C$270))+SUM(EO17:EP17)/(1-0.5/100*('Distances for Transit Losses'!$C$266+'Distances for Transit Losses'!$C$270))+SUM(FD17:FG17)/(1-0.5/100*('Distances for Transit Losses'!$C$226))+SUM(FH17:FI17) -> -0.00049024 | FN17: =-(IF(N17<99999.99999,INDEX('Hist RF to SPR'!$AF$6:$AQ$30,MATCH($B$2,'Hist RF to SPR'!$AE$6:$AE$30,0),MATCH($A17,'Hist RF to SPR'!$AF$5:$AQ$5,0))/SP17/1.9835,0)) -> -0.0002698345146 | FO17: =IF(N17<99999.99999,-INDEX('New Cache Credit'!$BO$109:$CA$136,MATCH($B$2,'New Cache Credit'!$BO$109:$BO$136,0),MATCH(A17,'New Cache Credit'!$BO$109:$CA$109,0))/SP17/1.9835-INDEX('New Cache Credit'!$CD$77:$CP$104,MATCH($B$2,'New Cache Credit'!$CD$77:$CD$104,0),MATCH(A17,'New Cache Credit'!$CD$77:$CP$77,0))/SP17/1.9835,0) -> 0 | FP17: =-0.36*(INDEX('GIC Credit'!$B$85:$M$116,MATCH($B$2,'GIC Credit'!$A$85:$A$116,0),MATCH($A17,'GIC Credit'!$B$85:$M$85,0))/$SP17/1.9835+FK17*'GIC Credit'!$Z$39+FL17*'GIC Credit'!$AO$39) -> -0.00027576 | FQ17: -0.00049024 | FR17: -0.001035834515 | FS17: 0 | FT17: =IF('Joint Aug Station Deliveries'!BB17="Yes",'Joint Aug Station Deliveries'!AZ17,0) -> 0 | FU17: =-(FT17*0.5/100*'Distances for Transit Losses'!$C$208) -> 0 | FV17: =IF('Joint Aug Station Deliveries'!BF17="Yes",'Joint Aug Station Deliveries'!BD17,0) -> 0 | FW17: =-(FV17*0.5/100*'Distances for Transit Losses'!$C$210) -> 0 | FX17: =IF('Joint Aug Station Deliveries'!BJ17,'Joint Aug Station Deliveries'!BH17,0) -> 0 | FY17: =-(FX17*0.5/100*'Distances for Transit Losses'!$C$212) -> 0 | FZ17: =IF('Joint Aug Station Deliveries'!BN17="Yes",'Joint Aug Station Deliveries'!BL17,0) -> 0 | GA17: =-(FZ17*0.5/100*'Distances for Transit Losses'!$C$200) -> 0 | GB17: =IF('Joint Aug Station Deliveries'!BR17="Yes",'Joint Aug Station Deliveries'!BP17,0) -> 0 | GC17: =-(GB17*0.5/100*'Distances for Transit Losses'!$C$206) -> 0 | GD17: =MIN(-FR17-FS17,SUM(FT17:FU17)/(1-0.5/100*('Distances for Transit Losses'!$C$274))+SUM(FV17:FW17)/(1-0.5/100*('Distances for Transit Losses'!$C$276))+SUM(FX17:FY17)+SUM(FZ17:GA17)+SUM(GB17:GC17)) -> 0 | GE17: no | GF17: 0 | GG17: 0 | GH17: 0 | GJ17: 0 | GK17: 0.001035834515 | GL17: =IF(AND(JS17-JT17-HV17>0,JN17="no"),MIN(-(FR17+FS17+GD17+GJ17+GK17)/(1-0.5/100*'Distances for Transit Losses'!$C$107),JS17-JT17-HV17),0) -> 0 | GM17: 0 | GN17: 0 | GO17: =-GL17*0.5/100*'Distances for Transit Losses'!$C$107 -> 0 | GP17: 0 | GQ17: =-GP17*0.5/100*'Distances for Transit Losses'!$C$125 -> 0 | GR17: =IF(AND(HZ17-IA17-JV17>0,HL17="no"),MIN(-(FR17+FS17+GD17+GJ17+GK17+GL17+GO17+GP17+GQ17)/(1-0.5/100*'Distances for Transit Losses'!$C$109),HZ17-IA17-JV17),0) -> 0 | GS17: =-GR17*0.5/100*'Distances for Transit Losses'!$C$115 -> 0 | GT17: 0.06 | GU17: Haren Recharge | GV17: 0 | GW17: 0.06 | GX17: 0.06 | GY17: 0 | GZ17: 0.1667218912 | HA17: =-(IF(N17<99999.99999,INDEX('Hist RF to SPR'!$Q$6:$AB$30,MATCH($B$2,'Hist RF to SPR'!$P$6:$P$30,0),MATCH($A17,'Hist RF to SPR'!$Q$5:$AB$5,0))/SP17/1.9835,0)) -> -0.002641576218 | HB17: =-(IF(OR($N17<99999.99999,E17="Lower Latham",I17="Lower Latham",E17="Highland",I17="Highland",E17="Plum",I17="Plum"),(INDEX('FIDCO Credit'!$Y$48:$AJ$78,MATCH($B$2,'FIDCO Credit'!$X$48:$X$78,0),MATCH($A17,'FIDCO Credit'!$Y$47:$AJ$47,0))/$SP17)/1.9835,0)) -> 0 | HC17: =-(IF(OR($N17<99999.99999,E17="Lower Latham",I17="Lower Latham",E17="Highland",I17="Highland",E17="Plum",I17="Plum"),(INDEX('Western Credit'!$W$84:$AH$114,MATCH($B$2,'Western Credit'!$V$84:$V$114,0),MATCH($A17,'Western Credit'!$W$83:$AH$83,0))/$SP17)/1.9835+'Haren Daily Recharge'!K16*'Western Credit'!$Z$40,0)) -> -0.03801888983 | HD17: -0.04066046605 | HE17: 0 | HF17: 0 | HG17: =IF(AND(HM17="no",HN17="no"),MIN(-(HB17-HE17-HF17)/(1-0.5/100*'Distances for Transit Losses'!$C$95),JK17),0) -> 0 | HH17: =-HG17*0.5/100*'Distances for Transit Losses'!$C$95 -> 0 | HI17: =VLOOKUP($B17,'ECCV Haren Pond S.P. Acrtns'!$B$7:$G$306,6)/$SP17/1.9835 -> 1.671957767 | HJ17: 0.04066046605 | HK17: 0 | HL17: no | HM17: no | HN17: no | HO17: 0 | HP17: 0 | HQ17: 0 | HS17: 0 | HT17: 0 | HU17: 0 | HV17: =IF(AND(JS17-JT17>0,JN17="no"),MIN(-HU17/(1-0.5/100*'Distances for Transit Losses'!$C$111),JS17-JT17),0) -> 0 | HW17: =-HV17*0.5/100*'Distances for Transit Losses'!$C$111 -> 0 | HX17: =IF(AND(JW17+JX17-JY17-KJ17>0,JN17="no"),MIN((-HU17-(HV17+HW17))/(1-0.5/100*'Distances for Transit Losses'!$C$113),JW17+JX17-JY17-KJ17),0) -> 0 | HY17: =-HX17*0.5/100*'Distances for Transit Losses'!$C$113 -> 0 | HZ17: 0 | IA17: =IF(HZ17>0,MIN(-(HU17+HV17+HW17+HX17+HY17)/(1-0.5/100*'Distances for Transit Losses'!$C$115),HZ17),0) -> 0 | IB17: =-IA17*0.5/100*'Distances for Transit Losses'!$C$115 -> 0 | IC17: 0 | IE17: 0 | IF17: ='Joint Aug Station Deliveries'!CJ17 -> 0 | IG17: =IF17*'Western Credit'!$Z$42 -> 0 | IH17: ='Joint Aug Station Deliveries'!CA17 -> 0 | II17: =IF(AND(IH17>0,SUM($IH$9:IH17,$IJ$9:IJ17,$JK$9:JK17)*1.9835<OFFSET('FIDCO Credit'!$X$39,0,MATCH($A17,'FIDCO Credit'!$Y$5:$AJ$5,0))),IH17-HE17,0) -> 0 | IJ17: ='Joint Aug Station Deliveries'!CD17 -> 0 | IK17: =IF(AND(IJ17>0,SUM($IH$9:IH17,$IJ$9:IJ17,$JK$9:JK17)*1.9835<OFFSET('FIDCO Credit'!$X$39,0,MATCH($A17,'FIDCO Credit'!$Y$5:$AJ$5,0))),IJ17-HF17,0) -> 0 | IL17: =MAX(0,(LP17+LQ17))/(1-0.5/100*'Distances for Transit Losses'!$C$83) -> 0 | IM17: =MAX(0,(LR17+LS17)/(1-0.5/100*'Distances for Transit Losses'!$C$79)) -> 0 | IN17: 0 | IO17: =-IN17*0.5/100*'Distances for Transit Losses'!$C$85 -> 0 | IP17: 0 | IQ17: 0 | IR17: =-IQ17*0.5/100*'Distances for Transit Losses'!$C$34 -> 0 | IS17: 0 | IT17: 0 | IU17: 0 | IV17: 0 | IW17: 0 | IX17: 0 | IY17: 0.1464644481 | IZ17: 0 | JA17: 0 | JB17: 0 | JC17: 0 | JD17: 0 | JE17: =-JD17*0.5/100*'Distances for Transit Losses'!$C$123 -> 0 | JF17: 0 | JG17: 1.6312973 | JH17: 0 | JI17: 0.1667218912 | JJ17: =-(IF(F17<99999.99999,INDEX('Hist RF to SPR'!$B$6:$M$30,MATCH($B$2,'Hist RF to SPR'!$A$6:$A$30,0),MATCH($A17,'Hist RF to SPR'!$B$5:$M$5,0))/SP17/1.9835,0)) -> -0.02025744307 | JK17: ='Joint Aug Station Deliveries'!CG17 -> 0 | JL17: =IF(AND(JK17>0,SUM($IH$9:IH17,$IJ$9:IJ17,$JK$9:JK17)*1.9835<OFFSET('FIDCO Credit'!$X$39,0,MATCH($A17,'FIDCO Credit'!$Y$5:$AJ$5,0))),JK17-HG17,0) -> 0 | JM17: 0 | JN17: no | JO17: 0 | JP17: 0.02025744307 | JQ17: 0 | JR17: 0 | JS17: 0 | JT17: =IF(JS17>0,MIN(-JR17/(1-0.5/100*'Distances for Transit Losses'!$C$117),JS17),0) -> 0 | JU17: =-JT17*0.5/100*'Distances for Transit Losses'!$C$117 -> 0 | JV17: 0 | JW17: 0 | JX17: =-JW17*0.5/100*'Distances for Transit Losses'!$C$70 -> 0 | JY17: =IF((JW17+JX17)>0,MIN((-JR17-(JT17-JU17)-JV17)/(1-0.5/100*'Distances for Transit Losses'!$C$119),(JW17+JX17)),0) -> 0 | JZ17: =-JY17*0.5/100*'Distances for Transit Losses'!$C$119 -> 0 | KA17: 0 | KC17: 0 | KD17: 0.1464644481 | KE17: 0 | KF17: 0 | KG17: 0 | KH17: 0 | KI17: 0 | KJ17: 0 | KK17: =-KJ17*0.5/100*'Distances for Transit Losses'!$C$121 -> 0 | KL17: 0 | KM17: 0 | KN17: 0.1464644481 | KO17: =-(IF(N17<99999.99999,(VLOOKUP(B17,'ECCV Upper Dpln'!$B$7:$BD$306,55))/SP17/1.9835,0)) -> -3.853753649 | KP17: =-(IF(N17<99999.99999,INDEX('Hist RF abv Milton'!$B$6:$M$30,MATCH($B$2,'Hist RF abv Milton'!$A$6:$A$30,0),MATCH($A17,'Hist RF abv Milton'!$B$5:$M$5,0))/SP17/1.9835,0)) -> -0.01753960152 | KQ17: 0 | KR17: =(VLOOKUP($B17,'ECCV Beebe Pond Acrtns'!$B$7:$BI$1206,41)+VLOOKUP($B17,'ECCV Canal Acrtns'!$B$7:$AL$1206,22)+VLOOKUP($B17,'2003 Beebe Pond Acrtns'!$B$7:$BI$1206,41)+VLOOKUP($B17,'2003 Canal Acrtns'!$B$7:$AL$1206,22))/$SP17/1.9835 -> 1.065139416 | KS17: ='Barr Lake'!BV28 -> 0 | KT17: 0 | KU17: 0 | KV17: 0 | KW17: 0 | KX17: 0 | KY17: 1.065139416 | KZ17: 0 | LA17: no | LB17: 0 | LC17: 0.01753960152 | LD17: 0.9837388565 | LE17: 0 | LF17: 1.804875376 | LG17: 0 | LH17: 0 | LI17: 0 | LJ17: 0 | LK17: =1.5-0.16 -> 1.34 | LL17: =-(LK17*0.5/100*'Distances for Transit Losses'!$C$6) -> -0.01809 | LM17: 0 | LN17: 0 | LO17: 0 | LP17: =IF(AND(E17<>"Lower Latham",I17<>"Lower Latham"),MIN(-(LJ17+LM17),II17-II17*0.5/100*'Distances for Transit Losses'!$C$83),0) -> 0 | LQ17: =IF(AND(E17<>"Lower Latham",I17<>"Lower Latham"),MAX(0,MIN(-(LI17+LK17+LL17+LO17),II17-II17*0.5/100*'Distances for Transit Losses'!$C$83-LP17/(1-0.5/100*'Distances for Transit Losses'!$C$83))),0) -> 0 | LR17: =MIN(-(LJ17+LP17),IG17-IG17*0.5/100*'Distances for Transit Losses'!$C$79) -> 0 | LS17: =MAX(0,MIN(-(LI17+LK17+LL17+LQ17),IG17-IG17*0.5/100*'Distances for Transit Losses'!$C$79-LR17/(1-0.5/100*'Distances for Transit Losses'!$C$79))) -> 0 | LT17: =IF(GE17="no",MIN(-(MIN(0,LI17+LJ17+LK17+LL17+LQ17+LS17)),(HI17-HJ17)-(HI17-HJ17)*0.5/100*'Distances for Transit Losses'!$C$79),0) -> 0 | LU17: =MAX(0,IF(AND(HZ17-IA17-JV17-GR17>0,GE17="no"),MIN(-(LI17+LK17+LL17+LO17+LQ17+LS17+LT17)/(1-0.5/100*'Distances for Transit Losses'!$C$89),HZ17-IA17-JV17-GR17),0)) -> 0 | LV17: =-LU17*0.5/100*'Distances for Transit Losses'!$C$89 -> 0 | LY17: 1.32191 | LZ17: 0 | MA17: 0 | MB17: 0 | MC17: 0.1932959849 | MD17: =-(IF(N17<99999.99999,INDEX('Hist RF blw Milton'!$B$6:$M$30,MATCH($B$2,'Hist RF blw Milton'!$A$6:$A$30,0),MATCH($A17,'Hist RF blw Milton'!$B$5:$M$5,0))/SP17/1.9835,0)) -> -0.02553825924 | ME17: no | MF17: 0 | MG17: 0.02553825924 | MH17: 0 | MI17: 0 | MJ17: 0 | MK17: 0.03 | ML17: Haren Recharge | MM17: ='Milton Lake'!DY16 -> 0 | MN17: 0 | MO17: 0 | MP17: 0 | MQ17: 0.1677577257 | MR17: =-(IF(N17<99999.99999,INDEX('Hist RF to Box Elder'!$B$6:$M$30,MATCH($B$2,'Hist RF to Box Elder'!$A$6:$A$30,0),MATCH($A17,'Hist RF to Box Elder'!$B$5:$M$5,0))/SP17/1.9835,0)) -> -0.01324364974 | MS17: =(VLOOKUP($B17,'ECCV Beebe Pond Acrtns'!$B$7:$BI$1206,54)+VLOOKUP($B17,'ECCV Canal Acrtns'!$B$7:$AL$1206,34)+VLOOKUP($B17,'2003 Beebe Pond Acrtns'!$B$7:$BI$1206,54)+VLOOKUP($B17,'2003 Canal Acrtns'!$B$7:$AL$1206,34)+VLOOKUP($B17,'84CW090 Beebe Pond Acrtns'!$B$7:$BI$1206,55)+VLOOKUP($B17,'84CW090 Canal Acrtns'!$B$7:$AL$1206,34))/$SP17/1.9835 -> 0.1080499331 | MT17: 0.01324364974 | MU17: 0 | MV17: 0 | MW17: 0 | MY17: -6.94133647 | MZ17: 5.193203251 | NA17: 0.05553825924 | NB17: 0.01324364974 | NC17: 0.02025744307 | ND17: 0.04066046605 | NE17: 0.06103583451 | NF17: 0 | NG17: 1.877225846 | NH17: 1.066442778 | NI17: 8.327607527 | NJ17: 1.386271057 | NK17: 0 | NL17: 0 | NM17: 0.1464644481 | NO17: 0 | NP17: 0 | NQ17: 0 | NR17: 0 | NS17: 0 | NT17: 0 | NU17: 0 | NV17: 0 | NX17: 0 | NY17: 0 | NZ17: 0 | OA17: 0 | OB17: 0 | OC17: 0 | OD17: 0 | OE17: 0 | OF17: 0 | OG17: 0 | OH17: 0 | OI17: 0 | OK17: 1.4 | OL17: 0 | OM17: 0 | ON17: 0 | OO17: 0 | OP17: 0 | OQ17: 0 | OR17: 0 | OS17: 0 | OT17: 0 | OU17: 0 | OW17: 0.1464644481 | OX17: 0 | OY17: 0 | OZ17: 0 | PA17: 0 | PB17: 0 | PC17: 0 | PD17: 0 | PE17: 0 | PF17: 0 | PG17: 0 | PI17: 0 | PJ17: 0 | PK17: 0 | PL17: 0 | PM17: 0 | PN17: 0 | PO17: 0 | PP17: 0 | PQ17: 0 | PR17: 0 | PS17: 0 | PT17: 0 | PU17: 0 | PW17: 0 | PX17: 0 | PY17: 0 | PZ17: 0 | QA17: 0 | QB17: 0 | QC17: 0 | QD17: 0 | QE17: 0 | QG17: 0 | QH17: 0 | QI17: 0 | QJ17: 0 | QK17: 0 | QL17: 0 | QM17: 0 | QN17: 0 | QP17: 0 | QQ17: 0 | QR17: 0 | QT17: 0 | QU17: 0 | QV17: 0 | QW17: 0 | QZ17: 0 | RA17: 0 | RB17: 0 | RC17: 0 | RD17: 0 | RE17: 0 | RF17: 0 | RH17: 0 | RI17: 0 | RJ17: 0 | RK17: 0 | RL17: 0 | RM17: 309.6 | RO17: 0 | RP17: 0 | RQ17: 0 | RR17: 0 | RS17: 0 | RT17: 0 | RU17: 0 | RV17: 0 | RW17: 0 | RX17: 0 | RY17: 0 | RZ17: 0 | SA17: 0 | SB17: 0 | SC17: 0 | SD17: 0 | SE17: 0 | SF17: 0 | SG17: 0 | SH17: 0 | SI17: 0 | SJ17: TRUE | SK17: TRUE | SM17: 1.34 | SN17: 0 | SP17: =VLOOKUP(A17,'Control Sheet'!$G$9:$H$20,2) -> 30
A18: Apr | B18: 2018-04-10 | C18: Prewitt Inlet Canal | D18: 1936-01-13 | E18: Prewitt Inlet Canal | F18: 31423.29219 | K18: Prewitt Inlet Canal | L18: 1936-01-13 | M18: Prewitt Inlet Canal | N18: 31423.29219 | AA18: 0 | AB18: 0 | AC18: 0 | AD18: 0 | AE18: 0 | AF18: 0 | AG18: =('NFC Well Pumping'!$L16+'NFC Well Pumping'!$L53+'NFC Well Pumping'!$L89)/1.9835 -> 3.218192897 | AH18: ='88CW264(B) Pumping'!$E16/1.9835+'88CW264(B) Pumping'!$E52/1.9835+'88CW264(B) Pumping'!E92/1.9835+'88CW264(B) Pumping'!E128/1.9835+'88CW264(B) Pumping'!E168/1.9835+'88CW264(B) Pumping'!E204/1.9835 -> 0.01481193911 | AI18: 0 | AJ18: =('United No. 2 Well Pumping'!G17+'United No. 2 Well Pumping'!G53+'United No. 2 Well Pumping'!G89)/1.9835 -> 0 | AK18: =('United No. 2 Well Pumping'!F17+'United No. 2 Well Pumping'!F53+'United No. 2 Well Pumping'!F89)/1.9835 -> 0 | AL18: 0 | AN18: 3.233004837 | AO18: =AC18+AK18+'United Res'!AA180+'United Res'!AQ180+'Milliken Res'!I168 -> 0 | AP18: 100 | AQ18: =-(IF($N18=99999.99999,0,VLOOKUP($B18,'NFC Well Dplns-URF'!B$7:$AB$306,27))/$SP18/1.9835) -> -0.003304877751 | AR18: 0 | AT18: =(VLOOKUP($B18,'ECCV 70R Pond Acrtns'!$B$7:$AI$1206,34)+VLOOKUP($B18,'2003 70R Pond Acrtns'!$B$7:$AI$1206,34)+VLOOKUP($B18,'ECCV 70R Canal Acrtns'!$B$7:$AI$1206,27)+VLOOKUP($B18,'2003 70R Canal Acrtns'!$B$7:$AI$1206,27))/$SP18/1.9835 -> 0 | AU18: -0.003304877751 | AV18: =-(IF($N18=99999.99999,0,VLOOKUP($B18,'NFC Well Dplns-SDF'!$B$7:$Z$306,25)+VLOOKUP($B18,'NFC Well Dplns-URF'!B$7:$AB$306,20))/$SP18/1.9835) -> -0.06850151537 | AW18: 0.003352812464 | AX18: 0.04 | AY18: ECCV Riverside Credits | AZ18: =-((BL18+BM18)*'Weldon Credit'!$BB$36) -> 0 | BA18: =-((BL18+BM18)*'Weldon Credit'!$BB$34) -> -0.00492471593 | BB18: =-INDEX('Weldon Credit'!$AX$249:$BJ$276,MATCH($B$2,'Weldon Credit'!$AX$249:$AX$276,0),MATCH(A18,'Weldon Credit'!$AX$249:$BJ$249,0))/SP18/1.9835 -> -0.007996419995 | BC18: -0.007996419995 | BD18: =-((BL18+BM18)*'Weldon Credit'!$BB$37) -> -0.159164391 | BE18: =-((BL18+BM18)*'Weldon Credit'!$BB$35) -> -0.1762855071 | BF18: =-INDEX('Weldon Credit'!$AX$281:$BJ$308,MATCH($B$2,'Weldon Credit'!$AX$281:$AX$308,0),MATCH(A18,'Weldon Credit'!$AX$281:$BJ$281,0))/SP18/1.9835 -> -0.1409485256 | BG18: -0.3001129166 | BH18: =-(BL18+BM18)*'Weldon Credit'!$BB$38 -> -0.714980629 | BI18: =0.4*(INDEX('Riverside Pond Accrtns'!$B$6:$M$36,MATCH($B$2,'Riverside Pond Accrtns'!$A$6:$A$36,0),MATCH('ECCV Daily Replacement Summary'!A18,'Riverside Pond Accrtns'!$B$5:$M$5,0))/SP18)/1.9835 -> 1.65541047 | BJ18: =(44/640)*(INDEX('Weldon Valley Accrtns (02CW377)'!$B$6:$M$30,MATCH($B$2,'Weldon Valley Accrtns (02CW377)'!$A$6:$A$30,0),MATCH(A18,'Weldon Valley Accrtns (02CW377)'!$B$5:$M$5,0))/SP18)/1.9835 -> 0.2998172422 | BK18: =(VLOOKUP($B18,'ECCV 70R Pond Acrtns'!$B$7:$AI$1206,25)+VLOOKUP($B18,'ECCV 70R Canal Acrtns'!$B$7:$AI$1206,20)+VLOOKUP($B18,'2003 70R Pond Acrtns'!$B$7:$AI$1206,25)+VLOOKUP($B18,'2003 70R Canal Acrtns'!$B$7:$AI$1206,20))/$SP18/1.9835 -> 0 | BL18: ='Joint Aug Station Deliveries'!G18 -> 1.4 | BM18: ='Joint Aug Station Deliveries'!H18 -> 0 | BN18: 0 | BO18: 1.023089966 | BP18: =IF(CB18="no",-MAX(0,MIN(BO18,(BM18-BL18))*(0.5/100*'Distances for Transit Losses'!$C$75)),0) -> 0 | BQ18: 0.3769100344 | BR18: =MIN(-($BC18+BG18+BH18+BN18+BO18+BP18),BI18-BI18*0.5/100*'Distances for Transit Losses'!$C$77) -> 0 | BS18: 0 | BT18: =MIN(-($BC18+BG18+BH18+BN18+BO18+BP18+BR18+BS18),BK18-BK18*0.5/100*'Distances for Transit Losses'!$C$77) -> 0 | BU18: =-((BR18+BT18)*(0.5/100*'Distances for Transit Losses'!$C$77)) -> 0 | BV18: =IF(AND(JS18-JT18-GL18-DU18>0,JN18="no"),MIN(-(BC18+BG18+BH18+BN18+BO18+BP18+BR18+BS18+BT18+BU18)/(1-0.5/100*'Distances for Transit Losses'!$C$99),JS18-JT18-GL18-DU18),0) -> 0 | BW18: =--BV18*0.5/100*'Distances for Transit Losses'!C$99 -> 0 | BX18: =IF(AND(HZ18-IA18-JV18-GR18-LU18-DY18>0,GE18="no"),MIN(-(BC18+BG18+BH18+BN18+BO18+BP18+BR18+BS18+BT18+BU18+BV18+BW18)/(1-0.5/100*'Distances for Transit Losses'!$C$101),HZ18-IA18-JV18-GR18-LU18-DY18),0) -> 0 | BY18: =--BX18*0.5/100*'Distances for Transit Losses'!$C$101 -> 0 | BZ18: 0 | CB18: no | CC18: no | CD18: no | CE18: 0 | CF18: 0 | CG18: 0 | CI18: =IF($CD18="No",MIN(IF(-DP18<0,0,-DP18),BI18-BR18/(1-0.5/100*'Distances for Transit Losses'!$C$77)),0) -> 0.3088176821 | CJ18: =IF($CD18="No",IF(MIN(-DP18+CI18,BK18-BT18/(1-0.5/100*'Distances for Transit Losses'!$C$77))<0,0,MIN(-DP18+CI18,BK18-BT18/(1-0.5/100*'Distances for Transit Losses'!$C$77))),0) -> 0 | CK18: 0 | CL18: 0 | CM18: 0 | CN18: 2.266989043 | CO18: 1.998171361 | CP18: =-(IF($N18=99999.99999,0,VLOOKUP($B18,'NFC Well Dplns-SDF'!$B$7:$Z$306,16)+VLOOKUP($B18,'NFC Well Dplns-URF'!$B$7:$AB$306,13))/$SP18/1.9835) -> -0.4359358329 | CQ18: =-(IF($N18>=99999,0,'88CW264(B) Pumping'!$E16/1.9835)+IF($N18>=99999,0,'88CW264(B) Pumping'!$E52/1.9835)+IF($N18>=99999,0,'88CW264(B) Pumping'!$E92/1.9835)+IF($N18>=99999,0,'88CW264(B) Pumping'!$E128/1.9835)+IF($N18>=51134.50919,0,'88CW264(B) Pumping'!$E168/1.9835)+IF($N18>=53406,0,'88CW264(B) Pumping'!$E204/1.9835)) -> -0.01481193911 | CR18: -0.450747772 | CS18: 0.03193008991 | CT18: 0.11 | CU18: Haren Recharge | CV18: =-(IF($N18=99999.99999,0,VLOOKUP($B18,'United No. 2 Dplns'!$B$7:$X$676,13)/1.9835)) -> 0 | CW18: =CV18+(-(INDEX('Pre 1995 Net Accretions'!$B$6:$M$105,MATCH($B$2,'Pre 1995 Net Accretions'!$A$6:$A$105,0),MATCH($A18,'Pre 1995 Net Accretions'!$B$5:$M$5,0))/$SP18/1.9835)) -> 0.02775653206 | CX18: =-(IF(N18<99999.99999,(INDEX('70 Ranch RF Obligation'!$B$6:$M$36,MATCH($B$2,'70 Ranch RF Obligation'!$A$6:$A$36,0),MATCH('ECCV Daily Replacement Summary'!A18,'70 Ranch RF Obligation'!$B$5:$M$5,0))/SP18)/1.9835,0))-DA18*(1-'L. Latham Credit'!$E$41) -> -0.9322346061 | CY18: -0.904478074 | CZ18: =(VLOOKUP($B18,'ECCV 70R Pond Acrtns'!$B$7:$AI$1206,16)+VLOOKUP($B18,'ECCV 70R Canal Acrtns'!$B$7:$AI$1206,13)+VLOOKUP($B18,'2003 70R Pond Acrtns'!$B$7:$AI$1206,16)+VLOOKUP($B18,'2003 70R Canal Acrtns'!$B$7:$AI$1206,13))/$SP18/1.9835 -> 0 | DA18: ='Joint Aug Station Deliveries'!DE18 -> 1.5 | DB18: 0.595521926 | DC18: 0.904478074 | DD18: ='Joint Aug Station Deliveries'!DH18 -> 0 | DE18: 0 | DF18: 0 | DI18: 0.623278458 | DJ18: 0 | DK18: 0 | DL18: =-DK18*0.5/100*'Distances for Transit Losses'!$C$48 -> 0 | DM18: 0 | DN18: 0 | DO18: 0 | DP18: -0.3088176821 | DQ18: 0.3088176821 | DR18: 0 | DS18: 0 | DT18: =('NFC Well Pumping'!I16+'NFC Well Pumping'!I53+'NFC Well Pumping'!I89)/1.9835 -> 0 | DU18: =IF(AND(JS18-JT18-GL18>0,JN18="no"),MIN(-SUM(DP18:DT18)/(1-0.5/100*'Distances for Transit Losses'!$C$103),JS18-JT18-GL18),0) -> 0 | DV18: =-DU18*0.5/100*'Distances for Transit Losses'!C$103 -> 0 | DW18: 0 | DX18: =-DW18*0.5/100*'Distances for Transit Losses'!$C$127 -> 0 | DY18: =IF(AND(HZ18-IA18-JV18-GR18-LU18>0,GE18="no"),MIN(-SUM(DP18:DX18)/(1-0.5/100*'Distances for Transit Losses'!$C$105),HZ18-IA18-JV18-GR18-LU18),0) -> 0 | DZ18: =--DY18*0.5/100*'Distances for Transit Losses'!$C$105 -> 0 | EA18: 0.623278458 | EB18: =IF('Joint Aug Station Deliveries'!R18="Yes",'Joint Aug Station Deliveries'!P18,0) -> 0 | EC18: ='Joint Aug Station Deliveries'!T18 -> 0 | ED18: =IF('Joint Aug Station Deliveries'!Z18="Yes",'Joint Aug Station Deliveries'!X18,0) -> 0 | EE18: =-(ED18*0.5/100*'Distances for Transit Losses'!$C$216) -> 0 | EF18: =IF('Joint Aug Station Deliveries'!AD18="Yes",'Joint Aug Station Deliveries'!AB18,0) -> 0 | EG18: =-(EF18*0.5/100*'Distances for Transit Losses'!$C$248) -> 0 | EH18: 0 | EI18: =-(EH18*0.5/100*'Distances for Transit Losses'!$C$238) -> 0 | EJ18: no | EK18: =IF('Joint Aug Station Deliveries'!AH18="Yes",'Joint Aug Station Deliveries'!AF18,0) -> 0 | EL18: =-(EK18*0.5/100*'Distances for Transit Losses'!$C$250) -> 0 | EM18: =IF('Joint Aug Station Deliveries'!AL18="Yes",'Joint Aug Station Deliveries'!AJ18,0) -> 0 | EN18: =-(EM18*0.5/100*'Distances for Transit Losses'!$C$252) -> 0 | EO18: =IF('Joint Aug Station Deliveries'!AP18="Yes",'Joint Aug Station Deliveries'!AN18,0) -> 0 | EP18: =-(EO18*0.5/100*'Distances for Transit Losses'!$C$254) -> 0 | EQ18: =-0.25*(INDEX('GIC Credit'!$B$85:$M$116,MATCH($B$2,'GIC Credit'!$A$85:$A$116,0),MATCH($A18,'GIC Credit'!$B$85:$M$85,0))/$SP18/1.9835+FK18*'GIC Credit'!$Z$39+FL18*'GIC Credit'!$AO$39) -> -0.0001915 | ER18: -0.0001915 | ES18: ='Joint Aug Station Deliveries'!CW18 -> 0 | ET18: =-(ES18*0.5/100*'Distances for Transit Losses'!$C$244) -> 0 | EU18: ='Joint Aug Station Deliveries'!CX18 -> 0 | EV18: =-(EU18*0.5/100*'Distances for Transit Losses'!$C$246) -> 0 | EW18: 0 | EY18: no | EZ18: -0.0001915 | FA18: =-0.39*(INDEX('GIC Credit'!$B$85:$M$116,MATCH($B$2,'GIC Credit'!$A$85:$A$116,0),MATCH($A18,'GIC Credit'!$B$85:$M$85,0))/$SP18/1.9835+FK18*'GIC Credit'!$Z$39+FL18*'GIC Credit'!$AO$39) -> -0.00029874 | FB18: 0 | FC18: =-(FB18*0.5/100*('Distances for Transit Losses'!$C$220+'Distances for Transit Losses'!$C$226)) -> 0 | FD18: =IF('Joint Aug Station Deliveries'!AT18="Yes",'Joint Aug Station Deliveries'!AR18,0) -> 0 | FE18: =-(FD18*0.5/100*('Distances for Transit Losses'!$C$222+'Distances for Transit Losses'!$C$224)) -> 0 | FF18: =IF('Joint Aug Station Deliveries'!AX18="Yes",'Joint Aug Station Deliveries'!AV18,0) -> 0 | FG18: =-(FF18*0.5/100*'Distances for Transit Losses'!$C$224) -> 0 | FH18: ='Joint Aug Station Deliveries'!CY18 -> 0 | FI18: =-(FH18*0.5/100*'Distances for Transit Losses'!$C$230) -> 0 | FJ18: 0 | FK18: ='Joint Aug Station Deliveries'!DA18 -> 0 | FL18: ='Joint Aug Station Deliveries'!DB18 -> 0 | FM18: =MIN(0,EZ18)+SUM(FA18:FC18)+EB18/(1-0.5/100*('Distances for Transit Losses'!$C$256+'Distances for Transit Losses'!$C$268))+EC18/(1-0.5/100*('Distances for Transit Losses'!$C$242))+SUM(ED18:EE18)/(1-0.5/100*('Distances for Transit Losses'!$C$258+'Distances for Transit Losses'!$C$268))+SUM(EF18:EG18)/(1-0.5/100*('Distances for Transit Losses'!$C$260+'Distances for Transit Losses'!$C$268))+EH18/(1-0.5/100*('Distances for Transit Losses'!$C$242))+SUM(EK18:EL18)/(1-0.5/100*('Distances for Transit Losses'!$C$262+'Distances for Transit Losses'!$C$270))+SUM(EM18:EN18)/(1-0.5/100*('Distances for Transit Losses'!$C$264+'Distances for Transit Losses'!$C$270))+SUM(EO18:EP18)/(1-0.5/100*('Distances for Transit Losses'!$C$266+'Distances for Transit Losses'!$C$270))+SUM(FD18:FG18)/(1-0.5/100*('Distances for Transit Losses'!$C$226))+SUM(FH18:FI18) -> -0.00049024 | FN18: =-(IF(N18<99999.99999,INDEX('Hist RF to SPR'!$AF$6:$AQ$30,MATCH($B$2,'Hist RF to SPR'!$AE$6:$AE$30,0),MATCH($A18,'Hist RF to SPR'!$AF$5:$AQ$5,0))/SP18/1.9835,0)) -> -0.0002698345146 | FO18: =IF(N18<99999.99999,-INDEX('New Cache Credit'!$BO$109:$CA$136,MATCH($B$2,'New Cache Credit'!$BO$109:$BO$136,0),MATCH(A18,'New Cache Credit'!$BO$109:$CA$109,0))/SP18/1.9835-INDEX('New Cache Credit'!$CD$77:$CP$104,MATCH($B$2,'New Cache Credit'!$CD$77:$CD$104,0),MATCH(A18,'New Cache Credit'!$CD$77:$CP$77,0))/SP18/1.9835,0) -> 0 | FP18: =-0.36*(INDEX('GIC Credit'!$B$85:$M$116,MATCH($B$2,'GIC Credit'!$A$85:$A$116,0),MATCH($A18,'GIC Credit'!$B$85:$M$85,0))/$SP18/1.9835+FK18*'GIC Credit'!$Z$39+FL18*'GIC Credit'!$AO$39) -> -0.00027576 | FQ18: -0.00049024 | FR18: -0.001035834515 | FS18: 0 | FT18: =IF('Joint Aug Station Deliveries'!BB18="Yes",'Joint Aug Station Deliveries'!AZ18,0) -> 0 | FU18: =-(FT18*0.5/100*'Distances for Transit Losses'!$C$208) -> 0 | FV18: =IF('Joint Aug Station Deliveries'!BF18="Yes",'Joint Aug Station Deliveries'!BD18,0) -> 0 | FW18: =-(FV18*0.5/100*'Distances for Transit Losses'!$C$210) -> 0 | FX18: =IF('Joint Aug Station Deliveries'!BJ18,'Joint Aug Station Deliveries'!BH18,0) -> 0 | FY18: =-(FX18*0.5/100*'Distances for Transit Losses'!$C$212) -> 0 | FZ18: =IF('Joint Aug Station Deliveries'!BN18="Yes",'Joint Aug Station Deliveries'!BL18,0) -> 0 | GA18: =-(FZ18*0.5/100*'Distances for Transit Losses'!$C$200) -> 0 | GB18: =IF('Joint Aug Station Deliveries'!BR18="Yes",'Joint Aug Station Deliveries'!BP18,0) -> 0 | GC18: =-(GB18*0.5/100*'Distances for Transit Losses'!$C$206) -> 0 | GD18: =MIN(-FR18-FS18,SUM(FT18:FU18)/(1-0.5/100*('Distances for Transit Losses'!$C$274))+SUM(FV18:FW18)/(1-0.5/100*('Distances for Transit Losses'!$C$276))+SUM(FX18:FY18)+SUM(FZ18:GA18)+SUM(GB18:GC18)) -> 0 | GE18: no | GF18: 0 | GG18: 0 | GH18: 0 | GJ18: 0 | GK18: 0 | GL18: =IF(AND(JS18-JT18-HV18>0,JN18="no"),MIN(-(FR18+FS18+GD18+GJ18+GK18)/(1-0.5/100*'Distances for Transit Losses'!$C$107),JS18-JT18-HV18),0) -> 0 | GM18: 0 | GN18: 0 | GO18: =-GL18*0.5/100*'Distances for Transit Losses'!$C$107 -> 0 | GP18: 0 | GQ18: =-GP18*0.5/100*'Distances for Transit Losses'!$C$125 -> 0 | GR18: =IF(AND(HZ18-IA18-JV18>0,HL18="no"),MIN(-(FR18+FS18+GD18+GJ18+GK18+GL18+GO18+GP18+GQ18)/(1-0.5/100*'Distances for Transit Losses'!$C$109),HZ18-IA18-JV18),0) -> 0 | GS18: =-GR18*0.5/100*'Distances for Transit Losses'!$C$115 -> 0 | GT18: 0.06 | GU18: Haren Recharge | GV18: 0 | GW18: 0.05896416549 | GX18: 0.05896416549 | GY18: 0 | GZ18: 0 | HA18: =-(IF(N18<99999.99999,INDEX('Hist RF to SPR'!$Q$6:$AB$30,MATCH($B$2,'Hist RF to SPR'!$P$6:$P$30,0),MATCH($A18,'Hist RF to SPR'!$Q$5:$AB$5,0))/SP18/1.9835,0)) -> -0.002641576218 | HB18: =-(IF(OR($N18<99999.99999,E18="Lower Latham",I18="Lower Latham",E18="Highland",I18="Highland",E18="Plum",I18="Plum"),(INDEX('FIDCO Credit'!$Y$48:$AJ$78,MATCH($B$2,'FIDCO Credit'!$X$48:$X$78,0),MATCH($A18,'FIDCO Credit'!$Y$47:$AJ$47,0))/$SP18)/1.9835,0)) -> 0 | HC18: =-(IF(OR($N18<99999.99999,E18="Lower Latham",I18="Lower Latham",E18="Highland",I18="Highland",E18="Plum",I18="Plum"),(INDEX('Western Credit'!$W$84:$AH$114,MATCH($B$2,'Western Credit'!$V$84:$V$114,0),MATCH($A18,'Western Credit'!$W$83:$AH$83,0))/$SP18)/1.9835+'Haren Daily Recharge'!K17*'Western Credit'!$Z$40,0)) -> -0.03801888983 | HD18: -0.04066046605 | HE18: 0 | HF18: 0 | HG18: =IF(AND(HM18="no",HN18="no"),MIN(-(HB18-HE18-HF18)/(1-0.5/100*'Distances for Transit Losses'!$C$95),JK18),0) -> 0 | HH18: =-HG18*0.5/100*'Distances for Transit Losses'!$C$95 -> 0 | HI18: =VLOOKUP($B18,'ECCV Haren Pond S.P. Acrtns'!$B$7:$G$306,6)/$SP18/1.9835 -> 1.671957767 | HJ18: 0.04066046605 | HK18: 0 | HL18: no | HM18: no | HN18: no | HO18: 0 | HP18: 0 | HQ18: 0 | HS18: 0 | HT18: 0 | HU18: 0 | HV18: =IF(AND(JS18-JT18>0,JN18="no"),MIN(-HU18/(1-0.5/100*'Distances for Transit Losses'!$C$111),JS18-JT18),0) -> 0 | HW18: =-HV18*0.5/100*'Distances for Transit Losses'!$C$111 -> 0 | HX18: =IF(AND(JW18+JX18-JY18-KJ18>0,JN18="no"),MIN((-HU18-(HV18+HW18))/(1-0.5/100*'Distances for Transit Losses'!$C$113),JW18+JX18-JY18-KJ18),0) -> 0 | HY18: =-HX18*0.5/100*'Distances for Transit Losses'!$C$113 -> 0 | HZ18: 0 | IA18: =IF(HZ18>0,MIN(-(HU18+HV18+HW18+HX18+HY18)/(1-0.5/100*'Distances for Transit Losses'!$C$115),HZ18),0) -> 0 | IB18: =-IA18*0.5/100*'Distances for Transit Losses'!$C$115 -> 0 | IC18: 0 | IE18: 0 | IF18: ='Joint Aug Station Deliveries'!CJ18 -> 0 | IG18: =IF18*'Western Credit'!$Z$42 -> 0 | IH18: ='Joint Aug Station Deliveries'!CA18 -> 0 | II18: =IF(AND(IH18>0,SUM($IH$9:IH18,$IJ$9:IJ18,$JK$9:JK18)*1.9835<OFFSET('FIDCO Credit'!$X$39,0,MATCH($A18,'FIDCO Credit'!$Y$5:$AJ$5,0))),IH18-HE18,0) -> 0 | IJ18: ='Joint Aug Station Deliveries'!CD18 -> 0 | IK18: =IF(AND(IJ18>0,SUM($IH$9:IH18,$IJ$9:IJ18,$JK$9:JK18)*1.9835<OFFSET('FIDCO Credit'!$X$39,0,MATCH($A18,'FIDCO Credit'!$Y$5:$AJ$5,0))),IJ18-HF18,0) -> 0 | IL18: =MAX(0,(LP18+LQ18))/(1-0.5/100*'Distances for Transit Losses'!$C$83) -> 0 | IM18: =MAX(0,(LR18+LS18)/(1-0.5/100*'Distances for Transit Losses'!$C$79)) -> 0 | IN18: 0 | IO18: =-IN18*0.5/100*'Distances for Transit Losses'!$C$85 -> 0 | IP18: 0 | IQ18: 0 | IR18: =-IQ18*0.5/100*'Distances for Transit Losses'!$C$34 -> 0 | IS18: 0 | IT18: 0 | IU18: 0 | IV18: 0 | IW18: 0 | IX18: 0 | IY18: 0 | IZ18: 0 | JA18: 0 | JB18: 0 | JC18: 0 | JD18: 0 | JE18: =-JD18*0.5/100*'Distances for Transit Losses'!$C$123 -> 0 | JF18: 0 | JG18: 1.6312973 | JH18: 0 | JI18: 0 | JJ18: =-(IF(F18<99999.99999,INDEX('Hist RF to SPR'!$B$6:$M$30,MATCH($B$2,'Hist RF to SPR'!$A$6:$A$30,0),MATCH($A18,'Hist RF to SPR'!$B$5:$M$5,0))/SP18/1.9835,0)) -> -0.02025744307 | JK18: ='Joint Aug Station Deliveries'!CG18 -> 0 | JL18: =IF(AND(JK18>0,SUM($IH$9:IH18,$IJ$9:IJ18,$JK$9:JK18)*1.9835<OFFSET('FIDCO Credit'!$X$39,0,MATCH($A18,'FIDCO Credit'!$Y$5:$AJ$5,0))),JK18-HG18,0) -> 0 | JM18: 0 | JN18: no | JO18: 0 | JP18: 0 | JQ18: 0.02025744307 | JR18: 0 | JS18: 0 | JT18: =IF(JS18>0,MIN(-JR18/(1-0.5/100*'Distances for Transit Losses'!$C$117),JS18),0) -> 0 | JU18: =-JT18*0.5/100*'Distances for Transit Losses'!$C$117 -> 0 | JV18: 0 | JW18: 0 | JX18: =-JW18*0.5/100*'Distances for Transit Losses'!$C$70 -> 0 | JY18: =IF((JW18+JX18)>0,MIN((-JR18-(JT18-JU18)-JV18)/(1-0.5/100*'Distances for Transit Losses'!$C$119),(JW18+JX18)),0) -> 0 | JZ18: =-JY18*0.5/100*'Distances for Transit Losses'!$C$119 -> 0 | KA18: 0 | KC18: 0 | KD18: 0 | KE18: 0 | KF18: 0 | KG18: 0 | KH18: 0 | KI18: 0 | KJ18: 0 | KK18: =-KJ18*0.5/100*'Distances for Transit Losses'!$C$121 -> 0 | KL18: 0 | KM18: 0 | KN18: 0 | KO18: =-(IF(N18<99999.99999,(VLOOKUP(B18,'ECCV Upper Dpln'!$B$7:$BD$306,55))/SP18/1.9835,0)) -> -3.853753649 | KP18: =-(IF(N18<99999.99999,INDEX('Hist RF abv Milton'!$B$6:$M$30,MATCH($B$2,'Hist RF abv Milton'!$A$6:$A$30,0),MATCH($A18,'Hist RF abv Milton'!$B$5:$M$5,0))/SP18/1.9835,0)) -> -0.01753960152 | KQ18: 0 | KR18: =(VLOOKUP($B18,'ECCV Beebe Pond Acrtns'!$B$7:$BI$1206,41)+VLOOKUP($B18,'ECCV Canal Acrtns'!$B$7:$AL$1206,22)+VLOOKUP($B18,'2003 Beebe Pond Acrtns'!$B$7:$BI$1206,41)+VLOOKUP($B18,'2003 Canal Acrtns'!$B$7:$AL$1206,22))/$SP18/1.9835 -> 1.065139416 | KS18: ='Barr Lake'!BV29 -> 0 | KT18: 0 | KU18: 0 | KV18: 0 | KW18: 0 | KX18: 0 | KY18: 1.065139416 | KZ18: 0 | LA18: no | LB18: 0 | LC18: 0.01753960152 | LD18: 0.6057388565 | LE18: 0 | LF18: 1.998171361 | LG18: 0 | LH18: 0.05896416549 | LI18: -0.1257398496 | LJ18: 0 | LK18: =1.5-0.43 -> 1.07 | LL18: =-(LK18*0.5/100*'Distances for Transit Losses'!$C$6) -> -0.014445 | LM18: 0 | LN18: 0 | LO18: 0 | LP18: =IF(AND(E18<>"Lower Latham",I18<>"Lower Latham"),MIN(-(LJ18+LM18),II18-II18*0.5/100*'Distances for Transit Losses'!$C$83),0) -> 0 | LQ18: =IF(AND(E18<>"Lower Latham",I18<>"Lower Latham"),MAX(0,MIN(-(LI18+LK18+LL18+LO18),II18-II18*0.5/100*'Distances for Transit Losses'!$C$83-LP18/(1-0.5/100*'Distances for Transit Losses'!$C$83))),0) -> 0 | LR18: =MIN(-(LJ18+LP18),IG18-IG18*0.5/100*'Distances for Transit Losses'!$C$79) -> 0 | LS18: =MAX(0,MIN(-(LI18+LK18+LL18+LQ18),IG18-IG18*0.5/100*'Distances for Transit Losses'!$C$79-LR18/(1-0.5/100*'Distances for Transit Losses'!$C$79))) -> 0 | LT18: =IF(GE18="no",MIN(-(MIN(0,LI18+LJ18+LK18+LL18+LQ18+LS18)),(HI18-HJ18)-(HI18-HJ18)*0.5/100*'Distances for Transit Losses'!$C$79),0) -> 0 | LU18: =MAX(0,IF(AND(HZ18-IA18-JV18-GR18>0,GE18="no"),MIN(-(LI18+LK18+LL18+LO18+LQ18+LS18+LT18)/(1-0.5/100*'Distances for Transit Losses'!$C$89),HZ18-IA18-JV18-GR18),0)) -> 0 | LV18: =-LU18*0.5/100*'Distances for Transit Losses'!$C$89 -> 0 | LY18: 0.9298151504 | LZ18: 0 | MA18: 0 | MB18: 0 | MC18: 0 | MD18: =-(IF(N18<99999.99999,INDEX('Hist RF blw Milton'!$B$6:$M$30,MATCH($B$2,'Hist RF blw Milton'!$A$6:$A$30,0),MATCH($A18,'Hist RF blw Milton'!$B$5:$M$5,0))/SP18/1.9835,0)) -> -0.02553825924 | ME18: no | MF18: 0 | MG18: 0 | MH18: -0.02553825924 | MI18: 0 | MJ18: 0 | MK18: 0.03 | ML18: Haren Recharge | MM18: ='Milton Lake'!DY17 -> 0 | MN18: 0 | MO18: 0 | MP18: 0 | MQ18: 0 | MR18: =-(IF(N18<99999.99999,INDEX('Hist RF to Box Elder'!$B$6:$M$30,MATCH($B$2,'Hist RF to Box Elder'!$A$6:$A$30,0),MATCH($A18,'Hist RF to Box Elder'!$B$5:$M$5,0))/SP18/1.9835,0)) -> -0.01324364974 | MS18: =(VLOOKUP($B18,'ECCV Beebe Pond Acrtns'!$B$7:$BI$1206,54)+VLOOKUP($B18,'ECCV Canal Acrtns'!$B$7:$AL$1206,34)+VLOOKUP($B18,'2003 Beebe Pond Acrtns'!$B$7:$BI$1206,54)+VLOOKUP($B18,'2003 Canal Acrtns'!$B$7:$AL$1206,34)+VLOOKUP($B18,'84CW090 Beebe Pond Acrtns'!$B$7:$BI$1206,55)+VLOOKUP($B18,'84CW090 Canal Acrtns'!$B$7:$AL$1206,34))/$SP18/1.9835 -> 0.1080499331 | MT18: 0.01324364974 | MU18: 0 | MV18: 0 | MW18: 0 | MY18: -6.41933647 | MZ18: 4.801108401 | NA18: 0.03 | NB18: 0.01324364974 | NC18: 0.02025744307 | ND18: 0.04066046605 | NE18: 0.06 | NF18: 0 | NG18: 1.355225846 | NH18: 1.066442778 | NI18: =SUM(MZ18:NH18) -> 7.386938584 | NJ18: 0.9676021138 | NK18: 0 | NL18: 0 | NM18: 0 | NO18: 0 | NP18: 0 | NQ18: 0 | NR18: 0 | NS18: 0 | NT18: 0 | NU18: 0 | NV18: 0 | NX18: 0 | NY18: 0 | NZ18: 0 | OA18: 0 | OB18: 0 | OC18: 0 | OD18: 0 | OE18: 0 | OF18: 0 | OG18: 0 | OH18: 0 | OI18: 0 | OK18: 1.4 | OL18: 0 | OM18: 0 | ON18: 0 | OO18: 0 | OP18: 0 | OQ18: 0 | OR18: 0 | OS18: 0 | OT18: 0 | OU18: 0 | OW18: 0 | OX18: 0 | OY18: 0 | OZ18: 0 | PA18: 0 | PB18: 0 | PC18: 0 | PD18: 0 | PE18: 0 | PF18: 0 | PG18: 0 | PI18: 0 | PJ18: 0 | PK18: 0 | PL18: 0 | PM18: 0 | PN18: 0 | PO18: 0 | PP18: 0 | PQ18: 0 | PR18: 0 | PS18: 0 | PT18: 0 | PU18: 0 | PW18: 0 | PX18: 0 | PY18: 0 | PZ18: 0 | QA18: 0 | QB18: 0 | QC18: 0 | QD18: 0 | QE18: 0 | QG18: 0 | QH18: 0 | QI18: 0 | QJ18: 0 | QK18: 0 | QL18: 0 | QM18: 0 | QN18: 0 | QP18: 0 | QQ18: 0 | QR18: 0 | QT18: 0 | QU18: 0 | QV18: 0 | QW18: 0 | QZ18: 0 | RA18: 0 | RB18: 0 | RC18: 0 | RD18: 0 | RE18: 0 | RF18: 0 | RH18: 0 | RI18: 0 | RJ18: 0 | RK18: 0 | RL18: 0 | RM18: 309.6 | RO18: 0 | RP18: 0 | RQ18: 0 | RR18: 0 | RS18: 0 | RT18: 0 | RU18: 0 | RV18: 0 | RW18: 0 | RX18: 0 | RY18: 0 | RZ18: 0 | SA18: 0 | SB18: 0 | SC18: 0 | SD18: 0 | SE18: 0 | SF18: 0 | SG18: 0 | SH18: 0 | SI18: 0 | SJ18: TRUE | SK18: TRUE | SM18: 1.07 | SN18: 0 | SP18: =VLOOKUP(A18,'Control Sheet'!$G$9:$H$20,2) -> 30
A19: Apr | B19: 2018-04-11 | C19: Prewitt Inlet Canal | D19: 1936-01-13 | E19: Prewitt Inlet Canal | F19: 31423.29219 | K19: Prewitt Inlet Canal | L19: 1936-01-13 | M19: Prewitt Inlet Canal | N19: 31423.29219 | AA19: 0 | AB19: 0 | AC19: 0 | AD19: 0 | AE19: 0 | AF19: 0 | AG19: =('NFC Well Pumping'!$L17+'NFC Well Pumping'!$L54+'NFC Well Pumping'!$L90)/1.9835 -> 3.450274116 | AH19: ='88CW264(B) Pumping'!$E17/1.9835+'88CW264(B) Pumping'!$E53/1.9835+'88CW264(B) Pumping'!E93/1.9835+'88CW264(B) Pumping'!E129/1.9835+'88CW264(B) Pumping'!E169/1.9835+'88CW264(B) Pumping'!E205/1.9835 -> 0.01481193911 | AI19: 0 | AJ19: =('United No. 2 Well Pumping'!G18+'United No. 2 Well Pumping'!G54+'United No. 2 Well Pumping'!G90)/1.9835 -> 0 | AK19: =('United No. 2 Well Pumping'!F18+'United No. 2 Well Pumping'!F54+'United No. 2 Well Pumping'!F90)/1.9835 -> 0 | AL19: 0 | AN19: 3.465086055 | AO19: =AC19+AK19+'United Res'!AA181+'United Res'!AQ181+'Milliken Res'!I169 -> 0 | AP19: 100 | AQ19: =-(IF($N19=99999.99999,0,VLOOKUP($B19,'NFC Well Dplns-URF'!B$7:$AB$306,27))/$SP19/1.9835) -> -0.003304877751 | AR19: 0 | AT19: =(VLOOKUP($B19,'ECCV 70R Pond Acrtns'!$B$7:$AI$1206,34)+VLOOKUP($B19,'2003 70R Pond Acrtns'!$B$7:$AI$1206,34)+VLOOKUP($B19,'ECCV 70R Canal Acrtns'!$B$7:$AI$1206,27)+VLOOKUP($B19,'2003 70R Canal Acrtns'!$B$7:$AI$1206,27))/$SP19/1.9835 -> 0 | AU19: -0.003304877751 | AV19: =-(IF($N19=99999.99999,0,VLOOKUP($B19,'NFC Well Dplns-SDF'!$B$7:$Z$306,25)+VLOOKUP($B19,'NFC Well Dplns-URF'!B$7:$AB$306,20))/$SP19/1.9835) -> -0.06850151537 | AW19: 0.003352812464 | AX19: 0.04 | AY19: ECCV Riverside Credits | AZ19: =-((BL19+BM19)*'Weldon Credit'!$BB$36) -> 0 | BA19: =-((BL19+BM19)*'Weldon Credit'!$BB$34) -> -0.004889539388 | BB19: =-INDEX('Weldon Credit'!$AX$249:$BJ$276,MATCH($B$2,'Weldon Credit'!$AX$249:$AX$276,0),MATCH(A19,'Weldon Credit'!$AX$249:$BJ$249,0))/SP19/1.9835 -> -0.007996419995 | BC19: -0.007996419995 | BD19: =-((BL19+BM19)*'Weldon Credit'!$BB$37) -> -0.1580275025 | BE19: =-((BL19+BM19)*'Weldon Credit'!$BB$35) -> -0.1750263249 | BF19: =-INDEX('Weldon Credit'!$AX$281:$BJ$308,MATCH($B$2,'Weldon Credit'!$AX$281:$AX$308,0),MATCH(A19,'Weldon Credit'!$AX$281:$BJ$281,0))/SP19/1.9835 -> -0.1409485256 | BG19: -0.2989760281 | BH19: =-(BL19+BM19)*'Weldon Credit'!$BB$38 -> -0.7098736245 | BI19: =0.4*(INDEX('Riverside Pond Accrtns'!$B$6:$M$36,MATCH($B$2,'Riverside Pond Accrtns'!$A$6:$A$36,0),MATCH('ECCV Daily Replacement Summary'!A19,'Riverside Pond Accrtns'!$B$5:$M$5,0))/SP19)/1.9835 -> 1.65541047 | BJ19: =(44/640)*(INDEX('Weldon Valley Accrtns (02CW377)'!$B$6:$M$30,MATCH($B$2,'Weldon Valley Accrtns (02CW377)'!$A$6:$A$30,0),MATCH(A19,'Weldon Valley Accrtns (02CW377)'!$B$5:$M$5,0))/SP19)/1.9835 -> 0.2998172422 | BK19: =(VLOOKUP($B19,'ECCV 70R Pond Acrtns'!$B$7:$AI$1206,25)+VLOOKUP($B19,'ECCV 70R Canal Acrtns'!$B$7:$AI$1206,20)+VLOOKUP($B19,'2003 70R Pond Acrtns'!$B$7:$AI$1206,25)+VLOOKUP($B19,'2003 70R Canal Acrtns'!$B$7:$AI$1206,20))/$SP19/1.9835 -> 0 | BL19: ='Joint Aug Station Deliveries'!G19 -> 0 | BM19: ='Joint Aug Station Deliveries'!H19 -> 1.39 | BN19: 0 | BO19: 1.016846073 | BP19: =IF(CB19="no",-MAX(0,MIN(BO19,(BM19-BL19))*(0.5/100*'Distances for Transit Losses'!$C$75)),0) -> -0.01982849842 | BQ19: 0.353325429 | BR19: =MIN(-($BC19+BG19+BH19+BN19+BO19+BP19),BI19-BI19*0.5/100*'Distances for Transit Losses'!$C$77) -> 0.01982849842 | BS19: 0 | BT19: =MIN(-($BC19+BG19+BH19+BN19+BO19+BP19+BR19+BS19),BK19-BK19*0.5/100*'Distances for Transit Losses'!$C$77) -> 0 | BU19: =-((BR19+BT19)*(0.5/100*'Distances for Transit Losses'!$C$77)) -> -0.002111735081 | BV19: =IF(AND(JS19-JT19-GL19-DU19>0,JN19="no"),MIN(-(BC19+BG19+BH19+BN19+BO19+BP19+BR19+BS19+BT19+BU19)/(1-0.5/100*'Distances for Transit Losses'!$C$99),JS19-JT19-GL19-DU19),0) -> 0 | BW19: =--BV19*0.5/100*'Distances for Transit Losses'!C$99 -> 0 | BX19: =IF(AND(HZ19-IA19-JV19-GR19-LU19-DY19>0,GE19="no"),MIN(-(BC19+BG19+BH19+BN19+BO19+BP19+BR19+BS19+BT19+BU19+BV19+BW19)/(1-0.5/100*'Distances for Transit Losses'!$C$101),HZ19-IA19-JV19-GR19-LU19-DY19),0) -> 0 | BY19: =--BX19*0.5/100*'Distances for Transit Losses'!$C$101 -> 0 | BZ19: 0 | CB19: no | CC19: no | CD19: no | CE19: 0 | CF19: 0 | CG19: 0 | CI19: =IF($CD19="No",MIN(IF(-DP19<0,0,-DP19),BI19-BR19/(1-0.5/100*'Distances for Transit Losses'!$C$77)),0) -> 0.315539224 | CJ19: =IF($CD19="No",IF(MIN(-DP19+CI19,BK19-BT19/(1-0.5/100*'Distances for Transit Losses'!$C$77))<0,0,MIN(-DP19+CI19,BK19-BT19/(1-0.5/100*'Distances for Transit Losses'!$C$77))),0) -> 0 | CK19: 0 | CL19: 0 | CM19: 0 | CN19: 2.263232936 | CO19: 1.967865214 | CP19: =-(IF($N19=99999.99999,0,VLOOKUP($B19,'NFC Well Dplns-SDF'!$B$7:$Z$306,16)+VLOOKUP($B19,'NFC Well Dplns-URF'!$B$7:$AB$306,13))/$SP19/1.9835) -> -0.4359358329 | CQ19: =-(IF($N19>=99999,0,'88CW264(B) Pumping'!$E17/1.9835)+IF($N19>=99999,0,'88CW264(B) Pumping'!$E53/1.9835)+IF($N19>=99999,0,'88CW264(B) Pumping'!$E93/1.9835)+IF($N19>=99999,0,'88CW264(B) Pumping'!$E129/1.9835)+IF($N19>=51134.50919,0,'88CW264(B) Pumping'!$E169/1.9835)+IF($N19>=53406,0,'88CW264(B) Pumping'!$E205/1.9835)) -> -0.01481193911 | CR19: -0.450747772 | CS19: 0.03193008991 | CT19: 0.11 | CU19: Haren Recharge | CV19: =-(IF($N19=99999.99999,0,VLOOKUP($B19,'United No. 2 Dplns'!$B$7:$X$676,13)/1.9835)) -> 0 | CW19: =CV19+(-(INDEX('Pre 1995 Net Accretions'!$B$6:$M$105,MATCH($B$2,'Pre 1995 Net Accretions'!$A$6:$A$105,0),MATCH($A19,'Pre 1995 Net Accretions'!$B$5:$M$5,0))/$SP19/1.9835)) -> 0.02775653206 | CX19: =-(IF(N19<99999.99999,(INDEX('70 Ranch RF Obligation'!$B$6:$M$36,MATCH($B$2,'70 Ranch RF Obligation'!$A$6:$A$36,0),MATCH('ECCV Daily Replacement Summary'!A19,'70 Ranch RF Obligation'!$B$5:$M$5,0))/SP19)/1.9835,0))-DA19*(1-'L. Latham Credit'!$E$41) -> -0.06223460608 | CY19: -0.03447807402 | CZ19: =(VLOOKUP($B19,'ECCV 70R Pond Acrtns'!$B$7:$AI$1206,16)+VLOOKUP($B19,'ECCV 70R Canal Acrtns'!$B$7:$AI$1206,13)+VLOOKUP($B19,'2003 70R Pond Acrtns'!$B$7:$AI$1206,16)+VLOOKUP($B19,'2003 70R Canal Acrtns'!$B$7:$AI$1206,13))/$SP19/1.9835 -> 0 | DA19: ='Joint Aug Station Deliveries'!DE19 -> 0 | DB19: 0 | DC19: 0 | DD19: ='Joint Aug Station Deliveries'!DH19 -> 0 | DE19: 0 | DF19: 0 | DI19: 0.02775653206 | DJ19: 0.02775653206 | DK19: 0 | DL19: =-DK19*0.5/100*'Distances for Transit Losses'!$C$48 -> 0 | DM19: 0 | DN19: 0 | DO19: 0 | DP19: -0.315539224 | DQ19: 0.315539224 | DR19: 0 | DS19: 0 | DT19: =('NFC Well Pumping'!I17+'NFC Well Pumping'!I54+'NFC Well Pumping'!I90)/1.9835 -> 0 | DU19: =IF(AND(JS19-JT19-GL19>0,JN19="no"),MIN(-SUM(DP19:DT19)/(1-0.5/100*'Distances for Transit Losses'!$C$103),JS19-JT19-GL19),0) -> 0 | DV19: =-DU19*0.5/100*'Distances for Transit Losses'!C$103 -> 0 | DW19: 0 | DX19: =-DW19*0.5/100*'Distances for Transit Losses'!$C$127 -> 0 | DY19: =IF(AND(HZ19-IA19-JV19-GR19-LU19>0,GE19="no"),MIN(-SUM(DP19:DX19)/(1-0.5/100*'Distances for Transit Losses'!$C$105),HZ19-IA19-JV19-GR19-LU19),0) -> 0 | DZ19: =--DY19*0.5/100*'Distances for Transit Losses'!$C$105 -> 0 | EA19: 0 | EB19: =IF('Joint Aug Station Deliveries'!R19="Yes",'Joint Aug Station Deliveries'!P19,0) -> 0 | EC19: ='Joint Aug Station Deliveries'!T19 -> 0 | ED19: =IF('Joint Aug Station Deliveries'!Z19="Yes",'Joint Aug Station Deliveries'!X19,0) -> 0 | EE19: =-(ED19*0.5/100*'Distances for Transit Losses'!$C$216) -> 0 | EF19: =IF('Joint Aug Station Deliveries'!AD19="Yes",'Joint Aug Station Deliveries'!AB19,0) -> 0 | EG19: =-(EF19*0.5/100*'Distances for Transit Losses'!$C$248) -> 0 | EH19: 0 | EI19: =-(EH19*0.5/100*'Distances for Transit Losses'!$C$238) -> 0 | EJ19: no | EK19: =IF('Joint Aug Station Deliveries'!AH19="Yes",'Joint Aug Station Deliveries'!AF19,0) -> 0 | EL19: =-(EK19*0.5/100*'Distances for Transit Losses'!$C$250) -> 0 | EM19: =IF('Joint Aug Station Deliveries'!AL19="Yes",'Joint Aug Station Deliveries'!AJ19,0) -> 0 | EN19: =-(EM19*0.5/100*'Distances for Transit Losses'!$C$252) -> 0 | EO19: =IF('Joint Aug Station Deliveries'!AP19="Yes",'Joint Aug Station Deliveries'!AN19,0) -> 0 | EP19: =-(EO19*0.5/100*'Distances for Transit Losses'!$C$254) -> 0 | EQ19: =-0.25*(INDEX('GIC Credit'!$B$85:$M$116,MATCH($B$2,'GIC Credit'!$A$85:$A$116,0),MATCH($A19,'GIC Credit'!$B$85:$M$85,0))/$SP19/1.9835+FK19*'GIC Credit'!$Z$39+FL19*'GIC Credit'!$AO$39) -> -0.0001915 | ER19: -0.0001915 | ES19: ='Joint Aug Station Deliveries'!CW19 -> 0 | ET19: =-(ES19*0.5/100*'Distances for Transit Losses'!$C$244) -> 0 | EU19: ='Joint Aug Station Deliveries'!CX19 -> 0 | EV19: =-(EU19*0.5/100*'Distances for Transit Losses'!$C$246) -> 0 | EW19: 0 | EY19: no | EZ19: -0.0001915 | FA19: =-0.39*(INDEX('GIC Credit'!$B$85:$M$116,MATCH($B$2,'GIC Credit'!$A$85:$A$116,0),MATCH($A19,'GIC Credit'!$B$85:$M$85,0))/$SP19/1.9835+FK19*'GIC Credit'!$Z$39+FL19*'GIC Credit'!$AO$39) -> -0.00029874 | FB19: 0 | FC19: =-(FB19*0.5/100*('Distances for Transit Losses'!$C$220+'Distances for Transit Losses'!$C$226)) -> 0 | FD19: =IF('Joint Aug Station Deliveries'!AT19="Yes",'Joint Aug Station Deliveries'!AR19,0) -> 0 | FE19: =-(FD19*0.5/100*('Distances for Transit Losses'!$C$222+'Distances for Transit Losses'!$C$224)) -> 0 | FF19: =IF('Joint Aug Station Deliveries'!AX19="Yes",'Joint Aug Station Deliveries'!AV19,0) -> 0 | FG19: =-(FF19*0.5/100*'Distances for Transit Losses'!$C$224) -> 0 | FH19: ='Joint Aug Station Deliveries'!CY19 -> 0 | FI19: =-(FH19*0.5/100*'Distances for Transit Losses'!$C$230) -> 0 | FJ19: 0 | FK19: ='Joint Aug Station Deliveries'!DA19 -> 0 | FL19: ='Joint Aug Station Deliveries'!DB19 -> 0 | FM19: =MIN(0,EZ19)+SUM(FA19:FC19)+EB19/(1-0.5/100*('Distances for Transit Losses'!$C$256+'Distances for Transit Losses'!$C$268))+EC19/(1-0.5/100*('Distances for Transit Losses'!$C$242))+SUM(ED19:EE19)/(1-0.5/100*('Distances for Transit Losses'!$C$258+'Distances for Transit Losses'!$C$268))+SUM(EF19:EG19)/(1-0.5/100*('Distances for Transit Losses'!$C$260+'Distances for Transit Losses'!$C$268))+EH19/(1-0.5/100*('Distances for Transit Losses'!$C$242))+SUM(EK19:EL19)/(1-0.5/100*('Distances for Transit Losses'!$C$262+'Distances for Transit Losses'!$C$270))+SUM(EM19:EN19)/(1-0.5/100*('Distances for Transit Losses'!$C$264+'Distances for Transit Losses'!$C$270))+SUM(EO19:EP19)/(1-0.5/100*('Distances for Transit Losses'!$C$266+'Distances for Transit Losses'!$C$270))+SUM(FD19:FG19)/(1-0.5/100*('Distances for Transit Losses'!$C$226))+SUM(FH19:FI19) -> -0.00049024 | FN19: =-(IF(N19<99999.99999,INDEX('Hist RF to SPR'!$AF$6:$AQ$30,MATCH($B$2,'Hist RF to SPR'!$AE$6:$AE$30,0),MATCH($A19,'Hist RF to SPR'!$AF$5:$AQ$5,0))/SP19/1.9835,0)) -> -0.0002698345146 | FO19: =IF(N19<99999.99999,-INDEX('New Cache Credit'!$BO$109:$CA$136,MATCH($B$2,'New Cache Credit'!$BO$109:$BO$136,0),MATCH(A19,'New Cache Credit'!$BO$109:$CA$109,0))/SP19/1.9835-INDEX('New Cache Credit'!$CD$77:$CP$104,MATCH($B$2,'New Cache Credit'!$CD$77:$CD$104,0),MATCH(A19,'New Cache Credit'!$CD$77:$CP$77,0))/SP19/1.9835,0) -> 0 | FP19: =-0.36*(INDEX('GIC Credit'!$B$85:$M$116,MATCH($B$2,'GIC Credit'!$A$85:$A$116,0),MATCH($A19,'GIC Credit'!$B$85:$M$85,0))/$SP19/1.9835+FK19*'GIC Credit'!$Z$39+FL19*'GIC Credit'!$AO$39) -> -0.00027576 | FQ19: -0.00049024 | FR19: -0.001035834515 | FS19: 0 | FT19: =IF('Joint Aug Station Deliveries'!BB19="Yes",'Joint Aug Station Deliveries'!AZ19,0) -> 0 | FU19: =-(FT19*0.5/100*'Distances for Transit Losses'!$C$208) -> 0 | FV19: =IF('Joint Aug Station Deliveries'!BF19="Yes",'Joint Aug Station Deliveries'!BD19,0) -> 0 | FW19: =-(FV19*0.5/100*'Distances for Transit Losses'!$C$210) -> 0 | FX19: =IF('Joint Aug Station Deliveries'!BJ19,'Joint Aug Station Deliveries'!BH19,0) -> 0 | FY19: =-(FX19*0.5/100*'Distances for Transit Losses'!$C$212) -> 0 | FZ19: =IF('Joint Aug Station Deliveries'!BN19="Yes",'Joint Aug Station Deliveries'!BL19,0) -> 0 | GA19: =-(FZ19*0.5/100*'Distances for Transit Losses'!$C$200) -> 0 | GB19: =IF('Joint Aug Station Deliveries'!BR19="Yes",'Joint Aug Station Deliveries'!BP19,0) -> 0 | GC19: =-(GB19*0.5/100*'Distances for Transit Losses'!$C$206) -> 0 | GD19: =MIN(-FR19-FS19,SUM(FT19:FU19)/(1-0.5/100*('Distances for Transit Losses'!$C$274))+SUM(FV19:FW19)/(1-0.5/100*('Distances for Transit Losses'!$C$276))+SUM(FX19:FY19)+SUM(FZ19:GA19)+SUM(GB19:GC19)) -> 0 | GE19: no | GF19: 0 | GG19: 0 | GH19: 0 | GJ19: 0 | GK19: 0 | GL19: =IF(AND(JS19-JT19-HV19>0,JN19="no"),MIN(-(FR19+FS19+GD19+GJ19+GK19)/(1-0.5/100*'Distances for Transit Losses'!$C$107),JS19-JT19-HV19),0) -> 0 | GM19: 0 | GN19: 0 | GO19: =-GL19*0.5/100*'Distances for Transit Losses'!$C$107 -> 0 | GP19: 0 | GQ19: =-GP19*0.5/100*'Distances for Transit Losses'!$C$125 -> 0 | GR19: =IF(AND(HZ19-IA19-JV19>0,HL19="no"),MIN(-(FR19+FS19+GD19+GJ19+GK19+GL19+GO19+GP19+GQ19)/(1-0.5/100*'Distances for Transit Losses'!$C$109),HZ19-IA19-JV19),0) -> 0 | GS19: =-GR19*0.5/100*'Distances for Transit Losses'!$C$115 -> 0 | GT19: 0.06 | GU19: Haren Recharge | GV19: 0 | GW19: 0.05896416549 | GX19: 0.05896416549 | GY19: 0 | GZ19: 0 | HA19: =-(IF(N19<99999.99999,INDEX('Hist RF to SPR'!$Q$6:$AB$30,MATCH($B$2,'Hist RF to SPR'!$P$6:$P$30,0),MATCH($A19,'Hist RF to SPR'!$Q$5:$AB$5,0))/SP19/1.9835,0)) -> -0.002641576218 | HB19: =-(IF(OR($N19<99999.99999,E19="Lower Latham",I19="Lower Latham",E19="Highland",I19="Highland",E19="Plum",I19="Plum"),(INDEX('FIDCO Credit'!$Y$48:$AJ$78,MATCH($B$2,'FIDCO Credit'!$X$48:$X$78,0),MATCH($A19,'FIDCO Credit'!$Y$47:$AJ$47,0))/$SP19)/1.9835,0)) -> 0 | HC19: =-(IF(OR($N19<99999.99999,E19="Lower Latham",I19="Lower Latham",E19="Highland",I19="Highland",E19="Plum",I19="Plum"),(INDEX('Western Credit'!$W$84:$AH$114,MATCH($B$2,'Western Credit'!$V$84:$V$114,0),MATCH($A19,'Western Credit'!$W$83:$AH$83,0))/$SP19)/1.9835+'Haren Daily Recharge'!K18*'Western Credit'!$Z$40,0)) -> -0.03801888983 | HD19: -0.04066046605 | HE19: 0 | HF19: 0 | HG19: =IF(AND(HM19="no",HN19="no"),MIN(-(HB19-HE19-HF19)/(1-0.5/100*'Distances for Transit Losses'!$C$95),JK19),0) -> 0 | HH19: =-HG19*0.5/100*'Distances for Transit Losses'!$C$95 -> 0 | HI19: =VLOOKUP($B19,'ECCV Haren Pond S.P. Acrtns'!$B$7:$G$306,6)/$SP19/1.9835 -> 1.671957767 | HJ19: 0.04066046605 | HK19: 0 | HL19: no | HM19: no | HN19: no | HO19: 0 | HP19: 0 | HQ19: 0 | HS19: 0 | HT19: 0 | HU19: 0 | HV19: =IF(AND(JS19-JT19>0,JN19="no"),MIN(-HU19/(1-0.5/100*'Distances for Transit Losses'!$C$111),JS19-JT19),0) -> 0 | HW19: =-HV19*0.5/100*'Distances for Transit Losses'!$C$111 -> 0 | HX19: =IF(AND(JW19+JX19-JY19-KJ19>0,JN19="no"),MIN((-HU19-(HV19+HW19))/(1-0.5/100*'Distances for Transit Losses'!$C$113),JW19+JX19-JY19-KJ19),0) -> 0 | HY19: =-HX19*0.5/100*'Distances for Transit Losses'!$C$113 -> 0 | HZ19: 0 | IA19: =IF(HZ19>0,MIN(-(HU19+HV19+HW19+HX19+HY19)/(1-0.5/100*'Distances for Transit Losses'!$C$115),HZ19),0) -> 0 | IB19: =-IA19*0.5/100*'Distances for Transit Losses'!$C$115 -> 0 | IC19: 0 | IE19: 0 | IF19: ='Joint Aug Station Deliveries'!CJ19 -> 0 | IG19: =IF19*'Western Credit'!$Z$42 -> 0 | IH19: ='Joint Aug Station Deliveries'!CA19 -> 0 | II19: =IF(AND(IH19>0,SUM($IH$9:IH19,$IJ$9:IJ19,$JK$9:JK19)*1.9835<OFFSET('FIDCO Credit'!$X$39,0,MATCH($A19,'FIDCO Credit'!$Y$5:$AJ$5,0))),IH19-HE19,0) -> 0 | IJ19: ='Joint Aug Station Deliveries'!CD19 -> 0 | IK19: =IF(AND(IJ19>0,SUM($IH$9:IH19,$IJ$9:IJ19,$JK$9:JK19)*1.9835<OFFSET('FIDCO Credit'!$X$39,0,MATCH($A19,'FIDCO Credit'!$Y$5:$AJ$5,0))),IJ19-HF19,0) -> 0 | IL19: =MAX(0,(LP19+LQ19))/(1-0.5/100*'Distances for Transit Losses'!$C$83) -> 0 | IM19: =MAX(0,(LR19+LS19)/(1-0.5/100*'Distances for Transit Losses'!$C$79)) -> 0 | IN19: 0 | IO19: =-IN19*0.5/100*'Distances for Transit Losses'!$C$85 -> 0 | IP19: 0 | IQ19: 0 | IR19: =-IQ19*0.5/100*'Distances for Transit Losses'!$C$34 -> 0 | IS19: 0 | IT19: 0 | IU19: 0 | IV19: 0 | IW19: 0 | IX19: 0 | IY19: 0 | IZ19: 0 | JA19: 0 | JB19: 0 | JC19: 0 | JD19: 0 | JE19: =-JD19*0.5/100*'Distances for Transit Losses'!$C$123 -> 0 | JF19: 0 | JG19: 1.6312973 | JH19: 0 | JI19: 0 | JJ19: =-(IF(F19<99999.99999,INDEX('Hist RF to SPR'!$B$6:$M$30,MATCH($B$2,'Hist RF to SPR'!$A$6:$A$30,0),MATCH($A19,'Hist RF to SPR'!$B$5:$M$5,0))/SP19/1.9835,0)) -> -0.02025744307 | JK19: ='Joint Aug Station Deliveries'!CG19 -> 0 | JL19: =IF(AND(JK19>0,SUM($IH$9:IH19,$IJ$9:IJ19,$JK$9:JK19)*1.9835<OFFSET('FIDCO Credit'!$X$39,0,MATCH($A19,'FIDCO Credit'!$Y$5:$AJ$5,0))),JK19-HG19,0) -> 0 | JM19: 0 | JN19: no | JO19: 0 | JP19: 0 | JQ19: 0.02025744307 | JR19: 0 | JS19: 0 | JT19: =IF(JS19>0,MIN(-JR19/(1-0.5/100*'Distances for Transit Losses'!$C$117),JS19),0) -> 0 | JU19: =-JT19*0.5/100*'Distances for Transit Losses'!$C$117 -> 0 | JV19: 0 | JW19: 0 | JX19: =-JW19*0.5/100*'Distances for Transit Losses'!$C$70 -> 0 | JY19: =IF((JW19+JX19)>0,MIN((-JR19-(JT19-JU19)-JV19)/(1-0.5/100*'Distances for Transit Losses'!$C$119),(JW19+JX19)),0) -> 0 | JZ19: =-JY19*0.5/100*'Distances for Transit Losses'!$C$119 -> 0 | KA19: 0 | KC19: 0 | KD19: 0 | KE19: 0 | KF19: 0 | KG19: 0 | KH19: 0 | KI19: 0 | KJ19: 0 | KK19: =-KJ19*0.5/100*'Distances for Transit Losses'!$C$121 -> 0 | KL19: 0 | KM19: 0 | KN19: 0 | KO19: =-(IF(N19<99999.99999,(VLOOKUP(B19,'ECCV Upper Dpln'!$B$7:$BD$306,55))/SP19/1.9835,0)) -> -3.853753649 | KP19: =-(IF(N19<99999.99999,INDEX('Hist RF abv Milton'!$B$6:$M$30,MATCH($B$2,'Hist RF abv Milton'!$A$6:$A$30,0),MATCH($A19,'Hist RF abv Milton'!$B$5:$M$5,0))/SP19/1.9835,0)) -> -0.01753960152 | KQ19: 0 | KR19: =(VLOOKUP($B19,'ECCV Beebe Pond Acrtns'!$B$7:$BI$1206,41)+VLOOKUP($B19,'ECCV Canal Acrtns'!$B$7:$AL$1206,22)+VLOOKUP($B19,'2003 Beebe Pond Acrtns'!$B$7:$BI$1206,41)+VLOOKUP($B19,'2003 Canal Acrtns'!$B$7:$AL$1206,22))/$SP19/1.9835 -> 1.065139416 | KS19: ='Barr Lake'!BV30 -> 0 | KT19: 0 | KU19: 0 | KV19: 0 | KW19: 0 | KX19: 0 | KY19: 1.065139416 | KZ19: 0 | LA19: no | LB19: 0 | LC19: 0 | LD19: 0 | LE19: 0.01753960152 | LF19: 1.950325612 | LG19: 0 | LH19: 0.05896416549 | LI19: -0.779324455 | LJ19: 0 | LK19: =1.5-0.69 -> 0.81 | LL19: =-(LK19*0.5/100*'Distances for Transit Losses'!$C$6) -> -0.010935 | LM19: 0 | LN19: 0 | LO19: 0 | LP19: =IF(AND(E19<>"Lower Latham",I19<>"Lower Latham"),MIN(-(LJ19+LM19),II19-II19*0.5/100*'Distances for Transit Losses'!$C$83),0) -> 0 | LQ19: =IF(AND(E19<>"Lower Latham",I19<>"Lower Latham"),MAX(0,MIN(-(LI19+LK19+LL19+LO19),II19-II19*0.5/100*'Distances for Transit Losses'!$C$83-LP19/(1-0.5/100*'Distances for Transit Losses'!$C$83))),0) -> 0 | LR19: =MIN(-(LJ19+LP19),IG19-IG19*0.5/100*'Distances for Transit Losses'!$C$79) -> 0 | LS19: =MAX(0,MIN(-(LI19+LK19+LL19+LQ19),IG19-IG19*0.5/100*'Distances for Transit Losses'!$C$79-LR19/(1-0.5/100*'Distances for Transit Losses'!$C$79))) -> 0 | LT19: =IF(GE19="no",MIN(-(MIN(0,LI19+LJ19+LK19+LL19+LQ19+LS19)),(HI19-HJ19)-(HI19-HJ19)*0.5/100*'Distances for Transit Losses'!$C$79),0) -> 0 | LU19: =MAX(0,IF(AND(HZ19-IA19-JV19-GR19>0,GE19="no"),MIN(-(LI19+LK19+LL19+LO19+LQ19+LS19+LT19)/(1-0.5/100*'Distances for Transit Losses'!$C$89),HZ19-IA19-JV19-GR19),0)) -> 0 | LV19: =-LU19*0.5/100*'Distances for Transit Losses'!$C$89 -> 0 | LY19: 0.01974054501 | LZ19: 0 | MA19: 0 | MB19: 0 | MC19: 0 | MD19: =-(IF(N19<99999.99999,INDEX('Hist RF blw Milton'!$B$6:$M$30,MATCH($B$2,'Hist RF blw Milton'!$A$6:$A$30,0),MATCH($A19,'Hist RF blw Milton'!$B$5:$M$5,0))/SP19/1.9835,0)) -> -0.02553825924 | ME19: no | MF19: 0 | MG19: 0 | MH19: -0.02553825924 | MI19: 0 | MJ19: 0 | MK19: 0.03 | ML19: Haren Recharge | MM19: ='Milton Lake'!DY18 -> 0 | MN19: 0 | MO19: 0 | MP19: 0 | MQ19: 0 | MR19: =-(IF(N19<99999.99999,INDEX('Hist RF to Box Elder'!$B$6:$M$30,MATCH($B$2,'Hist RF to Box Elder'!$A$6:$A$30,0),MATCH($A19,'Hist RF to Box Elder'!$B$5:$M$5,0))/SP19/1.9835,0)) -> -0.01324364974 | MS19: =(VLOOKUP($B19,'ECCV Beebe Pond Acrtns'!$B$7:$BI$1206,54)+VLOOKUP($B19,'ECCV Canal Acrtns'!$B$7:$AL$1206,34)+VLOOKUP($B19,'2003 Beebe Pond Acrtns'!$B$7:$BI$1206,54)+VLOOKUP($B19,'2003 Canal Acrtns'!$B$7:$AL$1206,34)+VLOOKUP($B19,'84CW090 Beebe Pond Acrtns'!$B$7:$BI$1206,55)+VLOOKUP($B19,'84CW090 Canal Acrtns'!$B$7:$AL$1206,34))/$SP19/1.9835 -> 0.1080499331 | MT19: 0.01324364974 | MU19: 0 | MV19: 0 | MW19: 0 | MY19: -5.543092577 | MZ19: 3.891033796 | NA19: 0.03 | NB19: 0.01324364974 | NC19: 0.02025744307 | ND19: 0.04066046605 | NE19: 0.06 | NF19: 0 | NG19: 0.485225846 | NH19: 1.05808715 | NI19: 5.59850835 | NJ19: 0.05541577326 | NK19: 0 | NL19: 0 | NM19: 0 | NO19: 0 | NP19: 0 | NQ19: 0 | NR19: 0 | NS19: 0 | NT19: 0 | NU19: 0 | NV19: 0 | NX19: 0 | NY19: 0 | NZ19: 0 | OA19: 0 | OB19: 0 | OC19: 0 | OD19: 0 | OE19: 0 | OF19: 0 | OG19: 0 | OH19: 0 | OI19: 0 | OK19: 1.39 | OL19: 0 | OM19: 0 | ON19: 0 | OO19: 0 | OP19: 0 | OQ19: 0 | OR19: 0 | OS19: 0 | OT19: 0 | OU19: 0 | OW19: 0 | OX19: 0 | OY19: 0 | OZ19: 0 | PA19: 0 | PB19: 0 | PC19: 0 | PD19: 0 | PE19: 0 | PF19: 0 | PG19: 0 | PI19: 0 | PJ19: 0 | PK19: 0 | PL19: 0 | PM19: 0 | PN19: 0 | PO19: 0 | PP19: 0 | PQ19: 0 | PR19: 0 | PS19: 0 | PT19: 0 | PU19: 0 | PW19: 0 | PX19: 0 | PY19: 0 | PZ19: 0 | QA19: 0 | QB19: 0 | QC19: 0 | QD19: 0 | QE19: 0 | QG19: 0 | QH19: 0 | QI19: 0 | QJ19: 0 | QK19: 0 | QL19: 0 | QM19: 0 | QN19: 0 | QP19: 0 | QQ19: 0 | QR19: 0 | QT19: 0 | QU19: 0 | QV19: 0 | QW19: 0 | QZ19: 0 | RA19: 0 | RB19: 0 | RC19: 0 | RD19: 0 | RE19: 0 | RF19: 0 | RH19: 0 | RI19: 0 | RJ19: 0 | RK19: 0 | RL19: 0 | RM19: 309.6 | RO19: 0 | RP19: 0 | RQ19: 0 | RR19: 0 | RS19: 0 | RT19: 0 | RU19: 0 | RV19: 0 | RW19: 0 | RX19: 0 | RY19: 0 | RZ19: 0 | SA19: 0 | SB19: 0 | SC19: 0 | SD19: 0 | SE19: 0 | SF19: 0 | SG19: 0 | SH19: 0 | SI19: 0 | SJ19: TRUE | SK19: TRUE | SM19: 0.81 | SN19: 0 | SP19: =VLOOKUP(A19,'Control Sheet'!$G$9:$H$20,2) -> 30
